Workbook

Sheet 2f06 quad scan
A2: beam rigidity, kg-m | D2: =elements!$I$123 -> 4.504528227
A3: distance, qx2f03 to ITV2F06 | D3: =emittance!B152-emittance!B144+0.075 -> 3.61 | F3: center of quad to viewer, more or less
O7: test emit squared
A8: sigma11 | B8: =G8*G9 -> 2.6e-06 | C8: sigma33 | D8: =I8*I9 -> 1.8e-06 | F8: eps x | G8: 4e-07 | H8: eps y | I8: 2e-07 | K8: x fit function | M8: =SUM(M13:M42) -> 6.58206525 | O8: =1000000000000000*B8*B10-B9^2 -> 170
A9: sigma12 | B9: =-G8*G10 -> 1e-07 | C9: sigma34 | D9: =-I8*I10 -> -1.05e-06 | F9: beta x | G9: 6.5 | H9: beta y | I9: 9 | K9: y fit function | M9: =SUM(R13:R42) -> 4.723731061 | O9: =1000000000000000*D8*D10-D9^2 -> 1142.5
A10: sigma22 | B10: =(1+G10^2)*G8/G9 -> 6.538461538e-08 | C10: sigma44 | D10: =(1+I10^2)*I8/I9 -> 6.347222222e-07 | F10: alpha x | G10: -0.25 | H10: alpha y | I10: 5.25
I11: horizontal plane | N11: vertical plane
A12: data: enter up to 30 points | E12: b'l (g-cm) | F12: 2f06 spot size (mm) | I12: 1-L/f | J12: size | K12: deviation | L12: weight | N12: 1-L/f | O12: size | P12: deviation | Q12: weight
D13: 1 | E13: 1750 | F13: 1.828724434 | G13: 1.458333333 | I13: =1-$D$3*((E13)/1000)/$D$2 -> -0.4024776141 | J13: =L13*SQRT(I13^2*$B$8+2*I13*$D$3*$B$9+$D$3^2*$B$10) -> 0.0009913018745 | K13: =L13*1000*SQRT(ABS((F13/1000)^2-J13^2)) -> 1.536734736 | L13: 1 | M13: =K13*L13 -> 1.536734736 | N13: =1+$D$3*((E13)/1000)/$D$2 -> 2.402477614 | O13: =Q13*SQRT(N13^2*$D$8+2*N13*$D$3*$D$9+$D$3^2*$D$10) -> 0.0006693267625 | P13: =Q13*1000000*ABS((G13/1000)^2-O13^2) -> 1.678737796 | Q13: 1 | R13: =P13*Q13 -> 1.678737796
A14: you are advised to have at | D14: =D13+1 -> 2 | E14: 1500 | F14: 1.422341227 | G14: 1.25 | I14: =1-$D$3*((E14)/1000)/$D$2 -> -0.2021236692 | J14: =L14*SQRT(I14^2*$B$8+2*I14*$D$3*$B$9+$D$3^2*$B$10) -> 0.0009013245247 | K14: =L14*1000*SQRT(ABS((F14/1000)^2-J14^2)) -> 1.100303897 | L14: =L13 -> 1 | M14: =K14*L14 -> 1.100303897 | N14: =1+$D$3*((E14)/1000)/$D$2 -> 2.202123669 | O14: =Q14*SQRT(N14^2*$D$8+2*N14*$D$3*$D$9+$D$3^2*$D$10) -> 0.0005534360975 | P14: =Q14*1000000*ABS((G14/1000)^2-O14^2) -> 1.256208486 | Q14: =Q13 -> 1 | R14: =P14*Q14 -> 1.256208486
A15: least a factor of 3 dynamic | D15: =D14+1 -> 3 | E15: 1250 | F15: 1.219149623 | G15: 0.9375 | I15: -0.001769724327 | J15: 0.0009224040591 | K15: 0.7971803776 | L15: =L14 -> 1 | M15: 0.7971803776 | N15: 2.001769724 | O15: 0.0005559629886 | P15: 0.5698114053 | Q15: =Q14 -> 1 | R15: 0.5698114053
A16: range in the data and to | D16: 4 | E16: 1000 | F16: 1.015958019 | G16: 0.625 | I16: 0.1985842205 | J16: 0.001047859463 | K16: 0.2565906429 | L16: 1 | M16: 0.2565906429 | N16: 1.801415779 | O16: 0.0006755799782 | P16: 0.06578330701 | Q16: 1 | R16: 0.06578330701
A17: go through a minimum | D17: 5 | E17: 750 | F17: 0.8127664152 | G17: 0.625 | I17: 0.3989381654 | J17: 0.00124656589 | K17: 0.9451652086 | L17: 1 | M17: 0.9451652086 | N17: 1.601061835 | O17: 0.000865003989 | P17: 0.3576069009 | Q17: 1 | R17: 0.3576069009
A18: midway through the scan | D18: 6 | E18: 500 | F18: 1.219149623 | G18: 0.9375 | I18: 0.5992921103 | J18: 0.001489489992 | K18: 0.8557187821 | L18: 1 | M18: 0.8557187821 | N18: 1.40070789 | O18: 0.00108837752 | P18: 0.3056593764 | Q18: 1 | R18: 0.3056593764
D19: 7 | E19: 250 | F19: 1.523937028 | G19: 1.25 | I19: 0.7996460551 | J19: 0.001758400186 | K19: 0.8772611621 | L19: 1 | M19: 0.8772611621 | N19: 1.200353945 | O19: 0.001328687128 | P19: 0.2029094835 | Q19: 1 | R19: 0.2029094835
D20: 8 | E20: 0 | F20: 2.031916038 | G20: 1.666666667 | I20: 1 | J20: 0.002043061146 | K20: 0.2131104435 | L20: 1 | M20: 0.2131104435 | N20: 1 | O20: 0.001578215281 | P20: 0.2870143056 | Q20: 1 | R20: 0.2870143056
D21: 9 | I21: 1 | J21: 0 | K21: 0 | L21: 0 | M21: 0 | N21: 1 | O21: 0 | P21: 0 | Q21: 0 | R21: 0
D22: 10 | I22: 1 | J22: 0 | K22: 0 | L22: 0 | M22: 0 | N22: 1 | O22: 0 | P22: 0 | Q22: 0 | R22: 0
A23: =J13*1000 -> 0.9913018745 | B23: =O13*1000 -> 0.6693267625 | D23: 11 | I23: 1 | J23: 0 | K23: 0 | L23: 0 | M23: 0 | N23: 1 | O23: 0 | P23: 0 | Q23: 0 | R23: 0
A24: 0.9013245247 | B24: =O14*1000 -> 0.5534360975 | D24: 12 | I24: 1 | J24: 0 | K24: 0 | L24: 0 | M24: 0 | N24: 1 | O24: 0 | P24: 0 | Q24: 0 | R24: 0
A25: 0.9224040591 | B25: 0.5559629886 | D25: 13 | I25: 1 | J25: 0 | K25: 0 | L25: 0 | M25: 0 | N25: 1 | O25: 0 | P25: 0 | Q25: 0 | R25: 0
A26: 1.047859463 | B26: 0.6755799782 | D26: 14 | I26: 1 | J26: 0 | K26: 0 | L26: 0 | M26: 0 | N26: 1 | O26: 0 | P26: 0 | Q26: 0 | R26: 0
A27: 1.24656589 | B27: 0.865003989 | D27: 15 | I27: 1 | J27: 0 | K27: 0 | L27: 0 | M27: 0 | N27: 1 | O27: 0 | P27: 0 | Q27: 0 | R27: 0
A28: 1.489489992 | B28: 1.08837752 | D28: 16 | I28: 1 | J28: 0 | K28: 0 | L28: 0 | M28: 0 | N28: 1 | O28: 0 | P28: 0 | Q28: 0 | R28: 0
A29: 1.758400186 | B29: 1.328687128 | D29: 17 | I29: 1 | J29: 0 | K29: 0 | L29: 0 | M29: 0 | N29: 1 | O29: 0 | P29: 0 | Q29: 0 | R29: 0
A30: 2.043061146 | B30: 1.578215281 | D30: 18 | I30: 1 | J30: 0 | K30: 0 | L30: 0 | M30: 0 | N30: 1 | O30: 0 | P30: 0 | Q30: 0 | R30: 0
D31: 19 | I31: 1 | J31: 0 | K31: 0 | L31: 0 | M31: 0 | N31: 1 | O31: 0 | P31: 0 | Q31: 0 | R31: 0
D32: 20 | I32: 1 | J32: 0 | K32: 0 | L32: 0 | M32: 0 | N32: 1 | O32: 0 | P32: 0 | Q32: 0 | R32: 0
D33: 21 | I33: 1 | J33: 0 | K33: 0 | L33: 0 | M33: 0 | N33: 1 | O33: 0 | P33: 0 | Q33: 0 | R33: 0
D34: 22 | I34: 1 | J34: 0 | K34: 0 | L34: 0 | M34: 0 | N34: 1 | O34: 0 | P34: 0 | Q34: 0 | R34: 0
D35: 23 | I35: 1 | J35: 0 | K35: 0 | L35: 0 | M35: 0 | N35: 1 | O35: 0 | P35: 0 | Q35: 0 | R35: 0
D36: 24 | I36: 1 | J36: 0 | K36: 0 | L36: 0 | M36: 0 | N36: 1 | O36: 0 | P36: 0 | Q36: 0 | R36: 0
D37: 25 | I37: 1 | J37: 0 | K37: 0 | L37: 0 | M37: 0 | N37: 1 | O37: 0 | P37: 0 | Q37: 0 | R37: 0
D38: 26 | I38: 1 | J38: 0 | K38: 0 | L38: 0 | M38: 0 | N38: 1 | O38: 0 | P38: 0 | Q38: 0 | R38: 0
D39: 27 | I39: 1 | J39: 0 | K39: 0 | L39: 0 | M39: 0 | N39: 1 | O39: 0 | P39: 0 | Q39: 0 | R39: 0
D40: 28 | I40: 1 | J40: 0 | K40: 0 | L40: 0 | M40: 0 | N40: 1 | O40: 0 | P40: 0 | Q40: 0 | R40: 0
D41: 29 | I41: 1 | J41: 0 | K41: 0 | L41: 0 | M41: 0 | N41: 1 | O41: 0 | P41: 0 | Q41: 0 | R41: 0
D42: 30 | I42: 1 | J42: 0 | K42: 0 | L42: 0 | M42: 0 | N42: 1 | O42: 0 | P42: 0 | Q42: 0 | R42: 0
F43: cm | G43: mm | H43: cm | I43: mm
A44: xscale | B44: =5/SQRT(2)/8.7 -> 0.4063832076 | E44: 1750 | F44: 4.5 | G44: =F44*$B$44 -> 1.828724434 | H44: 3.5 | I44: =H44*$B$45 -> 1.458333333
A45: yscale | B45: =5/12 -> 0.4166666667 | E45: 1500 | F45: 3.5 | G45: =F45*$B$44 -> 1.422341227 | H45: 3 | I45: =H45*$B$45 -> 1.25
E46: 1250 | F46: 3 | G46: 1.219149623 | H46: 2.25 | I46: 0.9375
E47: 1000 | F47: 2.5 | G47: 1.015958019 | H47: 1.5 | I47: 0.625
E48: 750 | F48: 2 | G48: 0.8127664152 | H48: 1.5 | I48: 0.625
E49: 500 | F49: 3 | G49: 1.219149623 | H49: 2.25 | I49: 0.9375
E50: 250 | F50: 3.75 | G50: 1.523937028 | H50: 3 | I50: 1.25
E51: 0 | F51: 5 | G51: 2.031916038 | H51: 4 | I51: 1.666666667

Sheet elements
A1: generic linear modeling workbook | C1: ã1998, D. Douglas | W1: -180 | X1: =5 -> 5 | Y1: =T39 -> 0.225 | Z1: 51 | AA1: =testmat(Z1,0,0,W1:Y1) ->  | AB1: =AA1 ->  | AC1: =W1 -> -180
W2: =W1+10 -> -170 | X2: =5 -> 5 | Y2: =Y1 -> 0.225 | Z2: =Z1+1 -> 52 | AA2: =testmat(Z2,0,0,W2:Y2) ->  | AB2: =AA2 ->  | AC2: =W2 -> -170
A3: element definition sheet - has list of element types and lists definitions for beamline | G3: reads from wiggler.xls in same subdirectory | W3: =W2+10 -> -160 | X3: =5 -> 5 | Y3: =Y2 -> 0.225 | Z3: =Z2+1 -> 53 | AC3: -160
A4: element matrix sheet - has list of matrices for each element type and list for beamline | G4: backpropagates (emittance worksheet) to get injected betas; matches to linac for "good" envelopes | W4: -150 | X4: =5 -> 5 | Y4: 0.225 | Z4: 54 | AC4: -150
A5: matrix product sheet - has running product of element matrices | W5: -140 | X5: =5 -> 5 | Y5: 0.225 | Z5: 55 | AC5: -140
A6: lattice function sheet - has running table of propagated lattice functions | R6: scale factor | W6: -130 | X6: =5 -> 5 | Y6: 0.225 | Z6: 56 | AC6: -130
R7: =R9/R10 -> 0.9951885262 | W7: -120 | X7: =5 -> 5 | Y7: 0.225 | Z7: 57 | AC7: -120
A8: BEAM | B8: species | C8: e- | D8: rest mass | E8: 0.51099906 | F8: k.e. | G8: 0.000325 | H8: p (MeV/c) | I8: =SQRT((G8+0.00051099906)^2-0.00051099906^2) -> 0.0006616452138 | J8: rigidity | K8: =I8*33.3564095198 -> 0.02207010871 | N8: injection momentum: | P8: =9.2*10450/10740 -> 8.951582868 | R8: energy setpoint | W8: -110 | X8: =5 -> 5 | Y8: 0.225 | Z8: 58 | AC8: -110
G9: =E65/1000 -> 0.008493666089 | I9: =SQRT((G9+0.00051099906)^2-0.00051099906^2) -> 0.008990154304 | K9: =I9*33.3564095198 -> 0.2998792686 | R9: 135 | W9: -100 | X9: =5 -> 5 | Y9: 0.225 | Z9: 59 | AC9: -100
A10: matrix types and input format | I10: =SQRT(F37^2-E8^2) -> 8.990154304 | J10: injection momentum MeV/c | P10: =ABS(I10-P8) -> 0.0385714365 | R10: 135.6526894 | S10: value for scale factor = 1 | W10: -90 | X10: =5 -> 5 | Y10: 0.225 | Z10: 60 | AC10: -90
S11: (gradient cals only) | W11: -80 | X11: =5 -> 5 | Y11: 0.225 | Z11: 61 | AC11: -80
A12: DRIFT | W12: -70 | X12: =5 -> 5 | Y12: 0.225 | Z12: 62 | AC12: -70
A13: name | B13: length | D13: rolls have 0 length and are placed before and after a right dipole, so it is not computed as a left dipole | W13: -60 | X13: =5 -> 5 | Y13: 0.225 | Z13: 63 | AC13: -60
A14: QUAD | W14: -50 | X14: =5 -> 5 | Y14: 0.225 | Z14: 64 | AA14: 2.600267076 | AB14: 2.600267076 | AC14: -50
A15: name | B15: length | C15: k1 | W15: -40 | X15: =5 -> 5 | Y15: 0.225 | Z15: 65 | AA15: 3.808824655 | AB15: 3.808824655 | AC15: -40
A16: EDGE | W16: -30 | X16: =5 -> 5 | Y16: 0.225 | Z16: 66 | AA16: 4.865063077 | AB16: 4.865063077 | AC16: -30
A17: name | B17: 0 (length) | C17: rho | D17: angle | E17: gap | F17: K1 | G17: K2 | W17: -20 | X17: =5 -> 5 | Y17: 0.225 | Z17: 67 | AA17: 5.406030502 | AB17: 5.406030502 | AC17: -20
A18: BEND | W18: -10 | X18: =5 -> 5 | Y18: 0.225 | Z18: 68 | AA18: 5.662349957 | AB18: 5.662349957 | AC18: -10
A19: name | B19: length | C19: angle | D19: index | W19: 0 | X19: =5 -> 5 | Y19: 0.225 | Z19: 69 | AA19: 5.73599906 | AB19: 5.73599906 | AC19: 0
W20: 10 | X20: =5 -> 5 | Y20: 0.225 | Z20: 70 | AA20: 5.670720171 | AB20: 5.670720171 | AC20: 10
A21: examples | W21: 20 | X21: =5 -> 5 | Y21: 0.225 | Z21: 71 | AA21: 5.480956623 | AB21: 5.480956623 | AC21: 20
A22: drift1 | B22: 1 | W22: 30 | X22: =5 -> 5 | Y22: 0.225 | Z22: 72 | AA22: 5.166812762 | AB22: 5.166812762 | AC22: 30
A23: qf | B23: 0.15 | C23: 5 | W23: 40 | X23: =5 -> 5 | Y23: 0.225 | Z23: 73 | AA23: 4.721493554 | AB23: 4.721493554 | AC23: 40
A24: sb1 | B24: 0 | C24: 2 | D24: 10 | E24: 0.0254 | F24: 0.3 | G24: 1 | W24: 50 | X24: =5 -> 5 | Y24: 0.225 | Z24: 74 | AA24: 4.133806614 | AB24: 4.133806614 | AC24: 50
A25: b1 | B25: =C24*C25*PI()/180 -> 1.047197551 | C25: 30 | D25: 0 | W25: 60 | X25: =5 -> 5 | Y25: 0.225 | Z25: 75 | AA25: 3.38587252 | AB25: 3.38587252 | AC25: 60
A26: eb1 | B26: 0 | C26: 2 | D26: 10 | E26: 0.0254 | F26: 0.3 | G26: 1 | W26: 70 | X26: =5 -> 5 | Y26: 0.225 | Z26: 76 | AA26: 2.441258581 | AB26: 2.441258581 | AC26: 70
A27: sv1 | B27: 0 | C27: 2 | D27: 10 | E27: 0.0254 | F27: 0.3 | G27: 1 | W27: 80 | X27: =5 -> 5 | Y27: 0.225 | Z27: 77 | AA27: 1.197826292 | AB27: 1.197826292 | AC27: 80
A28: v1 | B28: =C27*C28*PI()/180 -> 1.047197551 | C28: 30 | D28: 0 | W28: 90 | X28: =5 -> 5 | Y28: 0.225 | Z28: 78 | AC28: 90
A29: ev1 | B29: 0 | C29: 2 | D29: 10 | E29: 0.0254 | F29: 0.3 | G29: 1 | W29: 100 | X29: =5 -> 5 | Y29: 0.225 | Z29: 79 | AC29: 100
A30: v1 | B30: =C29*C30*PI()/180 -> 1.047197551 | C30: 30 | D30: 0 | W30: 110 | X30: =5 -> 5 | Y30: 0.225 | Z30: 80 | AC30: 110
W31: 120 | X31: =5 -> 5 | Y31: 0.225 | Z31: 81 | AC31: 120
W32: 130 | X32: =5 -> 5 | Y32: 0.225 | Z32: 82 | AC32: 130
A33: start of beamline stack (girder) | W33: 140 | X33: =5 -> 5 | Y33: 0.225 | Z33: 83 | AC33: 140
A34: endcan | B34: 0.5341 | I34: scale factor for injector momentum | W34: 150 | X34: =5 -> 5 | Y34: 0.225 | Z34: 84 | AC34: 150
A35: ac011 | B35: 0.7 | C35: -0.3 | D35: ='energy adjustments'!B5*elements!I35/2 -> 4.396141123 | E35: 0.325 | F35: =testmat(49,0,0,C35:E35) -> 5.232121492 | I35: 0.914909703 | W35: 160 | X35: =5 -> 5 | Y35: 0.225 | Z35: 85 | AC35: 160
A36: cpd | B36: 0.05 | N36: -4 | W36: 170 | X36: =5 -> 5 | Y36: 0.225 | Z36: 86 | AC36: 170
A37: ac012 | B37: 0.7 | C37: 6.5 | D37: ='energy adjustments'!B4*elements!I35/2 -> 3.796875268 | E37: =F35-$E$8 -> 4.721122432 | F37: =testmat(50,0,0,C37:E37) -> 9.004665149 | G37: =SQRT(F37^2-$E$8^2) -> 8.990154304 | H37: =SQRT(F37^2-$E$8^2) -> 8.990154304 | I37: =33.3564095198*H37/1000 -> 0.2998792686 | W37: 180 | X37: =5 -> 5 | Y37: 0.225 | Z37: 87 | AC37: 180
A38: endcan | B38: 0.5341
A39: ds | B39: 0.2 | S39: e_in | T39: =0.025+U39/10 -> 0.225 | U39: 2
A40: qj0f03 | B40: 0.15 | C40: =J40 -> 3.779298711 | D40: --------------------------------------------------------------------------->' | I40: =1000*M126 -> 170 | J40: =I40/1000/0.15/$K$9 -> 3.779298711 | N40: 110
A41: d11 | B41: 0.45 | I41: epics | J41: actual b'/brho | N41: epics
A42: qj0f04 | B42: 0.15 | C42: =J42 -> -6.891662355 | D42: --------------------------------------------------------------------------->' | I42: =1000*M127 -> -310 | J42: =I42/1000/0.15/$K$9 -> -6.891662355 | N42: -150
A43: ds2ds3 | B43: =B41 -> 0.45 | I43: epics | J43: actual b'/brho | N43: epics
A44: qj0f05 | B44: 0.15 | C44: =J44 -> 7.336285733 | D44: --------------------------------------------------------------------------->' | I44: =1000*M128 -> 330 | J44: =I44/1000/0.15/$K$9 -> 7.336285733 | N44: 100
A45: d12 | B45: =B41 -> 0.45 | I45: epics | J45: actual b'/brho | N45: epics
A46: qj0f06 | B46: 0.15 | C46: =J46 -> -4.290615595 | D46: --------------------------------------------------------------------------->' | I46: =1000*M129 -> -193 | J46: =I46/1000/0.15/$K$9 -> -4.290615595 | N46: -100
A47: ds | B47: 0.2
A48: roll | B48: 0
A49: sb1 | B49: 0 | C49: 0.6 | D49: 0 | E49: 0.075 | F49: 0.3 | G49: 1
A50: b1 | B50: =C49*C50*PI()/180 -> 0.2094395102 | C50: 20 | D50: 0
A51: eb1 | B51: 0 | C51: =C49 -> 0.6 | D51: =D49 -> 0 | E51: =E49 -> 0.075 | F51: =F49 -> 0.3 | G51: =G49 -> 1
A52: roll | B52: 0
A53: d | B53: 1.542690034 | J53: ACC LEN | K53: =SUM(B34:B220) -> 73.16103913
A54: sbi2 | B54: 0 | C54: 0.6 | D54: 0 | E54: 0.075 | F54: 0.3 | G54: 1
A55: bi2 | B55: =C54*C55*PI()/180 -> 0.2094395102 | C55: 20 | D55: 0
A56: ebi2 | B56: 0 | C56: =C54 -> 0.6 | D56: =D54 -> 0 | E56: =E54 -> 0.075 | F56: =F54 -> 0.3 | G56: =G54 -> 1
A57: d | B57: 1.542690034
A58: roll | B58: 0
A59: sbi3 | B59: 0 | C59: 0.6 | D59: 0 | E59: 0.075 | F59: 0.3 | G59: 1
A60: bi3 | B60: =C59*C60*PI()/180 -> 0.2094395102 | C60: 20 | D60: 0
A61: ebi3 | B61: 0 | C61: =C59 -> 0.6 | D61: =D59 -> 0 | E61: =E59 -> 0.075 | F61: =F59 -> 0.3 | G61: =G59 -> 1
A62: roll | B62: 0
A63: difinal | B63: 1.48963
A64: d0 | B64: 0.5341
A65: ac111 | B65: 0.7 | C65: -10 | D65: ='energy adjustments'!E13*$R$7 -> 2.71177068 | E65: =F37-$E$8 -> 8.493666089 | F65: =testmat(1,0,0,C65:E65) -> 11.67527579
A66: cpd | B66: 0.05
A67: ac121 | B67: 0.7 | C67: =C65 -> -10 | D67: ='energy adjustments'!E12*$R$7 -> 3.573883883 | E67: =F65-$E$8 -> 11.16427673 | F67: =testmat(2,0,0,C67:E67) -> 15.19489424
A68: cud | B68: 0.4606
A69: ac131 | B69: 0.7 | C69: =C67 -> -10 | D69: ='energy adjustments'!E11*$R$7 -> 3.328418956 | E69: =F67-$E$8 -> 14.68389518 | F69: =testmat(3,0,0,C69:E69) -> 18.47275934
A70: cpd | B70: 0.05
A71: ac141 | B71: 0.7 | C71: =C69 -> -10 | D71: ='energy adjustments'!E10*$R$7 -> 4.686956063 | E71: =F69-$E$8 -> 17.96176028 | F71: =testmat(4,0,0,C71:E71) -> 23.08852329
A72: cud | B72: 0.4606
A73: ac151 | B73: 0.7 | C73: =C71 -> -10 | D73: ='energy adjustments'!E9*$R$7 -> 3.667849777 | E73: =F71-$E$8 -> 22.57752423 | F73: =testmat(5,0,0,C73:E73) -> 26.70065458
A74: cpd | B74: 0.05
A75: ac161 | B75: 0.7 | C75: =C73 -> -10 | D75: ='energy adjustments'!E8*$R$7 -> 4.442291287 | E75: =F73-$E$8 -> 26.18965552 | F75: =testmat(6,0,0,C75:E75) -> 31.07546162
A76: cud | B76: 0.4606
A77: ac171 | B77: 0.7 | C77: =C75 -> -10 | D77: ='energy adjustments'!E7*$R$7 -> 4.064654859 | E77: =F75-$E$8 -> 30.56446256 | F77: =testmat(7,0,0,C77:E77) -> 35.07836749
A78: cpd | B78: 0.05
A79: ac181 | B79: 0.7 | C79: =C77 -> -10 | D79: ='energy adjustments'!E6*$R$7 -> 4.62993773 | E79: =F77-$E$8 -> 34.56736843 | F79: =testmat(8,0,0,C79:E79) -> 39.63796808 | G79: =SQRT(F79^2-$E$8^2) -> 39.63467413 | H79: =SQRT(F79^2-$E$8^2) -> 39.63467413 | I79: =33.3564095198*H79/1000 -> 1.322070422
A80: d1 | B80: =0.6591+0.25+0.1+0.4-0.024 -> 1.3851
A81: QX1F03 | B81: 0.15 | C81: =M131/(0.15*$I$79) -> 2.975131482
A82: d2 | B82: =1-0.25-0.1-0.1-0.2+0.024 -> 0.374
A83: QX1F03A | B83: 0.15 | C83: =M132/(0.15*$I$79) -> -5.647707221
A84: =A82 -> d2 | B84: =0.75-0.3+0.1-0.2+0.024 -> 0.374
A85: QX1F03B | B85: 0.15 | C85: =M133/(0.15*$I$79) -> 2.975131482
A86: =A80 -> d1 | B86: =0.6591+0.25+0.3-0.024 -> 1.1851
A87: ac211 | B87: 0.7 | C87: -10 | D87: ='energy adjustments'!E21*$R$7 -> 7.730311396 | E87: =F79-$E$8 -> 39.12696902 | F87: =testmat(9,0,0,C87:E87) -> 47.25084245
A88: cpd | B88: 0.05
A89: ac221 | B89: 0.7 | C89: =C87 -> -10 | D89: ='energy adjustments'!E20*$R$7 -> 7.94065547 | E89: =F87-$E$8 -> 46.73984339 | F89: =testmat(10,0,0,C89:E89) -> 55.0708639
A90: cud | B90: 0.4606
A91: ac231 | B91: 0.7 | C91: =C89 -> -10 | D91: ='energy adjustments'!E19*$R$7 -> 6.148431416 | E91: =F89-$E$8 -> 54.55986484 | F91: =testmat(11,0,0,C91:E91) -> 61.12588776
A92: cpd | B92: 0.05
A93: ac241 | B93: 0.7 | C93: =C91 -> -10 | D93: ='energy adjustments'!E18*$R$7 -> 8.086742349 | E93: =F91-$E$8 -> 60.6148887 | F93: =testmat(12,0,0,C93:E93) -> 69.08977549
A94: cud | B94: 0.4606 | AG94: =RAND() -> 0.009518888517
A95: ac251 | B95: 0.7 | C95: =C93 -> -10 | D95: ='energy adjustments'!E17*$R$7 -> 6.805893467 | E95: =F93-$E$8 -> 68.57877643 | F95: =testmat(13,0,0,C95:E95) -> 75.79227273 | AG95: =RAND() -> 0.5465223559
A96: cpd | B96: 0.05 | AG96: =RAND() -> 0.72889746
A97: ac261 | B97: 0.7 | C97: =C95 -> -10 | D97: ='energy adjustments'!E16*$R$7 -> 6.849838585 | E97: =F95-$E$8 -> 75.28127367 | F97: =testmat(14,0,0,C97:E97) -> 82.53804732 | AG97: =RAND() -> 0.02243250634
A98: cud | B98: 0.4606
A99: ac271 | B99: 0.7 | C99: =C97 -> -10 | D99: ='energy adjustments'!E15*$R$7 -> 8.251478224 | E99: =F97-$E$8 -> 82.02704826 | F99: =testmat(15,0,0,C99:E99) -> 90.66416755
A100: cpd | B100: 0.05
A101: ac281 | B101: 0.7 | C101: =C99 -> -10 | D101: ='energy adjustments'!E14*$R$7 -> 7.649796603 | E101: =F99-$E$8 -> 90.15316849 | F101: =testmat(16,0,0,C101:E101) -> 98.19774688 | G101: =SQRT(F101^2-$E$8^2) -> 98.19641731 | H101: =SQRT(F101^2-$E$8^2) -> 98.19641731 | I101: =33.3564095198*H101/1000 -> 3.275479909
A102: =A80 -> d1 | B102: =B86 -> 1.1851
A103: QX1F04 | B103: 0.15 | C103: =M134/(0.15*$I$101) -> -1.424727611
A104: =A82 -> d2 | B104: =B84 -> 0.374
A105: QX1F04A | B105: 0.15 | C105: =M135/(0.15*$I$101) -> 2.645922707
A106: =A82 -> d2 | B106: =B82 -> 0.374
A107: QX1F04B | B107: 0.15 | C107: =M136/(0.15*$I$101) -> -1.424727611
A108: =A80 -> d1 | B108: =B80 -> 1.3851
A109: ac311 | B109: 0.7 | C109: =$C$65 -> -10 | D109: ='energy adjustments'!E29*$R$7 -> 4.093880633 | E109: =F101-$E$8 -> 97.68674782 | F109: =testmat(17,0,0,C109:E109) -> 102.2294323
A110: cpd | B110: 0.05
A111: ac321 | B111: 0.7 | C111: =C109 -> -10 | D111: ='energy adjustments'!E28*$R$7 -> 4.602204019 | E111: =F109-$E$8 -> 101.7184333 | F111: =testmat(18,0,0,C111:E111) -> 106.7617186
A112: cud | B112: 0.4606
A113: ac331 | B113: 0.7 | C113: =C111 -> -10 | D113: ='energy adjustments'!E27*$R$7 -> 4.624649252 | E113: =F111-$E$8 -> 106.2507196 | F113: =testmat(19,0,0,C113:E113) -> 111.3161091
A114: cpd | B114: 0.05
A115: ac341 | B115: 0.7 | C115: =C113 -> -10 | D115: ='energy adjustments'!E26*$R$7 -> 4.031754704 | E115: =F113-$E$8 -> 110.8051101 | F115: =testmat(20,0,0,C115:E115) -> 115.2866125
A116: cud | B116: 0.4606
A117: ac351 | B117: 0.7 | C117: =C115 -> -10 | D117: ='energy adjustments'!E25*$R$7 -> 4.679843152 | E117: =F115-$E$8 -> 114.7756134 | F117: =testmat(21,0,0,C117:E117) -> 119.8953584
A118: cpd | B118: 0.05
A119: ac361 | B119: 0.7 | C119: =C117 -> -10 | D119: ='energy adjustments'!E24*$R$7 -> 5.391011167 | E119: =F117-$E$8 -> 119.3843593 | F119: =testmat(22,0,0,C119:E119) -> 125.204468 | H119: =SUM(B126:B138) -> 2.500599765
A120: cud | B120: 0.4606
A121: ac371 | B121: 0.7 | C121: =C119 -> -10 | D121: ='energy adjustments'!E23*$R$7 -> 4.895959482 | E121: =F119-$E$8 -> 124.693469 | F121: =testmat(23,0,0,C121:E121) -> 130.0260469
A122: cpd | B122: 0.05 | R122: chisq for fit to wiggler: | T122: =(betas!C243-1)^2+betas!D243^2+(betas!I243-1)^2+betas!J243^2 -> 11.58999608 | V122: injection betas | AA122: chisq for fit to linac | AC122: =(10-betas!C63)^2+(betas!D63)^2+(10-betas!I63)^2+(betas!J63)^2 -> 35.44946876
A123: ac381 | B123: 0.7 | C123: =C121 -> -10 | D123: ='energy adjustments'!E22*$R$7 -> 5.094678351 | E123: =F121-$E$8 -> 129.5150479 | F123: =testmat(24,0,0,C123:E123) -> 135.0433257 | G123: =SQRT(F123^2-$E$8^2) -> 135.0423589 | H123: =SQRT(F123^2-$E$8^2) -> 135.0423589 | I123: =33.3564095198*H123/1000 -> 4.504528227 | L123: GRADIENT INTEGRALS - presumeably in kg… | R123: chisq for fit to end: | T123: =ABS(betas!C427-5)+ABS(betas!D427-1)+ABS(betas!I427-3)+ABS(betas!J427) -> 9 | V123: =emittance!AH7 -> 6.90228111 | W123: =emittance!AH8 -> 10.42683037 | X123: =emittance!AH10 -> 2.25 | Y123: =emittance!AH11 -> 5.5 | AA123: fit function for fit to linac | AC123: =SUM(betas!C64:C79)+SUM(betas!I64:I79) -> 155.071987
A124: d0x | B124: 1.5341
A125: dbcm | B125: 0.775524326 | L125: nominal | M125: set | O125: offset | R125: nominal | S125: set | U125: offset | X125: nominal | Y125: set | AA125: offset
A126: sbext1 | B126: 0 | C126: =0.6*145/10 -> 8.7 | D126: 0 | E126: 0.075 | F126: 0.3 | G126: 0 | K126: =A40 -> qj0f03 | L126: 0.17 | M126: =L126+IF(N126<10001,N126/1000,(N126-65536)/1000) -> 0.17 | N126: 0 | O126: =M126-L126 -> 0 | Q126: QX6F01 | R126: 3.72 | S126: =R126+IF(T126<1001,T126/100,(T126-65536)/100)+$AD$140 -> 3.72 | T126: 0 | U126: =S126-R126 -> 0 | V126: 3.72 | W126: QT5F01 | X126: 0 | Y126: =X126+IF(Z126<1001,Z126/100,(Z126-65536)/100) -> 0 | Z126: 0 | AA126: =Y126-X126 -> 0
A127: bext1 | B127: =C126*C127*PI()/180 -> 0.2174160411 | C127: 1.431841558 | D127: 0 | K127: =A42 -> qj0f04 | L127: -0.31 | M127: =L127+IF(N127<10001,N127/1000,(N127-65536)/1000) -> -0.31 | N127: 0 | O127: =M127-L127 -> 0 | Q127: QX6F02 | R127: -2.95 | S127: =R127+IF(T127<1001,T127/100,(T127-65536)/100)+$AE$140 -> -2.95 | T127: 0 | U127: =S127-R127 -> 0 | V127: -2.95 | W127: QT5F02 | X127: 0.02 | Y127: =X127+IF(Z127<1001,Z127/100,(Z127-65536)/100) -> 0.02 | Z127: 0 | AA127: =Y127-X127 -> 0
A128: ebext1 | B128: 0 | C128: =C126 -> 8.7 | D128: =1.43184155771284-20+D126 -> -18.56815844 | E128: =E126 -> 0.075 | F128: =F126 -> 0.3 | G128: =G126 -> 0 | K128: =A44 -> qj0f05 | L128: 0.33 | M128: =L128+IF(N128<10001,N128/1000,(N128-65536)/1000) -> 0.33 | N128: 0 | O128: =M128-L128 -> 0 | Q128: QX6F03 | R128: 3.94 | S128: =R128+IF(T128<1001,T128/100,(T128-65536)/100)+$AD$140 -> 3.94 | T128: 0 | U128: 0 | V128: 3.94 | W128: QT5F03 | X128: 0.02 | Y128: =X128+IF(Z128<1001,Z128/100,(Z128-65536)/100) -> 0.02 | Z128: 0 | AA128: =Y128-X128 -> 0
A129: dreinj1 | B129: 0.8154678002 | K129: =A46 -> qj0f06 | L129: -0.193 | M129: =L129+IF(N129<10001,N129/1000,(N129-65536)/1000) -> -0.193 | N129: 0 | O129: =M129-L129 -> 0 | Q129: QX6F04 | R129: -2.78 | S129: =R129+IF(T129<1001,T129/100,(T129-65536)/100)+$AE$140 -> -2.78 | T129: 0 | U129: 0 | V129: -2.78 | W129: QT5F04 | X129: 0 | Y129: =X129+IF(Z129<1001,Z129/100,(Z129-65536)/100) -> 0 | Z129: 0 | AA129: =Y129-X129 -> 0
A130: roll | B130: 0 | Q130: QX6F05 | R130: 3.925 | S130: =R130+IF(T130<1001,T130/100,(T130-65536)/100)+$AD$140 -> 3.925 | T130: 0 | U130: 0 | V130: 3.925
A131: sbext2 | B131: 0 | C131: =C126 -> 8.7 | D131: =3.8678003679847+D126 -> 3.867800368 | E131: =E126 -> 0.075 | F131: =F126 -> 0.3 | G131: =G126 -> 0 | K131: =A81 -> QX1F03 | L131: 0.6 | M131: =L131+IF(N131<1001,N131/100,(N131-65536)/100) -> 0.59 | N131: 65535 | O131: =M131-L131 -> -0.01 | Q131: QX6F06 | R131: -3.03 | S131: =R131+IF(T131<1001,T131/100,(T131-65536)/100)+$AE$140 -> -3.03 | T131: 0 | U131: 0 | V131: -3.03 | W131: QX5F05 | X131: -5.2 | Y131: =X131+IF(Z131<1001,Z131/100,(Z131-65536)/100) -> -5.2 | Z131: 0 | AA131: =Y131-X131 -> 0
A132: bext2 | B132: =C131*C132*PI()/180 -> 0.4348320822 | C132: =2*C127 -> 2.863683115 | D132: 0 | K132: =A83 -> QX1F03A | L132: -1.1 | M132: -1.12 | N132: 65534 | O132: -0.02 | Q132: QX6F07 | R132: 4.35 | S132: =R132+IF(T132<1001,T132/100,(T132-65536)/100)+$AD$140 -> 4.35 | T132: 0 | U132: 0 | V132: 4.35 | W132: QX5F06 | X132: -1 | Y132: -1 | Z132: 0 | AA132: 0
A133: ebext2 | B133: 0 | C133: =C126 -> 8.7 | D133: =D131 -> 3.867800368 | E133: =E126 -> 0.075 | F133: =F126 -> 0.3 | G133: =G126 -> 0 | K133: =A85 -> QX1F03B | L133: 0.6 | M133: 0.59 | N133: 65535 | O133: -0.01 | Q133: QX6F08 | R133: -3.18 | S133: =R133+IF(T133<1001,T133/100,(T133-65536)/100)+$AE$140 -> -3.18 | T133: 0 | U133: 0 | V133: -3.18 | W133: QX5F07 | X133: 0.5 | Y133: 0.5 | Z133: 0 | AA133: 0
A134: roll | B134: 0 | K134: =A103 -> QX1F04 | L134: -0.7 | M134: -0.7 | N134: 0 | O134: 0 | Q134: QX6F09 | R134: 5.31 | S134: =R134+IF(T134<1001,T134/100,(T134-65536)/100) -> 5.31 | T134: 0 | U134: 0 | V134: 5.31 | W134: QX5F08 | X134: -3 | Y134: -3 | Z134: 0 | AA134: 0
A135: dreinj1 | B135: =B129 -> 0.8154678002 | K135: =A105 -> QX1F04A | L135: 1.4 | M135: 1.3 | N135: 65526 | O135: -0.1 | Q135: QX6F10 | R135: -1.9 | S135: =R135+IF(T135<1001,T135/100,(T135-65536)/100) -> -1.9 | T135: 0 | U135: 0 | V135: -1.9 | W135: QX5F09 | X135: 3.55 | Y135: 3.55 | Z135: 0 | AA135: 0
A136: sbext3 | B136: 0 | C136: =C126 -> 8.7 | D136: =D128 -> -18.56815844 | E136: =E126 -> 0.075 | F136: =F126 -> 0.3 | G136: =G126 -> 0 | K136: =A107 -> QX1F04B | L136: -0.7 | M136: -0.7 | N136: 0 | O136: 0 | Q136: QX6F14 | R136: 3.06 | S136: =R136+IF(T136<1001,T136/100,(T136-65536)/100) -> 3.06 | T136: 0 | U136: 0 | V136: 3.06 | W136: QX5F10 | X136: -1.95 | Y136: -1.95 | Z136: 0 | AA136: 0
A137: bext3 | B137: =C136*C137*PI()/180 -> 0.2174160411 | C137: =C127 -> 1.431841558 | D137: 0 | Q137: QX6F15 | R137: -4.38 | S137: =R137+IF(T137<1001,T137/100,(T137-65536)/100) -> -4.38 | T137: 0 | U137: 0 | V137: -4.38
A138: ebext3 | B138: 0 | C138: =C126 -> 8.7 | D138: =D126 -> 0 | E138: =E126 -> 0.075 | F138: =F126 -> 0.3 | G138: =G126 -> 0 | I138: -2.10738 | J138: -2.00738 | K138: =A140 -> QX2F01 | L138: -2.10738 | M138: =L138+IF(N138<1001,N138/100,(N138-65536)/100) -> -2.00738 | N138: 10 | O138: =M138-L138 -> 0.1 | Q138: QX6F16 | R138: 3.3 | S138: =R138+IF(T138<1001,T138/100,(T138-65536)/100) -> 3.3 | T138: 0 | U138: 0 | V138: 3.3
A139: dm11alt | B139: 0.25 | I139: 2.768 | J139: 2.668 | K139: =A142 -> QX2F02 | L139: 2.768 | M139: 2.668 | N139: 65526 | O139: -0.1 | V139: adjustments for turning wiggler on
A140: QX2F01 | B140: 0.15 | C140: =M138/(0.15*$I$123) -> -2.970906754 | I140: -0.613 | J140: -0.563 | K140: =A144 -> QX2F03 | L140: -0.613 | M140: -0.563 | N140: 5 | O140: 0.05 | Q140: MQX8F01 | R140: -2.2 | S140: =R140+IF(T140<1001,T140/100,(T140-65536)/100) -> -2.2 | T140: 0 | U140: =S140-R140 -> 0 | V140: 2.4959 | X140: DIMAD | Y140: spreadsheet
A141: dm13 | B141: 0.945 | I141: 0 | J141: 0 | K141: =A147 -> QX2F04 | L141: 0 | M141: 0 | N141: 0 | O141: 0 | Q141: MQX8F02 | R141: 0 | S141: 0 | T141: 0 | U141: 0 | V141: -3.5 | X141: 5.2604 | Y141: =X141*$I$123*0.15 -> 3.554343043
A142: QX2F02 | B142: 0.15 | C142: =M139/(0.15*$I$123) -> 3.948619205 | I142: -0.811 | J142: -0.811 | K142: =A149 -> QX2F05 | L142: -0.811 | M142: -0.811 | N142: 0 | O142: 0 | Q142: MQX8F03 | R142: 1.5 | S142: 1.5 | T142: 0 | U142: 0 | V142: 2 | X142: -4.5 | Y142: =X142*$I$123*0.15 -> -3.040556553
A143: dm13 | B143: =B141 -> 0.945 | I143: 2.268 | J143: 2.268 | K143: =A151 -> QX2F06 | L143: 2.268 | M143: 2.268 | N143: 0 | O143: 0 | Q143: MQX8F04 | R143: 0 | S143: 0 | T143: 0 | U143: 0 | V143: -2.4 | X143: 5 | Y143: 3.37839617
A144: QX2F03 | B144: 0.15 | C144: =M140/(0.15*$I$123) -> -0.8332356119 | Q144: MQX8F05 | R144: 0 | S144: -0.1 | T144: 65526 | U144: -0.1 | V144: 4 | X144: -4 | Y144: -2.702716936 | AA144: <---- 6F10H+100 steer
A145: dm11 | B145: 0.4725 | K145: =A163 -> QT2F07 | L145: -0.1 | M145: =L145+IF(N145<10001,N145/1000,(N145-65536)/1000) -> -0.1 | N145: 0 | O145: =M145-L145 -> 0 | Q145: MQX8F06 | R145: 0 | S145: 0 | T145: 0 | U145: 0 | V145: -2.4 | X145: 5.5 | Y145: 3.716235787
A146: dm11 | B146: =B145 -> 0.4725 | K146: =A176 -> QT2F08 | L146: 0.7 | M146: =L146+IF(N146<10001,N146/1000,(N146-65536)/1000) -> 0.7 | N146: 0 | O146: =M146-L146 -> 0 | Q146: MQX8F07 | R146: 0 | S146: 0 | T146: 0 | U146: =S146-R146 -> 0 | V146: 4.3 | X146: -4 | Y146: -2.702716936
A147: QX2F04 | B147: 0.15 | C147: =M141/(0.15*$I$123) -> 0 | K147: =A187 -> QT2F09 | L147: 0.7 | M147: =L147+IF(N147<10001,N147/1000,(N147-65536)/1000) -> 0.7 | N147: 0 | O147: =M147-L147 -> 0 | Q147: MQX8F08 | R147: 0 | S147: 0 | T147: 0 | U147: 0 | V147: -3.03 | X147: 6.884 | Y147: 4.651375847
A148: dm13 | B148: =B141 -> 0.945 | K148: =A200 -> QF2F10 | L148: -0.1 | M148: =L148+IF(N148<10001,N148/1000,(N148-65536)/1000) -> -0.1 | N148: 0 | O148: =M148-L148 -> 0 | Q148: MQX8F09 | R148: 0 | S148: 0 | T148: 0 | U148: 0 | V148: 3.925
A149: QX2F05 | B149: 0.15 | C149: =M142/(0.15*$I$123) -> -1.200273679 | Q149: MQX8F10 | R149: 0 | S149: 0 | T149: 0 | U149: 0 | V149: -2.6 | X149: -2.751 | Y149: -1.858793573
A150: dm13 | B150: =B141 -> 0.945 | L150: BL_epics | M150: BL/Brho | Q150: MQX8F11 | R150: 0 | S150: -0.12 | T150: 65524 | U150: -0.12 | V150: 3.94 | X150: 6 | Y150: 4.054075404 | AA150: <---- 6F10H+100 steer
A151: QX2F06 | B151: 0.15 | C151: =M143/(0.15*$I$123) -> 3.356622323 | K151: SF2F07 | L151: -0.0894 | M151: =L151/$I$123 -> -0.01984669548 | Q151: MQX8F12 | R151: 0 | S151: 0 | T151: 0 | U151: 0 | V151: -2.95 | X151: -3.0862 | Y151: -2.085281252
A152: dm12 | B152: 0.25 | K152: SF2F08 | L152: 0.0973 | M152: =L152/$I$123 -> 0.02160048624 | Q152: MQX8F13 | R152: 0 | S152: 0 | T152: 0 | U152: 0 | V152: 3.5 | X152: 2.2991 | Y152: 1.553454127
A153: d0a | B153: =0.5 + 0.0208744373 - 0.20026216299/2 +0.00731255025 -> 0.4280559061 | K153: SF2F09 | L153: 0.0973 | M153: 0.02160048624 | X153: -4.5191 | Y153: -3.053462026
A154: sb1 | B154: 0 | C154: 1.2 | D154: 2 | E154: 0.075 | F154: 0.26 | G154: 0 | K154: SF2F10 | L154: -0.0894 | M154: -0.01984669548 | X154: 3.8304 | Y154: 2.588121738
A155: b1 | B155: =C154*C155*PI()/180 -> 0.9086232606 | C155: 43.383565 | D155: 0
A156: eb1 | B156: 0 | C156: =C154 -> 1.2 | D156: =D154 -> 2 | E156: =E154 -> 0.075 | F156: =F154 -> 0.26 | G156: =G154 -> 0 | X156: 2.0776 | Y156: 1.403791177
A157: del1 | B157: 0.285142654 | L157: =products!AD260 -> -0.08400801438 | M157: m55, injection point to wiggler | X157: -5.184 | Y157: -3.502721149
A158: del1b | B158: 0.075 | X158: 3.3106 | Y158: 2.236903672
A159: del1b | B159: =B158 -> 0.075 | X159: -3.0169 | Y159: -2.038456681
A160: del1a | B160: 0.25 | X160: 5.5717 | Y160: 3.764681988
A161: SF2F06 | B161: 0.15 | X161: -2.8125 | Y161: -1.900347846
A162: del1a | B162: =B160 -> 0.25 | I162: epics | J162: actual b'/brho
A163: QT2F07 | B163: 0.15 | C163: =M145/(0.15*$I$123) -> -0.1479992206 | D163: --------------------------------------------------------------------------->' | I163: 9.5 | J163: 0 | X163: 6.8834 | Y163: 4.650970439
A164: del1 | B164: =B157 -> 0.285142654 | I164: 32.184 | X164: -4 | Y164: -2.702716936
A165: roll | B165: 0 | X165: 5.5 | Y165: 3.716235787
A166: sb2 | B166: 0 | C166: 1.2 | D166: 16.5 | E166: 0.075 | F166: 0.26 | G166: 1 | X166: -4 | Y166: -2.702716936
A167: b2 | B167: =C166*C167*PI()/180 -> 0.9086232606 | C167: 43.383565 | D167: 0 | X167: 5 | Y167: 3.37839617
A168: eb2 | B168: 0 | C168: =C166 -> 1.2 | D168: =D166 -> 16.5 | E168: =E166 -> 0.075 | F168: =F166 -> 0.26 | G168: =G166 -> 1 | X168: -4.5 | Y168: -3.040556553
A169: roll | B169: 0 | X169: 4.2637 | Y169: 2.88089355
A170: del2 | B170: 0.2984687666
A171: del2b | B171: 0.075
A172: del2b | B172: =B171 -> 0.075
A173: del2a | B173: 0.25
A174: SF2F07 | B174: 0.15
A175: del2a | B175: =B173 -> 0.25 | I175: epics | J175: actual b'/brho
A176: QT2F08 | B176: 0.15 | C176: =M146/(0.15*$I$123) -> 1.035994544 | D176: --------------------------------------------------------------------------->' | I176: -95 | J176: 0
A177: del2 | B177: =B170 -> 0.2984687666 | I177: -251.07
A178: sbb | B178: 0 | C178: 1 | D178: 0 | E178: 0.075 | F178: 0.26 | G178: 1
A179: bb/6 | B179: =C178*C179*PI()/180 -> 0.5235987756 | C179: 30 | D179: 0
A180: bb/6 | B180: =B179 -> 0.5235987756 | C180: 30 | D180: 0
A181: bb/6 | B181: 0.5235987756 | C181: 30 | D181: 0
A182: bb/6 | B182: 0.5235987756 | C182: 30 | D182: 0
A183: bb/6 | B183: 0.5235987756 | C183: 30 | D183: 0
A184: bb/6 | B184: 0.5235987756 | C184: 30 | D184: 0
A185: ebb | B185: =B178 -> 0 | C185: 1 | D185: 0 | E185: 0.075 | F185: 0.26 | G185: 1
A186: del2 | B186: =B170 -> 0.2984687666
A187: QT2F09 | B187: 0.15 | C187: =M147/(0.15*$I$123) -> 1.035994544
A188: del2a | B188: =B173 -> 0.25
A189: SF2F09 | B189: =0.15 -> 0.15
A190: del2a | B190: =B173 -> 0.25
A191: del2b | B191: =B171 -> 0.075
A192: del2b | B192: =B171 -> 0.075
A193: del2 | B193: =B170 -> 0.2984687666
A194: roll | B194: 0
A195: sb2 | B195: 0 | C195: 1.2 | D195: 16.5 | E195: 0.075 | F195: 0.26 | G195: 1
A196: b2 | B196: =C195*C196*PI()/180 -> 0.9086232606 | C196: 43.383565 | D196: 0
A197: eb2 | B197: 0 | C197: =C195 -> 1.2 | D197: =D195 -> 16.5 | E197: =E195 -> 0.075 | F197: =F195 -> 0.26 | G197: =G195 -> 1
A198: roll | B198: 0
A199: del1 | B199: =B157 -> 0.285142654
A200: QF2F10 | B200: 0.15 | C200: =M148/(0.15*$I$123) -> -0.1479992206
... 203 more rows

Sheet matrices
A19: name | B19: length | C19: angle | D19: index
B21: m11 | C21: m12 | D21: m13 | E21: m14 | F21: m15 | G21: m16 | H21: m21 | I21: m22 | J21: m23 | K21: m24 | L21: m25 | M21: m26 | N21: m31 | O21: m32 | P21: m33 | Q21: m34 | R21: m35 | S21: m36 | T21: m41 | U21: m42 | V21: m43 | W21: m44 | X21: m45 | Y21: m46 | Z21: m51 | AA21: m52 | AB21: m53 | AC21: m54 | AD21: m55 | AE21: m56 | AF21: m61 | AG21: m62 | AH21: m63 | AI21: m64 | AJ21: m65 | AK21: m66
A22: =elements!A22 -> drift1 | B22: 1 | C22: =elements!B22 -> 1 | D22: 0 | E22: 0 | F22: 0 | G22: 0 | H22: 0 | I22: 1 | J22: 0 | K22: 0 | L22: 0 | M22: 0 | N22: 0 | O22: 0 | P22: 1 | Q22: =elements!B22 -> 1 | R22: 0 | S22: 0 | T22: 0 | U22: 0 | V22: 0 | W22: 1 | X22: 0 | Y22: 0 | Z22: 0 | AA22: 0 | AB22: 0 | AC22: 0 | AD22: 1 | AE22: 0 | AF22: 0 | AG22: 0 | AH22: 0 | AI22: 0 | AJ22: 0 | AK22: 1
A23: =elements!A23 -> qf | B23: =IF(elements!C23>0,COS(SQRT(elements!C23)*elements!B23),IF(elements!C23<0,COSH(SQRT(-elements!C23)*elements!B23),1)) -> 0.9442753702 | C23: =IF(elements!C23>0,SIN(SQRT(elements!C23)*elements!B23)/SQRT(elements!C23),IF(elements!C23<0,SINH(SQRT(-elements!C23)*elements!B23)/SQRT(-elements!C23),elements!B23)) -> 0.147203278 | D23: 0 | E23: 0 | F23: 0 | G23: 0 | H23: =IF(elements!C23>0,-SQRT(elements!C23)*SIN(SQRT(elements!C23)*elements!B23),IF(elements!C23<0,SQRT(-elements!C23)*SINH(SQRT(-elements!C23)*elements!B23),0)) -> -0.73601639 | I23: =IF(elements!C23>0,COS(SQRT(elements!C23)*elements!B23),IF(elements!C23<0,COSH(SQRT(-elements!C23)*elements!B23),1)) -> 0.9442753702 | J23: 0 | K23: 0 | L23: 0 | M23: 0 | N23: 0 | O23: 0 | P23: =IF(elements!C23<0,COS(SQRT(-elements!C23)*elements!B23),IF(elements!C23>0,COSH(SQRT(elements!C23)*elements!B23),1)) -> 1.056779325 | Q23: =IF(elements!C23<0,SIN(SQRT(-elements!C23)*elements!B23)/SQRT(-elements!C23),IF(elements!C23>0,SINH(SQRT(elements!C23)*elements!B23)/SQRT(elements!C23),elements!B23)) -> 0.1528283628 | R23: 0 | S23: 0 | T23: 0 | U23: 0 | V23: =IF(elements!C23<0,-SQRT(-elements!C23)*SIN(SQRT(-elements!C23)*elements!B23),IF(elements!C23>0,SQRT(elements!C23)*SINH(SQRT(elements!C23)*elements!B23),0)) -> 0.7641418138 | W23: =IF(elements!C23<0,COS(SQRT(-elements!C23)*elements!B23),IF(elements!C23>0,COSH(SQRT(elements!C23)*elements!B23),1)) -> 1.056779325 | X23: 0 | Y23: 0 | Z23: 0 | AA23: 0 | AB23: 0 | AC23: 0 | AD23: 1 | AE23: 0 | AF23: 0 | AG23: 0 | AH23: 0 | AI23: 0 | AJ23: 0 | AK23: 1
A24: =elements!A24 -> sb1 | B24: 1 | C24: 0 | D24: 0 | E24: 0 | F24: 0 | G24: 0 | H24: =TAN(elements!D24*PI()/180)/elements!C24 -> 0.08816349035 | I24: 1 | J24: 0 | K24: 0 | L24: 0 | M24: 0 | N24: 0 | O24: 0 | P24: 1 | Q24: 0 | R24: 0 | S24: 0 | T24: 0 | U24: 0 | V24: =-TAN((elements!D24*PI()/180)-elements!F24*(elements!E24/elements!C24)*((1+(SIN(elements!D24*PI()/180))^2)/COS(elements!D24*PI()/180))*(1-(elements!E24/elements!C24)*elements!F24*elements!G24*TAN(elements!D24*PI()/180)))/elements!C24 -> -0.08611162822 | W24: 1 | X24: 0 | Y24: 0 | Z24: 0 | AA24: 0 | AB24: 0 | AC24: 0 | AD24: 1 | AE24: 0 | AF24: 0 | AG24: 0 | AH24: 0 | AI24: 0 | AJ24: 0 | AK24: 1
A25: =elements!A25 -> b1 | B25: =IF(elements!D25<1,COS(SQRT(1-elements!D25)*elements!C25*PI()/180),IF(elements!D25>1,COSH(SQRT(elements!D25-1)*elements!C25*PI()/180),1)) -> 0.8660254038 | C25: =IF(elements!D25<1,SIN(SQRT(1-elements!D25)*elements!C25*PI()/180)/(SQRT(1-elements!D25)*elements!C25*PI()/(180*elements!B25)),IF(elements!D25>1,SINH(SQRT(elements!D25-1)*elements!C25*PI()/180)/(SQRT(elements!D25-1)*elements!C25*PI()/(180*elements!B25)),elements!B25)) -> 1 | D25: 0 | E25: 0 | F25: 0 | G25: =IF(elements!D25<1,((elements!B25/(elements!C25*PI()/180))/(1-elements!D25))*(1-COS(SQRT(1-elements!D25)*elements!C25*PI()/180)),IF(elements!D25>1,((elements!B25/(elements!C25*PI()/180))/(1-elements!D25))*(1-COSH(SQRT(elements!D25-1)*elements!C25*PI()/180)),1)) -> 0.2679491924 | H25: =IF(elements!D25<1,-(SQRT(1-elements!D25)*elements!C25*PI()/(180*elements!B25))*SIN(SQRT(1-elements!D25)*elements!C25*PI()/180),IF(elements!D25>1,(SQRT(elements!D25-1)*elements!C25*PI()/(180*elements!B25))*SINH(SQRT(elements!D25-1)*elements!C25*PI()/180),0)) -> -0.25 | I25: =B25 -> 0.8660254038 | J25: 0 | K25: 0 | L25: 0 | M25: =C25/(elements!B25/(elements!C25*PI()/180)) -> 0.5 | N25: 0 | O25: 0 | P25: =IF(elements!D25>0,COS(SQRT(elements!D25)*elements!C25*PI()/180),IF(elements!D25<0,COSH(SQRT(-elements!D25)*elements!C25*PI()/180),1)) -> 1 | Q25: =IF(elements!D25>0,SIN(SQRT(elements!D25)*elements!C25*PI()/180)/(SQRT(elements!D25)*elements!C25*PI()/(180*elements!B25)),IF(elements!D25<0,SINH(SQRT(-elements!D25)*elements!C25*PI()/180)/(SQRT(-elements!D25)*elements!C25*PI()/(180*elements!B25)),elements!B25)) -> 1.047197551 | R25: 0 | S25: 0 | T25: 0 | U25: 0 | V25: =IF(elements!D25>0,-(SQRT(elements!D25)*elements!C25*PI()/(180*elements!B25))*SIN(SQRT(elements!D25)*elements!C25*PI()/180),IF(elements!D25<0,(SQRT(-elements!D25)*elements!C25*PI()/(180*elements!B25))*SINH(SQRT(-elements!D25)*elements!C25*PI()/180),0)) -> 0 | W25: =P25 -> 1 | X25: 0 | Y25: 0 | Z25: =M25 -> 0.5 | AA25: =G25 -> 0.2679491924 | AB25: 0 | AC25: 0 | AD25: 1 | AE25: =IF(elements!D25<1,(1/(1-elements!D25))*(elements!B25-SIN(SQRT(1-elements!D25)*elements!C25*PI()/180)/(SQRT(1-elements!D25)*elements!C25*PI()/(180*elements!B25))), IF(elements!D25>1,(1/(1-elements!D25))*(elements!B25-SINH(SQRT(elements!D25-1)*elements!C25*PI()/180)/(SQRT(elements!D25-1)*elements!C25*PI()/(180*elements!B25))), 0)) -> 0.0471975512 | AF25: 0 | AG25: 0 | AH25: 0 | AI25: 0 | AJ25: 0 | AK25: 1
A26: =elements!A26 -> eb1 | B26: 1 | C26: 0 | D26: 0 | E26: 0 | F26: 0 | G26: 0 | H26: =TAN(elements!D26*PI()/180)/elements!C26 -> 0.08816349035 | I26: 1 | J26: 0 | K26: 0 | L26: 0 | M26: 0 | N26: 0 | O26: 0 | P26: 1 | Q26: 0 | R26: 0 | S26: 0 | T26: 0 | U26: 0 | V26: =-TAN((elements!D26*PI()/180)-elements!F26*(elements!E26/elements!C26)*((1+(SIN(elements!D26*PI()/180))^2)/COS(elements!D26*PI()/180))*(1-(elements!E26/elements!C26)*elements!F26*elements!G26*TAN(elements!D26*PI()/180)))/elements!C26 -> -0.08611162822 | W26: 1 | X26: 0 | Y26: 0 | Z26: 0 | AA26: 0 | AB26: 0 | AC26: 0 | AD26: 1 | AE26: 0 | AF26: 0 | AG26: 0 | AH26: 0 | AI26: 0 | AJ26: 0 | AK26: 1
A27: =elements!A27 -> sv1 | B27: 1 | C27: 0 | D27: 0 | E27: 0 | F27: 0 | G27: 0 | H27: =-TAN((elements!D27*PI()/180)-elements!F27*(elements!E27/elements!C27)*((1+(SIN(elements!D27*PI()/180))^2)/COS(elements!D27*PI()/180))*(1-(elements!E27/elements!C27)*elements!F27*elements!G27*TAN(elements!D27*PI()/180)))/elements!C27 -> -0.08611162822 | I27: 1 | J27: 0 | K27: 0 | L27: 0 | M27: 0 | N27: 0 | O27: 0 | P27: 1 | Q27: 0 | R27: 0 | S27: 0 | T27: 0 | U27: 0 | V27: =TAN(elements!D27*PI()/180)/elements!C27 -> 0.08816349035 | W27: 1 | X27: 0 | Y27: 0 | Z27: 0 | AA27: 0 | AB27: 0 | AC27: 0 | AD27: 1 | AE27: 0 | AF27: 0 | AG27: 0 | AH27: 0 | AI27: 0 | AJ27: 0 | AK27: 1
A28: =elements!A28 -> v1 | B28: =IF(elements!D28>0,COS(SQRT(elements!D28)*elements!C28*PI()/180),IF(elements!D28<0,COSH(SQRT(-elements!D28)*elements!C28*PI()/180),1)) -> 1 | C28: =IF(elements!D28>0,SIN(SQRT(elements!D28)*elements!C28*PI()/180)/(SQRT(elements!D28)*elements!C28*PI()/(180*elements!B28)),IF(elements!D28<0,SINH(SQRT(-elements!D28)*elements!C28*PI()/180)/(SQRT(-elements!D28)*elements!C28*PI()/(180*elements!B28)),elements!B28)) -> 1.047197551 | D28: 0 | E28: 0 | F28: 0 | G28: 0 | H28: =IF(elements!D28>0,-(SQRT(elements!D28)*elements!C28*PI()/(180*elements!B28))*SIN(SQRT(elements!D28)*elements!C28*PI()/180),IF(elements!D28<0,(SQRT(-elements!D28)*elements!C28*PI()/(180*elements!B28))*SINH(SQRT(-elements!D28)*elements!C28*PI()/180),0)) -> 0 | I28: =B28 -> 1 | J28: 0 | K28: 0 | L28: 0 | M28: 0 | N28: 0 | O28: 0 | P28: =IF(elements!D28<1,COS(SQRT(1-elements!D28)*elements!C28*PI()/180),IF(elements!D28>1,COSH(SQRT(elements!D28-1)*elements!C28*PI()/180),1)) -> 0.8660254038 | Q28: =IF(elements!D28<1,SIN(SQRT(1-elements!D28)*elements!C28*PI()/180)/(SQRT(1-elements!D28)*elements!C28*PI()/(180*elements!B28)),IF(elements!D28>1,SINH(SQRT(elements!D28-1)*elements!C28*PI()/180)/(SQRT(elements!D28-1)*elements!C28*PI()/(180*elements!B28)),elements!B28)) -> 1 | R28: 0 | S28: =IF(elements!D28<1,((elements!B28/(elements!C28*PI()/180))/(1-elements!D28))*(1-COS(SQRT(1-elements!D28)*elements!C28*PI()/180)),IF(elements!D28>1,((elements!B28/(elements!C28*PI()/180))/(1-elements!D28))*(1-COSH(SQRT(elements!D28-1)*elements!C28*PI()/180)),1)) -> 0.2679491924 | T28: 0 | U28: 0 | V28: =IF(elements!D28<1,-(SQRT(1-elements!D28)*elements!C28*PI()/(180*elements!B28))*SIN(SQRT(1-elements!D28)*elements!C28*PI()/180),IF(elements!D28>1,(SQRT(elements!D28-1)*elements!C28*PI()/(180*elements!B28))*SINH(SQRT(elements!D28-1)*elements!C28*PI()/180),0)) -> -0.25 | W28: =P28 -> 0.8660254038 | X28: 0 | Y28: =Q28/(elements!B28/(elements!C28*PI()/180)) -> 0.5 | Z28: 0 | AA28: 0 | AB28: =Y28 -> 0.5 | AC28: =S28 -> 0.2679491924 | AD28: 1 | AE28: =IF(elements!D28<1,(1/(1-elements!D28))*(elements!B28-SIN(SQRT(1-elements!D28)*elements!C28*PI()/180)/(SQRT(1-elements!D28)*elements!C28*PI()/(180*elements!B28))), IF(elements!D28>1,(1/(1-elements!D28))*(elements!B28-SINH(SQRT(elements!D28-1)*elements!C28*PI()/180)/(SQRT(elements!D28-1)*elements!C28*PI()/(180*elements!B28))), 0)) -> 0.0471975512 | AF28: 0 | AG28: 0 | AH28: 0 | AI28: 0 | AJ28: 0 | AK28: 1
A29: =elements!A29 -> ev1 | B29: 1 | C29: 0 | D29: 0 | E29: 0 | F29: 0 | G29: 0 | H29: =-TAN((elements!D29*PI()/180)-elements!F29*(elements!E29/elements!C29)*((1+(SIN(elements!D29*PI()/180))^2)/COS(elements!D29*PI()/180))*(1-(elements!E29/elements!C29)*elements!F29*elements!G29*TAN(elements!D29*PI()/180)))/elements!C29 -> -0.08611162822 | I29: 1 | J29: 0 | K29: 0 | L29: 0 | M29: 0 | N29: 0 | O29: 0 | P29: 1 | Q29: 0 | R29: 0 | S29: 0 | T29: 0 | U29: 0 | V29: =TAN(elements!D29*PI()/180)/elements!C29 -> 0.08816349035 | W29: 1 | X29: 0 | Y29: 0 | Z29: 0 | AA29: 0 | AB29: 0 | AC29: 0 | AD29: 1 | AE29: 0 | AF29: 0 | AG29: 0 | AH29: 0 | AI29: 0 | AJ29: 0 | AK29: 1
B33: m11 | C33: m12 | D33: m13 | E33: m14 | F33: m15 | G33: m16 | H33: m21 | I33: m22 | J33: m23 | K33: m24 | L33: m25 | M33: m26 | N33: m31 | O33: m32 | P33: m33 | Q33: m34 | R33: m35 | S33: m36 | T33: m41 | U33: m42 | V33: m43 | W33: m44 | X33: m45 | Y33: m46 | Z33: m51 | AA33: m52 | AB33: m53 | AC33: m54 | AD33: m55 | AE33: m56 | AF33: m61 | AG33: m62 | AH33: m63 | AI33: m64 | AJ33: m65 | AK33: m66
A34: =elements!A34 -> endcan | B34: 1 | C34: =elements!B34 -> 0.5341 | D34: 0 | E34: 0 | F34: 0 | G34: 0 | H34: 0 | I34: 1 | J34: 0 | K34: 0 | L34: 0 | M34: 0 | N34: 0 | O34: 0 | P34: 1 | Q34: =elements!B34 -> 0.5341 | R34: 0 | S34: 0 | T34: 0 | U34: 0 | V34: 0 | W34: 1 | X34: 0 | Y34: 0 | Z34: 0 | AA34: 0 | AB34: 0 | AC34: 0 | AD34: 1 | AE34: 0 | AF34: 0 | AG34: 0 | AH34: 0 | AI34: 0 | AJ34: 0 | AK34: 1
A35: =elements!A35 -> ac011 | B35: =testmat(49,1,1,elements!C35:'elements'!E35) -> 0.6812070218 | C35: =testmat(49,1,2,elements!C35:'elements'!E35) -> 0.2112248632 | D35: 0 | E35: 0 | F35: 0 | G35: 0 | H35: =testmat(49,2,1,elements!C35:'elements'!E35) -> -0.05650675969 | I35: =testmat(49,2,2,elements!C35:'elements'!E35) -> 0.1690090313 | J35: 0 | K35: 0 | L35: 0 | M35: 0 | N35: 0 | O35: 0 | P35: =B35 -> 0.6812070218 | Q35: =C35 -> 0.2112248632 | R35: 0 | S35: 0 | T35: 0 | U35: 0 | V35: =H35 -> -0.05650675969 | W35: =I35 -> 0.1690090313 | X35: 0 | Y35: 0 | Z35: 0 | AA35: 0 | AB35: 0 | AC35: 0 | AD35: =testmat(49,3,3,elements!C35:'elements'!E35) -> 0.3298675395 | AE35: =testmat(49,3,4,elements!C35:'elements'!E35) -> -0.05755905294 | AF35: 0 | AG35: 0 | AH35: 0 | AI35: 0 | AJ35: =testmat(49,4,3,elements!C35:'elements'!E35) -> 0.05446755446 | AK35: =testmat(49,4,4,elements!C35:'elements'!E35) -> 0.3756982902
A36: =elements!A36 -> cpd | B36: 1 | C36: =elements!B36 -> 0.05 | D36: 0 | E36: 0 | F36: 0 | G36: 0 | H36: 0 | I36: 1 | J36: 0 | K36: 0 | L36: 0 | M36: 0 | N36: 0 | O36: 0 | P36: 1 | Q36: =elements!B36 -> 0.05 | R36: 0 | S36: 0 | T36: 0 | U36: 0 | V36: 0 | W36: 1 | X36: 0 | Y36: 0 | Z36: 0 | AA36: 0 | AB36: 0 | AC36: 0 | AD36: 1 | AE36: 0 | AF36: 0 | AG36: 0 | AH36: 0 | AI36: 0 | AJ36: 0 | AK36: 1
A37: =elements!A37 -> ac012 | B37: =testmat(50,1,1,elements!C37:'elements'!E37) -> 0.6931327191 | C37: =testmat(50,1,2,elements!C37:'elements'!E37) -> 0.5149197569 | D37: 0 | E37: 0 | F37: 0 | G37: 0 | H37: =testmat(50,2,1,elements!C37:'elements'!E37) -> -0.1734615488 | I37: =testmat(50,2,2,elements!C37:'elements'!E37) -> 0.7067656835 | J37: 0 | K37: 0 | L37: 0 | M37: 0 | N37: 0 | O37: 0 | P37: =B37 -> 0.6931327191 | Q37: =C37 -> 0.5149197569 | R37: 0 | S37: 0 | T37: 0 | U37: 0 | V37: =H37 -> -0.1734615488 | W37: =I37 -> 0.7067656835 | X37: 0 | Y37: 0 | Z37: 0 | AA37: 0 | AB37: 0 | AC37: 0 | AD37: =testmat(50,3,3,elements!C37:'elements'!E37) -> 1.001378783 | AE37: =testmat(50,3,4,elements!C37:'elements'!E37) -> -0.003326969966 | AF37: 0 | AG37: 0 | AH37: 0 | AI37: 0 | AJ37: =testmat(50,4,3,elements!C37:'elements'!E37) -> -1.505697173 | AK37: =testmat(50,4,4,elements!C37:'elements'!E37) -> 0.5834062175
A38: =elements!A38 -> endcan | B38: 1 | C38: =elements!B38 -> 0.5341 | D38: 0 | E38: 0 | F38: 0 | G38: 0 | H38: 0 | I38: 1 | J38: 0 | K38: 0 | L38: 0 | M38: 0 | N38: 0 | O38: 0 | P38: 1 | Q38: =elements!B38 -> 0.5341 | R38: 0 | S38: 0 | T38: 0 | U38: 0 | V38: 0 | W38: 1 | X38: 0 | Y38: 0 | Z38: 0 | AA38: 0 | AB38: 0 | AC38: 0 | AD38: 1 | AE38: 0 | AF38: 0 | AG38: 0 | AH38: 0 | AI38: 0 | AJ38: 0 | AK38: 1
A39: =elements!A39 -> ds | B39: 1 | C39: =elements!B39 -> 0.2 | D39: 0 | E39: 0 | F39: 0 | G39: 0 | H39: 0 | I39: 1 | J39: 0 | K39: 0 | L39: 0 | M39: 0 | N39: 0 | O39: 0 | P39: 1 | Q39: =elements!B39 -> 0.2 | R39: 0 | S39: 0 | T39: 0 | U39: 0 | V39: 0 | W39: 1 | X39: 0 | Y39: 0 | Z39: 0 | AA39: 0 | AB39: 0 | AC39: 0 | AD39: 1 | AE39: 0 | AF39: 0 | AG39: 0 | AH39: 0 | AI39: 0 | AJ39: 0 | AK39: 1
A40: =elements!A40 -> qj0f03 | B40: =IF(elements!C40>0,COS(SQRT(elements!C40)*elements!B40),IF(elements!C40<0,COSH(SQRT(-elements!C40)*elements!B40),1)) -> 0.9577833209 | C40: =IF(elements!C40>0,SIN(SQRT(elements!C40)*elements!B40)/SQRT(elements!C40),IF(elements!C40<0,SINH(SQRT(-elements!C40)*elements!B40)/SQRT(-elements!C40),elements!B40)) -> 0.1478831647 | D40: 0 | E40: 0 | F40: 0 | G40: 0 | H40: =IF(elements!C40>0,-SQRT(elements!C40)*SIN(SQRT(elements!C40)*elements!B40),IF(elements!C40<0,SQRT(-elements!C40)*SINH(SQRT(-elements!C40)*elements!B40),0)) -> -0.5588946538 | I40: =IF(elements!C40>0,COS(SQRT(elements!C40)*elements!B40),IF(elements!C40<0,COSH(SQRT(-elements!C40)*elements!B40),1)) -> 0.9577833209 | J40: 0 | K40: 0 | L40: 0 | M40: 0 | N40: 0 | O40: 0 | P40: =IF(elements!C40<0,COS(SQRT(-elements!C40)*elements!B40),IF(elements!C40>0,COSH(SQRT(elements!C40)*elements!B40),1)) -> 1.04281925 | Q40: =IF(elements!C40<0,SIN(SQRT(-elements!C40)*elements!B40)/SQRT(-elements!C40),IF(elements!C40>0,SINH(SQRT(elements!C40)*elements!B40)/SQRT(elements!C40),elements!B40)) -> 0.1521349124 | R40: 0 | S40: 0 | T40: 0 | U40: 0 | V40: =IF(elements!C40<0,-SQRT(-elements!C40)*SIN(SQRT(-elements!C40)*elements!B40),IF(elements!C40>0,SQRT(elements!C40)*SINH(SQRT(elements!C40)*elements!B40),0)) -> 0.5749632782 | W40: =IF(elements!C40<0,COS(SQRT(-elements!C40)*elements!B40),IF(elements!C40>0,COSH(SQRT(elements!C40)*elements!B40),1)) -> 1.04281925 | X40: 0 | Y40: 0 | Z40: 0 | AA40: 0 | AB40: 0 | AC40: 0 | AD40: 1 | AE40: 0 | AF40: 0 | AG40: 0 | AH40: 0 | AI40: 0 | AJ40: 0 | AK40: 1
A41: =elements!A41 -> d11 | B41: 1 | C41: =elements!B41 -> 0.45 | D41: 0 | E41: 0 | F41: 0 | G41: 0 | H41: 0 | I41: 1 | J41: 0 | K41: 0 | L41: 0 | M41: 0 | N41: 0 | O41: 0 | P41: 1 | Q41: =elements!B41 -> 0.45 | R41: 0 | S41: 0 | T41: 0 | U41: 0 | V41: 0 | W41: 1 | X41: 0 | Y41: 0 | Z41: 0 | AA41: 0 | AB41: 0 | AC41: 0 | AD41: 1 | AE41: 0 | AF41: 0 | AG41: 0 | AH41: 0 | AI41: 0 | AJ41: 0 | AK41: 1
A42: =elements!A42 -> qj0f04 | B42: =IF(elements!C42>0,COS(SQRT(elements!C42)*elements!B42),IF(elements!C42<0,COSH(SQRT(-elements!C42)*elements!B42),1)) -> 1.078538242 | C42: =IF(elements!C42>0,SIN(SQRT(elements!C42)*elements!B42)/SQRT(elements!C42),IF(elements!C42<0,SINH(SQRT(-elements!C42)*elements!B42)/SQRT(-elements!C42),elements!B42)) -> 0.1539067267 | D42: 0 | E42: 0 | F42: 0 | G42: 0 | H42: =IF(elements!C42>0,-SQRT(elements!C42)*SIN(SQRT(elements!C42)*elements!B42),IF(elements!C42<0,SQRT(-elements!C42)*SINH(SQRT(-elements!C42)*elements!B42),0)) -> 1.060673195 | I42: =IF(elements!C42>0,COS(SQRT(elements!C42)*elements!B42),IF(elements!C42<0,COSH(SQRT(-elements!C42)*elements!B42),1)) -> 1.078538242 | J42: 0 | K42: 0 | L42: 0 | M42: 0 | N42: 0 | O42: 0 | P42: =IF(elements!C42<0,COS(SQRT(-elements!C42)*elements!B42),IF(elements!C42>0,COSH(SQRT(elements!C42)*elements!B42),1)) -> 0.9234654824 | Q42: =IF(elements!C42<0,SIN(SQRT(-elements!C42)*elements!B42)/SQRT(-elements!C42),IF(elements!C42>0,SINH(SQRT(elements!C42)*elements!B42)/SQRT(elements!C42),elements!B42)) -> 0.1461533846 | R42: 0 | S42: 0 | T42: 0 | U42: 0 | V42: =IF(elements!C42<0,-SQRT(-elements!C42)*SIN(SQRT(-elements!C42)*elements!B42),IF(elements!C42>0,SQRT(elements!C42)*SINH(SQRT(elements!C42)*elements!B42),0)) -> -1.007239779 | W42: =IF(elements!C42<0,COS(SQRT(-elements!C42)*elements!B42),IF(elements!C42>0,COSH(SQRT(elements!C42)*elements!B42),1)) -> 0.9234654824 | X42: 0 | Y42: 0 | Z42: 0 | AA42: 0 | AB42: 0 | AC42: 0 | AD42: 1 | AE42: 0 | AF42: 0 | AG42: 0 | AH42: 0 | AI42: 0 | AJ42: 0 | AK42: 1
A43: =elements!A43 -> ds2ds3 | B43: 1 | C43: =elements!B43 -> 0.45 | D43: 0 | E43: 0 | F43: 0 | G43: 0 | H43: 0 | I43: 1 | J43: 0 | K43: 0 | L43: 0 | M43: 0 | N43: 0 | O43: 0 | P43: 1 | Q43: =elements!B43 -> 0.45 | R43: 0 | S43: 0 | T43: 0 | U43: 0 | V43: 0 | W43: 1 | X43: 0 | Y43: 0 | Z43: 0 | AA43: 0 | AB43: 0 | AC43: 0 | AD43: 1 | AE43: 0 | AF43: 0 | AG43: 0 | AH43: 0 | AI43: 0 | AJ43: 0 | AK43: 1
A44: =elements!A44 -> qj0f05 | B44: =IF(elements!C44>0,COS(SQRT(elements!C44)*elements!B44),IF(elements!C44<0,COSH(SQRT(-elements!C44)*elements!B44),1)) -> 0.9185958459 | C44: =IF(elements!C44>0,SIN(SQRT(elements!C44)*elements!B44)/SQRT(elements!C44),IF(elements!C44<0,SINH(SQRT(-elements!C44)*elements!B44)/SQRT(-elements!C44),elements!B44)) -> 0.1459072644 | D44: 0 | E44: 0 | F44: 0 | G44: 0 | H44: =IF(elements!C44>0,-SQRT(elements!C44)*SIN(SQRT(elements!C44)*elements!B44),IF(elements!C44<0,SQRT(-elements!C44)*SINH(SQRT(-elements!C44)*elements!B44),0)) -> -1.070417382 | I44: =IF(elements!C44>0,COS(SQRT(elements!C44)*elements!B44),IF(elements!C44<0,COSH(SQRT(-elements!C44)*elements!B44),1)) -> 0.9185958459 | J44: 0 | K44: 0 | L44: 0 | M44: 0 | N44: 0 | O44: 0 | P44: =IF(elements!C44<0,COS(SQRT(-elements!C44)*elements!B44),IF(elements!C44>0,COSH(SQRT(elements!C44)*elements!B44),1)) -> 1.083674768 | Q44: =IF(elements!C44<0,SIN(SQRT(-elements!C44)*elements!B44)/SQRT(-elements!C44),IF(elements!C44>0,SINH(SQRT(elements!C44)*elements!B44)/SQRT(elements!C44),elements!B44)) -> 0.1541608535 | R44: 0 | S44: 0 | T44: 0 | U44: 0 | V44: =IF(elements!C44<0,-SQRT(-elements!C44)*SIN(SQRT(-elements!C44)*elements!B44),IF(elements!C44>0,SQRT(elements!C44)*SINH(SQRT(elements!C44)*elements!B44),0)) -> 1.13096807 | W44: =IF(elements!C44<0,COS(SQRT(-elements!C44)*elements!B44),IF(elements!C44>0,COSH(SQRT(elements!C44)*elements!B44),1)) -> 1.083674768 | X44: 0 | Y44: 0 | Z44: 0 | AA44: 0 | AB44: 0 | AC44: 0 | AD44: 1 | AE44: 0 | AF44: 0 | AG44: 0 | AH44: 0 | AI44: 0 | AJ44: 0 | AK44: 1
A45: =elements!A45 -> d12 | B45: 1 | C45: =elements!B45 -> 0.45 | D45: 0 | E45: 0 | F45: 0 | G45: 0 | H45: 0 | I45: 1 | J45: 0 | K45: 0 | L45: 0 | M45: 0 | N45: 0 | O45: 0 | P45: 1 | Q45: =elements!B45 -> 0.45 | R45: 0 | S45: 0 | T45: 0 | U45: 0 | V45: 0 | W45: 1 | X45: 0 | Y45: 0 | Z45: 0 | AA45: 0 | AB45: 0 | AC45: 0 | AD45: 1 | AE45: 0 | AF45: 0 | AG45: 0 | AH45: 0 | AI45: 0 | AJ45: 0 | AK45: 1
A46: =elements!A46 -> qj0f06 | B46: =IF(elements!C46>0,COS(SQRT(elements!C46)*elements!B46),IF(elements!C46<0,COSH(SQRT(-elements!C46)*elements!B46),1)) -> 1.048659 | C46: =IF(elements!C46>0,SIN(SQRT(elements!C46)*elements!B46)/SQRT(elements!C46),IF(elements!C46<0,SINH(SQRT(-elements!C46)*elements!B46)/SQRT(-elements!C46),elements!B46)) -> 0.1524251478 | D46: 0 | E46: 0 | F46: 0 | G46: 0 | H46: =IF(elements!C46>0,-SQRT(elements!C46)*SIN(SQRT(elements!C46)*elements!B46),IF(elements!C46<0,SQRT(-elements!C46)*SINH(SQRT(-elements!C46)*elements!B46),0)) -> 0.6539977162 | I46: =IF(elements!C46>0,COS(SQRT(elements!C46)*elements!B46),IF(elements!C46<0,COSH(SQRT(-elements!C46)*elements!B46),1)) -> 1.048659 | J46: 0 | K46: 0 | L46: 0 | M46: 0 | N46: 0 | O46: 0 | P46: =IF(elements!C46<0,COS(SQRT(-elements!C46)*elements!B46),IF(elements!C46>0,COSH(SQRT(elements!C46)*elements!B46),1)) -> 0.95211765 | Q46: =IF(elements!C46<0,SIN(SQRT(-elements!C46)*elements!B46)/SQRT(-elements!C46),IF(elements!C46>0,SINH(SQRT(elements!C46)*elements!B46)/SQRT(elements!C46),elements!B46)) -> 0.1475981517 | R46: 0 | S46: 0 | T46: 0 | U46: 0 | V46: =IF(elements!C46<0,-SQRT(-elements!C46)*SIN(SQRT(-elements!C46)*elements!B46),IF(elements!C46>0,SQRT(elements!C46)*SINH(SQRT(elements!C46)*elements!B46),0)) -> -0.6332869314 | W46: =IF(elements!C46<0,COS(SQRT(-elements!C46)*elements!B46),IF(elements!C46>0,COSH(SQRT(elements!C46)*elements!B46),1)) -> 0.95211765 | X46: 0 | Y46: 0 | Z46: 0 | AA46: 0 | AB46: 0 | AC46: 0 | AD46: 1 | AE46: 0 | AF46: 0 | AG46: 0 | AH46: 0 | AI46: 0 | AJ46: 0 | AK46: 1
A47: =elements!A47 -> ds | B47: 1 | C47: =elements!B47 -> 0.2 | D47: 0 | E47: 0 | F47: 0 | G47: 0 | H47: 0 | I47: 1 | J47: 0 | K47: 0 | L47: 0 | M47: 0 | N47: 0 | O47: 0 | P47: 1 | Q47: =elements!B47 -> 0.2 | R47: 0 | S47: 0 | T47: 0 | U47: 0 | V47: 0 | W47: 1 | X47: 0 | Y47: 0 | Z47: 0 | AA47: 0 | AB47: 0 | AC47: 0 | AD47: 1 | AE47: 0 | AF47: 0 | AG47: 0 | AH47: 0 | AI47: 0 | AJ47: 0 | AK47: 1
A48: =elements!A48 -> roll | B48: -1 | C48: 0 | D48: 0 | E48: 0 | F48: 0 | G48: 0 | H48: 0 | I48: =B48 -> -1 | J48: 0 | K48: 0 | L48: 0 | M48: 0 | N48: 0 | O48: 0 | P48: -1 | Q48: 0 | R48: 0 | S48: 0 | T48: 0 | U48: 0 | V48: 0 | W48: -1 | X48: 0 | Y48: 0 | Z48: 0 | AA48: 0 | AB48: 0 | AC48: 0 | AD48: 1 | AE48: 0 | AF48: 0 | AG48: 0 | AH48: 0 | AI48: 0 | AJ48: 0 | AK48: 1
A49: =elements!A49 -> sb1 | B49: 1 | C49: 0 | D49: 0 | E49: 0 | F49: 0 | G49: 0 | H49: =TAN(elements!D49*PI()/180)/elements!C49 -> 0 | I49: 1 | J49: 0 | K49: 0 | L49: 0 | M49: 0 | N49: 0 | O49: 0 | P49: 1 | Q49: 0 | R49: 0 | S49: 0 | T49: 0 | U49: 0 | V49: =-TAN((elements!D49*PI()/180)-elements!F49*(elements!E49/elements!C49)*((1+(SIN(elements!D49*PI()/180))^2)/COS(elements!D49*PI()/180))*(1-(elements!E49/elements!C49)*elements!F49*elements!G49*TAN(elements!D49*PI()/180)))/elements!C49 -> 0.06252931336 | W49: 1 | X49: 0 | Y49: 0 | Z49: 0 | AA49: 0 | AB49: 0 | AC49: 0 | AD49: 1 | AE49: 0 | AF49: 0 | AG49: 0 | AH49: 0 | AI49: 0 | AJ49: 0 | AK49: 1
A50: =elements!A50 -> b1 | B50: =IF(elements!D50<1,COS(SQRT(1-elements!D50)*elements!C50*PI()/180),IF(elements!D50>1,COSH(SQRT(elements!D50-1)*elements!C50*PI()/180),1)) -> 0.9396926208 | C50: =IF(elements!D50<1,SIN(SQRT(1-elements!D50)*elements!C50*PI()/180)/(SQRT(1-elements!D50)*elements!C50*PI()/(180*elements!B50)),IF(elements!D50>1,SINH(SQRT(elements!D50-1)*elements!C50*PI()/180)/(SQRT(elements!D50-1)*elements!C50*PI()/(180*elements!B50)),elements!B50)) -> 0.205212086 | D50: 0 | E50: 0 | F50: 0 | G50: =IF(elements!D50<1,((elements!B50/(elements!C50*PI()/180))/(1-elements!D50))*(1-COS(SQRT(1-elements!D50)*elements!C50*PI()/180)),IF(elements!D50>1,((elements!B50/(elements!C50*PI()/180))/(1-elements!D50))*(1-COSH(SQRT(elements!D50-1)*elements!C50*PI()/180)),1)) -> 0.03618442753 | H50: =IF(elements!D50<1,-(SQRT(1-elements!D50)*elements!C50*PI()/(180*elements!B50))*SIN(SQRT(1-elements!D50)*elements!C50*PI()/180),IF(elements!D50>1,(SQRT(elements!D50-1)*elements!C50*PI()/(180*elements!B50))*SINH(SQRT(elements!D50-1)*elements!C50*PI()/180),0)) -> -0.5700335722 | I50: =B50 -> 0.9396926208 | J50: 0 | K50: 0 | L50: 0 | M50: =C50/(elements!B50/(elements!C50*PI()/180)) -> 0.3420201433 | N50: 0 | O50: 0 | P50: =IF(elements!D50>0,COS(SQRT(elements!D50)*elements!C50*PI()/180),IF(elements!D50<0,COSH(SQRT(-elements!D50)*elements!C50*PI()/180),1)) -> 1 | Q50: =IF(elements!D50>0,SIN(SQRT(elements!D50)*elements!C50*PI()/180)/(SQRT(elements!D50)*elements!C50*PI()/(180*elements!B50)),IF(elements!D50<0,SINH(SQRT(-elements!D50)*elements!C50*PI()/180)/(SQRT(-elements!D50)*elements!C50*PI()/(180*elements!B50)),elements!B50)) -> 0.2094395102 | R50: 0 | S50: 0 | T50: 0 | U50: 0 | V50: =IF(elements!D50>0,-(SQRT(elements!D50)*elements!C50*PI()/(180*elements!B50))*SIN(SQRT(elements!D50)*elements!C50*PI()/180),IF(elements!D50<0,(SQRT(-elements!D50)*elements!C50*PI()/(180*elements!B50))*SINH(SQRT(-elements!D50)*elements!C50*PI()/180),0)) -> 0 | W50: =P50 -> 1 | X50: 0 | Y50: 0 | Z50: =M50 -> 0.3420201433 | AA50: =G50 -> 0.03618442753 | AB50: 0 | AC50: 0 | AD50: 1 | AE50: =IF(elements!D50<1,(1/(1-elements!D50))*(elements!B50-SIN(SQRT(1-elements!D50)*elements!C50*PI()/180)/(SQRT(1-elements!D50)*elements!C50*PI()/(180*elements!B50))), IF(elements!D50>1,(1/(1-elements!D50))*(elements!B50-SINH(SQRT(elements!D50-1)*elements!C50*PI()/180)/(SQRT(elements!D50-1)*elements!C50*PI()/(180*elements!B50))), 0)) -> 0.004227424244 | AF50: 0 | AG50: 0 | AH50: 0 | AI50: 0 | AJ50: 0 | AK50: 1
A51: =elements!A51 -> eb1 | B51: 1 | C51: 0 | D51: 0 | E51: 0 | F51: 0 | G51: 0 | H51: =TAN(elements!D51*PI()/180)/elements!C51 -> 0 | I51: 1 | J51: 0 | K51: 0 | L51: 0 | M51: 0 | N51: 0 | O51: 0 | P51: 1 | Q51: 0 | R51: 0 | S51: 0 | T51: 0 | U51: 0 | V51: =-TAN((elements!D51*PI()/180)-elements!F51*(elements!E51/elements!C51)*((1+(SIN(elements!D51*PI()/180))^2)/COS(elements!D51*PI()/180))*(1-(elements!E51/elements!C51)*elements!F51*elements!G51*TAN(elements!D51*PI()/180)))/elements!C51 -> 0.06252931336 | W51: 1 | X51: 0 | Y51: 0 | Z51: 0 | AA51: 0 | AB51: 0 | AC51: 0 | AD51: 1 | AE51: 0 | AF51: 0 | AG51: 0 | AH51: 0 | AI51: 0 | AJ51: 0 | AK51: 1
A52: =elements!A52 -> roll | B52: -1 | C52: 0 | D52: 0 | E52: 0 | F52: 0 | G52: 0 | H52: 0 | I52: =B52 -> -1 | J52: 0 | K52: 0 | L52: 0 | M52: 0 | N52: 0 | O52: 0 | P52: -1 | Q52: 0 | R52: 0 | S52: 0 | T52: 0 | U52: 0 | V52: 0 | W52: -1 | X52: 0 | Y52: 0 | Z52: 0 | AA52: 0 | AB52: 0 | AC52: 0 | AD52: 1 | AE52: 0 | AF52: 0 | AG52: 0 | AH52: 0 | AI52: 0 | AJ52: 0 | AK52: 1
A53: =elements!A53 -> d | B53: 1 | C53: =elements!B53 -> 1.542690034 | D53: 0 | E53: 0 | F53: 0 | G53: 0 | H53: 0 | I53: 1 | J53: 0 | K53: 0 | L53: 0 | M53: 0 | N53: 0 | O53: 0 | P53: 1 | Q53: =elements!B53 -> 1.542690034 | R53: 0 | S53: 0 | T53: 0 | U53: 0 | V53: 0 | W53: 1 | X53: 0 | Y53: 0 | Z53: 0 | AA53: 0 | AB53: 0 | AC53: 0 | AD53: 1 | AE53: 0 | AF53: 0 | AG53: 0 | AH53: 0 | AI53: 0 | AJ53: 0 | AK53: 1
A54: =elements!A54 -> sbi2 | B54: 1 | C54: 0 | D54: 0 | E54: 0 | F54: 0 | G54: 0 | H54: =TAN(elements!D54*PI()/180)/elements!C54 -> 0 | I54: 1 | J54: 0 | K54: 0 | L54: 0 | M54: 0 | N54: 0 | O54: 0 | P54: 1 | Q54: 0 | R54: 0 | S54: 0 | T54: 0 | U54: 0 | V54: =-TAN((elements!D54*PI()/180)-elements!F54*(elements!E54/elements!C54)*((1+(SIN(elements!D54*PI()/180))^2)/COS(elements!D54*PI()/180))*(1-(elements!E54/elements!C54)*elements!F54*elements!G54*TAN(elements!D54*PI()/180)))/elements!C54 -> 0.06252931336 | W54: 1 | X54: 0 | Y54: 0 | Z54: 0 | AA54: 0 | AB54: 0 | AC54: 0 | AD54: 1 | AE54: 0 | AF54: 0 | AG54: 0 | AH54: 0 | AI54: 0 | AJ54: 0 | AK54: 1
A55: =elements!A55 -> bi2 | B55: =IF(elements!D55<1,COS(SQRT(1-elements!D55)*elements!C55*PI()/180),IF(elements!D55>1,COSH(SQRT(elements!D55-1)*elements!C55*PI()/180),1)) -> 0.9396926208 | C55: =IF(elements!D55<1,SIN(SQRT(1-elements!D55)*elements!C55*PI()/180)/(SQRT(1-elements!D55)*elements!C55*PI()/(180*elements!B55)),IF(elements!D55>1,SINH(SQRT(elements!D55-1)*elements!C55*PI()/180)/(SQRT(elements!D55-1)*elements!C55*PI()/(180*elements!B55)),elements!B55)) -> 0.205212086 | D55: 0 | E55: 0 | F55: 0 | G55: =IF(elements!D55<1,((elements!B55/(elements!C55*PI()/180))/(1-elements!D55))*(1-COS(SQRT(1-elements!D55)*elements!C55*PI()/180)),IF(elements!D55>1,((elements!B55/(elements!C55*PI()/180))/(1-elements!D55))*(1-COSH(SQRT(elements!D55-1)*elements!C55*PI()/180)),1)) -> 0.03618442753 | H55: =IF(elements!D55<1,-(SQRT(1-elements!D55)*elements!C55*PI()/(180*elements!B55))*SIN(SQRT(1-elements!D55)*elements!C55*PI()/180),IF(elements!D55>1,(SQRT(elements!D55-1)*elements!C55*PI()/(180*elements!B55))*SINH(SQRT(elements!D55-1)*elements!C55*PI()/180),0)) -> -0.5700335722 | I55: =B55 -> 0.9396926208 | J55: 0 | K55: 0 | L55: 0 | M55: =C55/(elements!B55/(elements!C55*PI()/180)) -> 0.3420201433 | N55: 0 | O55: 0 | P55: =IF(elements!D55>0,COS(SQRT(elements!D55)*elements!C55*PI()/180),IF(elements!D55<0,COSH(SQRT(-elements!D55)*elements!C55*PI()/180),1)) -> 1 | Q55: =IF(elements!D55>0,SIN(SQRT(elements!D55)*elements!C55*PI()/180)/(SQRT(elements!D55)*elements!C55*PI()/(180*elements!B55)),IF(elements!D55<0,SINH(SQRT(-elements!D55)*elements!C55*PI()/180)/(SQRT(-elements!D55)*elements!C55*PI()/(180*elements!B55)),elements!B55)) -> 0.2094395102 | R55: 0 | S55: 0 | T55: 0 | U55: 0 | V55: =IF(elements!D55>0,-(SQRT(elements!D55)*elements!C55*PI()/(180*elements!B55))*SIN(SQRT(elements!D55)*elements!C55*PI()/180),IF(elements!D55<0,(SQRT(-elements!D55)*elements!C55*PI()/(180*elements!B55))*SINH(SQRT(-elements!D55)*elements!C55*PI()/180),0)) -> 0 | W55: =P55 -> 1 | X55: 0 | Y55: 0 | Z55: =M55 -> 0.3420201433 | AA55: =G55 -> 0.03618442753 | AB55: 0 | AC55: 0 | AD55: 1 | AE55: =IF(elements!D55<1,(1/(1-elements!D55))*(elements!B55-SIN(SQRT(1-elements!D55)*elements!C55*PI()/180)/(SQRT(1-elements!D55)*elements!C55*PI()/(180*elements!B55))), IF(elements!D55>1,(1/(1-elements!D55))*(elements!B55-SINH(SQRT(elements!D55-1)*elements!C55*PI()/180)/(SQRT(elements!D55-1)*elements!C55*PI()/(180*elements!B55))), 0)) -> 0.004227424244 | AF55: 0 | AG55: 0 | AH55: 0 | AI55: 0 | AJ55: 0 | AK55: 1
A56: =elements!A56 -> ebi2 | B56: 1 | C56: 0 | D56: 0 | E56: 0 | F56: 0 | G56: 0 | H56: =TAN(elements!D56*PI()/180)/elements!C56 -> 0 | I56: 1 | J56: 0 | K56: 0 | L56: 0 | M56: 0 | N56: 0 | O56: 0 | P56: 1 | Q56: 0 | R56: 0 | S56: 0 | T56: 0 | U56: 0 | V56: =-TAN((elements!D56*PI()/180)-elements!F56*(elements!E56/elements!C56)*((1+(SIN(elements!D56*PI()/180))^2)/COS(elements!D56*PI()/180))*(1-(elements!E56/elements!C56)*elements!F56*elements!G56*TAN(elements!D56*PI()/180)))/elements!C56 -> 0.06252931336 | W56: 1 | X56: 0 | Y56: 0 | Z56: 0 | AA56: 0 | AB56: 0 | AC56: 0 | AD56: 1 | AE56: 0 | AF56: 0 | AG56: 0 | AH56: 0 | AI56: 0 | AJ56: 0 | AK56: 1
A57: =elements!A57 -> d | B57: 1 | C57: =elements!B57 -> 1.542690034 | D57: 0 | E57: 0 | F57: 0 | G57: 0 | H57: 0 | I57: 1 | J57: 0 | K57: 0 | L57: 0 | M57: 0 | N57: 0 | O57: 0 | P57: 1 | Q57: =elements!B57 -> 1.542690034 | R57: 0 | S57: 0 | T57: 0 | U57: 0 | V57: 0 | W57: 1 | X57: 0 | Y57: 0 | Z57: 0 | AA57: 0 | AB57: 0 | AC57: 0 | AD57: 1 | AE57: 0 | AF57: 0 | AG57: 0 | AH57: 0 | AI57: 0 | AJ57: 0 | AK57: 1
A58: =elements!A58 -> roll | B58: -1 | C58: 0 | D58: 0 | E58: 0 | F58: 0 | G58: 0 | H58: 0 | I58: =B58 -> -1 | J58: 0 | K58: 0 | L58: 0 | M58: 0 | N58: 0 | O58: 0 | P58: -1 | Q58: 0 | R58: 0 | S58: 0 | T58: 0 | U58: 0 | V58: 0 | W58: -1 | X58: 0 | Y58: 0 | Z58: 0 | AA58: 0 | AB58: 0 | AC58: 0 | AD58: 1 | AE58: 0 | AF58: 0 | AG58: 0 | AH58: 0 | AI58: 0 | AJ58: 0 | AK58: 1
A59: =elements!A59 -> sbi3 | B59: 1 | C59: 0 | D59: 0 | E59: 0 | F59: 0 | G59: 0 | H59: =TAN(elements!D59*PI()/180)/elements!C59 -> 0 | I59: 1 | J59: 0 | K59: 0 | L59: 0 | M59: 0 | N59: 0 | O59: 0 | P59: 1 | Q59: 0 | R59: 0 | S59: 0 | T59: 0 | U59: 0 | V59: =-TAN((elements!D59*PI()/180)-elements!F59*(elements!E59/elements!C59)*((1+(SIN(elements!D59*PI()/180))^2)/COS(elements!D59*PI()/180))*(1-(elements!E59/elements!C59)*elements!F59*elements!G59*TAN(elements!D59*PI()/180)))/elements!C59 -> 0.06252931336 | W59: 1 | X59: 0 | Y59: 0 | Z59: 0 | AA59: 0 | AB59: 0 | AC59: 0 | AD59: 1 | AE59: 0 | AF59: 0 | AG59: 0 | AH59: 0 | AI59: 0 | AJ59: 0 | AK59: 1
A60: =elements!A60 -> bi3 | B60: =IF(elements!D60<1,COS(SQRT(1-elements!D60)*elements!C60*PI()/180),IF(elements!D60>1,COSH(SQRT(elements!D60-1)*elements!C60*PI()/180),1)) -> 0.9396926208 | C60: =IF(elements!D60<1,SIN(SQRT(1-elements!D60)*elements!C60*PI()/180)/(SQRT(1-elements!D60)*elements!C60*PI()/(180*elements!B60)),IF(elements!D60>1,SINH(SQRT(elements!D60-1)*elements!C60*PI()/180)/(SQRT(elements!D60-1)*elements!C60*PI()/(180*elements!B60)),elements!B60)) -> 0.205212086 | D60: 0 | E60: 0 | F60: 0 | G60: =IF(elements!D60<1,((elements!B60/(elements!C60*PI()/180))/(1-elements!D60))*(1-COS(SQRT(1-elements!D60)*elements!C60*PI()/180)),IF(elements!D60>1,((elements!B60/(elements!C60*PI()/180))/(1-elements!D60))*(1-COSH(SQRT(elements!D60-1)*elements!C60*PI()/180)),1)) -> 0.03618442753 | H60: =IF(elements!D60<1,-(SQRT(1-elements!D60)*elements!C60*PI()/(180*elements!B60))*SIN(SQRT(1-elements!D60)*elements!C60*PI()/180),IF(elements!D60>1,(SQRT(elements!D60-1)*elements!C60*PI()/(180*elements!B60))*SINH(SQRT(elements!D60-1)*elements!C60*PI()/180),0)) -> -0.5700335722 | I60: =B60 -> 0.9396926208 | J60: 0 | K60: 0 | L60: 0 | M60: =C60/(elements!B60/(elements!C60*PI()/180)) -> 0.3420201433 | N60: 0 | O60: 0 | P60: =IF(elements!D60>0,COS(SQRT(elements!D60)*elements!C60*PI()/180),IF(elements!D60<0,COSH(SQRT(-elements!D60)*elements!C60*PI()/180),1)) -> 1 | Q60: =IF(elements!D60>0,SIN(SQRT(elements!D60)*elements!C60*PI()/180)/(SQRT(elements!D60)*elements!C60*PI()/(180*elements!B60)),IF(elements!D60<0,SINH(SQRT(-elements!D60)*elements!C60*PI()/180)/(SQRT(-elements!D60)*elements!C60*PI()/(180*elements!B60)),elements!B60)) -> 0.2094395102 | R60: 0 | S60: 0 | T60: 0 | U60: 0 | V60: =IF(elements!D60>0,-(SQRT(elements!D60)*elements!C60*PI()/(180*elements!B60))*SIN(SQRT(elements!D60)*elements!C60*PI()/180),IF(elements!D60<0,(SQRT(-elements!D60)*elements!C60*PI()/(180*elements!B60))*SINH(SQRT(-elements!D60)*elements!C60*PI()/180),0)) -> 0 | W60: =P60 -> 1 | X60: 0 | Y60: 0 | Z60: =M60 -> 0.3420201433 | AA60: =G60 -> 0.03618442753 | AB60: 0 | AC60: 0 | AD60: 1 | AE60: =IF(elements!D60<1,(1/(1-elements!D60))*(elements!B60-SIN(SQRT(1-elements!D60)*elements!C60*PI()/180)/(SQRT(1-elements!D60)*elements!C60*PI()/(180*elements!B60))), IF(elements!D60>1,(1/(1-elements!D60))*(elements!B60-SINH(SQRT(elements!D60-1)*elements!C60*PI()/180)/(SQRT(elements!D60-1)*elements!C60*PI()/(180*elements!B60))), 0)) -> 0.004227424244 | AF60: 0 | AG60: 0 | AH60: 0 | AI60: 0 | AJ60: 0 | AK60: 1
A61: =elements!A61 -> ebi3 | B61: 1 | C61: 0 | D61: 0 | E61: 0 | F61: 0 | G61: 0 | H61: =TAN(elements!D61*PI()/180)/elements!C61 -> 0 | I61: 1 | J61: 0 | K61: 0 | L61: 0 | M61: 0 | N61: 0 | O61: 0 | P61: 1 | Q61: 0 | R61: 0 | S61: 0 | T61: 0 | U61: 0 | V61: =-TAN((elements!D61*PI()/180)-elements!F61*(elements!E61/elements!C61)*((1+(SIN(elements!D61*PI()/180))^2)/COS(elements!D61*PI()/180))*(1-(elements!E61/elements!C61)*elements!F61*elements!G61*TAN(elements!D61*PI()/180)))/elements!C61 -> 0.06252931336 | W61: 1 | X61: 0 | Y61: 0 | Z61: 0 | AA61: 0 | AB61: 0 | AC61: 0 | AD61: 1 | AE61: 0 | AF61: 0 | AG61: 0 | AH61: 0 | AI61: 0 | AJ61: 0 | AK61: 1
A62: =elements!A62 -> roll | B62: -1 | C62: 0 | D62: 0 | E62: 0 | F62: 0 | G62: 0 | H62: 0 | I62: =B62 -> -1 | J62: 0 | K62: 0 | L62: 0 | M62: 0 | N62: 0 | O62: 0 | P62: -1 | Q62: 0 | R62: 0 | S62: 0 | T62: 0 | U62: 0 | V62: 0 | W62: -1 | X62: 0 | Y62: 0 | Z62: 0 | AA62: 0 | AB62: 0 | AC62: 0 | AD62: 1 | AE62: 0 | AF62: 0 | AG62: 0 | AH62: 0 | AI62: 0 | AJ62: 0 | AK62: 1
A63: =elements!A63 -> difinal | B63: 1 | C63: =elements!B63 -> 1.48963 | D63: 0 | E63: 0 | F63: 0 | G63: 0 | H63: 0 | I63: 1 | J63: 0 | K63: 0 | L63: 0 | M63: 0 | N63: 0 | O63: 0 | P63: 1 | Q63: =elements!B63 -> 1.48963 | R63: 0 | S63: 0 | T63: 0 | U63: 0 | V63: 0 | W63: 1 | X63: 0 | Y63: 0 | Z63: 0 | AA63: 0 | AB63: 0 | AC63: 0 | AD63: 1 | AE63: 0 | AF63: 0 | AG63: 0 | AH63: 0 | AI63: 0 | AJ63: 0 | AK63: 1
A64: =elements!A64 -> d0 | B64: 1 | C64: =elements!B64 -> 0.5341 | D64: 0 | E64: 0 | F64: 0 | G64: 0 | H64: 0 | I64: 1 | J64: 0 | K64: 0 | L64: 0 | M64: 0 | N64: 0 | O64: 0 | P64: 1 | Q64: =elements!B64 -> 0.5341 | R64: 0 | S64: 0 | T64: 0 | U64: 0 | V64: 0 | W64: 1 | X64: 0 | Y64: 0 | Z64: 0 | AA64: 0 | AB64: 0 | AC64: 0 | AD64: 1 | AE64: 0 | AF64: 0 | AG64: 0 | AH64: 0 | AI64: 0 | AJ64: 0 | AK64: 1
A65: =elements!A65 -> ac111 | B65: =testmat(1,1,1,elements!C65:'elements'!E65) -> 0.8622659887 | C65: =testmat(1,1,2,elements!C65:'elements'!E65) -> 0.6100731159 | D65: 0 | E65: 0 | F65: 0 | G65: 0 | H65: =testmat(1,2,1,elements!C65:'elements'!E65) -> -0.04369341432 | I65: =testmat(1,2,2,elements!C65:'elements'!E65) -> 0.862957437 | J65: 0 | K65: 0 | L65: 0 | M65: 0 | N65: 0 | O65: 0 | P65: =B65 -> 0.8622659887 | Q65: =C65 -> 0.6100731159 | R65: 0 | S65: 0 | T65: 0 | U65: 0 | V65: =H65 -> -0.04369341432 | W65: =I65 -> 0.862957437 | X65: 0 | Y65: 0 | Z65: 0 | AA65: 0 | AB65: 0 | AC65: 0 | AD65: =testmat(1,3,3,elements!C65:'elements'!E65) -> 0.9987389296 | AE65: =testmat(1,3,4,elements!C65:'elements'!E65) -> -0.001584722171 | AF65: 0 | AG65: 0 | AH65: 0 | AI65: 0 | AJ65: =testmat(1,4,3,elements!C65:'elements'!E65) -> 1.268544969 | AK65: =testmat(1,4,4,elements!C65:'elements'!E65) -> 0.7697153989
A66: =elements!A66 -> cpd | B66: 1 | C66: =elements!B66 -> 0.05 | D66: 0 | E66: 0 | F66: 0 | G66: 0 | H66: 0 | I66: 1 | J66: 0 | K66: 0 | L66: 0 | M66: 0 | N66: 0 | O66: 0 | P66: 1 | Q66: =elements!B66 -> 0.05 | R66: 0 | S66: 0 | T66: 0 | U66: 0 | V66: 0 | W66: 1 | X66: 0 | Y66: 0 | Z66: 0 | AA66: 0 | AB66: 0 | AC66: 0 | AD66: 1 | AE66: 0 | AF66: 0 | AG66: 0 | AH66: 0 | AI66: 0 | AJ66: 0 | AK66: 1
A67: =elements!A67 -> ac121 | B67: =testmat(2,1,1,elements!C67:'elements'!E67) -> 0.8598279631 | C67: =testmat(2,1,2,elements!C67:'elements'!E67) -> 0.6088112527 | D67: 0 | E67: 0 | F67: 0 | G67: 0 | H67: =testmat(2,2,1,elements!C67:'elements'!E67) -> -0.04564789848 | I67: =testmat(2,2,2,elements!C67:'elements'!E67) -> 0.8609577438 | J67: 0 | K67: 0 | L67: 0 | M67: 0 | N67: 0 | O67: 0 | P67: =B67 -> 0.8598279631 | Q67: =C67 -> 0.6088112527 | R67: 0 | S67: 0 | T67: 0 | U67: 0 | V67: =H67 -> -0.04564789848 | W67: =I67 -> 0.8609577438 | X67: 0 | Y67: 0 | Z67: 0 | AA67: 0 | AB67: 0 | AC67: 0 | AD67: =testmat(2,3,3,elements!C67:'elements'!E67) -> 0.9992486602 | AE67: =testmat(2,3,4,elements!C67:'elements'!E67) -> -0.0009384786299 | AF67: 0 | AG67: 0 | AH67: 0 | AI67: 0 | AJ67: =testmat(2,4,3,elements!C67:'elements'!E67) -> 1.283286232 | AK67: =testmat(2,4,4,elements!C67:'elements'!E67) -> 0.767438768
A68: =elements!A68 -> cud | B68: 1 | C68: =elements!B68 -> 0.4606 | D68: 0 | E68: 0 | F68: 0 | G68: 0 | H68: 0 | I68: 1 | J68: 0 | K68: 0 | L68: 0 | M68: 0 | N68: 0 | O68: 0 | P68: 1 | Q68: =elements!B68 -> 0.4606 | R68: 0 | S68: 0 | T68: 0 | U68: 0 | V68: 0 | W68: 1 | X68: 0 | Y68: 0 | Z68: 0 | AA68: 0 | AB68: 0 | AC68: 0 | AD68: 1 | AE68: 0 | AF68: 0 | AG68: 0 | AH68: 0 | AI68: 0 | AJ68: 0 | AK68: 1
A69: =elements!A69 -> ac131 | B69: =testmat(3,1,1,elements!C69:'elements'!E69) -> 0.8975547279 | C69: =testmat(3,1,2,elements!C69:'elements'!E69) -> 0.6321516199 | D69: 0 | E69: 0 | F69: 0 | G69: 0 | H69: =testmat(3,2,1,elements!C69:'elements'!E69) -> -0.02602054264 | I69: =testmat(3,2,2,elements!C69:'elements'!E69) -> 0.8979478532 | J69: 0 | K69: 0 | L69: 0 | M69: 0 | N69: 0 | O69: 0 | P69: =B69 -> 0.8975547279 | Q69: =C69 -> 0.6321516199 | R69: 0 | S69: 0 | T69: 0 | U69: 0 | V69: =H69 -> -0.02602054264 | W69: =I69 -> 0.8979478532 | X69: 0 | Y69: 0 | Z69: 0 | AA69: 0 | AB69: 0 | AC69: 0 | AD69: =testmat(3,3,3,elements!C69:'elements'!E69) -> 0.9996361839 | AE69: =testmat(3,3,4,elements!C69:'elements'!E69) -> -0.0006041661848 | AF69: 0 | AG69: 0 | AH69: 0 | AI69: 0 | AJ69: =testmat(3,4,3,elements!C69:'elements'!E69) -> 0.9826790434 | AK69: =testmat(3,4,4,elements!C69:'elements'!E69) -> 0.8221116653
A70: =elements!A70 -> cpd | B70: 1 | C70: =elements!B70 -> 0.05 | D70: 0 | E70: 0 | F70: 0 | G70: 0 | H70: 0 | I70: 1 | J70: 0 | K70: 0 | L70: 0 | M70: 0 | N70: 0 | O70: 0 | P70: 1 | Q70: =elements!B70 -> 0.05 | R70: 0 | S70: 0 | T70: 0 | U70: 0 | V70: 0 | W70: 1 | X70: 0 | Y70: 0 | Z70: 0 | AA70: 0 | AB70: 0 | AC70: 0 | AD70: 1 | AE70: 0 | AF70: 0 | AG70: 0 | AH70: 0 | AI70: 0 | AJ70: 0 | AK70: 1
A71: =elements!A71 -> ac141 | B71: =testmat(4,1,1,elements!C71:'elements'!E71) -> 0.882189197 | C71: =testmat(4,1,2,elements!C71:'elements'!E71) -> 0.6226478087 | D71: 0 | E71: 0 | F71: 0 | G71: 0 | H71: =testmat(4,2,1,elements!C71:'elements'!E71) -> -0.03374611949 | I71: =testmat(4,2,2,elements!C71:'elements'!E71) -> 0.882987333 | J71: 0 | K71: 0 | L71: 0 | M71: 0 | N71: 0 | O71: 0 | P71: =B71 -> 0.882189197 | Q71: =C71 -> 0.6226478087 | R71: 0 | S71: 0 | T71: 0 | U71: 0 | V71: =H71 -> -0.03374611949 | W71: =I71 -> 0.882987333 | X71: 0 | Y71: 0 | Z71: 0 | AA71: 0 | AB71: 0 | AC71: 0 | AD71: =testmat(4,3,3,elements!C71:'elements'!E71) -> 0.9997313214 | AE71: =testmat(4,3,4,elements!C71:'elements'!E71) -> -0.0003944962099 | AF71: 0 | AG71: 0 | AH71: 0 | AI71: 0 | AJ71: =testmat(4,4,3,elements!C71:'elements'!E71) -> 1.106700663 | AK71: =testmat(4,4,4,elements!C71:'elements'!E71) -> 0.7997521207
A72: =elements!A72 -> cud | B72: 1 | C72: =elements!B72 -> 0.4606 | D72: 0 | E72: 0 | F72: 0 | G72: 0 | H72: 0 | I72: 1 | J72: 0 | K72: 0 | L72: 0 | M72: 0 | N72: 0 | O72: 0 | P72: 1 | Q72: =elements!B72 -> 0.4606 | R72: 0 | S72: 0 | T72: 0 | U72: 0 | V72: 0 | W72: 1 | X72: 0 | Y72: 0 | Z72: 0 | AA72: 0 | AB72: 0 | AC72: 0 | AD72: 1 | AE72: 0 | AF72: 0 | AG72: 0 | AH72: 0 | AI72: 0 | AJ72: 0 | AK72: 1
A73: =elements!A73 -> ac151 | B73: =testmat(5,1,1,elements!C73:'elements'!E73) -> 0.9245896201 | C73: =testmat(5,1,2,elements!C73:'elements'!E73) -> 0.6493961691 | D73: 0 | E73: 0 | F73: 0 | G73: 0 | H73: =testmat(5,2,1,elements!C73:'elements'!E73) -> -0.0148703173 | I73: =testmat(5,2,2,elements!C73:'elements'!E73) -> 0.9247425111 | J73: 0 | K73: 0 | L73: 0 | M73: 0 | N73: 0 | O73: 0 | P73: =B73 -> 0.9245896201 | Q73: =C73 -> 0.6493961691 | R73: 0 | S73: 0 | T73: 0 | U73: 0 | V73: =H73 -> -0.0148703173 | W73: =I73 -> 0.9247425111 | X73: 0 | Y73: 0 | Z73: 0 | AA73: 0 | AB73: 0 | AC73: 0 | AD73: =testmat(5,3,3,elements!C73:'elements'!E73) -> 0.9998736227 | AE73: =testmat(5,3,4,elements!C73:'elements'!E73) -> -0.0002795391472 | AF73: 0 | AG73: 0 | AH73: 0 | AI73: 0 | AJ73: =testmat(5,4,3,elements!C73:'elements'!E73) -> 0.7488001567 | AK73: =testmat(5,4,4,elements!C73:'elements'!E73) -> 0.8645639963
A74: =elements!A74 -> cpd | B74: 1 | C74: =elements!B74 -> 0.05 | D74: 0 | E74: 0 | F74: 0 | G74: 0 | H74: 0 | I74: 1 | J74: 0 | K74: 0 | L74: 0 | M74: 0 | N74: 0 | O74: 0 | P74: 1 | Q74: =elements!B74 -> 0.05 | R74: 0 | S74: 0 | T74: 0 | U74: 0 | V74: 0 | W74: 1 | X74: 0 | Y74: 0 | Z74: 0 | AA74: 0 | AB74: 0 | AC74: 0 | AD74: 1 | AE74: 0 | AF74: 0 | AG74: 0 | AH74: 0 | AI74: 0 | AJ74: 0 | AK74: 1
A75: =elements!A75 -> ac161 | B75: =testmat(6,1,1,elements!C75:'elements'!E75) -> 0.9211388588 | C75: =testmat(6,1,2,elements!C75:'elements'!E75) -> 0.6471923492 | D75: 0 | E75: 0 | F75: 0 | G75: 0 | H75: =testmat(6,2,1,elements!C75:'elements'!E75) -> -0.01620691453 | I75: =testmat(6,2,2,elements!C75:'elements'!E75) -> 0.9213482732 | J75: 0 | K75: 0 | L75: 0 | M75: 0 | N75: 0 | O75: 0 | P75: =B75 -> 0.9211388588 | Q75: =C75 -> 0.6471923492 | R75: 0 | S75: 0 | T75: 0 | U75: 0 | V75: =H75 -> -0.01620691453 | W75: =I75 -> 0.9213482732 | X75: 0 | Y75: 0 | Z75: 0 | AA75: 0 | AB75: 0 | AC75: 0 | AD75: =testmat(6,3,3,elements!C75:'elements'!E75) -> 0.9999024162 | AE75: =testmat(6,3,4,elements!C75:'elements'!E75) -> -0.0002072477175 | AF75: 0 | AG75: 0 | AH75: 0 | AI75: 0 | AJ75: =testmat(6,4,3,elements!C75:'elements'!E75) -> 0.7791232899 | AK75: =testmat(6,4,4,elements!C75:'elements'!E75) -> 0.8591010509
A76: =elements!A76 -> cud | B76: 1 | C76: =elements!B76 -> 0.4606 | D76: 0 | E76: 0 | F76: 0 | G76: 0 | H76: 0 | I76: 1 | J76: 0 | K76: 0 | L76: 0 | M76: 0 | N76: 0 | O76: 0 | P76: 1 | Q76: =elements!B76 -> 0.4606 | R76: 0 | S76: 0 | T76: 0 | U76: 0 | V76: 0 | W76: 1 | X76: 0 | Y76: 0 | Z76: 0 | AA76: 0 | AB76: 0 | AC76: 0 | AD76: 1 | AE76: 0 | AF76: 0 | AG76: 0 | AH76: 0 | AI76: 0 | AJ76: 0 | AK76: 1
A77: =elements!A77 -> ac171 | B77: =testmat(7,1,1,elements!C77:'elements'!E77) -> 0.9374863263 | C77: =testmat(7,1,2,elements!C77:'elements'!E77) -> 0.6577727855 | D77: 0 | E77: 0 | F77: 0 | G77: 0 | H77: =testmat(7,2,1,elements!C77:'elements'!E77) -> -0.01049332156 | I77: =testmat(7,2,2,elements!C77:'elements'!E77) -> 0.9375696919 | J77: 0 | K77: 0 | L77: 0 | M77: 0 | N77: 0 | O77: 0 | P77: =B77 -> 0.9374863263 | Q77: =C77 -> 0.6577727855 | R77: 0 | S77: 0 | T77: 0 | U77: 0 | V77: =H77 -> -0.01049332156 | W77: =I77 -> 0.9375696919 | X77: 0 | Y77: 0 | Z77: 0 | AA77: 0 | AB77: 0 | AC77: 0 | AD77: =testmat(7,3,3,elements!C77:'elements'!E77) -> 0.9999396445 | AE77: =testmat(7,3,4,elements!C77:'elements'!E77) -> -0.0001594447331 | AF77: 0 | AG77: 0 | AH77: 0 | AI77: 0 | AJ77: =testmat(7,4,3,elements!C77:'elements'!E77) -> 0.6314917757 | AK77: =testmat(7,4,4,elements!C77:'elements'!E77) -> 0.8858137632
A78: =elements!A78 -> cpd | B78: 1 | C78: =elements!B78 -> 0.05 | D78: 0 | E78: 0 | F78: 0 | G78: 0 | H78: 0 | I78: 1 | J78: 0 | K78: 0 | L78: 0 | M78: 0 | N78: 0 | O78: 0 | P78: 1 | Q78: =elements!B78 -> 0.05 | R78: 0 | S78: 0 | T78: 0 | U78: 0 | V78: 0 | W78: 1 | X78: 0 | Y78: 0 | Z78: 0 | AA78: 0 | AB78: 0 | AC78: 0 | AD78: 1 | AE78: 0 | AF78: 0 | AG78: 0 | AH78: 0 | AI78: 0 | AJ78: 0 | AK78: 1
A79: =elements!A79 -> ac181 | B79: =testmat(8,1,1,elements!C79:'elements'!E79) -> 0.9369278475 | C79: =testmat(8,1,2,elements!C79:'elements'!E79) -> 0.6574138253 | D79: 0 | E79: 0 | F79: 0 | G79: 0 | H79: =testmat(8,2,1,elements!C79:'elements'!E79) -> -0.01068632281 | I79: =testmat(8,2,2,elements!C79:'elements'!E79) -> 0.9370232337 | J79: 0 | K79: 0 | L79: 0 | M79: 0 | N79: 0 | O79: 0 | P79: =B79 -> 0.9369278475 | Q79: =C79 -> 0.6574138253 | R79: 0 | S79: 0 | T79: 0 | U79: 0 | V79: =H79 -> -0.01068632281 | W79: =I79 -> 0.9370232337 | X79: 0 | Y79: 0 | Z79: 0 | AA79: 0 | AB79: 0 | AC79: 0 | AD79: =testmat(8,3,3,elements!C79:'elements'!E79) -> 0.9999523231 | AE79: =testmat(8,3,4,elements!C79:'elements'!E79) -> -0.0001249556694 | AF79: 0 | AG79: 0 | AH79: 0 | AI79: 0 | AJ79: =testmat(8,4,3,elements!C79:'elements'!E79) -> 0.6365293655 | AK79: =testmat(8,4,4,elements!C79:'elements'!E79) -> 0.8849111497
A80: =elements!A80 -> d1 | B80: 1 | C80: =elements!B80 -> 1.3851 | D80: 0 | E80: 0 | F80: 0 | G80: 0 | H80: 0 | I80: 1 | J80: 0 | K80: 0 | L80: 0 | M80: 0 | N80: 0 | O80: 0 | P80: 1 | Q80: =elements!B80 -> 1.3851 | R80: 0 | S80: 0 | T80: 0 | U80: 0 | V80: 0 | W80: 1 | X80: 0 | Y80: 0 | Z80: 0 | AA80: 0 | AB80: 0 | AC80: 0 | AD80: 1 | AE80: 0 | AF80: 0 | AG80: 0 | AH80: 0 | AI80: 0 | AJ80: 0 | AK80: 1
A81: =elements!A81 -> QX1F03 | B81: =IF(elements!C81>0,COS(SQRT(elements!C81)*elements!B81),IF(elements!C81<0,COSH(SQRT(-elements!C81)*elements!B81),1)) -> 0.9667160641 | C81: =IF(elements!C81>0,SIN(SQRT(elements!C81)*elements!B81)/SQRT(elements!C81),IF(elements!C81<0,SINH(SQRT(-elements!C81)*elements!B81)/SQRT(-elements!C81),elements!B81)) -> 0.1483320809 | D81: 0 | E81: 0 | F81: 0 | G81: 0 | H81: =IF(elements!C81>0,-SQRT(elements!C81)*SIN(SQRT(elements!C81)*elements!B81),IF(elements!C81<0,SQRT(-elements!C81)*SINH(SQRT(-elements!C81)*elements!B81),0)) -> -0.4413074437 | I81: =IF(elements!C81>0,COS(SQRT(elements!C81)*elements!B81),IF(elements!C81<0,COSH(SQRT(-elements!C81)*elements!B81),1)) -> 0.9667160641 | J81: 0 | K81: 0 | L81: 0 | M81: 0 | N81: 0 | O81: 0 | P81: =IF(elements!C81<0,COS(SQRT(-elements!C81)*elements!B81),IF(elements!C81>0,COSH(SQRT(elements!C81)*elements!B81),1)) -> 1.033657356 | Q81: =IF(elements!C81<0,SIN(SQRT(-elements!C81)*elements!B81)/SQRT(-elements!C81),IF(elements!C81>0,SINH(SQRT(elements!C81)*elements!B81)/SQRT(elements!C81),elements!B81)) -> 0.1516791217 | R81: 0 | S81: 0 | T81: 0 | U81: 0 | V81: =IF(elements!C81<0,-SQRT(-elements!C81)*SIN(SQRT(-elements!C81)*elements!B81),IF(elements!C81>0,SQRT(elements!C81)*SINH(SQRT(elements!C81)*elements!B81),0)) -> 0.4512653301 | W81: =IF(elements!C81<0,COS(SQRT(-elements!C81)*elements!B81),IF(elements!C81>0,COSH(SQRT(elements!C81)*elements!B81),1)) -> 1.033657356 | X81: 0 | Y81: 0 | Z81: 0 | AA81: 0 | AB81: 0 | AC81: 0 | AD81: 1 | AE81: 0 | AF81: 0 | AG81: 0 | AH81: 0 | AI81: 0 | AJ81: 0 | AK81: 1
A82: =elements!A82 -> d2 | B82: 1 | C82: =elements!B82 -> 0.374 | D82: 0 | E82: 0 | F82: 0 | G82: 0 | H82: 0 | I82: 1 | J82: 0 | K82: 0 | L82: 0 | M82: 0 | N82: 0 | O82: 0 | P82: 1 | Q82: =elements!B82 -> 0.374 | R82: 0 | S82: 0 | T82: 0 | U82: 0 | V82: 0 | W82: 1 | X82: 0 | Y82: 0 | Z82: 0 | AA82: 0 | AB82: 0 | AC82: 0 | AD82: 1 | AE82: 0 | AF82: 0 | AG82: 0 | AH82: 0 | AI82: 0 | AJ82: 0 | AK82: 1
A83: =elements!A83 -> QX1F03A | B83: =IF(elements!C83>0,COS(SQRT(elements!C83)*elements!B83),IF(elements!C83<0,COSH(SQRT(-elements!C83)*elements!B83),1)) -> 1.064212381 | C83: =IF(elements!C83>0,SIN(SQRT(elements!C83)*elements!B83)/SQRT(elements!C83),IF(elements!C83<0,SINH(SQRT(-elements!C83)*elements!B83)/SQRT(-elements!C83),elements!B83)) -> 0.1531970811 | D83: 0 | E83: 0 | F83: 0 | G83: 0 | H83: =IF(elements!C83>0,-SQRT(elements!C83)*SIN(SQRT(elements!C83)*elements!B83),IF(elements!C83<0,SQRT(-elements!C83)*SINH(SQRT(-elements!C83)*elements!B83),0)) -> 0.8652122609 | I83: =IF(elements!C83>0,COS(SQRT(elements!C83)*elements!B83),IF(elements!C83<0,COSH(SQRT(-elements!C83)*elements!B83),1)) -> 1.064212381 | J83: 0 | K83: 0 | L83: 0 | M83: 0 | N83: 0 | O83: 0 | P83: =IF(elements!C83<0,COS(SQRT(-elements!C83)*elements!B83),IF(elements!C83>0,COSH(SQRT(elements!C83)*elements!B83),1)) -> 0.9371332692 | Q83: =IF(elements!C83<0,SIN(SQRT(-elements!C83)*elements!B83)/SQRT(-elements!C83),IF(elements!C83>0,SINH(SQRT(elements!C83)*elements!B83)/SQRT(elements!C83),elements!B83)) -> 0.1468432883 | R83: 0 | S83: 0 | T83: 0 | U83: 0 | V83: =IF(elements!C83<0,-SQRT(-elements!C83)*SIN(SQRT(-elements!C83)*elements!B83),IF(elements!C83>0,SQRT(elements!C83)*SINH(SQRT(elements!C83)*elements!B83),0)) -> -0.8293278996 | W83: =IF(elements!C83<0,COS(SQRT(-elements!C83)*elements!B83),IF(elements!C83>0,COSH(SQRT(elements!C83)*elements!B83),1)) -> 0.9371332692 | X83: 0 | Y83: 0 | Z83: 0 | AA83: 0 | AB83: 0 | AC83: 0 | AD83: 1 | AE83: 0 | AF83: 0 | AG83: 0 | AH83: 0 | AI83: 0 | AJ83: 0 | AK83: 1
A84: =elements!A84 -> d2 | B84: 1 | C84: =elements!B84 -> 0.374 | D84: 0 | E84: 0 | F84: 0 | G84: 0 | H84: 0 | I84: 1 | J84: 0 | K84: 0 | L84: 0 | M84: 0 | N84: 0 | O84: 0 | P84: 1 | Q84: =elements!B84 -> 0.374 | R84: 0 | S84: 0 | T84: 0 | U84: 0 | V84: 0 | W84: 1 | X84: 0 | Y84: 0 | Z84: 0 | AA84: 0 | AB84: 0 | AC84: 0 | AD84: 1 | AE84: 0 | AF84: 0 | AG84: 0 | AH84: 0 | AI84: 0 | AJ84: 0 | AK84: 1
A85: =elements!A85 -> QX1F03B | B85: =IF(elements!C85>0,COS(SQRT(elements!C85)*elements!B85),IF(elements!C85<0,COSH(SQRT(-elements!C85)*elements!B85),1)) -> 0.9667160641 | C85: =IF(elements!C85>0,SIN(SQRT(elements!C85)*elements!B85)/SQRT(elements!C85),IF(elements!C85<0,SINH(SQRT(-elements!C85)*elements!B85)/SQRT(-elements!C85),elements!B85)) -> 0.1483320809 | D85: 0 | E85: 0 | F85: 0 | G85: 0 | H85: =IF(elements!C85>0,-SQRT(elements!C85)*SIN(SQRT(elements!C85)*elements!B85),IF(elements!C85<0,SQRT(-elements!C85)*SINH(SQRT(-elements!C85)*elements!B85),0)) -> -0.4413074437 | I85: =IF(elements!C85>0,COS(SQRT(elements!C85)*elements!B85),IF(elements!C85<0,COSH(SQRT(-elements!C85)*elements!B85),1)) -> 0.9667160641 | J85: 0 | K85: 0 | L85: 0 | M85: 0 | N85: 0 | O85: 0 | P85: =IF(elements!C85<0,COS(SQRT(-elements!C85)*elements!B85),IF(elements!C85>0,COSH(SQRT(elements!C85)*elements!B85),1)) -> 1.033657356 | Q85: =IF(elements!C85<0,SIN(SQRT(-elements!C85)*elements!B85)/SQRT(-elements!C85),IF(elements!C85>0,SINH(SQRT(elements!C85)*elements!B85)/SQRT(elements!C85),elements!B85)) -> 0.1516791217 | R85: 0 | S85: 0 | T85: 0 | U85: 0 | V85: =IF(elements!C85<0,-SQRT(-elements!C85)*SIN(SQRT(-elements!C85)*elements!B85),IF(elements!C85>0,SQRT(elements!C85)*SINH(SQRT(elements!C85)*elements!B85),0)) -> 0.4512653301 | W85: =IF(elements!C85<0,COS(SQRT(-elements!C85)*elements!B85),IF(elements!C85>0,COSH(SQRT(elements!C85)*elements!B85),1)) -> 1.033657356 | X85: 0 | Y85: 0 | Z85: 0 | AA85: 0 | AB85: 0 | AC85: 0 | AD85: 1 | AE85: 0 | AF85: 0 | AG85: 0 | AH85: 0 | AI85: 0 | AJ85: 0 | AK85: 1
A86: =elements!A86 -> d1 | B86: 1 | C86: =elements!B86 -> 1.1851 | D86: 0 | E86: 0 | F86: 0 | G86: 0 | H86: 0 | I86: 1 | J86: 0 | K86: 0 | L86: 0 | M86: 0 | N86: 0 | O86: 0 | P86: 1 | Q86: =elements!B86 -> 1.1851 | R86: 0 | S86: 0 | T86: 0 | U86: 0 | V86: 0 | W86: 1 | X86: 0 | Y86: 0 | Z86: 0 | AA86: 0 | AB86: 0 | AC86: 0 | AD86: 1 | AE86: 0 | AF86: 0 | AG86: 0 | AH86: 0 | AI86: 0 | AJ86: 0 | AK86: 1
A87: =elements!A87 -> ac211 | B87: =testmat(9,1,1,elements!C87:'elements'!E87) -> 0.9081255541 | C87: =testmat(9,1,2,elements!C87:'elements'!E87) -> 0.6389280089 | D87: 0 | E87: 0 | F87: 0 | G87: 0 | H87: =testmat(9,2,1,elements!C87:'elements'!E87) -> -0.0215860441 | I87: =testmat(9,2,2,elements!C87:'elements'!E87) -> 0.9085431535 | J87: 0 | K87: 0 | L87: 0 | M87: 0 | N87: 0 | O87: 0 | P87: =B87 -> 0.9081255541 | Q87: =C87 -> 0.6389280089 | R87: 0 | S87: 0 | T87: 0 | U87: 0 | V87: =H87 -> -0.0215860441 | W87: =I87 -> 0.9085431535 | X87: 0 | Y87: 0 | Z87: 0 | AA87: 0 | AB87: 0 | AC87: 0 | AD87: =testmat(9,3,3,elements!C87:'elements'!E87) -> 0.9999506838 | AE87: =testmat(9,3,4,elements!C87:'elements'!E87) -> -9.110379098e-05 | AF87: 0 | AG87: 0 | AH87: 0 | AI87: 0 | AJ87: =testmat(9,4,3,elements!C87:'elements'!E87) -> 0.891474905 | AK87: =testmat(9,4,4,elements!C87:'elements'!E87) -> 0.8388233337
A88: =elements!A88 -> cpd | B88: 1 | C88: =elements!B88 -> 0.05 | D88: 0 | E88: 0 | F88: 0 | G88: 0 | H88: 0 | I88: 1 | J88: 0 | K88: 0 | L88: 0 | M88: 0 | N88: 0 | O88: 0 | P88: 1 | Q88: =elements!B88 -> 0.05 | R88: 0 | S88: 0 | T88: 0 | U88: 0 | V88: 0 | W88: 1 | X88: 0 | Y88: 0 | Z88: 0 | AA88: 0 | AB88: 0 | AC88: 0 | AD88: 1 | AE88: 0 | AF88: 0 | AG88: 0 | AH88: 0 | AI88: 0 | AJ88: 0 | AK88: 1
A89: =elements!A89 -> ac221 | B89: =testmat(10,1,1,elements!C89:'elements'!E89) -> 0.9203351295 | C89: =testmat(10,1,2,elements!C89:'elements'!E89) -> 0.6467039609 | D89: 0 | E89: 0 | F89: 0 | G89: 0 | H89: =testmat(10,2,1,elements!C89:'elements'!E89) -> -0.01659152892 | I89: =testmat(10,2,2,elements!C89:'elements'!E89) -> 0.9205969379 | J89: 0 | K89: 0 | L89: 0 | M89: 0 | N89: 0 | O89: 0 | P89: =B89 -> 0.9203351295 | Q89: =C89 -> 0.6467039609 | R89: 0 | S89: 0 | T89: 0 | U89: 0 | V89: =H89 -> -0.01659152892 | W89: =I89 -> 0.9205969379 | X89: 0 | Y89: 0 | Z89: 0 | AA89: 0 | AB89: 0 | AC89: 0 | AD89: =testmat(10,3,3,elements!C89:'elements'!E89) -> 0.9999686635 | AE89: =testmat(10,3,4,elements!C89:'elements'!E89) -> -6.605475159e-05 | AF89: 0 | AG89: 0 | AH89: 0 | AI89: 0 | AJ89: =testmat(10,4,3,elements!C89:'elements'!E89) -> 0.785666673 | AK89: =testmat(10,4,4,elements!C89:'elements'!E89) -> 0.8579624982
A90: =elements!A90 -> cud | B90: 1 | C90: =elements!B90 -> 0.4606 | D90: 0 | E90: 0 | F90: 0 | G90: 0 | H90: 0 | I90: 1 | J90: 0 | K90: 0 | L90: 0 | M90: 0 | N90: 0 | O90: 0 | P90: 1 | Q90: =elements!B90 -> 0.4606 | R90: 0 | S90: 0 | T90: 0 | U90: 0 | V90: 0 | W90: 1 | X90: 0 | Y90: 0 | Z90: 0 | AA90: 0 | AB90: 0 | AC90: 0 | AD90: 1 | AE90: 0 | AF90: 0 | AG90: 0 | AH90: 0 | AI90: 0 | AJ90: 0 | AK90: 1
A91: =elements!A91 -> ac231 | B91: =testmat(11,1,1,elements!C91:'elements'!E91) -> 0.946388669 | C91: =testmat(11,1,2,elements!C91:'elements'!E91) -> 0.6636210453 | D91: 0 | E91: 0 | F91: 0 | G91: 0 | H91: =testmat(11,2,1,elements!C91:'elements'!E91) -> -0.007878323853 | I91: =testmat(11,2,2,elements!C91:'elements'!E91) -> 0.9464464734 | J91: 0 | K91: 0 | L91: 0 | M91: 0 | N91: 0 | O91: 0 | P91: =B91 -> 0.946388669 | Q91: =C91 -> 0.6636210453 | R91: 0 | S91: 0 | T91: 0 | U91: 0 | V91: =H91 -> -0.007878323853 | W91: =I91 -> 0.9464464734 | X91: 0 | Y91: 0 | Z91: 0 | AA91: 0 | AB91: 0 | AC91: 0 | AD91: =testmat(11,3,3,elements!C91:'elements'!E91) -> 0.9999830217 | AE91: =testmat(11,3,4,elements!C91:'elements'!E91) -> -5.195574794e-05 | AF91: 0 | AG91: 0 | AH91: 0 | AI91: 0 | AJ91: =testmat(11,4,3,elements!C91:'elements'!E91) -> 0.5480677591 | AK91: =testmat(11,4,4,elements!C91:'elements'!E91) -> 0.9009212606
A92: =elements!A92 -> cpd | B92: 1 | C92: =elements!B92 -> 0.05 | D92: 0 | E92: 0 | F92: 0 | G92: 0 | H92: 0 | I92: 1 | J92: 0 | K92: 0 | L92: 0 | M92: 0 | N92: 0 | O92: 0 | P92: 1 | Q92: =elements!B92 -> 0.05 | R92: 0 | S92: 0 | T92: 0 | U92: 0 | V92: 0 | W92: 1 | X92: 0 | Y92: 0 | Z92: 0 | AA92: 0 | AB92: 0 | AC92: 0 | AD92: 1 | AE92: 0 | AF92: 0 | AG92: 0 | AH92: 0 | AI92: 0 | AJ92: 0 | AK92: 1
A93: =elements!A93 -> ac241 | B93: =testmat(12,1,1,elements!C93:'elements'!E93) -> 0.9367672394 | C93: =testmat(12,1,2,elements!C93:'elements'!E93) -> 0.6573218164 | D93: 0 | E93: 0 | F93: 0 | G93: 0 | H93: =testmat(12,2,1,elements!C93:'elements'!E93) -> -0.01077439137 | I93: =testmat(12,2,2,elements!C93:'elements'!E93) -> 0.9368841229 | J93: 0 | K93: 0 | L93: 0 | M93: 0 | N93: 0 | O93: 0 | P93: =B93 -> 0.9367672394 | Q93: =C93 -> 0.6573218164 | R93: 0 | S93: 0 | T93: 0 | U93: 0 | V93: =H93 -> -0.01077439137 | W93: =I93 -> 0.9368841229 | X93: 0 | Y93: 0 | Z93: 0 | AA93: 0 | AB93: 0 | AC93: 0 | AD93: =testmat(12,3,3,elements!C93:'elements'!E93) -> 0.999984284 | AE93: =testmat(12,3,4,elements!C93:'elements'!E93) -> -4.1136929e-05 | AF93: 0 | AG93: 0 | AH93: 0 | AI93: 0 | AJ93: =testmat(12,4,3,elements!C93:'elements'!E93) -> 0.6377420862 | AK93: =testmat(12,4,4,elements!C93:'elements'!E93) -> 0.8847122653
A94: =elements!A94 -> cud | B94: 1 | C94: =elements!B94 -> 0.4606 | D94: 0 | E94: 0 | F94: 0 | G94: 0 | H94: 0 | I94: 1 | J94: 0 | K94: 0 | L94: 0 | M94: 0 | N94: 0 | O94: 0 | P94: 1 | Q94: =elements!B94 -> 0.4606 | R94: 0 | S94: 0 | T94: 0 | U94: 0 | V94: 0 | W94: 1 | X94: 0 | Y94: 0 | Z94: 0 | AA94: 0 | AB94: 0 | AC94: 0 | AD94: 1 | AE94: 0 | AF94: 0 | AG94: 0 | AH94: 0 | AI94: 0 | AJ94: 0 | AK94: 1
A95: =elements!A95 -> ac251 | B95: =testmat(13,1,1,elements!C95:'elements'!E95) -> 0.9525535244 | C95: =testmat(13,1,2,elements!C95:'elements'!E95) -> 0.6676949841 | D95: 0 | E95: 0 | F95: 0 | G95: 0 | H95: =testmat(13,2,1,elements!C95:'elements'!E95) -> -0.006246994826 | I95: =testmat(13,2,2,elements!C95:'elements'!E95) -> 0.9525892385 | J95: 0 | K95: 0 | L95: 0 | M95: 0 | N95: 0 | O95: 0 | P95: =B95 -> 0.9525535244 | Q95: =C95 -> 0.6676949841 | R95: 0 | S95: 0 | T95: 0 | U95: 0 | V95: =H95 -> -0.006246994826 | W95: =I95 -> 0.9525892385 | X95: 0 | Y95: 0 | Z95: 0 | AA95: 0 | AB95: 0 | AC95: 0 | AD95: =testmat(13,3,3,elements!C95:'elements'!E95) -> 0.9999902453 | AE95: =testmat(13,3,4,elements!C95:'elements'!E95) -> -3.354975348e-05 | AF95: 0 | AG95: 0 | AH95: 0 | AI95: 0 | AJ95: =testmat(13,4,3,elements!C95:'elements'!E95) -> 0.4892604651 | AK95: =testmat(13,4,4,elements!C95:'elements'!E95) -> 0.911555801
A96: =elements!A96 -> cpd | B96: 1 | C96: =elements!B96 -> 0.05 | D96: 0 | E96: 0 | F96: 0 | G96: 0 | H96: 0 | I96: 1 | J96: 0 | K96: 0 | L96: 0 | M96: 0 | N96: 0 | O96: 0 | P96: 1 | Q96: =elements!B96 -> 0.05 | R96: 0 | S96: 0 | T96: 0 | U96: 0 | V96: 0 | W96: 1 | X96: 0 | Y96: 0 | Z96: 0 | AA96: 0 | AB96: 0 | AC96: 0 | AD96: 1 | AE96: 0 | AF96: 0 | AG96: 0 | AH96: 0 | AI96: 0 | AJ96: 0 | AK96: 1
A97: =elements!A97 -> ac261 | B97: =testmat(14,1,1,elements!C97:'elements'!E97) -> 0.9563892388 | C97: =testmat(14,1,2,elements!C97:'elements'!E97) -> 0.6702427671 | D97: 0 | E97: 0 | F97: 0 | G97: 0 | H97: =testmat(14,2,1,elements!C97:'elements'!E97) -> -0.005317299055 | I97: =testmat(14,2,2,elements!C97:'elements'!E97) -> 0.9564134942 | J97: 0 | K97: 0 | L97: 0 | M97: 0 | N97: 0 | O97: 0 | P97: =B97 -> 0.9563892388 | Q97: =C97 -> 0.6702427671 | R97: 0 | S97: 0 | T97: 0 | U97: 0 | V97: =H97 -> -0.005317299055 | W97: =I97 -> 0.9564134942 | X97: 0 | Y97: 0 | Z97: 0 | AA97: 0 | AB97: 0 | AC97: 0 | AD97: =testmat(14,3,3,elements!C97:'elements'!E97) -> 0.9999924476 | AE97: =testmat(14,3,4,elements!C97:'elements'!E97) -> -2.816384221e-05 | AF97: 0 | AG97: 0 | AH97: 0 | AI97: 0 | AJ97: =testmat(14,4,3,elements!C97:'elements'!E97) -> 0.4521698805 | AK97: =testmat(14,4,4,elements!C97:'elements'!E97) -> 0.9182616551
A98: =elements!A98 -> cud | B98: 1 | C98: =elements!B98 -> 0.4606 | D98: 0 | E98: 0 | F98: 0 | G98: 0 | H98: 0 | I98: 1 | J98: 0 | K98: 0 | L98: 0 | M98: 0 | N98: 0 | O98: 0 | P98: 1 | Q98: =elements!B98 -> 0.4606 | R98: 0 | S98: 0 | T98: 0 | U98: 0 | V98: 0 | W98: 1 | X98: 0 | Y98: 0 | Z98: 0 | AA98: 0 | AB98: 0 | AC98: 0 | AD98: 1 | AE98: 0 | AF98: 0 | AG98: 0 | AH98: 0 | AI98: 0 | AJ98: 0 | AK98: 1
A99: =elements!A99 -> ac271 | B99: =testmat(15,1,1,elements!C99:'elements'!E99) -> 0.9518627901 | C99: =testmat(15,1,2,elements!C99:'elements'!E99) -> 0.6672385855 | D99: 0 | E99: 0 | F99: 0 | G99: 0 | H99: =testmat(15,2,1,elements!C99:'elements'!E99) -> -0.006425417372 | I99: =testmat(15,2,2,elements!C99:'elements'!E99) -> 0.9519028782 | J99: 0 | K99: 0 | L99: 0 | M99: 0 | N99: 0 | O99: 0 | P99: =B99 -> 0.9518627901 | Q99: =C99 -> 0.6672385855 | R99: 0 | S99: 0 | T99: 0 | U99: 0 | V99: =H99 -> -0.006425417372 | W99: =I99 -> 0.9519028782 | X99: 0 | Y99: 0 | Z99: 0 | AA99: 0 | AB99: 0 | AC99: 0 | AD99: =testmat(15,3,3,elements!C99:'elements'!E99) -> 0.9999930834 | AE99: =testmat(15,3,4,elements!C99:'elements'!E99) -> -2.346487121e-05 | AF99: 0 | AG99: 0 | AH99: 0 | AI99: 0 | AJ99: =testmat(15,4,3,elements!C99:'elements'!E99) -> 0.4958694222 | AK99: =testmat(15,4,4,elements!C99:'elements'!E99) -> 0.910362877
A100: =elements!A100 -> cpd | B100: 1 | C100: =elements!B100 -> 0.05 | D100: 0 | E100: 0 | F100: 0 | G100: 0 | H100: 0 | I100: 1 | J100: 0 | K100: 0 | L100: 0 | M100: 0 | N100: 0 | O100: 0 | P100: 1 | Q100: =elements!B100 -> 0.05 | R100: 0 | S100: 0 | T100: 0 | U100: 0 | V100: 0 | W100: 1 | X100: 0 | Y100: 0 | Z100: 0 | AA100: 0 | AB100: 0 | AC100: 0 | AD100: 1 | AE100: 0 | AF100: 0 | AG100: 0 | AH100: 0 | AI100: 0 | AJ100: 0 | AK100: 1
A101: =elements!A101 -> ac281 | B101: =testmat(16,1,1,elements!C101:'elements'!E101) -> 0.9592289004 | C101: =testmat(16,1,2,elements!C101:'elements'!E101) -> 0.6721362806 | D101: 0 | E101: 0 | F101: 0 | G101: 0 | H101: =testmat(16,2,1,elements!C101:'elements'!E101) -> -0.00467465964 | I101: =testmat(16,2,2,elements!C101:'elements'!E101) -> 0.9592469257 | J101: 0 | K101: 0 | L101: 0 | M101: 0 | N101: 0 | O101: 0 | P101: =B101 -> 0.9592289004 | Q101: =C101 -> 0.6721362806 | R101: 0 | S101: 0 | T101: 0 | U101: 0 | V101: =H101 -> -0.00467465964 | W101: =I101 -> 0.9592469257 | X101: 0 | Y101: 0 | Z101: 0 | AA101: 0 | AB101: 0 | AC101: 0 | AD101: =testmat(16,3,3,elements!C101:'elements'!E101) -> 0.9999950159 | AE101: =testmat(16,3,4,elements!C101:'elements'!E101) -> -1.983218178e-05 | AF101: 0 | AG101: 0 | AH101: 0 | AI101: 0 | AJ101: =testmat(16,4,3,elements!C101:'elements'!E101) -> 0.424440442 | AK101: =testmat(16,4,4,elements!C101:'elements'!E101) -> 0.9232755663
A102: =elements!A102 -> d1 | B102: 1 | C102: =elements!B102 -> 1.1851 | D102: 0 | E102: 0 | F102: 0 | G102: 0 | H102: 0 | I102: 1 | J102: 0 | K102: 0 | L102: 0 | M102: 0 | N102: 0 | O102: 0 | P102: 1 | Q102: =elements!B102 -> 1.1851 | R102: 0 | S102: 0 | T102: 0 | U102: 0 | V102: 0 | W102: 1 | X102: 0 | Y102: 0 | Z102: 0 | AA102: 0 | AB102: 0 | AC102: 0 | AD102: 1 | AE102: 0 | AF102: 0 | AG102: 0 | AH102: 0 | AI102: 0 | AJ102: 0 | AK102: 1
A103: =elements!A103 -> QX1F04 | B103: =IF(elements!C103>0,COS(SQRT(elements!C103)*elements!B103),IF(elements!C103<0,COSH(SQRT(-elements!C103)*elements!B103),1)) -> 1.016071049 | C103: =IF(elements!C103>0,SIN(SQRT(elements!C103)*elements!B103)/SQRT(elements!C103),IF(elements!C103<0,SINH(SQRT(-elements!C103)*elements!B103)/SQRT(-elements!C103),elements!B103)) -> 0.1508026948 | D103: 0 | E103: 0 | F103: 0 | G103: 0 | H103: =IF(elements!C103>0,-SQRT(elements!C103)*SIN(SQRT(elements!C103)*elements!B103),IF(elements!C103<0,SQRT(-elements!C103)*SINH(SQRT(-elements!C103)*elements!B103),0)) -> 0.2148527631 | I103: =IF(elements!C103>0,COS(SQRT(elements!C103)*elements!B103),IF(elements!C103<0,COSH(SQRT(-elements!C103)*elements!B103),1)) -> 1.016071049 | J103: 0 | K103: 0 | L103: 0 | M103: 0 | N103: 0 | O103: 0 | P103: =IF(elements!C103<0,COS(SQRT(-elements!C103)*elements!B103),IF(elements!C103>0,COSH(SQRT(elements!C103)*elements!B103),1)) -> 0.9840145858 | Q103: =IF(elements!C103<0,SIN(SQRT(-elements!C103)*elements!B103)/SQRT(-elements!C103),IF(elements!C103>0,SINH(SQRT(elements!C103)*elements!B103)/SQRT(elements!C103),elements!B103)) -> 0.1491998743 | R103: 0 | S103: 0 | T103: 0 | U103: 0 | V103: =IF(elements!C103<0,-SQRT(-elements!C103)*SIN(SQRT(-elements!C103)*elements!B103),IF(elements!C103>0,SQRT(elements!C103)*SINH(SQRT(elements!C103)*elements!B103),0)) -> -0.2125691804 | W103: =IF(elements!C103<0,COS(SQRT(-elements!C103)*elements!B103),IF(elements!C103>0,COSH(SQRT(elements!C103)*elements!B103),1)) -> 0.9840145858 | X103: 0 | Y103: 0 | Z103: 0 | AA103: 0 | AB103: 0 | AC103: 0 | AD103: 1 | AE103: 0 | AF103: 0 | AG103: 0 | AH103: 0 | AI103: 0 | AJ103: 0 | AK103: 1
A104: =elements!A104 -> d2 | B104: 1 | C104: =elements!B104 -> 0.374 | D104: 0 | E104: 0 | F104: 0 | G104: 0 | H104: 0 | I104: 1 | J104: 0 | K104: 0 | L104: 0 | M104: 0 | N104: 0 | O104: 0 | P104: 1 | Q104: =elements!B104 -> 0.374 | R104: 0 | S104: 0 | T104: 0 | U104: 0 | V104: 0 | W104: 1 | X104: 0 | Y104: 0 | Z104: 0 | AA104: 0 | AB104: 0 | AC104: 0 | AD104: 1 | AE104: 0 | AF104: 0 | AG104: 0 | AH104: 0 | AI104: 0 | AJ104: 0 | AK104: 1
A105: =elements!A105 -> QX1F04A | B105: =IF(elements!C105>0,COS(SQRT(elements!C105)*elements!B105),IF(elements!C105<0,COSH(SQRT(-elements!C105)*elements!B105),1)) -> 0.9703807522 | C105: =IF(elements!C105>0,SIN(SQRT(elements!C105)*elements!B105)/SQRT(elements!C105),IF(elements!C105<0,SINH(SQRT(-elements!C105)*elements!B105)/SQRT(-elements!C105),elements!B105)) -> 0.1485160925 | D105: 0 | E105: 0 | F105: 0 | G105: 0 | H105: =IF(elements!C105>0,-SQRT(elements!C105)*SIN(SQRT(elements!C105)*elements!B105),IF(elements!C105<0,SQRT(-elements!C105)*SINH(SQRT(-elements!C105)*elements!B105),0)) -> -0.3929621013 | I105: =IF(elements!C105>0,COS(SQRT(elements!C105)*elements!B105),IF(elements!C105<0,COSH(SQRT(-elements!C105)*elements!B105),1)) -> 0.9703807522 | J105: 0 | K105: 0 | L105: 0 | M105: 0 | N105: 0 | O105: 0 | P105: =IF(elements!C105<0,COS(SQRT(-elements!C105)*elements!B105),IF(elements!C105>0,COSH(SQRT(elements!C105)*elements!B105),1)) -> 1.029914599 | Q105: =IF(elements!C105<0,SIN(SQRT(-elements!C105)*elements!B105)/SQRT(-elements!C105),IF(elements!C105>0,SINH(SQRT(elements!C105)*elements!B105)/SQRT(elements!C105),elements!B105)) -> 0.1514927681 | R105: 0 | S105: 0 | T105: 0 | U105: 0 | V105: =IF(elements!C105<0,-SQRT(-elements!C105)*SIN(SQRT(-elements!C105)*elements!B105),IF(elements!C105>0,SQRT(elements!C105)*SINH(SQRT(elements!C105)*elements!B105),0)) -> 0.4008381549 | W105: =IF(elements!C105<0,COS(SQRT(-elements!C105)*elements!B105),IF(elements!C105>0,COSH(SQRT(elements!C105)*elements!B105),1)) -> 1.029914599 | X105: 0 | Y105: 0 | Z105: 0 | AA105: 0 | AB105: 0 | AC105: 0 | AD105: 1 | AE105: 0 | AF105: 0 | AG105: 0 | AH105: 0 | AI105: 0 | AJ105: 0 | AK105: 1
A106: =elements!A106 -> d2 | B106: 1 | C106: =elements!B106 -> 0.374 | D106: 0 | E106: 0 | F106: 0 | G106: 0 | H106: 0 | I106: 1 | J106: 0 | K106: 0 | L106: 0 | M106: 0 | N106: 0 | O106: 0 | P106: 1 | Q106: =elements!B106 -> 0.374 | R106: 0 | S106: 0 | T106: 0 | U106: 0 | V106: 0 | W106: 1 | X106: 0 | Y106: 0 | Z106: 0 | AA106: 0 | AB106: 0 | AC106: 0 | AD106: 1 | AE106: 0 | AF106: 0 | AG106: 0 | AH106: 0 | AI106: 0 | AJ106: 0 | AK106: 1
A107: =elements!A107 -> QX1F04B | B107: =IF(elements!C107>0,COS(SQRT(elements!C107)*elements!B107),IF(elements!C107<0,COSH(SQRT(-elements!C107)*elements!B107),1)) -> 1.016071049 | C107: =IF(elements!C107>0,SIN(SQRT(elements!C107)*elements!B107)/SQRT(elements!C107),IF(elements!C107<0,SINH(SQRT(-elements!C107)*elements!B107)/SQRT(-elements!C107),elements!B107)) -> 0.1508026948 | D107: 0 | E107: 0 | F107: 0 | G107: 0 | H107: =IF(elements!C107>0,-SQRT(elements!C107)*SIN(SQRT(elements!C107)*elements!B107),IF(elements!C107<0,SQRT(-elements!C107)*SINH(SQRT(-elements!C107)*elements!B107),0)) -> 0.2148527631 | I107: =IF(elements!C107>0,COS(SQRT(elements!C107)*elements!B107),IF(elements!C107<0,COSH(SQRT(-elements!C107)*elements!B107),1)) -> 1.016071049 | J107: 0 | K107: 0 | L107: 0 | M107: 0 | N107: 0 | O107: 0 | P107: =IF(elements!C107<0,COS(SQRT(-elements!C107)*elements!B107),IF(elements!C107>0,COSH(SQRT(elements!C107)*elements!B107),1)) -> 0.9840145858 | Q107: =IF(elements!C107<0,SIN(SQRT(-elements!C107)*elements!B107)/SQRT(-elements!C107),IF(elements!C107>0,SINH(SQRT(elements!C107)*elements!B107)/SQRT(elements!C107),elements!B107)) -> 0.1491998743 | R107: 0 | S107: 0 | T107: 0 | U107: 0 | V107: =IF(elements!C107<0,-SQRT(-elements!C107)*SIN(SQRT(-elements!C107)*elements!B107),IF(elements!C107>0,SQRT(elements!C107)*SINH(SQRT(elements!C107)*elements!B107),0)) -> -0.2125691804 | W107: =IF(elements!C107<0,COS(SQRT(-elements!C107)*elements!B107),IF(elements!C107>0,COSH(SQRT(elements!C107)*elements!B107),1)) -> 0.9840145858 | X107: 0 | Y107: 0 | Z107: 0 | AA107: 0 | AB107: 0 | AC107: 0 | AD107: 1 | AE107: 0 | AF107: 0 | AG107: 0 | AH107: 0 | AI107: 0 | AJ107: 0 | AK107: 1
A108: =elements!A108 -> d1 | B108: 1 | C108: =elements!B108 -> 1.3851 | D108: 0 | E108: 0 | F108: 0 | G108: 0 | H108: 0 | I108: 1 | J108: 0 | K108: 0 | L108: 0 | M108: 0 | N108: 0 | O108: 0 | P108: 1 | Q108: =elements!B108 -> 1.3851 | R108: 0 | S108: 0 | T108: 0 | U108: 0 | V108: 0 | W108: 1 | X108: 0 | Y108: 0 | Z108: 0 | AA108: 0 | AB108: 0 | AC108: 0 | AD108: 1 | AE108: 0 | AF108: 0 | AG108: 0 | AH108: 0 | AI108: 0 | AJ108: 0 | AK108: 1
A109: =elements!A109 -> ac311 | B109: =testmat(17,1,1,elements!C109:'elements'!E109) -> 0.9796609656 | C109: =testmat(17,1,2,elements!C109:'elements'!E109) -> 0.6859345608 | D109: 0 | E109: 0 | F109: 0 | G109: 0 | H109: =testmat(17,2,1,elements!C109:'elements'!E109) -> -0.001209651539 | I109: =testmat(17,2,2,elements!C109:'elements'!E109) -> 0.9796569085 | J109: 0 | K109: 0 | L109: 0 | M109: 0 | N109: 0 | O109: 0 | P109: =B109 -> 0.9796609656 | Q109: =C109 -> 0.6859345608 | R109: 0 | S109: 0 | T109: 0 | U109: 0 | V109: =H109 -> -0.001209651539 | W109: =I109 -> 0.9796569085 | X109: 0 | Y109: 0 | Z109: 0 | AA109: 0 | AB109: 0 | AC109: 0 | AD109: =testmat(17,3,3,elements!C109:'elements'!E109) -> 0.9999977163 | AE109: =testmat(17,3,4,elements!C109:'elements'!E109) -> -1.788052493e-05 | AF109: 0 | AG109: 0 | AH109: 0 | AI109: 0 | AJ109: =testmat(17,4,3,elements!C109:'elements'!E109) -> 0.2181858186 | AK109: =testmat(17,4,4,elements!C109:'elements'!E109) -> 0.9605596671
A110: =elements!A110 -> cpd | B110: 1 | C110: =elements!B110 -> 0.05 | D110: 0 | E110: 0 | F110: 0 | G110: 0 | H110: 0 | I110: 1 | J110: 0 | K110: 0 | L110: 0 | M110: 0 | N110: 0 | O110: 0 | P110: 1 | Q110: =elements!B110 -> 0.05 | R110: 0 | S110: 0 | T110: 0 | U110: 0 | V110: 0 | W110: 1 | X110: 0 | Y110: 0 | Z110: 0 | AA110: 0 | AB110: 0 | AC110: 0 | AD110: 1 | AE110: 0 | AF110: 0 | AG110: 0 | AH110: 0 | AI110: 0 | AJ110: 0 | AK110: 1
A111: =elements!A111 -> ac321 | B111: =testmat(18,1,1,elements!C111:'elements'!E111) -> 0.9780534352 | C111: =testmat(18,1,2,elements!C111:'elements'!E111) -> 0.684837304 | D111: 0 | E111: 0 | F111: 0 | G111: 0 | H111: =testmat(18,2,1,elements!C111:'elements'!E111) -> -0.001404383393 | I111: =testmat(18,2,2,elements!C111:'elements'!E111) -> 0.9780497089 | J111: 0 | K111: 0 | L111: 0 | M111: 0 | N111: 0 | O111: 0 | P111: =B111 -> 0.9780534352 | Q111: =C111 -> 0.684837304 | R111: 0 | S111: 0 | T111: 0 | U111: 0 | V111: =H111 -> -0.001404383393 | W111: =I111 -> 0.9780497089 | X111: 0 | Y111: 0 | Z111: 0 | AA111: 0 | AB111: 0 | AC111: 0 | AD111: =testmat(18,3,3,elements!C111:'elements'!E111) -> 0.9999977399 | AE111: =testmat(18,3,4,elements!C111:'elements'!E111) -> -1.642391307e-05 | AF111: 0 | AG111: 0 | AH111: 0 | AI111: 0 | AJ111: =testmat(18,4,3,elements!C111:'elements'!E111) -> 0.2348638908 | AK111: =testmat(18,4,4,elements!C111:'elements'!E111) -> 0.9575449585
A112: =elements!A112 -> cud | B112: 1 | C112: =elements!B112 -> 0.4606 | D112: 0 | E112: 0 | F112: 0 | G112: 0 | H112: 0 | I112: 1 | J112: 0 | K112: 0 | L112: 0 | M112: 0 | N112: 0 | O112: 0 | P112: 1 | Q112: =elements!B112 -> 0.4606 | R112: 0 | S112: 0 | T112: 0 | U112: 0 | V112: 0 | W112: 1 | X112: 0 | Y112: 0 | Z112: 0 | AA112: 0 | AB112: 0 | AC112: 0 | AD112: 1 | AE112: 0 | AF112: 0 | AG112: 0 | AH112: 0 | AI112: 0 | AJ112: 0 | AK112: 1
A113: =elements!A113 -> ac331 | B113: =testmat(19,1,1,elements!C113:'elements'!E113) -> 0.9788745284 | C113: =testmat(19,1,2,elements!C113:'elements'!E113) -> 0.6853976081 | D113: 0 | E113: 0 | F113: 0 | G113: 0 | H113: =testmat(19,2,1,elements!C113:'elements'!E113) -> -0.001303511176 | I113: =testmat(19,2,2,elements!C113:'elements'!E113) -> 0.9788707737 | J113: 0 | K113: 0 | L113: 0 | M113: 0 | N113: 0 | O113: 0 | P113: =B113 -> 0.9788745284 | Q113: =C113 -> 0.6853976081 | R113: 0 | S113: 0 | T113: 0 | U113: 0 | V113: =H113 -> -0.001303511176 | W113: =I113 -> 0.9788707737 | X113: 0 | Y113: 0 | Z113: 0 | AA113: 0 | AB113: 0 | AC113: 0 | AD113: =testmat(19,3,3,elements!C113:'elements'!E113) -> 0.9999979992 | AE113: =testmat(19,3,4,elements!C113:'elements'!E113) -> -1.509368335e-05 | AF113: 0 | AG113: 0 | AH113: 0 | AI113: 0 | AJ113: =testmat(19,4,3,elements!C113:'elements'!E113) -> 0.2263526314 | AK113: =testmat(19,4,4,elements!C113:'elements'!E113) -> 0.9590835929
A114: =elements!A114 -> cpd | B114: 1 | C114: =elements!B114 -> 0.05 | D114: 0 | E114: 0 | F114: 0 | G114: 0 | H114: 0 | I114: 1 | J114: 0 | K114: 0 | L114: 0 | M114: 0 | N114: 0 | O114: 0 | P114: 1 | Q114: =elements!B114 -> 0.05 | R114: 0 | S114: 0 | T114: 0 | U114: 0 | V114: 0 | W114: 1 | X114: 0 | Y114: 0 | Z114: 0 | AA114: 0 | AB114: 0 | AC114: 0 | AD114: 1 | AE114: 0 | AF114: 0 | AG114: 0 | AH114: 0 | AI114: 0 | AJ114: 0 | AK114: 1
A115: =elements!A115 -> ac341 | B115: =testmat(20,1,1,elements!C115:'elements'!E115) -> 0.9823084091 | C115: =testmat(20,1,2,elements!C115:'elements'!E115) -> 0.6877464132 | D115: 0 | E115: 0 | F115: 0 | G115: 0 | H115: =testmat(20,2,1,elements!C115:'elements'!E115) -> -0.0009203126705 | I115: =testmat(20,2,2,elements!C115:'elements'!E115) -> 0.9823046199 | J115: 0 | K115: 0 | L115: 0 | M115: 0 | N115: 0 | O115: 0 | P115: =B115 -> 0.9823084091 | Q115: =C115 -> 0.6877464132 | R115: 0 | S115: 0 | T115: 0 | U115: 0 | V115: =H115 -> -0.0009203126705 | W115: =I115 -> 0.9823046199 | X115: 0 | Y115: 0 | Z115: 0 | AA115: 0 | AB115: 0 | AC115: 0 | AD115: =testmat(20,3,3,elements!C115:'elements'!E115) -> 0.9999984389 | AE115: =testmat(20,3,4,elements!C115:'elements'!E115) -> -1.401853118e-05 | AF115: 0 | AG115: 0 | AH115: 0 | AI115: 0 | AJ115: =testmat(20,4,3,elements!C115:'elements'!E115) -> 0.1905369007 | AK115: =testmat(20,4,4,elements!C115:'elements'!E115) -> 0.9655578664
A116: =elements!A116 -> cud | B116: 1 | C116: =elements!B116 -> 0.4606 | D116: 0 | E116: 0 | F116: 0 | G116: 0 | H116: 0 | I116: 1 | J116: 0 | K116: 0 | L116: 0 | M116: 0 | N116: 0 | O116: 0 | P116: 1 | Q116: =elements!B116 -> 0.4606 | R116: 0 | S116: 0 | T116: 0 | U116: 0 | V116: 0 | W116: 1 | X116: 0 | Y116: 0 | Z116: 0 | AA116: 0 | AB116: 0 | AC116: 0 | AD116: 1 | AE116: 0 | AF116: 0 | AG116: 0 | AH116: 0 | AI116: 0 | AJ116: 0 | AK116: 1
A117: =elements!A117 -> ac351 | B117: =testmat(21,1,1,elements!C117:'elements'!E117) -> 0.9801910213 | C117: =testmat(21,1,2,elements!C117:'elements'!E117) -> 0.6862970716 | D117: 0 | E117: 0 | F117: 0 | G117: 0 | H117: =testmat(21,2,1,elements!C117:'elements'!E117) -> -0.00114930357 | I117: =testmat(21,2,2,elements!C117:'elements'!E117) -> 0.9801872978 | J117: 0 | K117: 0 | L117: 0 | M117: 0 | N117: 0 | O117: 0 | P117: =B117 -> 0.9801910213 | Q117: =C117 -> 0.6862970716 | R117: 0 | S117: 0 | T117: 0 | U117: 0 | V117: =H117 -> -0.00114930357 | W117: =I117 -> 0.9801872978 | X117: 0 | Y117: 0 | Z117: 0 | AA117: 0 | AB117: 0 | AC117: 0 | AD117: =testmat(21,3,3,elements!C117:'elements'!E117) -> 0.9999983833 | AE117: =testmat(21,3,4,elements!C117:'elements'!E117) -> -1.299188598e-05 | AF117: 0 | AG117: 0 | AH117: 0 | AI117: 0 | AJ117: =testmat(21,4,3,elements!C117:'elements'!E117) -> 0.2126629481 | AK117: =testmat(21,4,4,elements!C117:'elements'!E117) -> 0.9615583438
A118: =elements!A118 -> cpd | B118: 1 | C118: =elements!B118 -> 0.05 | D118: 0 | E118: 0 | F118: 0 | G118: 0 | H118: 0 | I118: 1 | J118: 0 | K118: 0 | L118: 0 | M118: 0 | N118: 0 | O118: 0 | P118: 1 | Q118: =elements!B118 -> 0.05 | R118: 0 | S118: 0 | T118: 0 | U118: 0 | V118: 0 | W118: 1 | X118: 0 | Y118: 0 | Z118: 0 | AA118: 0 | AB118: 0 | AC118: 0 | AD118: 1 | AE118: 0 | AF118: 0 | AG118: 0 | AH118: 0 | AI118: 0 | AJ118: 0 | AK118: 1
A119: =elements!A119 -> ac361 | B119: =testmat(22,1,1,elements!C119:'elements'!E119) -> 0.9780792169 | C119: =testmat(22,1,2,elements!C119:'elements'!E119) -> 0.6848551236 | D119: 0 | E119: 0 | F119: 0 | G119: 0 | H119: =testmat(22,2,1,elements!C119:'elements'!E119) -> -0.001401894351 | I119: =testmat(22,2,2,elements!C119:'elements'!E119) -> 0.9780758562 | J119: 0 | K119: 0 | L119: 0 | M119: 0 | N119: 0 | O119: 0 | P119: =B119 -> 0.9780792169 | Q119: =C119 -> 0.6848551236 | R119: 0 | S119: 0 | T119: 0 | U119: 0 | V119: =H119 -> -0.001401894351 | W119: =I119 -> 0.9780758562 | X119: 0 | Y119: 0 | Z119: 0 | AA119: 0 | AB119: 0 | AC119: 0 | AD119: =testmat(22,3,3,elements!C119:'elements'!E119) -> 0.9999983588 | AE119: =testmat(22,3,4,elements!C119:'elements'!E119) -> -1.194140987e-05 | AF119: 0 | AG119: 0 | AH119: 0 | AI119: 0 | AJ119: =testmat(22,4,3,elements!C119:'elements'!E119) -> 0.2345915262 | AK119: =testmat(22,4,4,elements!C119:'elements'!E119) -> 0.9575945323
A120: =elements!A120 -> cud | B120: 1 | C120: =elements!B120 -> 0.4606 | D120: 0 | E120: 0 | F120: 0 | G120: 0 | H120: 0 | I120: 1 | J120: 0 | K120: 0 | L120: 0 | M120: 0 | N120: 0 | O120: 0 | P120: 1 | Q120: =elements!B120 -> 0.4606 | R120: 0 | S120: 0 | T120: 0 | U120: 0 | V120: 0 | W120: 1 | X120: 0 | Y120: 0 | Z120: 0 | AA120: 0 | AB120: 0 | AC120: 0 | AD120: 1 | AE120: 0 | AF120: 0 | AG120: 0 | AH120: 0 | AI120: 0 | AJ120: 0 | AK120: 1
A121: =elements!A121 -> ac371 | B121: =testmat(23,1,1,elements!C121:'elements'!E121) -> 0.9809113869 | C121: =testmat(23,1,2,elements!C121:'elements'!E121) -> 0.6867898608 | D121: 0 | E121: 0 | F121: 0 | G121: 0 | H121: =testmat(23,2,1,elements!C121:'elements'!E121) -> -0.001068988444 | I121: =testmat(23,2,2,elements!C121:'elements'!E121) -> 0.980907776 | J121: 0 | K121: 0 | L121: 0 | M121: 0 | N121: 0 | O121: 0 | P121: =B121 -> 0.9809113869 | Q121: =C121 -> 0.6867898608 | R121: 0 | S121: 0 | T121: 0 | U121: 0 | V121: =H121 -> -0.001068988444 | W121: =I121 -> 0.980907776 | X121: 0 | Y121: 0 | Z121: 0 | AA121: 0 | AB121: 0 | AC121: 0 | AD121: =testmat(23,3,3,elements!C121:'elements'!E121) -> 0.9999986756 | AE121: =testmat(23,3,4,elements!C121:'elements'!E121) -> -1.103747756e-05 | AF121: 0 | AG121: 0 | AH121: 0 | AI121: 0 | AJ121: =testmat(23,4,3,elements!C121:'elements'!E121) -> 0.2051486246 | AK121: =testmat(23,4,4,elements!C121:'elements'!E121) -> 0.9629167884
A122: =elements!A122 -> cpd | B122: 1 | C122: =elements!B122 -> 0.05 | D122: 0 | E122: 0 | F122: 0 | G122: 0 | H122: 0 | I122: 1 | J122: 0 | K122: 0 | L122: 0 | M122: 0 | N122: 0 | O122: 0 | P122: 1 | Q122: =elements!B122 -> 0.05 | R122: 0 | S122: 0 | T122: 0 | U122: 0 | V122: 0 | W122: 1 | X122: 0 | Y122: 0 | Z122: 0 | AA122: 0 | AB122: 0 | AC122: 0 | AD122: 1 | AE122: 0 | AF122: 0 | AG122: 0 | AH122: 0 | AI122: 0 | AJ122: 0 | AK122: 1
A123: =elements!A123 -> ac381 | B123: =testmat(24,1,1,elements!C123:'elements'!E123) -> 0.9808734619 | C123: =testmat(24,1,2,elements!C123:'elements'!E123) -> 0.6867639487 | D123: 0 | E123: 0 | F123: 0 | G123: 0 | H123: =testmat(24,2,1,elements!C123:'elements'!E123) -> -0.001073278519 | I123: =testmat(24,2,2,elements!C123:'elements'!E123) -> 0.98086991 | J123: 0 | K123: 0 | L123: 0 | M123: 0 | N123: 0 | O123: 0 | P123: =B123 -> 0.9808734619 | Q123: =C123 -> 0.6867639487 | R123: 0 | S123: 0 | T123: 0 | U123: 0 | V123: =H123 -> -0.001073278519 | W123: =I123 -> 0.98086991 | X123: 0 | Y123: 0 | Z123: 0 | AA123: 0 | AB123: 0 | AC123: 0 | AD123: =testmat(24,3,3,elements!C123:'elements'!E123) -> 0.9999987697 | AE123: =testmat(24,3,4,elements!C123:'elements'!E123) -> -1.023298932e-05 | AF123: 0 | AG123: 0 | AH123: 0 | AI123: 0 | AJ123: =testmat(24,4,3,elements!C123:'elements'!E123) -> 0.205543654 | AK123: =testmat(24,4,4,elements!C123:'elements'!E123) -> 0.9628454345
A124: =elements!A124 -> d0x | B124: 1 | C124: =elements!B124 -> 1.5341 | D124: 0 | E124: 0 | F124: 0 | G124: 0 | H124: 0 | I124: 1 | J124: 0 | K124: 0 | L124: 0 | M124: 0 | N124: 0 | O124: 0 | P124: 1 | Q124: =elements!B124 -> 1.5341 | R124: 0 | S124: 0 | T124: 0 | U124: 0 | V124: 0 | W124: 1 | X124: 0 | Y124: 0 | Z124: 0 | AA124: 0 | AB124: 0 | AC124: 0 | AD124: 1 | AE124: 0 | AF124: 0 | AG124: 0 | AH124: 0 | AI124: 0 | AJ124: 0 | AK124: 1
A125: =elements!A125 -> dbcm | B125: 1 | C125: =elements!B125 -> 0.775524326 | D125: 0 | E125: 0 | F125: 0 | G125: 0 | H125: 0 | I125: 1 | J125: 0 | K125: 0 | L125: 0 | M125: 0 | N125: 0 | O125: 0 | P125: 1 | Q125: =elements!B125 -> 0.775524326 | R125: 0 | S125: 0 | T125: 0 | U125: 0 | V125: 0 | W125: 1 | X125: 0 | Y125: 0 | Z125: 0 | AA125: 0 | AB125: 0 | AC125: 0 | AD125: 1 | AE125: 0 | AF125: 0 | AG125: 0 | AH125: 0 | AI125: 0 | AJ125: 0 | AK125: 1
A126: =elements!A126 -> sbext1 | B126: 1 | C126: 0 | D126: 0 | E126: 0 | F126: 0 | G126: 0 | H126: =TAN(elements!D126*PI()/180)/elements!C126 -> 0 | I126: 1 | J126: 0 | K126: 0 | L126: 0 | M126: 0 | N126: 0 | O126: 0 | P126: 1 | Q126: 0 | R126: 0 | S126: 0 | T126: 0 | U126: 0 | V126: =-TAN((elements!D126*PI()/180)-elements!F126*(elements!E126/elements!C126)*((1+(SIN(elements!D126*PI()/180))^2)/COS(elements!D126*PI()/180))*(1-(elements!E126/elements!C126)*elements!F126*elements!G126*TAN(elements!D126*PI()/180)))/elements!C126 -> 0.0002972658233 | W126: 1 | X126: 0 | Y126: 0 | Z126: 0 | AA126: 0 | AB126: 0 | AC126: 0 | AD126: 1 | AE126: 0 | AF126: 0 | AG126: 0 | AH126: 0 | AI126: 0 | AJ126: 0 | AK126: 1
A127: =elements!A127 -> bext1 | B127: =IF(elements!D127<1,COS(SQRT(1-elements!D127)*elements!C127*PI()/180),IF(elements!D127>1,COSH(SQRT(elements!D127-1)*elements!C127*PI()/180),1)) -> 0.9996877575 | C127: =IF(elements!D127<1,SIN(SQRT(1-elements!D127)*elements!C127*PI()/180)/(SQRT(1-elements!D127)*elements!C127*PI()/(180*elements!B127)),IF(elements!D127>1,SINH(SQRT(elements!D127-1)*elements!C127*PI()/180)/(SQRT(elements!D127-1)*elements!C127*PI()/(180*elements!B127)),elements!B127)) -> 0.2173934118 | D127: 0 | E127: 0 | F127: 0 | G127: =IF(elements!D127<1,((elements!B127/(elements!C127*PI()/180))/(1-elements!D127))*(1-COS(SQRT(1-elements!D127)*elements!C127*PI()/180)),IF(elements!D127>1,((elements!B127/(elements!C127*PI()/180))/(1-elements!D127))*(1-COSH(SQRT(elements!D127-1)*elements!C127*PI()/180)),1)) -> 0.002716510052 | H127: =IF(elements!D127<1,-(SQRT(1-elements!D127)*elements!C127*PI()/(180*elements!B127))*SIN(SQRT(1-elements!D127)*elements!C127*PI()/180),IF(elements!D127>1,(SQRT(elements!D127-1)*elements!C127*PI()/(180*elements!B127))*SINH(SQRT(elements!D127-1)*elements!C127*PI()/180),0)) -> -0.002872154997 | I127: =B127 -> 0.9996877575 | J127: 0 | K127: 0 | L127: 0 | M127: =C127/(elements!B127/(elements!C127*PI()/180)) -> 0.02498774848 | N127: 0 | O127: 0 | P127: =IF(elements!D127>0,COS(SQRT(elements!D127)*elements!C127*PI()/180),IF(elements!D127<0,COSH(SQRT(-elements!D127)*elements!C127*PI()/180),1)) -> 1 | Q127: =IF(elements!D127>0,SIN(SQRT(elements!D127)*elements!C127*PI()/180)/(SQRT(elements!D127)*elements!C127*PI()/(180*elements!B127)),IF(elements!D127<0,SINH(SQRT(-elements!D127)*elements!C127*PI()/180)/(SQRT(-elements!D127)*elements!C127*PI()/(180*elements!B127)),elements!B127)) -> 0.2174160411 | R127: 0 | S127: 0 | T127: 0 | U127: 0 | V127: =IF(elements!D127>0,-(SQRT(elements!D127)*elements!C127*PI()/(180*elements!B127))*SIN(SQRT(elements!D127)*elements!C127*PI()/180),IF(elements!D127<0,(SQRT(-elements!D127)*elements!C127*PI()/(180*elements!B127))*SINH(SQRT(-elements!D127)*elements!C127*PI()/180),0)) -> 0 | W127: =P127 -> 1 | X127: 0 | Y127: 0 | Z127: =M127 -> 0.02498774848 | AA127: =G127 -> 0.002716510052 | AB127: 0 | AC127: 0 | AD127: 1 | AE127: =IF(elements!D127<1,(1/(1-elements!D127))*(elements!B127-SIN(SQRT(1-elements!D127)*elements!C127*PI()/180)/(SQRT(1-elements!D127)*elements!C127*PI()/(180*elements!B127))), IF(elements!D127>1,(1/(1-elements!D127))*(elements!B127-SINH(SQRT(elements!D127-1)*elements!C127*PI()/180)/(SQRT(elements!D127-1)*elements!C127*PI()/(180*elements!B127))), 0)) -> 2.262931633e-05 | AF127: 0 | AG127: 0 | AH127: 0 | AI127: 0 | AJ127: 0 | AK127: 1
A128: =elements!A128 -> ebext1 | B128: 1 | C128: 0 | D128: 0 | E128: 0 | F128: 0 | G128: 0 | H128: =TAN(elements!D128*PI()/180)/elements!C128 -> -0.0386113351 | I128: 1 | J128: 0 | K128: 0 | L128: 0 | M128: 0 | N128: 0 | O128: 0 | P128: 1 | Q128: 0 | R128: 0 | S128: 0 | T128: 0 | U128: 0 | V128: =-TAN((elements!D128*PI()/180)-elements!F128*(elements!E128/elements!C128)*((1+(SIN(elements!D128*PI()/180))^2)/COS(elements!D128*PI()/180))*(1-(elements!E128/elements!C128)*elements!F128*elements!G128*TAN(elements!D128*PI()/180)))/elements!C128 -> 0.03899608505 | W128: 1 | X128: 0 | Y128: 0 | Z128: 0 | AA128: 0 | AB128: 0 | AC128: 0 | AD128: 1 | AE128: 0 | AF128: 0 | AG128: 0 | AH128: 0 | AI128: 0 | AJ128: 0 | AK128: 1
A129: =elements!A129 -> dreinj1 | B129: 1 | C129: =elements!B129 -> 0.8154678002 | D129: 0 | E129: 0 | F129: 0 | G129: 0 | H129: 0 | I129: 1 | J129: 0 | K129: 0 | L129: 0 | M129: 0 | N129: 0 | O129: 0 | P129: 1 | Q129: =elements!B129 -> 0.8154678002 | R129: 0 | S129: 0 | T129: 0 | U129: 0 | V129: 0 | W129: 1 | X129: 0 | Y129: 0 | Z129: 0 | AA129: 0 | AB129: 0 | AC129: 0 | AD129: 1 | AE129: 0 | AF129: 0 | AG129: 0 | AH129: 0 | AI129: 0 | AJ129: 0 | AK129: 1
A130: =elements!A130 -> roll | B130: -1 | C130: 0 | D130: 0 | E130: 0 | F130: 0 | G130: 0 | H130: 0 | I130: =B130 -> -1 | J130: 0 | K130: 0 | L130: 0 | M130: 0 | N130: 0 | O130: 0 | P130: -1 | Q130: 0 | R130: 0 | S130: 0 | T130: 0 | U130: 0 | V130: 0 | W130: -1 | X130: 0 | Y130: 0 | Z130: 0 | AA130: 0 | AB130: 0 | AC130: 0 | AD130: 1 | AE130: 0 | AF130: 0 | AG130: 0 | AH130: 0 | AI130: 0 | AJ130: 0 | AK130: 1
A131: =elements!A131 -> sbext2 | B131: 1 | C131: 0 | D131: 0 | E131: 0 | F131: 0 | G131: 0 | H131: =TAN(elements!D131*PI()/180)/elements!C131 -> 0.007771101239 | I131: 1 | J131: 0 | K131: 0 | L131: 0 | M131: 0 | N131: 0 | O131: 0 | P131: 1 | Q131: 0 | R131: 0 | S131: 0 | T131: 0 | U131: 0 | V131: =-TAN((elements!D131*PI()/180)-elements!F131*(elements!E131/elements!C131)*((1+(SIN(elements!D131*PI()/180))^2)/COS(elements!D131*PI()/180))*(1-(elements!E131/elements!C131)*elements!F131*elements!G131*TAN(elements!D131*PI()/180)))/elements!C131 -> -0.007470485954 | W131: 1 | X131: 0 | Y131: 0 | Z131: 0 | AA131: 0 | AB131: 0 | AC131: 0 | AD131: 1 | AE131: 0 | AF131: 0 | AG131: 0 | AH131: 0 | AI131: 0 | AJ131: 0 | AK131: 1
A132: =elements!A132 -> bext2 | B132: =IF(elements!D132<1,COS(SQRT(1-elements!D132)*elements!C132*PI()/180),IF(elements!D132>1,COSH(SQRT(elements!D132-1)*elements!C132*PI()/180),1)) -> 0.9987512249 | C132: =IF(elements!D132<1,SIN(SQRT(1-elements!D132)*elements!C132*PI()/180)/(SQRT(1-elements!D132)*elements!C132*PI()/(180*elements!B132)),IF(elements!D132>1,SINH(SQRT(elements!D132-1)*elements!C132*PI()/180)/(SQRT(elements!D132-1)*elements!C132*PI()/(180*elements!B132)),elements!B132)) -> 0.4346510646 | D132: 0 | E132: 0 | F132: 0 | G132: =IF(elements!D132<1,((elements!B132/(elements!C132*PI()/180))/(1-elements!D132))*(1-COS(SQRT(1-elements!D132)*elements!C132*PI()/180)),IF(elements!D132>1,((elements!B132/(elements!C132*PI()/180))/(1-elements!D132))*(1-COSH(SQRT(elements!D132-1)*elements!C132*PI()/180)),1)) -> 0.01086434379 | H132: =IF(elements!D132<1,-(SQRT(1-elements!D132)*elements!C132*PI()/(180*elements!B132))*SIN(SQRT(1-elements!D132)*elements!C132*PI()/180),IF(elements!D132>1,(SQRT(elements!D132-1)*elements!C132*PI()/(180*elements!B132))*SINH(SQRT(elements!D132-1)*elements!C132*PI()/180),0)) -> -0.005742516377 | I132: =B132 -> 0.9987512249 | J132: 0 | K132: 0 | L132: 0 | M132: =C132/(elements!B132/(elements!C132*PI()/180)) -> 0.04995989248 | N132: 0 | O132: 0 | P132: =IF(elements!D132>0,COS(SQRT(elements!D132)*elements!C132*PI()/180),IF(elements!D132<0,COSH(SQRT(-elements!D132)*elements!C132*PI()/180),1)) -> 1 | Q132: =IF(elements!D132>0,SIN(SQRT(elements!D132)*elements!C132*PI()/180)/(SQRT(elements!D132)*elements!C132*PI()/(180*elements!B132)),IF(elements!D132<0,SINH(SQRT(-elements!D132)*elements!C132*PI()/180)/(SQRT(-elements!D132)*elements!C132*PI()/(180*elements!B132)),elements!B132)) -> 0.4348320822 | R132: 0 | S132: 0 | T132: 0 | U132: 0 | V132: =IF(elements!D132>0,-(SQRT(elements!D132)*elements!C132*PI()/(180*elements!B132))*SIN(SQRT(elements!D132)*elements!C132*PI()/180),IF(elements!D132<0,(SQRT(-elements!D132)*elements!C132*PI()/(180*elements!B132))*SINH(SQRT(-elements!D132)*elements!C132*PI()/180),0)) -> 0 | W132: =P132 -> 1 | X132: 0 | Y132: 0 | Z132: =M132 -> 0.04995989248 | AA132: =G132 -> 0.01086434379 | AB132: 0 | AC132: 0 | AD132: 1 | AE132: =IF(elements!D132<1,(1/(1-elements!D132))*(elements!B132-SIN(SQRT(1-elements!D132)*elements!C132*PI()/180)/(SQRT(1-elements!D132)*elements!C132*PI()/(180*elements!B132))), IF(elements!D132>1,(1/(1-elements!D132))*(elements!B132-SINH(SQRT(elements!D132-1)*elements!C132*PI()/180)/(SQRT(elements!D132-1)*elements!C132*PI()/(180*elements!B132))), 0)) -> 0.0001810175725 | AF132: 0 | AG132: 0 | AH132: 0 | AI132: 0 | AJ132: 0 | AK132: 1
A133: =elements!A133 -> ebext2 | B133: 1 | C133: 0 | D133: 0 | E133: 0 | F133: 0 | G133: 0 | H133: =TAN(elements!D133*PI()/180)/elements!C133 -> 0.007771101239 | I133: 1 | J133: 0 | K133: 0 | L133: 0 | M133: 0 | N133: 0 | O133: 0 | P133: 1 | Q133: 0 | R133: 0 | S133: 0 | T133: 0 | U133: 0 | V133: =-TAN((elements!D133*PI()/180)-elements!F133*(elements!E133/elements!C133)*((1+(SIN(elements!D133*PI()/180))^2)/COS(elements!D133*PI()/180))*(1-(elements!E133/elements!C133)*elements!F133*elements!G133*TAN(elements!D133*PI()/180)))/elements!C133 -> -0.007470485954 | W133: 1 | X133: 0 | Y133: 0 | Z133: 0 | AA133: 0 | AB133: 0 | AC133: 0 | AD133: 1 | AE133: 0 | AF133: 0 | AG133: 0 | AH133: 0 | AI133: 0 | AJ133: 0 | AK133: 1
A134: =elements!A134 -> roll | B134: -1 | C134: 0 | D134: 0 | E134: 0 | F134: 0 | G134: 0 | H134: 0 | I134: =B134 -> -1 | J134: 0 | K134: 0 | L134: 0 | M134: 0 | N134: 0 | O134: 0 | P134: -1 | Q134: 0 | R134: 0 | S134: 0 | T134: 0 | U134: 0 | V134: 0 | W134: -1 | X134: 0 | Y134: 0 | Z134: 0 | AA134: 0 | AB134: 0 | AC134: 0 | AD134: 1 | AE134: 0 | AF134: 0 | AG134: 0 | AH134: 0 | AI134: 0 | AJ134: 0 | AK134: 1
A135: =elements!A135 -> dreinj1 | B135: 1 | C135: =elements!B135 -> 0.8154678002 | D135: 0 | E135: 0 | F135: 0 | G135: 0 | H135: 0 | I135: 1 | J135: 0 | K135: 0 | L135: 0 | M135: 0 | N135: 0 | O135: 0 | P135: 1 | Q135: =elements!B135 -> 0.8154678002 | R135: 0 | S135: 0 | T135: 0 | U135: 0 | V135: 0 | W135: 1 | X135: 0 | Y135: 0 | Z135: 0 | AA135: 0 | AB135: 0 | AC135: 0 | AD135: 1 | AE135: 0 | AF135: 0 | AG135: 0 | AH135: 0 | AI135: 0 | AJ135: 0 | AK135: 1
A136: =elements!A136 -> sbext3 | B136: 1 | C136: 0 | D136: 0 | E136: 0 | F136: 0 | G136: 0 | H136: =TAN(elements!D136*PI()/180)/elements!C136 -> -0.0386113351 | I136: 1 | J136: 0 | K136: 0 | L136: 0 | M136: 0 | N136: 0 | O136: 0 | P136: 1 | Q136: 0 | R136: 0 | S136: 0 | T136: 0 | U136: 0 | V136: =-TAN((elements!D136*PI()/180)-elements!F136*(elements!E136/elements!C136)*((1+(SIN(elements!D136*PI()/180))^2)/COS(elements!D136*PI()/180))*(1-(elements!E136/elements!C136)*elements!F136*elements!G136*TAN(elements!D136*PI()/180)))/elements!C136 -> 0.03899608505 | W136: 1 | X136: 0 | Y136: 0 | Z136: 0 | AA136: 0 | AB136: 0 | AC136: 0 | AD136: 1 | AE136: 0 | AF136: 0 | AG136: 0 | AH136: 0 | AI136: 0 | AJ136: 0 | AK136: 1
A137: =elements!A137 -> bext3 | B137: =IF(elements!D137<1,COS(SQRT(1-elements!D137)*elements!C137*PI()/180),IF(elements!D137>1,COSH(SQRT(elements!D137-1)*elements!C137*PI()/180),1)) -> 0.9996877575 | C137: =IF(elements!D137<1,SIN(SQRT(1-elements!D137)*elements!C137*PI()/180)/(SQRT(1-elements!D137)*elements!C137*PI()/(180*elements!B137)),IF(elements!D137>1,SINH(SQRT(elements!D137-1)*elements!C137*PI()/180)/(SQRT(elements!D137-1)*elements!C137*PI()/(180*elements!B137)),elements!B137)) -> 0.2173934118 | D137: 0 | E137: 0 | F137: 0 | G137: =IF(elements!D137<1,((elements!B137/(elements!C137*PI()/180))/(1-elements!D137))*(1-COS(SQRT(1-elements!D137)*elements!C137*PI()/180)),IF(elements!D137>1,((elements!B137/(elements!C137*PI()/180))/(1-elements!D137))*(1-COSH(SQRT(elements!D137-1)*elements!C137*PI()/180)),1)) -> 0.002716510052 | H137: =IF(elements!D137<1,-(SQRT(1-elements!D137)*elements!C137*PI()/(180*elements!B137))*SIN(SQRT(1-elements!D137)*elements!C137*PI()/180),IF(elements!D137>1,(SQRT(elements!D137-1)*elements!C137*PI()/(180*elements!B137))*SINH(SQRT(elements!D137-1)*elements!C137*PI()/180),0)) -> -0.002872154997 | I137: =B137 -> 0.9996877575 | J137: 0 | K137: 0 | L137: 0 | M137: =C137/(elements!B137/(elements!C137*PI()/180)) -> 0.02498774848 | N137: 0 | O137: 0 | P137: =IF(elements!D137>0,COS(SQRT(elements!D137)*elements!C137*PI()/180),IF(elements!D137<0,COSH(SQRT(-elements!D137)*elements!C137*PI()/180),1)) -> 1 | Q137: =IF(elements!D137>0,SIN(SQRT(elements!D137)*elements!C137*PI()/180)/(SQRT(elements!D137)*elements!C137*PI()/(180*elements!B137)),IF(elements!D137<0,SINH(SQRT(-elements!D137)*elements!C137*PI()/180)/(SQRT(-elements!D137)*elements!C137*PI()/(180*elements!B137)),elements!B137)) -> 0.2174160411 | R137: 0 | S137: 0 | T137: 0 | U137: 0 | V137: =IF(elements!D137>0,-(SQRT(elements!D137)*elements!C137*PI()/(180*elements!B137))*SIN(SQRT(elements!D137)*elements!C137*PI()/180),IF(elements!D137<0,(SQRT(-elements!D137)*elements!C137*PI()/(180*elements!B137))*SINH(SQRT(-elements!D137)*elements!C137*PI()/180),0)) -> 0 | W137: =P137 -> 1 | X137: 0 | Y137: 0 | Z137: =M137 -> 0.02498774848 | AA137: =G137 -> 0.002716510052 | AB137: 0 | AC137: 0 | AD137: 1 | AE137: =IF(elements!D137<1,(1/(1-elements!D137))*(elements!B137-SIN(SQRT(1-elements!D137)*elements!C137*PI()/180)/(SQRT(1-elements!D137)*elements!C137*PI()/(180*elements!B137))), IF(elements!D137>1,(1/(1-elements!D137))*(elements!B137-SINH(SQRT(elements!D137-1)*elements!C137*PI()/180)/(SQRT(elements!D137-1)*elements!C137*PI()/(180*elements!B137))), 0)) -> 2.262931633e-05 | AF137: 0 | AG137: 0 | AH137: 0 | AI137: 0 | AJ137: 0 | AK137: 1
A138: =elements!A138 -> ebext3 | B138: 1 | C138: 0 | D138: 0 | E138: 0 | F138: 0 | G138: 0 | H138: =TAN(elements!D138*PI()/180)/elements!C138 -> 0 | I138: 1 | J138: 0 | K138: 0 | L138: 0 | M138: 0 | N138: 0 | O138: 0 | P138: 1 | Q138: 0 | R138: 0 | S138: 0 | T138: 0 | U138: 0 | V138: =-TAN((elements!D138*PI()/180)-elements!F138*(elements!E138/elements!C138)*((1+(SIN(elements!D138*PI()/180))^2)/COS(elements!D138*PI()/180))*(1-(elements!E138/elements!C138)*elements!F138*elements!G138*TAN(elements!D138*PI()/180)))/elements!C138 -> 0.0002972658233 | W138: 1 | X138: 0 | Y138: 0 | Z138: 0 | AA138: 0 | AB138: 0 | AC138: 0 | AD138: 1 | AE138: 0 | AF138: 0 | AG138: 0 | AH138: 0 | AI138: 0 | AJ138: 0 | AK138: 1
A139: =elements!A139 -> dm11alt | B139: 1 | C139: =elements!B139 -> 0.25 | D139: 0 | E139: 0 | F139: 0 | G139: 0 | H139: 0 | I139: 1 | J139: 0 | K139: 0 | L139: 0 | M139: 0 | N139: 0 | O139: 0 | P139: 1 | Q139: =elements!B139 -> 0.25 | R139: 0 | S139: 0 | T139: 0 | U139: 0 | V139: 0 | W139: 1 | X139: 0 | Y139: 0 | Z139: 0 | AA139: 0 | AB139: 0 | AC139: 0 | AD139: 1 | AE139: 0 | AF139: 0 | AG139: 0 | AH139: 0 | AI139: 0 | AJ139: 0 | AK139: 1
A140: =elements!A140 -> QX2F01 | B140: =IF(elements!C140>0,COS(SQRT(elements!C140)*elements!B140),IF(elements!C140<0,COSH(SQRT(-elements!C140)*elements!B140),1)) -> 1.033609296 | C140: =IF(elements!C140>0,SIN(SQRT(elements!C140)*elements!B140)/SQRT(elements!C140),IF(elements!C140<0,SINH(SQRT(-elements!C140)*elements!B140)/SQRT(-elements!C140),elements!B140)) -> 0.1516767293 | D140: 0 | E140: 0 | F140: 0 | G140: 0 | H140: =IF(elements!C140>0,-SQRT(elements!C140)*SIN(SQRT(elements!C140)*elements!B140),IF(elements!C140<0,SQRT(-elements!C140)*SINH(SQRT(-elements!C140)*elements!B140),0)) -> 0.4506174196 | I140: =IF(elements!C140>0,COS(SQRT(elements!C140)*elements!B140),IF(elements!C140<0,COSH(SQRT(-elements!C140)*elements!B140),1)) -> 1.033609296 | J140: 0 | K140: 0 | L140: 0 | M140: 0 | N140: 0 | O140: 0 | P140: =IF(elements!C140<0,COS(SQRT(-elements!C140)*elements!B140),IF(elements!C140>0,COSH(SQRT(elements!C140)*elements!B140),1)) -> 0.9667630642 | Q140: =IF(elements!C140<0,SIN(SQRT(-elements!C140)*elements!B140)/SQRT(-elements!C140),IF(elements!C140>0,SINH(SQRT(elements!C140)*elements!B140)/SQRT(elements!C140),elements!B140)) -> 0.1483344415 | R140: 0 | S140: 0 | T140: 0 | U140: 0 | V140: =IF(elements!C140<0,-SQRT(-elements!C140)*SIN(SQRT(-elements!C140)*elements!B140),IF(elements!C140>0,SQRT(elements!C140)*SINH(SQRT(elements!C140)*elements!B140),0)) -> -0.440687794 | W140: =IF(elements!C140<0,COS(SQRT(-elements!C140)*elements!B140),IF(elements!C140>0,COSH(SQRT(elements!C140)*elements!B140),1)) -> 0.9667630642 | X140: 0 | Y140: 0 | Z140: 0 | AA140: 0 | AB140: 0 | AC140: 0 | AD140: 1 | AE140: 0 | AF140: 0 | AG140: 0 | AH140: 0 | AI140: 0 | AJ140: 0 | AK140: 1
A141: =elements!A141 -> dm13 | B141: 1 | C141: =elements!B141 -> 0.945 | D141: 0 | E141: 0 | F141: 0 | G141: 0 | H141: 0 | I141: 1 | J141: 0 | K141: 0 | L141: 0 | M141: 0 | N141: 0 | O141: 0 | P141: 1 | Q141: =elements!B141 -> 0.945 | R141: 0 | S141: 0 | T141: 0 | U141: 0 | V141: 0 | W141: 1 | X141: 0 | Y141: 0 | Z141: 0 | AA141: 0 | AB141: 0 | AC141: 0 | AD141: 1 | AE141: 0 | AF141: 0 | AG141: 0 | AH141: 0 | AI141: 0 | AJ141: 0 | AK141: 1
A142: =elements!A142 -> QX2F02 | B142: =IF(elements!C142>0,COS(SQRT(elements!C142)*elements!B142),IF(elements!C142<0,COSH(SQRT(-elements!C142)*elements!B142),1)) -> 0.9559059467 | C142: =IF(elements!C142>0,SIN(SQRT(elements!C142)*elements!B142)/SQRT(elements!C142),IF(elements!C142<0,SINH(SQRT(-elements!C142)*elements!B142)/SQRT(-elements!C142),elements!B142)) -> 0.1477887474 | D142: 0 | E142: 0 | F142: 0 | G142: 0 | H142: =IF(elements!C142>0,-SQRT(elements!C142)*SIN(SQRT(elements!C142)*elements!B142),IF(elements!C142<0,SQRT(-elements!C142)*SINH(SQRT(-elements!C142)*elements!B142),0)) -> -0.5835614863 | I142: =IF(elements!C142>0,COS(SQRT(elements!C142)*elements!B142),IF(elements!C142<0,COSH(SQRT(-elements!C142)*elements!B142),1)) -> 0.9559059467 | J142: 0 | K142: 0 | L142: 0 | M142: 0 | N142: 0 | O142: 0 | P142: =IF(elements!C142<0,COS(SQRT(-elements!C142)*elements!B142),IF(elements!C142>0,COSH(SQRT(elements!C142)*elements!B142),1)) -> 1.044751827 | Q142: =IF(elements!C142<0,SIN(SQRT(-elements!C142)*elements!B142)/SQRT(-elements!C142),IF(elements!C142>0,SINH(SQRT(elements!C142)*elements!B142)/SQRT(elements!C142),elements!B142)) -> 0.1522309858 | R142: 0 | S142: 0 | T142: 0 | U142: 0 | V142: =IF(elements!C142<0,-SQRT(-elements!C142)*SIN(SQRT(-elements!C142)*elements!B142),IF(elements!C142>0,SQRT(elements!C142)*SINH(SQRT(elements!C142)*elements!B142),0)) -> 0.601102194 | W142: =IF(elements!C142<0,COS(SQRT(-elements!C142)*elements!B142),IF(elements!C142>0,COSH(SQRT(elements!C142)*elements!B142),1)) -> 1.044751827 | X142: 0 | Y142: 0 | Z142: 0 | AA142: 0 | AB142: 0 | AC142: 0 | AD142: 1 | AE142: 0 | AF142: 0 | AG142: 0 | AH142: 0 | AI142: 0 | AJ142: 0 | AK142: 1
A143: =elements!A143 -> dm13 | B143: 1 | C143: =elements!B143 -> 0.945 | D143: 0 | E143: 0 | F143: 0 | G143: 0 | H143: 0 | I143: 1 | J143: 0 | K143: 0 | L143: 0 | M143: 0 | N143: 0 | O143: 0 | P143: 1 | Q143: =elements!B143 -> 0.945 | R143: 0 | S143: 0 | T143: 0 | U143: 0 | V143: 0 | W143: 1 | X143: 0 | Y143: 0 | Z143: 0 | AA143: 0 | AB143: 0 | AC143: 0 | AD143: 1 | AE143: 0 | AF143: 0 | AG143: 0 | AH143: 0 | AI143: 0 | AJ143: 0 | AK143: 1
A144: =elements!A144 -> QX2F03 | B144: =IF(elements!C144>0,COS(SQRT(elements!C144)*elements!B144),IF(elements!C144<0,COSH(SQRT(-elements!C144)*elements!B144),1)) -> 1.009388555 | C144: =IF(elements!C144>0,SIN(SQRT(elements!C144)*elements!B144)/SQRT(elements!C144),IF(elements!C144<0,SINH(SQRT(-elements!C144)*elements!B144)/SQRT(-elements!C144),elements!B144)) -> 0.1504691346 | D144: 0 | E144: 0 | F144: 0 | G144: 0 | H144: =IF(elements!C144>0,-SQRT(elements!C144)*SIN(SQRT(elements!C144)*elements!B144),IF(elements!C144<0,SQRT(-elements!C144)*SINH(SQRT(-elements!C144)*elements!B144),0)) -> 0.1253762414 | I144: =IF(elements!C144>0,COS(SQRT(elements!C144)*elements!B144),IF(elements!C144<0,COSH(SQRT(-elements!C144)*elements!B144),1)) -> 1.009388555 | J144: 0 | K144: 0 | L144: 0 | M144: 0 | N144: 0 | O144: 0 | P144: =IF(elements!C144<0,COS(SQRT(-elements!C144)*elements!B144),IF(elements!C144>0,COSH(SQRT(elements!C144)*elements!B144),1)) -> 0.9906407352 | Q144: =IF(elements!C144<0,SIN(SQRT(-elements!C144)*elements!B144)/SQRT(-elements!C144),IF(elements!C144>0,SINH(SQRT(elements!C144)*elements!B144)/SQRT(elements!C144),elements!B144)) -> 0.1495317441 | R144: 0 | S144: 0 | T144: 0 | U144: 0 | V144: =IF(elements!C144<0,-SQRT(-elements!C144)*SIN(SQRT(-elements!C144)*elements!B144),IF(elements!C144>0,SQRT(elements!C144)*SINH(SQRT(elements!C144)*elements!B144),0)) -> -0.1245951743 | W144: =IF(elements!C144<0,COS(SQRT(-elements!C144)*elements!B144),IF(elements!C144>0,COSH(SQRT(elements!C144)*elements!B144),1)) -> 0.9906407352 | X144: 0 | Y144: 0 | Z144: 0 | AA144: 0 | AB144: 0 | AC144: 0 | AD144: 1 | AE144: 0 | AF144: 0 | AG144: 0 | AH144: 0 | AI144: 0 | AJ144: 0 | AK144: 1
A145: =elements!A145 -> dm11 | B145: 1 | C145: =elements!B145 -> 0.4725 | D145: 0 | E145: 0 | F145: 0 | G145: 0 | H145: 0 | I145: 1 | J145: 0 | K145: 0 | L145: 0 | M145: 0 | N145: 0 | O145: 0 | P145: 1 | Q145: =elements!B145 -> 0.4725 | R145: 0 | S145: 0 | T145: 0 | U145: 0 | V145: 0 | W145: 1 | X145: 0 | Y145: 0 | Z145: 0 | AA145: 0 | AB145: 0 | AC145: 0 | AD145: 1 | AE145: 0 | AF145: 0 | AG145: 0 | AH145: 0 | AI145: 0 | AJ145: 0 | AK145: 1
A146: =elements!A146 -> dm11 | B146: 1 | C146: =elements!B146 -> 0.4725 | D146: 0 | E146: 0 | F146: 0 | G146: 0 | H146: 0 | I146: 1 | J146: 0 | K146: 0 | L146: 0 | M146: 0 | N146: 0 | O146: 0 | P146: 1 | Q146: =elements!B146 -> 0.4725 | R146: 0 | S146: 0 | T146: 0 | U146: 0 | V146: 0 | W146: 1 | X146: 0 | Y146: 0 | Z146: 0 | AA146: 0 | AB146: 0 | AC146: 0 | AD146: 1 | AE146: 0 | AF146: 0 | AG146: 0 | AH146: 0 | AI146: 0 | AJ146: 0 | AK146: 1
A147: =elements!A147 -> QX2F04 | B147: =IF(elements!C147>0,COS(SQRT(elements!C147)*elements!B147),IF(elements!C147<0,COSH(SQRT(-elements!C147)*elements!B147),1)) -> 1 | C147: =IF(elements!C147>0,SIN(SQRT(elements!C147)*elements!B147)/SQRT(elements!C147),IF(elements!C147<0,SINH(SQRT(-elements!C147)*elements!B147)/SQRT(-elements!C147),elements!B147)) -> 0.15 | D147: 0 | E147: 0 | F147: 0 | G147: 0 | H147: =IF(elements!C147>0,-SQRT(elements!C147)*SIN(SQRT(elements!C147)*elements!B147),IF(elements!C147<0,SQRT(-elements!C147)*SINH(SQRT(-elements!C147)*elements!B147),0)) -> 0 | I147: =IF(elements!C147>0,COS(SQRT(elements!C147)*elements!B147),IF(elements!C147<0,COSH(SQRT(-elements!C147)*elements!B147),1)) -> 1 | J147: 0 | K147: 0 | L147: 0 | M147: 0 | N147: 0 | O147: 0 | P147: =IF(elements!C147<0,COS(SQRT(-elements!C147)*elements!B147),IF(elements!C147>0,COSH(SQRT(elements!C147)*elements!B147),1)) -> 1 | Q147: =IF(elements!C147<0,SIN(SQRT(-elements!C147)*elements!B147)/SQRT(-elements!C147),IF(elements!C147>0,SINH(SQRT(elements!C147)*elements!B147)/SQRT(elements!C147),elements!B147)) -> 0.15 | R147: 0 | S147: 0 | T147: 0 | U147: 0 | V147: =IF(elements!C147<0,-SQRT(-elements!C147)*SIN(SQRT(-elements!C147)*elements!B147),IF(elements!C147>0,SQRT(elements!C147)*SINH(SQRT(elements!C147)*elements!B147),0)) -> 0 | W147: =IF(elements!C147<0,COS(SQRT(-elements!C147)*elements!B147),IF(elements!C147>0,COSH(SQRT(elements!C147)*elements!B147),1)) -> 1 | X147: 0 | Y147: 0 | Z147: 0 | AA147: 0 | AB147: 0 | AC147: 0 | AD147: 1 | AE147: 0 | AF147: 0 | AG147: 0 | AH147: 0 | AI147: 0 | AJ147: 0 | AK147: 1
A148: =elements!A148 -> dm13 | B148: 1 | C148: =elements!B148 -> 0.945 | D148: 0 | E148: 0 | F148: 0 | G148: 0 | H148: 0 | I148: 1 | J148: 0 | K148: 0 | L148: 0 | M148: 0 | N148: 0 | O148: 0 | P148: 1 | Q148: =elements!B148 -> 0.945 | R148: 0 | S148: 0 | T148: 0 | U148: 0 | V148: 0 | W148: 1 | X148: 0 | Y148: 0 | Z148: 0 | AA148: 0 | AB148: 0 | AC148: 0 | AD148: 1 | AE148: 0 | AF148: 0 | AG148: 0 | AH148: 0 | AI148: 0 | AJ148: 0 | AK148: 1
A149: =elements!A149 -> QX2F05 | B149: =IF(elements!C149>0,COS(SQRT(elements!C149)*elements!B149),IF(elements!C149<0,COSH(SQRT(-elements!C149)*elements!B149),1)) -> 1.013533495 | C149: =IF(elements!C149>0,SIN(SQRT(elements!C149)*elements!B149)/SQRT(elements!C149),IF(elements!C149<0,SINH(SQRT(-elements!C149)*elements!B149)/SQRT(-elements!C149),elements!B149)) -> 0.1506760662 | D149: 0 | E149: 0 | F149: 0 | G149: 0 | H149: =IF(elements!C149>0,-SQRT(elements!C149)*SIN(SQRT(elements!C149)*elements!B149),IF(elements!C149<0,SQRT(-elements!C149)*SINH(SQRT(-elements!C149)*elements!B149),0)) -> 0.1808525163 | I149: =IF(elements!C149>0,COS(SQRT(elements!C149)*elements!B149),IF(elements!C149<0,COSH(SQRT(-elements!C149)*elements!B149),1)) -> 1.013533495 | J149: 0 | K149: 0 | L149: 0 | M149: 0 | N149: 0 | O149: 0 | P149: =IF(elements!C149<0,COS(SQRT(-elements!C149)*elements!B149),IF(elements!C149>0,COSH(SQRT(elements!C149)*elements!B149),1)) -> 0.9865272826 | Q149: =IF(elements!C149<0,SIN(SQRT(-elements!C149)*elements!B149)/SQRT(-elements!C149),IF(elements!C149>0,SINH(SQRT(elements!C149)*elements!B149)/SQRT(elements!C149),elements!B149)) -> 0.1493257571 | R149: 0 | S149: 0 | T149: 0 | U149: 0 | V149: =IF(elements!C149<0,-SQRT(-elements!C149)*SIN(SQRT(-elements!C149)*elements!B149),IF(elements!C149>0,SQRT(elements!C149)*SINH(SQRT(elements!C149)*elements!B149),0)) -> -0.1792317759 | W149: =IF(elements!C149<0,COS(SQRT(-elements!C149)*elements!B149),IF(elements!C149>0,COSH(SQRT(elements!C149)*elements!B149),1)) -> 0.9865272826 | X149: 0 | Y149: 0 | Z149: 0 | AA149: 0 | AB149: 0 | AC149: 0 | AD149: 1 | AE149: 0 | AF149: 0 | AG149: 0 | AH149: 0 | AI149: 0 | AJ149: 0 | AK149: 1
A150: =elements!A150 -> dm13 | B150: 1 | C150: =elements!B150 -> 0.945 | D150: 0 | E150: 0 | F150: 0 | G150: 0 | H150: 0 | I150: 1 | J150: 0 | K150: 0 | L150: 0 | M150: 0 | N150: 0 | O150: 0 | P150: 1 | Q150: =elements!B150 -> 0.945 | R150: 0 | S150: 0 | T150: 0 | U150: 0 | V150: 0 | W150: 1 | X150: 0 | Y150: 0 | Z150: 0 | AA150: 0 | AB150: 0 | AC150: 0 | AD150: 1 | AE150: 0 | AF150: 0 | AG150: 0 | AH150: 0 | AI150: 0 | AJ150: 0 | AK150: 1
A151: =elements!A151 -> QX2F06 | B151: =IF(elements!C151>0,COS(SQRT(elements!C151)*elements!B151),IF(elements!C151<0,COSH(SQRT(-elements!C151)*elements!B151),1)) -> 0.9624750628 | C151: =IF(elements!C151>0,SIN(SQRT(elements!C151)*elements!B151)/SQRT(elements!C151),IF(elements!C151<0,SINH(SQRT(-elements!C151)*elements!B151)/SQRT(-elements!C151),elements!B151)) -> 0.148119017 | D151: 0 | E151: 0 | F151: 0 | G151: 0 | H151: =IF(elements!C151>0,-SQRT(elements!C151)*SIN(SQRT(elements!C151)*elements!B151),IF(elements!C151<0,SQRT(-elements!C151)*SINH(SQRT(-elements!C151)*elements!B151),0)) -> -0.4971795988 | I151: =IF(elements!C151>0,COS(SQRT(elements!C151)*elements!B151),IF(elements!C151<0,COSH(SQRT(-elements!C151)*elements!B151),1)) -> 0.9624750628 | J151: 0 | K151: 0 | L151: 0 | M151: 0 | N151: 0 | O151: 0 | P151: =IF(elements!C151<0,COS(SQRT(-elements!C151)*elements!B151),IF(elements!C151>0,COSH(SQRT(elements!C151)*elements!B151),1)) -> 1.038000262 | Q151: =IF(elements!C151<0,SIN(SQRT(-elements!C151)*elements!B151)/SQRT(-elements!C151),IF(elements!C151>0,SINH(SQRT(elements!C151)*elements!B151)/SQRT(elements!C151),elements!B151)) -> 0.1518952427 | R151: 0 | S151: 0 | T151: 0 | U151: 0 | V151: =IF(elements!C151<0,-SQRT(-elements!C151)*SIN(SQRT(-elements!C151)*elements!B151),IF(elements!C151>0,SQRT(elements!C151)*SINH(SQRT(elements!C151)*elements!B151),0)) -> 0.5098549625 | W151: =IF(elements!C151<0,COS(SQRT(-elements!C151)*elements!B151),IF(elements!C151>0,COSH(SQRT(elements!C151)*elements!B151),1)) -> 1.038000262 | X151: 0 | Y151: 0 | Z151: 0 | AA151: 0 | AB151: 0 | AC151: 0 | AD151: 1 | AE151: 0 | AF151: 0 | AG151: 0 | AH151: 0 | AI151: 0 | AJ151: 0 | AK151: 1
A152: =elements!A152 -> dm12 | B152: 1 | C152: =elements!B152 -> 0.25 | D152: 0 | E152: 0 | F152: 0 | G152: 0 | H152: 0 | I152: 1 | J152: 0 | K152: 0 | L152: 0 | M152: 0 | N152: 0 | O152: 0 | P152: 1 | Q152: =elements!B152 -> 0.25 | R152: 0 | S152: 0 | T152: 0 | U152: 0 | V152: 0 | W152: 1 | X152: 0 | Y152: 0 | Z152: 0 | AA152: 0 | AB152: 0 | AC152: 0 | AD152: 1 | AE152: 0 | AF152: 0 | AG152: 0 | AH152: 0 | AI152: 0 | AJ152: 0 | AK152: 1
A153: =elements!A153 -> d0a | B153: 1 | C153: =elements!B153 -> 0.4280559061 | D153: 0 | E153: 0 | F153: 0 | G153: 0 | H153: 0 | I153: 1 | J153: 0 | K153: 0 | L153: 0 | M153: 0 | N153: 0 | O153: 0 | P153: 1 | Q153: =elements!B153 -> 0.4280559061 | R153: 0 | S153: 0 | T153: 0 | U153: 0 | V153: 0 | W153: 1 | X153: 0 | Y153: 0 | Z153: 0 | AA153: 0 | AB153: 0 | AC153: 0 | AD153: 1 | AE153: 0 | AF153: 0 | AG153: 0 | AH153: 0 | AI153: 0 | AJ153: 0 | AK153: 1
A154: =elements!A154 -> sb1 | B154: 1 | C154: 0 | D154: 0 | E154: 0 | F154: 0 | G154: 0 | H154: =TAN(elements!D154*PI()/180)/elements!C154 -> 0.02910064124 | I154: 1 | J154: 0 | K154: 0 | L154: 0 | M154: 0 | N154: 0 | O154: 0 | P154: 1 | Q154: 0 | R154: 0 | S154: 0 | T154: 0 | U154: 0 | V154: =-TAN((elements!D154*PI()/180)-elements!F154*(elements!E154/elements!C154)*((1+(SIN(elements!D154*PI()/180))^2)/COS(elements!D154*PI()/180))*(1-(elements!E154/elements!C154)*elements!F154*elements!G154*TAN(elements!D154*PI()/180)))/elements!C154 -> -0.01552419196 | W154: 1 | X154: 0 | Y154: 0 | Z154: 0 | AA154: 0 | AB154: 0 | AC154: 0 | AD154: 1 | AE154: 0 | AF154: 0 | AG154: 0 | AH154: 0 | AI154: 0 | AJ154: 0 | AK154: 1
A155: =elements!A155 -> b1 | B155: =IF(elements!D155<1,COS(SQRT(1-elements!D155)*elements!C155*PI()/180),IF(elements!D155>1,COSH(SQRT(elements!D155-1)*elements!C155*PI()/180),1)) -> 0.7267717286 | C155: =IF(elements!D155<1,SIN(SQRT(1-elements!D155)*elements!C155*PI()/180)/(SQRT(1-elements!D155)*elements!C155*PI()/(180*elements!B155)),IF(elements!D155>1,SINH(SQRT(elements!D155-1)*elements!C155*PI()/180)/(SQRT(elements!D155-1)*elements!C155*PI()/(180*elements!B155)),elements!B155)) -> 0.824254882 | D155: 0 | E155: 0 | F155: 0 | G155: =IF(elements!D155<1,((elements!B155/(elements!C155*PI()/180))/(1-elements!D155))*(1-COS(SQRT(1-elements!D155)*elements!C155*PI()/180)),IF(elements!D155>1,((elements!B155/(elements!C155*PI()/180))/(1-elements!D155))*(1-COSH(SQRT(elements!D155-1)*elements!C155*PI()/180)),1)) -> 0.3278739257 | H155: =IF(elements!D155<1,-(SQRT(1-elements!D155)*elements!C155*PI()/(180*elements!B155))*SIN(SQRT(1-elements!D155)*elements!C155*PI()/180),IF(elements!D155>1,(SQRT(elements!D155-1)*elements!C155*PI()/(180*elements!B155))*SINH(SQRT(elements!D155-1)*elements!C155*PI()/180),0)) -> -0.5723992236 | I155: =B155 -> 0.7267717286 | J155: 0 | K155: 0 | L155: 0 | M155: =C155/(elements!B155/(elements!C155*PI()/180)) -> 0.6868790683 | N155: 0 | O155: 0 | P155: =IF(elements!D155>0,COS(SQRT(elements!D155)*elements!C155*PI()/180),IF(elements!D155<0,COSH(SQRT(-elements!D155)*elements!C155*PI()/180),1)) -> 1 | Q155: =IF(elements!D155>0,SIN(SQRT(elements!D155)*elements!C155*PI()/180)/(SQRT(elements!D155)*elements!C155*PI()/(180*elements!B155)),IF(elements!D155<0,SINH(SQRT(-elements!D155)*elements!C155*PI()/180)/(SQRT(-elements!D155)*elements!C155*PI()/(180*elements!B155)),elements!B155)) -> 0.9086232606 | R155: 0 | S155: 0 | T155: 0 | U155: 0 | V155: =IF(elements!D155>0,-(SQRT(elements!D155)*elements!C155*PI()/(180*elements!B155))*SIN(SQRT(elements!D155)*elements!C155*PI()/180),IF(elements!D155<0,(SQRT(-elements!D155)*elements!C155*PI()/(180*elements!B155))*SINH(SQRT(-elements!D155)*elements!C155*PI()/180),0)) -> 0 | W155: =P155 -> 1 | X155: 0 | Y155: 0 | Z155: =M155 -> 0.6868790683 | AA155: =G155 -> 0.3278739257 | AB155: 0 | AC155: 0 | AD155: 1 | AE155: =IF(elements!D155<1,(1/(1-elements!D155))*(elements!B155-SIN(SQRT(1-elements!D155)*elements!C155*PI()/180)/(SQRT(1-elements!D155)*elements!C155*PI()/(180*elements!B155))), IF(elements!D155>1,(1/(1-elements!D155))*(elements!B155-SINH(SQRT(elements!D155-1)*elements!C155*PI()/180)/(SQRT(elements!D155-1)*elements!C155*PI()/(180*elements!B155))), 0)) -> 0.08436837861 | AF155: 0 | AG155: 0 | AH155: 0 | AI155: 0 | AJ155: 0 | AK155: 1
A156: =elements!A156 -> eb1 | B156: 1 | C156: 0 | D156: 0 | E156: 0 | F156: 0 | G156: 0 | H156: =TAN(elements!D156*PI()/180)/elements!C156 -> 0.02910064124 | I156: 1 | J156: 0 | K156: 0 | L156: 0 | M156: 0 | N156: 0 | O156: 0 | P156: 1 | Q156: 0 | R156: 0 | S156: 0 | T156: 0 | U156: 0 | V156: =-TAN((elements!D156*PI()/180)-elements!F156*(elements!E156/elements!C156)*((1+(SIN(elements!D156*PI()/180))^2)/COS(elements!D156*PI()/180))*(1-(elements!E156/elements!C156)*elements!F156*elements!G156*TAN(elements!D156*PI()/180)))/elements!C156 -> -0.01552419196 | W156: 1 | X156: 0 | Y156: 0 | Z156: 0 | AA156: 0 | AB156: 0 | AC156: 0 | AD156: 1 | AE156: 0 | AF156: 0 | AG156: 0 | AH156: 0 | AI156: 0 | AJ156: 0 | AK156: 1
A157: =elements!A157 -> del1 | B157: 1 | C157: =elements!B157 -> 0.285142654 | D157: 0 | E157: 0 | F157: 0 | G157: 0 | H157: 0 | I157: 1 | J157: 0 | K157: 0 | L157: 0 | M157: 0 | N157: 0 | O157: 0 | P157: 1 | Q157: =elements!B157 -> 0.285142654 | R157: 0 | S157: 0 | T157: 0 | U157: 0 | V157: 0 | W157: 1 | X157: 0 | Y157: 0 | Z157: 0 | AA157: 0 | AB157: 0 | AC157: 0 | AD157: 1 | AE157: 0 | AF157: 0 | AG157: 0 | AH157: 0 | AI157: 0 | AJ157: 0 | AK157: 1
A158: =elements!A158 -> del1b | B158: 1 | C158: =elements!B158 -> 0.075 | D158: 0 | E158: 0 | F158: 0 | G158: 0 | H158: 0 | I158: 1 | J158: 0 | K158: 0 | L158: 0 | M158: 0 | N158: 0 | O158: 0 | P158: 1 | Q158: =elements!B158 -> 0.075 | R158: 0 | S158: 0 | T158: 0 | U158: 0 | V158: 0 | W158: 1 | X158: 0 | Y158: 0 | Z158: 0 | AA158: 0 | AB158: 0 | AC158: 0 | AD158: 1 | AE158: 0 | AF158: 0 | AG158: 0 | AH158: 0 | AI158: 0 | AJ158: 0 | AK158: 1
A159: =elements!A159 -> del1b | B159: 1 | C159: =elements!B159 -> 0.075 | D159: 0 | E159: 0 | F159: 0 | G159: 0 | H159: 0 | I159: 1 | J159: 0 | K159: 0 | L159: 0 | M159: 0 | N159: 0 | O159: 0 | P159: 1 | Q159: =elements!B159 -> 0.075 | R159: 0 | S159: 0 | T159: 0 | U159: 0 | V159: 0 | W159: 1 | X159: 0 | Y159: 0 | Z159: 0 | AA159: 0 | AB159: 0 | AC159: 0 | AD159: 1 | AE159: 0 | AF159: 0 | AG159: 0 | AH159: 0 | AI159: 0 | AJ159: 0 | AK159: 1
A160: =elements!A160 -> del1a | B160: 1 | C160: =elements!B160 -> 0.25 | D160: 0 | E160: 0 | F160: 0 | G160: 0 | H160: 0 | I160: 1 | J160: 0 | K160: 0 | L160: 0 | M160: 0 | N160: 0 | O160: 0 | P160: 1 | Q160: =elements!B160 -> 0.25 | R160: 0 | S160: 0 | T160: 0 | U160: 0 | V160: 0 | W160: 1 | X160: 0 | Y160: 0 | Z160: 0 | AA160: 0 | AB160: 0 | AC160: 0 | AD160: 1 | AE160: 0 | AF160: 0 | AG160: 0 | AH160: 0 | AI160: 0 | AJ160: 0 | AK160: 1
A161: =elements!A161 -> SF2F06 | B161: 1 | C161: =elements!B161 -> 0.15 | D161: 0 | E161: 0 | F161: 0 | G161: 0 | H161: 0 | I161: 1 | J161: 0 | K161: 0 | L161: 0 | M161: 0 | N161: 0 | O161: 0 | P161: 1 | Q161: =elements!B161 -> 0.15 | R161: 0 | S161: 0 | T161: 0 | U161: 0 | V161: 0 | W161: 1 | X161: 0 | Y161: 0 | Z161: 0 | AA161: 0 | AB161: 0 | AC161: 0 | AD161: 1 | AE161: 0 | AF161: 0 | AG161: 0 | AH161: 0 | AI161: 0 | AJ161: 0 | AK161: 1
A162: =elements!A162 -> del1a | B162: 1 | C162: =elements!B162 -> 0.25 | D162: 0 | E162: 0 | F162: 0 | G162: 0 | H162: 0 | I162: 1 | J162: 0 | K162: 0 | L162: 0 | M162: 0 | N162: 0 | O162: 0 | P162: 1 | Q162: =elements!B162 -> 0.25 | R162: 0 | S162: 0 | T162: 0 | U162: 0 | V162: 0 | W162: 1 | X162: 0 | Y162: 0 | Z162: 0 | AA162: 0 | AB162: 0 | AC162: 0 | AD162: 1 | AE162: 0 | AF162: 0 | AG162: 0 | AH162: 0 | AI162: 0 | AJ162: 0 | AK162: 1
A163: =elements!A163 -> QT2F07 | B163: =IF(elements!C163>0,COS(SQRT(elements!C163)*elements!B163),IF(elements!C163<0,COSH(SQRT(-elements!C163)*elements!B163),1)) -> 1.001665453 | C163: =IF(elements!C163>0,SIN(SQRT(elements!C163)*elements!B163)/SQRT(elements!C163),IF(elements!C163<0,SINH(SQRT(-elements!C163)*elements!B163)/SQRT(-elements!C163),elements!B163)) -> 0.1500832634 | D163: 0 | E163: 0 | F163: 0 | G163: 0 | H163: =IF(elements!C163>0,-SQRT(elements!C163)*SIN(SQRT(elements!C163)*elements!B163),IF(elements!C163<0,SQRT(-elements!C163)*SINH(SQRT(-elements!C163)*elements!B163),0)) -> 0.02221220601 | I163: =IF(elements!C163>0,COS(SQRT(elements!C163)*elements!B163),IF(elements!C163<0,COSH(SQRT(-elements!C163)*elements!B163),1)) -> 1.001665453 | J163: 0 | K163: 0 | L163: 0 | M163: 0 | N163: 0 | O163: 0 | P163: =IF(elements!C163<0,COS(SQRT(-elements!C163)*elements!B163),IF(elements!C163>0,COSH(SQRT(elements!C163)*elements!B163),1)) -> 0.9983354707 | Q163: =IF(elements!C163<0,SIN(SQRT(-elements!C163)*elements!B163)/SQRT(-elements!C163),IF(elements!C163>0,SINH(SQRT(elements!C163)*elements!B163)/SQRT(elements!C163),elements!B163)) -> 0.1499167643 | R163: 0 | S163: 0 | T163: 0 | U163: 0 | V163: =IF(elements!C163<0,-SQRT(-elements!C163)*SIN(SQRT(-elements!C163)*elements!B163),IF(elements!C163>0,SQRT(elements!C163)*SINH(SQRT(elements!C163)*elements!B163),0)) -> -0.02218756427 | W163: =IF(elements!C163<0,COS(SQRT(-elements!C163)*elements!B163),IF(elements!C163>0,COSH(SQRT(elements!C163)*elements!B163),1)) -> 0.9983354707 | X163: 0 | Y163: 0 | Z163: 0 | AA163: 0 | AB163: 0 | AC163: 0 | AD163: 1 | AE163: 0 | AF163: 0 | AG163: 0 | AH163: 0 | AI163: 0 | AJ163: 0 | AK163: 1
A164: =elements!A164 -> del1 | B164: 1 | C164: =elements!B164 -> 0.285142654 | D164: 0 | E164: 0 | F164: 0 | G164: 0 | H164: 0 | I164: 1 | J164: 0 | K164: 0 | L164: 0 | M164: 0 | N164: 0 | O164: 0 | P164: 1 | Q164: =elements!B164 -> 0.285142654 | R164: 0 | S164: 0 | T164: 0 | U164: 0 | V164: 0 | W164: 1 | X164: 0 | Y164: 0 | Z164: 0 | AA164: 0 | AB164: 0 | AC164: 0 | AD164: 1 | AE164: 0 | AF164: 0 | AG164: 0 | AH164: 0 | AI164: 0 | AJ164: 0 | AK164: 1
A165: =elements!A165 -> roll | B165: -1 | C165: 0 | D165: 0 | E165: 0 | F165: 0 | G165: 0 | H165: 0 | I165: =B165 -> -1 | J165: 0 | K165: 0 | L165: 0 | M165: 0 | N165: 0 | O165: 0 | P165: -1 | Q165: 0 | R165: 0 | S165: 0 | T165: 0 | U165: 0 | V165: 0 | W165: -1 | X165: 0 | Y165: 0 | Z165: 0 | AA165: 0 | AB165: 0 | AC165: 0 | AD165: 1 | AE165: 0 | AF165: 0 | AG165: 0 | AH165: 0 | AI165: 0 | AJ165: 0 | AK165: 1
A166: =elements!A166 -> sb2 | B166: 1 | C166: 0 | D166: 0 | E166: 0 | F166: 0 | G166: 0 | H166: =TAN(elements!D166*PI()/180)/elements!C166 -> 0.2468445791 | I166: 1 | J166: 0 | K166: 0 | L166: 0 | M166: 0 | N166: 0 | O166: 0 | P166: 1 | Q166: 0 | R166: 0 | S166: 0 | T166: 0 | U166: 0 | V166: =-TAN((elements!D166*PI()/180)-elements!F166*(elements!E166/elements!C166)*((1+(SIN(elements!D166*PI()/180))^2)/COS(elements!D166*PI()/180))*(1-(elements!E166/elements!C166)*elements!F166*elements!G166*TAN(elements!D166*PI()/180)))/elements!C166 -> -0.2304097172 | W166: 1 | X166: 0 | Y166: 0 | Z166: 0 | AA166: 0 | AB166: 0 | AC166: 0 | AD166: 1 | AE166: 0 | AF166: 0 | AG166: 0 | AH166: 0 | AI166: 0 | AJ166: 0 | AK166: 1
A167: =elements!A167 -> b2 | B167: =IF(elements!D167<1,COS(SQRT(1-elements!D167)*elements!C167*PI()/180),IF(elements!D167>1,COSH(SQRT(elements!D167-1)*elements!C167*PI()/180),1)) -> 0.7267717286 | C167: =IF(elements!D167<1,SIN(SQRT(1-elements!D167)*elements!C167*PI()/180)/(SQRT(1-elements!D167)*elements!C167*PI()/(180*elements!B167)),IF(elements!D167>1,SINH(SQRT(elements!D167-1)*elements!C167*PI()/180)/(SQRT(elements!D167-1)*elements!C167*PI()/(180*elements!B167)),elements!B167)) -> 0.824254882 | D167: 0 | E167: 0 | F167: 0 | G167: =IF(elements!D167<1,((elements!B167/(elements!C167*PI()/180))/(1-elements!D167))*(1-COS(SQRT(1-elements!D167)*elements!C167*PI()/180)),IF(elements!D167>1,((elements!B167/(elements!C167*PI()/180))/(1-elements!D167))*(1-COSH(SQRT(elements!D167-1)*elements!C167*PI()/180)),1)) -> 0.3278739257 | H167: =IF(elements!D167<1,-(SQRT(1-elements!D167)*elements!C167*PI()/(180*elements!B167))*SIN(SQRT(1-elements!D167)*elements!C167*PI()/180),IF(elements!D167>1,(SQRT(elements!D167-1)*elements!C167*PI()/(180*elements!B167))*SINH(SQRT(elements!D167-1)*elements!C167*PI()/180),0)) -> -0.5723992236 | I167: =B167 -> 0.7267717286 | J167: 0 | K167: 0 | L167: 0 | M167: =C167/(elements!B167/(elements!C167*PI()/180)) -> 0.6868790683 | N167: 0 | O167: 0 | P167: =IF(elements!D167>0,COS(SQRT(elements!D167)*elements!C167*PI()/180),IF(elements!D167<0,COSH(SQRT(-elements!D167)*elements!C167*PI()/180),1)) -> 1 | Q167: =IF(elements!D167>0,SIN(SQRT(elements!D167)*elements!C167*PI()/180)/(SQRT(elements!D167)*elements!C167*PI()/(180*elements!B167)),IF(elements!D167<0,SINH(SQRT(-elements!D167)*elements!C167*PI()/180)/(SQRT(-elements!D167)*elements!C167*PI()/(180*elements!B167)),elements!B167)) -> 0.9086232606 | R167: 0 | S167: 0 | T167: 0 | U167: 0 | V167: =IF(elements!D167>0,-(SQRT(elements!D167)*elements!C167*PI()/(180*elements!B167))*SIN(SQRT(elements!D167)*elements!C167*PI()/180),IF(elements!D167<0,(SQRT(-elements!D167)*elements!C167*PI()/(180*elements!B167))*SINH(SQRT(-elements!D167)*elements!C167*PI()/180),0)) -> 0 | W167: =P167 -> 1 | X167: 0 | Y167: 0 | Z167: =M167 -> 0.6868790683 | AA167: =G167 -> 0.3278739257 | AB167: 0 | AC167: 0 | AD167: 1 | AE167: =IF(elements!D167<1,(1/(1-elements!D167))*(elements!B167-SIN(SQRT(1-elements!D167)*elements!C167*PI()/180)/(SQRT(1-elements!D167)*elements!C167*PI()/(180*elements!B167))), IF(elements!D167>1,(1/(1-elements!D167))*(elements!B167-SINH(SQRT(elements!D167-1)*elements!C167*PI()/180)/(SQRT(elements!D167-1)*elements!C167*PI()/(180*elements!B167))), 0)) -> 0.08436837861 | AF167: 0 | AG167: 0 | AH167: 0 | AI167: 0 | AJ167: 0 | AK167: 1
A168: =elements!A168 -> eb2 | B168: 1 | C168: 0 | D168: 0 | E168: 0 | F168: 0 | G168: 0 | H168: =TAN(elements!D168*PI()/180)/elements!C168 -> 0.2468445791 | I168: 1 | J168: 0 | K168: 0 | L168: 0 | M168: 0 | N168: 0 | O168: 0 | P168: 1 | Q168: 0 | R168: 0 | S168: 0 | T168: 0 | U168: 0 | V168: =-TAN((elements!D168*PI()/180)-elements!F168*(elements!E168/elements!C168)*((1+(SIN(elements!D168*PI()/180))^2)/COS(elements!D168*PI()/180))*(1-(elements!E168/elements!C168)*elements!F168*elements!G168*TAN(elements!D168*PI()/180)))/elements!C168 -> -0.2304097172 | W168: 1 | X168: 0 | Y168: 0 | Z168: 0 | AA168: 0 | AB168: 0 | AC168: 0 | AD168: 1 | AE168: 0 | AF168: 0 | AG168: 0 | AH168: 0 | AI168: 0 | AJ168: 0 | AK168: 1
A169: =elements!A169 -> roll | B169: -1 | C169: 0 | D169: 0 | E169: 0 | F169: 0 | G169: 0 | H169: 0 | I169: =B169 -> -1 | J169: 0 | K169: 0 | L169: 0 | M169: 0 | N169: 0 | O169: 0 | P169: -1 | Q169: 0 | R169: 0 | S169: 0 | T169: 0 | U169: 0 | V169: 0 | W169: -1 | X169: 0 | Y169: 0 | Z169: 0 | AA169: 0 | AB169: 0 | AC169: 0 | AD169: 1 | AE169: 0 | AF169: 0 | AG169: 0 | AH169: 0 | AI169: 0 | AJ169: 0 | AK169: 1
A170: =elements!A170 -> del2 | B170: 1 | C170: =elements!B170 -> 0.2984687666 | D170: 0 | E170: 0 | F170: 0 | G170: 0 | H170: 0 | I170: 1 | J170: 0 | K170: 0 | L170: 0 | M170: 0 | N170: 0 | O170: 0 | P170: 1 | Q170: =elements!B170 -> 0.2984687666 | R170: 0 | S170: 0 | T170: 0 | U170: 0 | V170: 0 | W170: 1 | X170: 0 | Y170: 0 | Z170: 0 | AA170: 0 | AB170: 0 | AC170: 0 | AD170: 1 | AE170: 0 | AF170: 0 | AG170: 0 | AH170: 0 | AI170: 0 | AJ170: 0 | AK170: 1
A171: =elements!A171 -> del2b | B171: 1 | C171: =elements!B171 -> 0.075 | D171: 0 | E171: 0 | F171: 0 | G171: 0 | H171: 0 | I171: 1 | J171: 0 | K171: 0 | L171: 0 | M171: 0 | N171: 0 | O171: 0 | P171: 1 | Q171: =elements!B171 -> 0.075 | R171: 0 | S171: 0 | T171: 0 | U171: 0 | V171: 0 | W171: 1 | X171: 0 | Y171: 0 | Z171: 0 | AA171: 0 | AB171: 0 | AC171: 0 | AD171: 1 | AE171: 0 | AF171: 0 | AG171: 0 | AH171: 0 | AI171: 0 | AJ171: 0 | AK171: 1
A172: =elements!A172 -> del2b | B172: 1 | C172: =elements!B172 -> 0.075 | D172: 0 | E172: 0 | F172: 0 | G172: 0 | H172: 0 | I172: 1 | J172: 0 | K172: 0 | L172: 0 | M172: 0 | N172: 0 | O172: 0 | P172: 1 | Q172: =elements!B172 -> 0.075 | R172: 0 | S172: 0 | T172: 0 | U172: 0 | V172: 0 | W172: 1 | X172: 0 | Y172: 0 | Z172: 0 | AA172: 0 | AB172: 0 | AC172: 0 | AD172: 1 | AE172: 0 | AF172: 0 | AG172: 0 | AH172: 0 | AI172: 0 | AJ172: 0 | AK172: 1
A173: =elements!A173 -> del2a | B173: 1 | C173: =elements!B173 -> 0.25 | D173: 0 | E173: 0 | F173: 0 | G173: 0 | H173: 0 | I173: 1 | J173: 0 | K173: 0 | L173: 0 | M173: 0 | N173: 0 | O173: 0 | P173: 1 | Q173: =elements!B173 -> 0.25 | R173: 0 | S173: 0 | T173: 0 | U173: 0 | V173: 0 | W173: 1 | X173: 0 | Y173: 0 | Z173: 0 | AA173: 0 | AB173: 0 | AC173: 0 | AD173: 1 | AE173: 0 | AF173: 0 | AG173: 0 | AH173: 0 | AI173: 0 | AJ173: 0 | AK173: 1
A174: =elements!A174 -> SF2F07 | B174: 1 | C174: =elements!B174 -> 0.15 | D174: 0 | E174: 0 | F174: 0 | G174: 0 | H174: 0 | I174: 1 | J174: 0 | K174: 0 | L174: 0 | M174: 0 | N174: 0 | O174: 0 | P174: 1 | Q174: =elements!B174 -> 0.15 | R174: 0 | S174: 0 | T174: 0 | U174: 0 | V174: 0 | W174: 1 | X174: 0 | Y174: 0 | Z174: 0 | AA174: 0 | AB174: 0 | AC174: 0 | AD174: 1 | AE174: 0 | AF174: 0 | AG174: 0 | AH174: 0 | AI174: 0 | AJ174: 0 | AK174: 1
A175: =elements!A175 -> del2a | B175: 1 | C175: =elements!B175 -> 0.25 | D175: 0 | E175: 0 | F175: 0 | G175: 0 | H175: 0 | I175: 1 | J175: 0 | K175: 0 | L175: 0 | M175: 0 | N175: 0 | O175: 0 | P175: 1 | Q175: =elements!B175 -> 0.25 | R175: 0 | S175: 0 | T175: 0 | U175: 0 | V175: 0 | W175: 1 | X175: 0 | Y175: 0 | Z175: 0 | AA175: 0 | AB175: 0 | AC175: 0 | AD175: 1 | AE175: 0 | AF175: 0 | AG175: 0 | AH175: 0 | AI175: 0 | AJ175: 0 | AK175: 1
A176: =elements!A176 -> QT2F08 | B176: =IF(elements!C176>0,COS(SQRT(elements!C176)*elements!B176),IF(elements!C176<0,COSH(SQRT(-elements!C176)*elements!B176),1)) -> 0.9883676834 | C176: =IF(elements!C176>0,SIN(SQRT(elements!C176)*elements!B176)/SQRT(elements!C176),IF(elements!C176<0,SINH(SQRT(-elements!C176)*elements!B176)/SQRT(-elements!C176),elements!B176)) -> 0.1494179319 | D176: 0 | E176: 0 | F176: 0 | G176: 0 | H176: =IF(elements!C176>0,-SQRT(elements!C176)*SIN(SQRT(elements!C176)*elements!B176),IF(elements!C176<0,SQRT(-elements!C176)*SINH(SQRT(-elements!C176)*elements!B176),0)) -> -0.1547961622 | I176: =IF(elements!C176>0,COS(SQRT(elements!C176)*elements!B176),IF(elements!C176<0,COSH(SQRT(-elements!C176)*elements!B176),1)) -> 0.9883676834 | J176: 0 | K176: 0 | L176: 0 | M176: 0 | N176: 0 | O176: 0 | P176: =IF(elements!C176<0,COS(SQRT(-elements!C176)*elements!B176),IF(elements!C176>0,COSH(SQRT(elements!C176)*elements!B176),1)) -> 1.011677596 | Q176: =IF(elements!C176<0,SIN(SQRT(-elements!C176)*elements!B176)/SQRT(-elements!C176),IF(elements!C176>0,SINH(SQRT(elements!C176)*elements!B176)/SQRT(elements!C176),elements!B176)) -> 0.1505834265 | R176: 0 | S176: 0 | T176: 0 | U176: 0 | V176: =IF(elements!C176<0,-SQRT(-elements!C176)*SIN(SQRT(-elements!C176)*elements!B176),IF(elements!C176>0,SQRT(elements!C176)*SINH(SQRT(elements!C176)*elements!B176),0)) -> 0.1560036083 | W176: =IF(elements!C176<0,COS(SQRT(-elements!C176)*elements!B176),IF(elements!C176>0,COSH(SQRT(elements!C176)*elements!B176),1)) -> 1.011677596 | X176: 0 | Y176: 0 | Z176: 0 | AA176: 0 | AB176: 0 | AC176: 0 | AD176: 1 | AE176: 0 | AF176: 0 | AG176: 0 | AH176: 0 | AI176: 0 | AJ176: 0 | AK176: 1
A177: =elements!A177 -> del2 | B177: 1 | C177: =elements!B177 -> 0.2984687666 | D177: 0 | E177: 0 | F177: 0 | G177: 0 | H177: 0 | I177: 1 | J177: 0 | K177: 0 | L177: 0 | M177: 0 | N177: 0 | O177: 0 | P177: 1 | Q177: =elements!B177 -> 0.2984687666 | R177: 0 | S177: 0 | T177: 0 | U177: 0 | V177: 0 | W177: 1 | X177: 0 | Y177: 0 | Z177: 0 | AA177: 0 | AB177: 0 | AC177: 0 | AD177: 1 | AE177: 0 | AF177: 0 | AG177: 0 | AH177: 0 | AI177: 0 | AJ177: 0 | AK177: 1
A178: =elements!A178 -> sbb | B178: 1 | C178: 0 | D178: 0 | E178: 0 | F178: 0 | G178: 0 | H178: =TAN(elements!D178*PI()/180)/elements!C178 -> 0 | I178: 1 | J178: 0 | K178: 0 | L178: 0 | M178: 0 | N178: 0 | O178: 0 | P178: 1 | Q178: 0 | R178: 0 | S178: 0 | T178: 0 | U178: 0 | V178: =-TAN((elements!D178*PI()/180)-elements!F178*(elements!E178/elements!C178)*((1+(SIN(elements!D178*PI()/180))^2)/COS(elements!D178*PI()/180))*(1-(elements!E178/elements!C178)*elements!F178*elements!G178*TAN(elements!D178*PI()/180)))/elements!C178 -> 0.019502472 | W178: 1 | X178: 0 | Y178: 0 | Z178: 0 | AA178: 0 | AB178: 0 | AC178: 0 | AD178: 1 | AE178: 0 | AF178: 0 | AG178: 0 | AH178: 0 | AI178: 0 | AJ178: 0 | AK178: 1
A179: =elements!A179 -> bb/6 | B179: =IF(elements!D179<1,COS(SQRT(1-elements!D179)*elements!C179*PI()/180),IF(elements!D179>1,COSH(SQRT(elements!D179-1)*elements!C179*PI()/180),1)) -> 0.8660254038 | C179: =IF(elements!D179<1,SIN(SQRT(1-elements!D179)*elements!C179*PI()/180)/(SQRT(1-elements!D179)*elements!C179*PI()/(180*elements!B179)),IF(elements!D179>1,SINH(SQRT(elements!D179-1)*elements!C179*PI()/180)/(SQRT(elements!D179-1)*elements!C179*PI()/(180*elements!B179)),elements!B179)) -> 0.5 | D179: 0 | E179: 0 | F179: 0 | G179: =IF(elements!D179<1,((elements!B179/(elements!C179*PI()/180))/(1-elements!D179))*(1-COS(SQRT(1-elements!D179)*elements!C179*PI()/180)),IF(elements!D179>1,((elements!B179/(elements!C179*PI()/180))/(1-elements!D179))*(1-COSH(SQRT(elements!D179-1)*elements!C179*PI()/180)),1)) -> 0.1339745962 | H179: =IF(elements!D179<1,-(SQRT(1-elements!D179)*elements!C179*PI()/(180*elements!B179))*SIN(SQRT(1-elements!D179)*elements!C179*PI()/180),IF(elements!D179>1,(SQRT(elements!D179-1)*elements!C179*PI()/(180*elements!B179))*SINH(SQRT(elements!D179-1)*elements!C179*PI()/180),0)) -> -0.5 | I179: =B179 -> 0.8660254038 | J179: 0 | K179: 0 | L179: 0 | M179: =C179/(elements!B179/(elements!C179*PI()/180)) -> 0.5 | N179: 0 | O179: 0 | P179: =IF(elements!D179>0,COS(SQRT(elements!D179)*elements!C179*PI()/180),IF(elements!D179<0,COSH(SQRT(-elements!D179)*elements!C179*PI()/180),1)) -> 1 | Q179: =IF(elements!D179>0,SIN(SQRT(elements!D179)*elements!C179*PI()/180)/(SQRT(elements!D179)*elements!C179*PI()/(180*elements!B179)),IF(elements!D179<0,SINH(SQRT(-elements!D179)*elements!C179*PI()/180)/(SQRT(-elements!D179)*elements!C179*PI()/(180*elements!B179)),elements!B179)) -> 0.5235987756 | R179: 0 | S179: 0 | T179: 0 | U179: 0 | V179: =IF(elements!D179>0,-(SQRT(elements!D179)*elements!C179*PI()/(180*elements!B179))*SIN(SQRT(elements!D179)*elements!C179*PI()/180),IF(elements!D179<0,(SQRT(-elements!D179)*elements!C179*PI()/(180*elements!B179))*SINH(SQRT(-elements!D179)*elements!C179*PI()/180),0)) -> 0 | W179: =P179 -> 1 | X179: 0 | Y179: 0 | Z179: =M179 -> 0.5 | AA179: =G179 -> 0.1339745962 | AB179: 0 | AC179: 0 | AD179: 1 | AE179: =IF(elements!D179<1,(1/(1-elements!D179))*(elements!B179-SIN(SQRT(1-elements!D179)*elements!C179*PI()/180)/(SQRT(1-elements!D179)*elements!C179*PI()/(180*elements!B179))), IF(elements!D179>1,(1/(1-elements!D179))*(elements!B179-SINH(SQRT(elements!D179-1)*elements!C179*PI()/180)/(SQRT(elements!D179-1)*elements!C179*PI()/(180*elements!B179))), 0)) -> 0.0235987756 | AF179: 0 | AG179: 0 | AH179: 0 | AI179: 0 | AJ179: 0 | AK179: 1
A180: =elements!A180 -> bb/6 | B180: =IF(elements!D180<1,COS(SQRT(1-elements!D180)*elements!C180*PI()/180),IF(elements!D180>1,COSH(SQRT(elements!D180-1)*elements!C180*PI()/180),1)) -> 0.8660254038 | C180: =IF(elements!D180<1,SIN(SQRT(1-elements!D180)*elements!C180*PI()/180)/(SQRT(1-elements!D180)*elements!C180*PI()/(180*elements!B180)),IF(elements!D180>1,SINH(SQRT(elements!D180-1)*elements!C180*PI()/180)/(SQRT(elements!D180-1)*elements!C180*PI()/(180*elements!B180)),elements!B180)) -> 0.5 | D180: 0 | E180: 0 | F180: 0 | G180: =IF(elements!D180<1,((elements!B180/(elements!C180*PI()/180))/(1-elements!D180))*(1-COS(SQRT(1-elements!D180)*elements!C180*PI()/180)),IF(elements!D180>1,((elements!B180/(elements!C180*PI()/180))/(1-elements!D180))*(1-COSH(SQRT(elements!D180-1)*elements!C180*PI()/180)),1)) -> 0.1339745962 | H180: =IF(elements!D180<1,-(SQRT(1-elements!D180)*elements!C180*PI()/(180*elements!B180))*SIN(SQRT(1-elements!D180)*elements!C180*PI()/180),IF(elements!D180>1,(SQRT(elements!D180-1)*elements!C180*PI()/(180*elements!B180))*SINH(SQRT(elements!D180-1)*elements!C180*PI()/180),0)) -> -0.5 | I180: 0.8660254038 | J180: 0 | K180: 0 | L180: 0 | M180: =C180/(elements!B180/(elements!C180*PI()/180)) -> 0.5 | N180: 0 | O180: 0 | P180: =IF(elements!D180>0,COS(SQRT(elements!D180)*elements!C180*PI()/180),IF(elements!D180<0,COSH(SQRT(-elements!D180)*elements!C180*PI()/180),1)) -> 1 | Q180: =IF(elements!D180>0,SIN(SQRT(elements!D180)*elements!C180*PI()/180)/(SQRT(elements!D180)*elements!C180*PI()/(180*elements!B180)),IF(elements!D180<0,SINH(SQRT(-elements!D180)*elements!C180*PI()/180)/(SQRT(-elements!D180)*elements!C180*PI()/(180*elements!B180)),elements!B180)) -> 0.5235987756 | R180: 0 | S180: 0 | T180: 0 | U180: 0 | V180: =IF(elements!D180>0,-(SQRT(elements!D180)*elements!C180*PI()/(180*elements!B180))*SIN(SQRT(elements!D180)*elements!C180*PI()/180),IF(elements!D180<0,(SQRT(-elements!D180)*elements!C180*PI()/(180*elements!B180))*SINH(SQRT(-elements!D180)*elements!C180*PI()/180),0)) -> 0 | W180: 1 | X180: 0 | Y180: 0 | Z180: 0.5 | AA180: 0.1339745962 | AB180: 0 | AC180: 0 | AD180: 1 | AE180: =IF(elements!D180<1,(1/(1-elements!D180))*(elements!B180-SIN(SQRT(1-elements!D180)*elements!C180*PI()/180)/(SQRT(1-elements!D180)*elements!C180*PI()/(180*elements!B180))), IF(elements!D180>1,(1/(1-elements!D180))*(elements!B180-SINH(SQRT(elements!D180-1)*elements!C180*PI()/180)/(SQRT(elements!D180-1)*elements!C180*PI()/(180*elements!B180))), 0)) -> 0.0235987756 | AF180: 0 | AG180: 0 | AH180: 0 | AI180: 0 | AJ180: 0 | AK180: 1
A181: =elements!A181 -> bb/6 | B181: =IF(elements!D181<1,COS(SQRT(1-elements!D181)*elements!C181*PI()/180),IF(elements!D181>1,COSH(SQRT(elements!D181-1)*elements!C181*PI()/180),1)) -> 0.8660254038 | C181: =IF(elements!D181<1,SIN(SQRT(1-elements!D181)*elements!C181*PI()/180)/(SQRT(1-elements!D181)*elements!C181*PI()/(180*elements!B181)),IF(elements!D181>1,SINH(SQRT(elements!D181-1)*elements!C181*PI()/180)/(SQRT(elements!D181-1)*elements!C181*PI()/(180*elements!B181)),elements!B181)) -> 0.5 | D181: 0 | E181: 0 | F181: 0 | G181: =IF(elements!D181<1,((elements!B181/(elements!C181*PI()/180))/(1-elements!D181))*(1-COS(SQRT(1-elements!D181)*elements!C181*PI()/180)),IF(elements!D181>1,((elements!B181/(elements!C181*PI()/180))/(1-elements!D181))*(1-COSH(SQRT(elements!D181-1)*elements!C181*PI()/180)),1)) -> 0.1339745962 | H181: =IF(elements!D181<1,-(SQRT(1-elements!D181)*elements!C181*PI()/(180*elements!B181))*SIN(SQRT(1-elements!D181)*elements!C181*PI()/180),IF(elements!D181>1,(SQRT(elements!D181-1)*elements!C181*PI()/(180*elements!B181))*SINH(SQRT(elements!D181-1)*elements!C181*PI()/180),0)) -> -0.5 | I181: 0.8660254038 | J181: 0 | K181: 0 | L181: 0 | M181: =C181/(elements!B181/(elements!C181*PI()/180)) -> 0.5 | N181: 0 | O181: 0 | P181: =IF(elements!D181>0,COS(SQRT(elements!D181)*elements!C181*PI()/180),IF(elements!D181<0,COSH(SQRT(-elements!D181)*elements!C181*PI()/180),1)) -> 1 | Q181: =IF(elements!D181>0,SIN(SQRT(elements!D181)*elements!C181*PI()/180)/(SQRT(elements!D181)*elements!C181*PI()/(180*elements!B181)),IF(elements!D181<0,SINH(SQRT(-elements!D181)*elements!C181*PI()/180)/(SQRT(-elements!D181)*elements!C181*PI()/(180*elements!B181)),elements!B181)) -> 0.5235987756 | R181: 0 | S181: 0 | T181: 0 | U181: 0 | V181: =IF(elements!D181>0,-(SQRT(elements!D181)*elements!C181*PI()/(180*elements!B181))*SIN(SQRT(elements!D181)*elements!C181*PI()/180),IF(elements!D181<0,(SQRT(-elements!D181)*elements!C181*PI()/(180*elements!B181))*SINH(SQRT(-elements!D181)*elements!C181*PI()/180),0)) -> 0 | W181: 1 | X181: 0 | Y181: 0 | Z181: 0.5 | AA181: 0.1339745962 | AB181: 0 | AC181: 0 | AD181: 1 | AE181: =IF(elements!D181<1,(1/(1-elements!D181))*(elements!B181-SIN(SQRT(1-elements!D181)*elements!C181*PI()/180)/(SQRT(1-elements!D181)*elements!C181*PI()/(180*elements!B181))), IF(elements!D181>1,(1/(1-elements!D181))*(elements!B181-SINH(SQRT(elements!D181-1)*elements!C181*PI()/180)/(SQRT(elements!D181-1)*elements!C181*PI()/(180*elements!B181))), 0)) -> 0.0235987756 | AF181: 0 | AG181: 0 | AH181: 0 | AI181: 0 | AJ181: 0 | AK181: 1
A182: =elements!A182 -> bb/6 | B182: =IF(elements!D182<1,COS(SQRT(1-elements!D182)*elements!C182*PI()/180),IF(elements!D182>1,COSH(SQRT(elements!D182-1)*elements!C182*PI()/180),1)) -> 0.8660254038 | C182: =IF(elements!D182<1,SIN(SQRT(1-elements!D182)*elements!C182*PI()/180)/(SQRT(1-elements!D182)*elements!C182*PI()/(180*elements!B182)),IF(elements!D182>1,SINH(SQRT(elements!D182-1)*elements!C182*PI()/180)/(SQRT(elements!D182-1)*elements!C182*PI()/(180*elements!B182)),elements!B182)) -> 0.5 | D182: 0 | E182: 0 | F182: 0 | G182: =IF(elements!D182<1,((elements!B182/(elements!C182*PI()/180))/(1-elements!D182))*(1-COS(SQRT(1-elements!D182)*elements!C182*PI()/180)),IF(elements!D182>1,((elements!B182/(elements!C182*PI()/180))/(1-elements!D182))*(1-COSH(SQRT(elements!D182-1)*elements!C182*PI()/180)),1)) -> 0.1339745962 | H182: =IF(elements!D182<1,-(SQRT(1-elements!D182)*elements!C182*PI()/(180*elements!B182))*SIN(SQRT(1-elements!D182)*elements!C182*PI()/180),IF(elements!D182>1,(SQRT(elements!D182-1)*elements!C182*PI()/(180*elements!B182))*SINH(SQRT(elements!D182-1)*elements!C182*PI()/180),0)) -> -0.5 | I182: 0.8660254038 | J182: 0 | K182: 0 | L182: 0 | M182: =C182/(elements!B182/(elements!C182*PI()/180)) -> 0.5 | N182: 0 | O182: 0 | P182: =IF(elements!D182>0,COS(SQRT(elements!D182)*elements!C182*PI()/180),IF(elements!D182<0,COSH(SQRT(-elements!D182)*elements!C182*PI()/180),1)) -> 1 | Q182: =IF(elements!D182>0,SIN(SQRT(elements!D182)*elements!C182*PI()/180)/(SQRT(elements!D182)*elements!C182*PI()/(180*elements!B182)),IF(elements!D182<0,SINH(SQRT(-elements!D182)*elements!C182*PI()/180)/(SQRT(-elements!D182)*elements!C182*PI()/(180*elements!B182)),elements!B182)) -> 0.5235987756 | R182: 0 | S182: 0 | T182: 0 | U182: 0 | V182: =IF(elements!D182>0,-(SQRT(elements!D182)*elements!C182*PI()/(180*elements!B182))*SIN(SQRT(elements!D182)*elements!C182*PI()/180),IF(elements!D182<0,(SQRT(-elements!D182)*elements!C182*PI()/(180*elements!B182))*SINH(SQRT(-elements!D182)*elements!C182*PI()/180),0)) -> 0 | W182: 1 | X182: 0 | Y182: 0 | Z182: 0.5 | AA182: 0.1339745962 | AB182: 0 | AC182: 0 | AD182: 1 | AE182: =IF(elements!D182<1,(1/(1-elements!D182))*(elements!B182-SIN(SQRT(1-elements!D182)*elements!C182*PI()/180)/(SQRT(1-elements!D182)*elements!C182*PI()/(180*elements!B182))), IF(elements!D182>1,(1/(1-elements!D182))*(elements!B182-SINH(SQRT(elements!D182-1)*elements!C182*PI()/180)/(SQRT(elements!D182-1)*elements!C182*PI()/(180*elements!B182))), 0)) -> 0.0235987756 | AF182: 0 | AG182: 0 | AH182: 0 | AI182: 0 | AJ182: 0 | AK182: 1
A183: =elements!A183 -> bb/6 | B183: =IF(elements!D183<1,COS(SQRT(1-elements!D183)*elements!C183*PI()/180),IF(elements!D183>1,COSH(SQRT(elements!D183-1)*elements!C183*PI()/180),1)) -> 0.8660254038 | C183: =IF(elements!D183<1,SIN(SQRT(1-elements!D183)*elements!C183*PI()/180)/(SQRT(1-elements!D183)*elements!C183*PI()/(180*elements!B183)),IF(elements!D183>1,SINH(SQRT(elements!D183-1)*elements!C183*PI()/180)/(SQRT(elements!D183-1)*elements!C183*PI()/(180*elements!B183)),elements!B183)) -> 0.5 | D183: 0 | E183: 0 | F183: 0 | G183: =IF(elements!D183<1,((elements!B183/(elements!C183*PI()/180))/(1-elements!D183))*(1-COS(SQRT(1-elements!D183)*elements!C183*PI()/180)),IF(elements!D183>1,((elements!B183/(elements!C183*PI()/180))/(1-elements!D183))*(1-COSH(SQRT(elements!D183-1)*elements!C183*PI()/180)),1)) -> 0.1339745962 | H183: =IF(elements!D183<1,-(SQRT(1-elements!D183)*elements!C183*PI()/(180*elements!B183))*SIN(SQRT(1-elements!D183)*elements!C183*PI()/180),IF(elements!D183>1,(SQRT(elements!D183-1)*elements!C183*PI()/(180*elements!B183))*SINH(SQRT(elements!D183-1)*elements!C183*PI()/180),0)) -> -0.5 | I183: 0.8660254038 | J183: 0 | K183: 0 | L183: 0 | M183: =C183/(elements!B183/(elements!C183*PI()/180)) -> 0.5 | N183: 0 | O183: 0 | P183: =IF(elements!D183>0,COS(SQRT(elements!D183)*elements!C183*PI()/180),IF(elements!D183<0,COSH(SQRT(-elements!D183)*elements!C183*PI()/180),1)) -> 1 | Q183: =IF(elements!D183>0,SIN(SQRT(elements!D183)*elements!C183*PI()/180)/(SQRT(elements!D183)*elements!C183*PI()/(180*elements!B183)),IF(elements!D183<0,SINH(SQRT(-elements!D183)*elements!C183*PI()/180)/(SQRT(-elements!D183)*elements!C183*PI()/(180*elements!B183)),elements!B183)) -> 0.5235987756 | R183: 0 | S183: 0 | T183: 0 | U183: 0 | V183: =IF(elements!D183>0,-(SQRT(elements!D183)*elements!C183*PI()/(180*elements!B183))*SIN(SQRT(elements!D183)*elements!C183*PI()/180),IF(elements!D183<0,(SQRT(-elements!D183)*elements!C183*PI()/(180*elements!B183))*SINH(SQRT(-elements!D183)*elements!C183*PI()/180),0)) -> 0 | W183: 1 | X183: 0 | Y183: 0 | Z183: 0.5 | AA183: 0.1339745962 | AB183: 0 | AC183: 0 | AD183: 1 | AE183: =IF(elements!D183<1,(1/(1-elements!D183))*(elements!B183-SIN(SQRT(1-elements!D183)*elements!C183*PI()/180)/(SQRT(1-elements!D183)*elements!C183*PI()/(180*elements!B183))), IF(elements!D183>1,(1/(1-elements!D183))*(elements!B183-SINH(SQRT(elements!D183-1)*elements!C183*PI()/180)/(SQRT(elements!D183-1)*elements!C183*PI()/(180*elements!B183))), 0)) -> 0.0235987756 | AF183: 0 | AG183: 0 | AH183: 0 | AI183: 0 | AJ183: 0 | AK183: 1
A184: =elements!A184 -> bb/6 | B184: =IF(elements!D184<1,COS(SQRT(1-elements!D184)*elements!C184*PI()/180),IF(elements!D184>1,COSH(SQRT(elements!D184-1)*elements!C184*PI()/180),1)) -> 0.8660254038 | C184: =IF(elements!D184<1,SIN(SQRT(1-elements!D184)*elements!C184*PI()/180)/(SQRT(1-elements!D184)*elements!C184*PI()/(180*elements!B184)),IF(elements!D184>1,SINH(SQRT(elements!D184-1)*elements!C184*PI()/180)/(SQRT(elements!D184-1)*elements!C184*PI()/(180*elements!B184)),elements!B184)) -> 0.5 | D184: 0 | E184: 0 | F184: 0 | G184: =IF(elements!D184<1,((elements!B184/(elements!C184*PI()/180))/(1-elements!D184))*(1-COS(SQRT(1-elements!D184)*elements!C184*PI()/180)),IF(elements!D184>1,((elements!B184/(elements!C184*PI()/180))/(1-elements!D184))*(1-COSH(SQRT(elements!D184-1)*elements!C184*PI()/180)),1)) -> 0.1339745962 | H184: =IF(elements!D184<1,-(SQRT(1-elements!D184)*elements!C184*PI()/(180*elements!B184))*SIN(SQRT(1-elements!D184)*elements!C184*PI()/180),IF(elements!D184>1,(SQRT(elements!D184-1)*elements!C184*PI()/(180*elements!B184))*SINH(SQRT(elements!D184-1)*elements!C184*PI()/180),0)) -> -0.5 | I184: 0.8660254038 | J184: 0 | K184: 0 | L184: 0 | M184: =C184/(elements!B184/(elements!C184*PI()/180)) -> 0.5 | N184: 0 | O184: 0 | P184: =IF(elements!D184>0,COS(SQRT(elements!D184)*elements!C184*PI()/180),IF(elements!D184<0,COSH(SQRT(-elements!D184)*elements!C184*PI()/180),1)) -> 1 | Q184: =IF(elements!D184>0,SIN(SQRT(elements!D184)*elements!C184*PI()/180)/(SQRT(elements!D184)*elements!C184*PI()/(180*elements!B184)),IF(elements!D184<0,SINH(SQRT(-elements!D184)*elements!C184*PI()/180)/(SQRT(-elements!D184)*elements!C184*PI()/(180*elements!B184)),elements!B184)) -> 0.5235987756 | R184: 0 | S184: 0 | T184: 0 | U184: 0 | V184: =IF(elements!D184>0,-(SQRT(elements!D184)*elements!C184*PI()/(180*elements!B184))*SIN(SQRT(elements!D184)*elements!C184*PI()/180),IF(elements!D184<0,(SQRT(-elements!D184)*elements!C184*PI()/(180*elements!B184))*SINH(SQRT(-elements!D184)*elements!C184*PI()/180),0)) -> 0 | W184: 1 | X184: 0 | Y184: 0 | Z184: 0.5 | AA184: 0.1339745962 | AB184: 0 | AC184: 0 | AD184: 1 | AE184: =IF(elements!D184<1,(1/(1-elements!D184))*(elements!B184-SIN(SQRT(1-elements!D184)*elements!C184*PI()/180)/(SQRT(1-elements!D184)*elements!C184*PI()/(180*elements!B184))), IF(elements!D184>1,(1/(1-elements!D184))*(elements!B184-SINH(SQRT(elements!D184-1)*elements!C184*PI()/180)/(SQRT(elements!D184-1)*elements!C184*PI()/(180*elements!B184))), 0)) -> 0.0235987756 | AF184: 0 | AG184: 0 | AH184: 0 | AI184: 0 | AJ184: 0 | AK184: 1
A185: =elements!A185 -> ebb | B185: 1 | C185: 0 | D185: 0 | E185: 0 | F185: 0 | G185: 0 | H185: =TAN(elements!D185*PI()/180)/elements!C185 -> 0 | I185: 1 | J185: 0 | K185: 0 | L185: 0 | M185: 0 | N185: 0 | O185: 0 | P185: 1 | Q185: 0 | R185: 0 | S185: 0 | T185: 0 | U185: 0 | V185: =-TAN((elements!D185*PI()/180)-elements!F185*(elements!E185/elements!C185)*((1+(SIN(elements!D185*PI()/180))^2)/COS(elements!D185*PI()/180))*(1-(elements!E185/elements!C185)*elements!F185*elements!G185*TAN(elements!D185*PI()/180)))/elements!C185 -> 0.019502472 | W185: 1 | X185: 0 | Y185: 0 | Z185: 0 | AA185: 0 | AB185: 0 | AC185: 0 | AD185: 1 | AE185: 0 | AF185: 0 | AG185: 0 | AH185: 0 | AI185: 0 | AJ185: 0 | AK185: 1
A186: =elements!A186 -> del2 | B186: 1 | C186: =elements!B186 -> 0.2984687666 | D186: 0 | E186: 0 | F186: 0 | G186: 0 | H186: 0 | I186: 1 | J186: 0 | K186: 0 | L186: 0 | M186: 0 | N186: 0 | O186: 0 | P186: 1 | Q186: =elements!B186 -> 0.2984687666 | R186: 0 | S186: 0 | T186: 0 | U186: 0 | V186: 0 | W186: 1 | X186: 0 | Y186: 0 | Z186: 0 | AA186: 0 | AB186: 0 | AC186: 0 | AD186: 1 | AE186: 0 | AF186: 0 | AG186: 0 | AH186: 0 | AI186: 0 | AJ186: 0 | AK186: 1
A187: =elements!A187 -> QT2F09 | B187: =IF(elements!C187>0,COS(SQRT(elements!C187)*elements!B187),IF(elements!C187<0,COSH(SQRT(-elements!C187)*elements!B187),1)) -> 0.9883676834 | C187: =IF(elements!C187>0,SIN(SQRT(elements!C187)*elements!B187)/SQRT(elements!C187),IF(elements!C187<0,SINH(SQRT(-elements!C187)*elements!B187)/SQRT(-elements!C187),elements!B187)) -> 0.1494179319 | D187: 0 | E187: 0 | F187: 0 | G187: 0 | H187: =IF(elements!C187>0,-SQRT(elements!C187)*SIN(SQRT(elements!C187)*elements!B187),IF(elements!C187<0,SQRT(-elements!C187)*SINH(SQRT(-elements!C187)*elements!B187),0)) -> -0.1547961622 | I187: =IF(elements!C187>0,COS(SQRT(elements!C187)*elements!B187),IF(elements!C187<0,COSH(SQRT(-elements!C187)*elements!B187),1)) -> 0.9883676834 | J187: 0 | K187: 0 | L187: 0 | M187: 0 | N187: 0 | O187: 0 | P187: =IF(elements!C187<0,COS(SQRT(-elements!C187)*elements!B187),IF(elements!C187>0,COSH(SQRT(elements!C187)*elements!B187),1)) -> 1.011677596 | Q187: =IF(elements!C187<0,SIN(SQRT(-elements!C187)*elements!B187)/SQRT(-elements!C187),IF(elements!C187>0,SINH(SQRT(elements!C187)*elements!B187)/SQRT(elements!C187),elements!B187)) -> 0.1505834265 | R187: 0 | S187: 0 | T187: 0 | U187: 0 | V187: =IF(elements!C187<0,-SQRT(-elements!C187)*SIN(SQRT(-elements!C187)*elements!B187),IF(elements!C187>0,SQRT(elements!C187)*SINH(SQRT(elements!C187)*elements!B187),0)) -> 0.1560036083 | W187: =IF(elements!C187<0,COS(SQRT(-elements!C187)*elements!B187),IF(elements!C187>0,COSH(SQRT(elements!C187)*elements!B187),1)) -> 1.011677596 | X187: 0 | Y187: 0 | Z187: 0 | AA187: 0 | AB187: 0 | AC187: 0 | AD187: 1 | AE187: 0 | AF187: 0 | AG187: 0 | AH187: 0 | AI187: 0 | AJ187: 0 | AK187: 1
A188: =elements!A188 -> del2a | B188: 1 | C188: =elements!B188 -> 0.25 | D188: 0 | E188: 0 | F188: 0 | G188: 0 | H188: 0 | I188: 1 | J188: 0 | K188: 0 | L188: 0 | M188: 0 | N188: 0 | O188: 0 | P188: 1 | Q188: =elements!B188 -> 0.25 | R188: 0 | S188: 0 | T188: 0 | U188: 0 | V188: 0 | W188: 1 | X188: 0 | Y188: 0 | Z188: 0 | AA188: 0 | AB188: 0 | AC188: 0 | AD188: 1 | AE188: 0 | AF188: 0 | AG188: 0 | AH188: 0 | AI188: 0 | AJ188: 0 | AK188: 1
A189: =elements!A189 -> SF2F09 | B189: 1 | C189: =elements!B189 -> 0.15 | D189: 0 | E189: 0 | F189: 0 | G189: 0 | H189: 0 | I189: 1 | J189: 0 | K189: 0 | L189: 0 | M189: 0 | N189: 0 | O189: 0 | P189: 1 | Q189: =elements!B189 -> 0.15 | R189: 0 | S189: 0 | T189: 0 | U189: 0 | V189: 0 | W189: 1 | X189: 0 | Y189: 0 | Z189: 0 | AA189: 0 | AB189: 0 | AC189: 0 | AD189: 1 | AE189: 0 | AF189: 0 | AG189: 0 | AH189: 0 | AI189: 0 | AJ189: 0 | AK189: 1
A190: =elements!A190 -> del2a | B190: 1 | C190: =elements!B190 -> 0.25 | D190: 0 | E190: 0 | F190: 0 | G190: 0 | H190: 0 | I190: 1 | J190: 0 | K190: 0 | L190: 0 | M190: 0 | N190: 0 | O190: 0 | P190: 1 | Q190: =elements!B190 -> 0.25 | R190: 0 | S190: 0 | T190: 0 | U190: 0 | V190: 0 | W190: 1 | X190: 0 | Y190: 0 | Z190: 0 | AA190: 0 | AB190: 0 | AC190: 0 | AD190: 1 | AE190: 0 | AF190: 0 | AG190: 0 | AH190: 0 | AI190: 0 | AJ190: 0 | AK190: 1
A191: =elements!A191 -> del2b | B191: 1 | C191: =elements!B191 -> 0.075 | D191: 0 | E191: 0 | F191: 0 | G191: 0 | H191: 0 | I191: 1 | J191: 0 | K191: 0 | L191: 0 | M191: 0 | N191: 0 | O191: 0 | P191: 1 | Q191: =elements!B191 -> 0.075 | R191: 0 | S191: 0 | T191: 0 | U191: 0 | V191: 0 | W191: 1 | X191: 0 | Y191: 0 | Z191: 0 | AA191: 0 | AB191: 0 | AC191: 0 | AD191: 1 | AE191: 0 | AF191: 0 | AG191: 0 | AH191: 0 | AI191: 0 | AJ191: 0 | AK191: 1
A192: =elements!A192 -> del2b | B192: 1 | C192: =elements!B192 -> 0.075 | D192: 0 | E192: 0 | F192: 0 | G192: 0 | H192: 0 | I192: 1 | J192: 0 | K192: 0 | L192: 0 | M192: 0 | N192: 0 | O192: 0 | P192: 1 | Q192: =elements!B192 -> 0.075 | R192: 0 | S192: 0 | T192: 0 | U192: 0 | V192: 0 | W192: 1 | X192: 0 | Y192: 0 | Z192: 0 | AA192: 0 | AB192: 0 | AC192: 0 | AD192: 1 | AE192: 0 | AF192: 0 | AG192: 0 | AH192: 0 | AI192: 0 | AJ192: 0 | AK192: 1
A193: =elements!A193 -> del2 | B193: 1 | C193: =elements!B193 -> 0.2984687666 | D193: 0 | E193: 0 | F193: 0 | G193: 0 | H193: 0 | I193: 1 | J193: 0 | K193: 0 | L193: 0 | M193: 0 | N193: 0 | O193: 0 | P193: 1 | Q193: =elements!B193 -> 0.2984687666 | R193: 0 | S193: 0 | T193: 0 | U193: 0 | V193: 0 | W193: 1 | X193: 0 | Y193: 0 | Z193: 0 | AA193: 0 | AB193: 0 | AC193: 0 | AD193: 1 | AE193: 0 | AF193: 0 | AG193: 0 | AH193: 0 | AI193: 0 | AJ193: 0 | AK193: 1
A194: =elements!A194 -> roll | B194: -1 | C194: 0 | D194: 0 | E194: 0 | F194: 0 | G194: 0 | H194: 0 | I194: =B194 -> -1 | J194: 0 | K194: 0 | L194: 0 | M194: 0 | N194: 0 | O194: 0 | P194: -1 | Q194: 0 | R194: 0 | S194: 0 | T194: 0 | U194: 0 | V194: 0 | W194: -1 | X194: 0 | Y194: 0 | Z194: 0 | AA194: 0 | AB194: 0 | AC194: 0 | AD194: 1 | AE194: 0 | AF194: 0 | AG194: 0 | AH194: 0 | AI194: 0 | AJ194: 0 | AK194: 1
A195: =elements!A195 -> sb2 | B195: 1 | C195: 0 | D195: 0 | E195: 0 | F195: 0 | G195: 0 | H195: =TAN(elements!D195*PI()/180)/elements!C195 -> 0.2468445791 | I195: 1 | J195: 0 | K195: 0 | L195: 0 | M195: 0 | N195: 0 | O195: 0 | P195: 1 | Q195: 0 | R195: 0 | S195: 0 | T195: 0 | U195: 0 | V195: =-TAN((elements!D195*PI()/180)-elements!F195*(elements!E195/elements!C195)*((1+(SIN(elements!D195*PI()/180))^2)/COS(elements!D195*PI()/180))*(1-(elements!E195/elements!C195)*elements!F195*elements!G195*TAN(elements!D195*PI()/180)))/elements!C195 -> -0.2304097172 | W195: 1 | X195: 0 | Y195: 0 | Z195: 0 | AA195: 0 | AB195: 0 | AC195: 0 | AD195: 1 | AE195: 0 | AF195: 0 | AG195: 0 | AH195: 0 | AI195: 0 | AJ195: 0 | AK195: 1
A196: =elements!A196 -> b2 | B196: =IF(elements!D196<1,COS(SQRT(1-elements!D196)*elements!C196*PI()/180),IF(elements!D196>1,COSH(SQRT(elements!D196-1)*elements!C196*PI()/180),1)) -> 0.7267717286 | C196: =IF(elements!D196<1,SIN(SQRT(1-elements!D196)*elements!C196*PI()/180)/(SQRT(1-elements!D196)*elements!C196*PI()/(180*elements!B196)),IF(elements!D196>1,SINH(SQRT(elements!D196-1)*elements!C196*PI()/180)/(SQRT(elements!D196-1)*elements!C196*PI()/(180*elements!B196)),elements!B196)) -> 0.824254882 | D196: 0 | E196: 0 | F196: 0 | G196: =IF(elements!D196<1,((elements!B196/(elements!C196*PI()/180))/(1-elements!D196))*(1-COS(SQRT(1-elements!D196)*elements!C196*PI()/180)),IF(elements!D196>1,((elements!B196/(elements!C196*PI()/180))/(1-elements!D196))*(1-COSH(SQRT(elements!D196-1)*elements!C196*PI()/180)),1)) -> 0.3278739257 | H196: =IF(elements!D196<1,-(SQRT(1-elements!D196)*elements!C196*PI()/(180*elements!B196))*SIN(SQRT(1-elements!D196)*elements!C196*PI()/180),IF(elements!D196>1,(SQRT(elements!D196-1)*elements!C196*PI()/(180*elements!B196))*SINH(SQRT(elements!D196-1)*elements!C196*PI()/180),0)) -> -0.5723992236 | I196: =B196 -> 0.7267717286 | J196: 0 | K196: 0 | L196: 0 | M196: =C196/(elements!B196/(elements!C196*PI()/180)) -> 0.6868790683 | N196: 0 | O196: 0 | P196: =IF(elements!D196>0,COS(SQRT(elements!D196)*elements!C196*PI()/180),IF(elements!D196<0,COSH(SQRT(-elements!D196)*elements!C196*PI()/180),1)) -> 1 | Q196: =IF(elements!D196>0,SIN(SQRT(elements!D196)*elements!C196*PI()/180)/(SQRT(elements!D196)*elements!C196*PI()/(180*elements!B196)),IF(elements!D196<0,SINH(SQRT(-elements!D196)*elements!C196*PI()/180)/(SQRT(-elements!D196)*elements!C196*PI()/(180*elements!B196)),elements!B196)) -> 0.9086232606 | R196: 0 | S196: 0 | T196: 0 | U196: 0 | V196: =IF(elements!D196>0,-(SQRT(elements!D196)*elements!C196*PI()/(180*elements!B196))*SIN(SQRT(elements!D196)*elements!C196*PI()/180),IF(elements!D196<0,(SQRT(-elements!D196)*elements!C196*PI()/(180*elements!B196))*SINH(SQRT(-elements!D196)*elements!C196*PI()/180),0)) -> 0 | W196: =P196 -> 1 | X196: 0 | Y196: 0 | Z196: =M196 -> 0.6868790683 | AA196: =G196 -> 0.3278739257 | AB196: 0 | AC196: 0 | AD196: 1 | AE196: =IF(elements!D196<1,(1/(1-elements!D196))*(elements!B196-SIN(SQRT(1-elements!D196)*elements!C196*PI()/180)/(SQRT(1-elements!D196)*elements!C196*PI()/(180*elements!B196))), IF(elements!D196>1,(1/(1-elements!D196))*(elements!B196-SINH(SQRT(elements!D196-1)*elements!C196*PI()/180)/(SQRT(elements!D196-1)*elements!C196*PI()/(180*elements!B196))), 0)) -> 0.08436837861 | AF196: 0 | AG196: 0 | AH196: 0 | AI196: 0 | AJ196: 0 | AK196: 1
A197: =elements!A197 -> eb2 | B197: 1 | C197: 0 | D197: 0 | E197: 0 | F197: 0 | G197: 0 | H197: =TAN(elements!D197*PI()/180)/elements!C197 -> 0.2468445791 | I197: 1 | J197: 0 | K197: 0 | L197: 0 | M197: 0 | N197: 0 | O197: 0 | P197: 1 | Q197: 0 | R197: 0 | S197: 0 | T197: 0 | U197: 0 | V197: =-TAN((elements!D197*PI()/180)-elements!F197*(elements!E197/elements!C197)*((1+(SIN(elements!D197*PI()/180))^2)/COS(elements!D197*PI()/180))*(1-(elements!E197/elements!C197)*elements!F197*elements!G197*TAN(elements!D197*PI()/180)))/elements!C197 -> -0.2304097172 | W197: 1 | X197: 0 | Y197: 0 | Z197: 0 | AA197: 0 | AB197: 0 | AC197: 0 | AD197: 1 | AE197: 0 | AF197: 0 | AG197: 0 | AH197: 0 | AI197: 0 | AJ197: 0 | AK197: 1
A198: =elements!A198 -> roll | B198: -1 | C198: 0 | D198: 0 | E198: 0 | F198: 0 | G198: 0 | H198: 0 | I198: =B198 -> -1 | J198: 0 | K198: 0 | L198: 0 | M198: 0 | N198: 0 | O198: 0 | P198: -1 | Q198: 0 | R198: 0 | S198: 0 | T198: 0 | U198: 0 | V198: 0 | W198: -1 | X198: 0 | Y198: 0 | Z198: 0 | AA198: 0 | AB198: 0 | AC198: 0 | AD198: 1 | AE198: 0 | AF198: 0 | AG198: 0 | AH198: 0 | AI198: 0 | AJ198: 0 | AK198: 1
A199: =elements!A199 -> del1 | B199: 1 | C199: =elements!B199 -> 0.285142654 | D199: 0 | E199: 0 | F199: 0 | G199: 0 | H199: 0 | I199: 1 | J199: 0 | K199: 0 | L199: 0 | M199: 0 | N199: 0 | O199: 0 | P199: 1 | Q199: =elements!B199 -> 0.285142654 | R199: 0 | S199: 0 | T199: 0 | U199: 0 | V199: 0 | W199: 1 | X199: 0 | Y199: 0 | Z199: 0 | AA199: 0 | AB199: 0 | AC199: 0 | AD199: 1 | AE199: 0 | AF199: 0 | AG199: 0 | AH199: 0 | AI199: 0 | AJ199: 0 | AK199: 1
A200: =elements!A200 -> QF2F10 | B200: =IF(elements!C200>0,COS(SQRT(elements!C200)*elements!B200),IF(elements!C200<0,COSH(SQRT(-elements!C200)*elements!B200),1)) -> 1.001665453 | C200: =IF(elements!C200>0,SIN(SQRT(elements!C200)*elements!B200)/SQRT(elements!C200),IF(elements!C200<0,SINH(SQRT(-elements!C200)*elements!B200)/SQRT(-elements!C200),elements!B200)) -> 0.1500832634 | D200: 0 | E200: 0 | F200: 0 | G200: 0 | H200: =IF(elements!C200>0,-SQRT(elements!C200)*SIN(SQRT(elements!C200)*elements!B200),IF(elements!C200<0,SQRT(-elements!C200)*SINH(SQRT(-elements!C200)*elements!B200),0)) -> 0.02221220601 | I200: =IF(elements!C200>0,COS(SQRT(elements!C200)*elements!B200),IF(elements!C200<0,COSH(SQRT(-elements!C200)*elements!B200),1)) -> 1.001665453 | J200: 0 | K200: 0 | L200: 0 | M200: 0 | N200: 0 | O200: 0 | P200: =IF(elements!C200<0,COS(SQRT(-elements!C200)*elements!B200),IF(elements!C200>0,COSH(SQRT(elements!C200)*elements!B200),1)) -> 0.9983354707 | Q200: =IF(elements!C200<0,SIN(SQRT(-elements!C200)*elements!B200)/SQRT(-elements!C200),IF(elements!C200>0,SINH(SQRT(elements!C200)*elements!B200)/SQRT(elements!C200),elements!B200)) -> 0.1499167643 | R200: 0 | S200: 0 | T200: 0 | U200: 0 | V200: =IF(elements!C200<0,-SQRT(-elements!C200)*SIN(SQRT(-elements!C200)*elements!B200),IF(elements!C200>0,SQRT(elements!C200)*SINH(SQRT(elements!C200)*elements!B200),0)) -> -0.02218756427 | W200: =IF(elements!C200<0,COS(SQRT(-elements!C200)*elements!B200),IF(elements!C200>0,COSH(SQRT(elements!C200)*elements!B200),1)) -> 0.9983354707 | X200: 0 | Y200: 0 | Z200: 0 | AA200: 0 | AB200: 0 | AC200: 0 | AD200: 1 | AE200: 0 | AF200: 0 | AG200: 0 | AH200: 0 | AI200: 0 | AJ200: 0 | AK200: 1
A201: =elements!A201 -> del1a | B201: 1 | C201: =elements!B201 -> 0.25 | D201: 0 | E201: 0 | F201: 0 | G201: 0 | H201: 0 | I201: 1 | J201: 0 | K201: 0 | L201: 0 | M201: 0 | N201: 0 | O201: 0 | P201: 1 | Q201: =elements!B201 -> 0.25 | R201: 0 | S201: 0 | T201: 0 | U201: 0 | V201: 0 | W201: 1 | X201: 0 | Y201: 0 | Z201: 0 | AA201: 0 | AB201: 0 | AC201: 0 | AD201: 1 | AE201: 0 | AF201: 0 | AG201: 0 | AH201: 0 | AI201: 0 | AJ201: 0 | AK201: 1
A202: =elements!A202 -> SF2F10 | B202: 1 | C202: =elements!B202 -> 0.15 | D202: 0 | E202: 0 | F202: 0 | G202: 0 | H202: 0 | I202: 1 | J202: 0 | K202: 0 | L202: 0 | M202: 0 | N202: 0 | O202: 0 | P202: 1 | Q202: =elements!B202 -> 0.15 | R202: 0 | S202: 0 | T202: 0 | U202: 0 | V202: 0 | W202: 1 | X202: 0 | Y202: 0 | Z202: 0 | AA202: 0 | AB202: 0 | AC202: 0 | AD202: 1 | AE202: 0 | AF202: 0 | AG202: 0 | AH202: 0 | AI202: 0 | AJ202: 0 | AK202: 1
A203: =elements!A203 -> del1a | B203: 1 | C203: =elements!B203 -> 0.25 | D203: 0 | E203: 0 | F203: 0 | G203: 0 | H203: 0 | I203: 1 | J203: 0 | K203: 0 | L203: 0 | M203: 0 | N203: 0 | O203: 0 | P203: 1 | Q203: =elements!B203 -> 0.25 | R203: 0 | S203: 0 | T203: 0 | U203: 0 | V203: 0 | W203: 1 | X203: 0 | Y203: 0 | Z203: 0 | AA203: 0 | AB203: 0 | AC203: 0 | AD203: 1 | AE203: 0 | AF203: 0 | AG203: 0 | AH203: 0 | AI203: 0 | AJ203: 0 | AK203: 1
A204: =elements!A204 -> del1b | B204: 1 | C204: =elements!B204 -> 0.075 | D204: 0 | E204: 0 | F204: 0 | G204: 0 | H204: 0 | I204: 1 | J204: 0 | K204: 0 | L204: 0 | M204: 0 | N204: 0 | O204: 0 | P204: 1 | Q204: =elements!B204 -> 0.075 | R204: 0 | S204: 0 | T204: 0 | U204: 0 | V204: 0 | W204: 1 | X204: 0 | Y204: 0 | Z204: 0 | AA204: 0 | AB204: 0 | AC204: 0 | AD204: 1 | AE204: 0 | AF204: 0 | AG204: 0 | AH204: 0 | AI204: 0 | AJ204: 0 | AK204: 1
A205: =elements!A205 -> del1b | B205: 1 | C205: =elements!B205 -> 0.075 | D205: 0 | E205: 0 | F205: 0 | G205: 0 | H205: 0 | I205: 1 | J205: 0 | K205: 0 | L205: 0 | M205: 0 | N205: 0 | O205: 0 | P205: 1 | Q205: =elements!B205 -> 0.075 | R205: 0 | S205: 0 | T205: 0 | U205: 0 | V205: 0 | W205: 1 | X205: 0 | Y205: 0 | Z205: 0 | AA205: 0 | AB205: 0 | AC205: 0 | AD205: 1 | AE205: 0 | AF205: 0 | AG205: 0 | AH205: 0 | AI205: 0 | AJ205: 0 | AK205: 1
A206: =elements!A206 -> del1 | B206: 1 | C206: =elements!B206 -> 0.285142654 | D206: 0 | E206: 0 | F206: 0 | G206: 0 | H206: 0 | I206: 1 | J206: 0 | K206: 0 | L206: 0 | M206: 0 | N206: 0 | O206: 0 | P206: 1 | Q206: =elements!B206 -> 0.285142654 | R206: 0 | S206: 0 | T206: 0 | U206: 0 | V206: 0 | W206: 1 | X206: 0 | Y206: 0 | Z206: 0 | AA206: 0 | AB206: 0 | AC206: 0 | AD206: 1 | AE206: 0 | AF206: 0 | AG206: 0 | AH206: 0 | AI206: 0 | AJ206: 0 | AK206: 1
A207: =elements!A207 -> sb1 | B207: 1 | C207: 0 | D207: 0 | E207: 0 | F207: 0 | G207: 0 | H207: =TAN(elements!D207*PI()/180)/elements!C207 -> 0.01455032062 | I207: 1 | J207: 0 | K207: 0 | L207: 0 | M207: 0 | N207: 0 | O207: 0 | P207: 1 | Q207: 0 | R207: 0 | S207: 0 | T207: 0 | U207: 0 | V207: =-TAN((elements!D207*PI()/180)-elements!F207*(elements!E207/elements!C207)*((1+(SIN(elements!D207*PI()/180))^2)/COS(elements!D207*PI()/180))*(1-(elements!E207/elements!C207)*elements!F207*elements!G207*TAN(elements!D207*PI()/180)))/elements!C207 -> -0.0111564316 | W207: 1 | X207: 0 | Y207: 0 | Z207: 0 | AA207: 0 | AB207: 0 | AC207: 0 | AD207: 1 | AE207: 0 | AF207: 0 | AG207: 0 | AH207: 0 | AI207: 0 | AJ207: 0 | AK207: 1
A208: =elements!A208 -> b1 | B208: =IF(elements!D208<1,COS(SQRT(1-elements!D208)*elements!C208*PI()/180),IF(elements!D208>1,COSH(SQRT(elements!D208-1)*elements!C208*PI()/180),1)) -> 0.919564519 | C208: =IF(elements!D208<1,SIN(SQRT(1-elements!D208)*elements!C208*PI()/180)/(SQRT(1-elements!D208)*elements!C208*PI()/(180*elements!B208)),IF(elements!D208>1,SINH(SQRT(elements!D208-1)*elements!C208*PI()/180)/(SQRT(elements!D208-1)*elements!C208*PI()/(180*elements!B208)),elements!B208)) -> 0.9430537149 | D208: 0 | E208: 0 | F208: 0 | G208: =IF(elements!D208<1,((elements!B208/(elements!C208*PI()/180))/(1-elements!D208))*(1-COS(SQRT(1-elements!D208)*elements!C208*PI()/180)),IF(elements!D208>1,((elements!B208/(elements!C208*PI()/180))/(1-elements!D208))*(1-COSH(SQRT(elements!D208-1)*elements!C208*PI()/180)),1)) -> 0.1930451543 | H208: =IF(elements!D208<1,-(SQRT(1-elements!D208)*elements!C208*PI()/(180*elements!B208))*SIN(SQRT(1-elements!D208)*elements!C208*PI()/180),IF(elements!D208>1,(SQRT(elements!D208-1)*elements!C208*PI()/(180*elements!B208))*SINH(SQRT(elements!D208-1)*elements!C208*PI()/180),0)) -> -0.1637246033 | I208: =B208 -> 0.919564519 | J208: 0 | K208: 0 | L208: 0 | M208: =C208/(elements!B208/(elements!C208*PI()/180)) -> 0.3929390479 | N208: 0 | O208: 0 | P208: =IF(elements!D208>0,COS(SQRT(elements!D208)*elements!C208*PI()/180),IF(elements!D208<0,COSH(SQRT(-elements!D208)*elements!C208*PI()/180),1)) -> 1 | Q208: =IF(elements!D208>0,SIN(SQRT(elements!D208)*elements!C208*PI()/180)/(SQRT(elements!D208)*elements!C208*PI()/(180*elements!B208)),IF(elements!D208<0,SINH(SQRT(-elements!D208)*elements!C208*PI()/180)/(SQRT(-elements!D208)*elements!C208*PI()/(180*elements!B208)),elements!B208)) -> 0.9691813169 | R208: 0 | S208: 0 | T208: 0 | U208: 0 | V208: =IF(elements!D208>0,-(SQRT(elements!D208)*elements!C208*PI()/(180*elements!B208))*SIN(SQRT(elements!D208)*elements!C208*PI()/180),IF(elements!D208<0,(SQRT(-elements!D208)*elements!C208*PI()/(180*elements!B208))*SINH(SQRT(-elements!D208)*elements!C208*PI()/180),0)) -> 0 | W208: =P208 -> 1 | X208: 0 | Y208: 0 | Z208: =M208 -> 0.3929390479 | AA208: =G208 -> 0.1930451543 | AB208: 0 | AC208: 0 | AD208: 1 | AE208: =IF(elements!D208<1,(1/(1-elements!D208))*(elements!B208-SIN(SQRT(1-elements!D208)*elements!C208*PI()/180)/(SQRT(1-elements!D208)*elements!C208*PI()/(180*elements!B208))), IF(elements!D208>1,(1/(1-elements!D208))*(elements!B208-SINH(SQRT(elements!D208-1)*elements!C208*PI()/180)/(SQRT(elements!D208-1)*elements!C208*PI()/(180*elements!B208))), 0)) -> 0.02612760199 | AF208: 0 | AG208: 0 | AH208: 0 | AI208: 0 | AJ208: 0 | AK208: 1
A209: =elements!A209 -> eb1 | B209: 1 | C209: 0 | D209: 0 | E209: 0 | F209: 0 | G209: 0 | H209: =TAN(elements!D209*PI()/180)/elements!C209 -> -0.1373643374 | I209: 1 | J209: 0 | K209: 0 | L209: 0 | M209: 0 | N209: 0 | O209: 0 | P209: 1 | Q209: 0 | R209: 0 | S209: 0 | T209: 0 | U209: 0 | V209: =-TAN((elements!D209*PI()/180)-elements!F209*(elements!E209/elements!C209)*((1+(SIN(elements!D209*PI()/180))^2)/COS(elements!D209*PI()/180))*(1-(elements!E209/elements!C209)*elements!F209*elements!G209*TAN(elements!D209*PI()/180)))/elements!C209 -> 0.1417291369 | W209: 1 | X209: 0 | Y209: 0 | Z209: 0 | AA209: 0 | AB209: 0 | AC209: 0 | AD209: 1 | AE209: 0 | AF209: 0 | AG209: 0 | AH209: 0 | AI209: 0 | AJ209: 0 | AK209: 1
A210: =elements!A210 -> D1 | B210: 1 | C210: =elements!B210 -> 1.175 | D210: 0 | E210: 0 | F210: 0 | G210: 0 | H210: 0 | I210: 1 | J210: 0 | K210: 0 | L210: 0 | M210: 0 | N210: 0 | O210: 0 | P210: 1 | Q210: =elements!B210 -> 1.175 | R210: 0 | S210: 0 | T210: 0 | U210: 0 | V210: 0 | W210: 1 | X210: 0 | Y210: 0 | Z210: 0 | AA210: 0 | AB210: 0 | AC210: 0 | AD210: 1 | AE210: 0 | AF210: 0 | AG210: 0 | AH210: 0 | AI210: 0 | AJ210: 0 | AK210: 1
A211: =elements!A211 -> MQ21 | B211: =IF(elements!C211>0,COS(SQRT(elements!C211)*elements!B211),IF(elements!C211<0,COSH(SQRT(-elements!C211)*elements!B211),1)) -> 0.9386990711 | C211: =IF(elements!C211>0,SIN(SQRT(elements!C211)*elements!B211)/SQRT(elements!C211),IF(elements!C211<0,SINH(SQRT(-elements!C211)*elements!B211)/SQRT(-elements!C211),elements!B211)) -> 0.1469222412 | D211: 0 | E211: 0 | F211: 0 | G211: 0 | H211: =IF(elements!C211>0,-SQRT(elements!C211)*SIN(SQRT(elements!C211)*elements!B211),IF(elements!C211<0,SQRT(-elements!C211)*SINH(SQRT(-elements!C211)*elements!B211),0)) -> -0.8088908313 | I211: =IF(elements!C211>0,COS(SQRT(elements!C211)*elements!B211),IF(elements!C211<0,COSH(SQRT(-elements!C211)*elements!B211),1)) -> 0.9386990711 | J211: 0 | K211: 0 | L211: 0 | M211: 0 | N211: 0 | O211: 0 | P211: =IF(elements!C211<0,COS(SQRT(-elements!C211)*elements!B211),IF(elements!C211>0,COSH(SQRT(elements!C211)*elements!B211),1)) -> 1.062579699 | Q211: =IF(elements!C211<0,SIN(SQRT(-elements!C211)*elements!B211)/SQRT(-elements!C211),IF(elements!C211>0,SINH(SQRT(elements!C211)*elements!B211)/SQRT(elements!C211),elements!B211)) -> 0.1531161217 | R211: 0 | S211: 0 | T211: 0 | U211: 0 | V211: =IF(elements!C211<0,-SQRT(-elements!C211)*SIN(SQRT(-elements!C211)*elements!B211),IF(elements!C211>0,SQRT(elements!C211)*SINH(SQRT(elements!C211)*elements!B211),0)) -> 0.8429916804 | W211: =IF(elements!C211<0,COS(SQRT(-elements!C211)*elements!B211),IF(elements!C211>0,COSH(SQRT(elements!C211)*elements!B211),1)) -> 1.062579699 | X211: 0 | Y211: 0 | Z211: 0 | AA211: 0 | AB211: 0 | AC211: 0 | AD211: 1 | AE211: 0 | AF211: 0 | AG211: 0 | AH211: 0 | AI211: 0 | AJ211: 0 | AK211: 1
A212: =elements!A212 -> D2 | B212: 1 | C212: =elements!B212 -> 1.4428482 | D212: 0 | E212: 0 | F212: 0 | G212: 0 | H212: 0 | I212: 1 | J212: 0 | K212: 0 | L212: 0 | M212: 0 | N212: 0 | O212: 0 | P212: 1 | Q212: =elements!B212 -> 1.4428482 | R212: 0 | S212: 0 | T212: 0 | U212: 0 | V212: 0 | W212: 1 | X212: 0 | Y212: 0 | Z212: 0 | AA212: 0 | AB212: 0 | AC212: 0 | AD212: 1 | AE212: 0 | AF212: 0 | AG212: 0 | AH212: 0 | AI212: 0 | AJ212: 0 | AK212: 1
A213: =elements!A213 -> MQ22 | B213: =IF(elements!C213>0,COS(SQRT(elements!C213)*elements!B213),IF(elements!C213<0,COSH(SQRT(-elements!C213)*elements!B213),1)) -> 1.049520644 | C213: =IF(elements!C213>0,SIN(SQRT(elements!C213)*elements!B213)/SQRT(elements!C213),IF(elements!C213<0,SINH(SQRT(-elements!C213)*elements!B213)/SQRT(-elements!C213),elements!B213)) -> 0.1524679528 | D213: 0 | E213: 0 | F213: 0 | G213: 0 | H213: =IF(elements!C213>0,-SQRT(elements!C213)*SIN(SQRT(elements!C213)*elements!B213),IF(elements!C213<0,SQRT(-elements!C213)*SINH(SQRT(-elements!C213)*elements!B213),0)) -> 0.6656715764 | I213: =IF(elements!C213>0,COS(SQRT(elements!C213)*elements!B213),IF(elements!C213<0,COSH(SQRT(-elements!C213)*elements!B213),1)) -> 1.049520644 | J213: 0 | K213: 0 | L213: 0 | M213: 0 | N213: 0 | O213: 0 | P213: =IF(elements!C213<0,COS(SQRT(-elements!C213)*elements!B213),IF(elements!C213>0,COSH(SQRT(elements!C213)*elements!B213),1)) -> 0.9512835283 | Q213: =IF(elements!C213<0,SIN(SQRT(-elements!C213)*elements!B213)/SQRT(-elements!C213),IF(elements!C213>0,SINH(SQRT(elements!C213)*elements!B213)/SQRT(elements!C213),elements!B213)) -> 0.1475561723 | R213: 0 | S213: 0 | T213: 0 | U213: 0 | V213: =IF(elements!C213<0,-SQRT(-elements!C213)*SIN(SQRT(-elements!C213)*elements!B213),IF(elements!C213>0,SQRT(elements!C213)*SINH(SQRT(elements!C213)*elements!B213),0)) -> -0.6442268554 | W213: =IF(elements!C213<0,COS(SQRT(-elements!C213)*elements!B213),IF(elements!C213>0,COSH(SQRT(elements!C213)*elements!B213),1)) -> 0.9512835283 | X213: 0 | Y213: 0 | Z213: 0 | AA213: 0 | AB213: 0 | AC213: 0 | AD213: 1 | AE213: 0 | AF213: 0 | AG213: 0 | AH213: 0 | AI213: 0 | AJ213: 0 | AK213: 1
A214: =elements!A214 -> D3 | B214: 1 | C214: =elements!B214 -> 1.4428483 | D214: 0 | E214: 0 | F214: 0 | G214: 0 | H214: 0 | I214: 1 | J214: 0 | K214: 0 | L214: 0 | M214: 0 | N214: 0 | O214: 0 | P214: 1 | Q214: =elements!B214 -> 1.4428483 | R214: 0 | S214: 0 | T214: 0 | U214: 0 | V214: 0 | W214: 1 | X214: 0 | Y214: 0 | Z214: 0 | AA214: 0 | AB214: 0 | AC214: 0 | AD214: 1 | AE214: 0 | AF214: 0 | AG214: 0 | AH214: 0 | AI214: 0 | AJ214: 0 | AK214: 1
A215: =elements!A215 -> MQ23 | B215: =IF(elements!C215>0,COS(SQRT(elements!C215)*elements!B215),IF(elements!C215<0,COSH(SQRT(-elements!C215)*elements!B215),1)) -> 0.935113457 | C215: =IF(elements!C215>0,SIN(SQRT(elements!C215)*elements!B215)/SQRT(elements!C215),IF(elements!C215<0,SINH(SQRT(-elements!C215)*elements!B215)/SQRT(-elements!C215),elements!B215)) -> 0.1467414174 | D215: 0 | E215: 0 | F215: 0 | G215: 0 | H215: =IF(elements!C215>0,-SQRT(elements!C215)*SIN(SQRT(elements!C215)*elements!B215),IF(elements!C215<0,SQRT(-elements!C215)*SINH(SQRT(-elements!C215)*elements!B215),0)) -> -0.8556740469 | I215: =IF(elements!C215>0,COS(SQRT(elements!C215)*elements!B215),IF(elements!C215<0,COSH(SQRT(-elements!C215)*elements!B215),1)) -> 0.935113457 | J215: 0 | K215: 0 | L215: 0 | M215: 0 | N215: 0 | O215: 0 | P215: =IF(elements!C215<0,COS(SQRT(-elements!C215)*elements!B215),IF(elements!C215>0,COSH(SQRT(elements!C215)*elements!B215),1)) -> 1.06632104 | Q215: =IF(elements!C215<0,SIN(SQRT(-elements!C215)*elements!B215)/SQRT(-elements!C215),IF(elements!C215>0,SINH(SQRT(elements!C215)*elements!B215)/SQRT(elements!C215),elements!B215)) -> 0.1533016173 | R215: 0 | S215: 0 | T215: 0 | U215: 0 | V215: =IF(elements!C215<0,-SQRT(-elements!C215)*SIN(SQRT(-elements!C215)*elements!B215),IF(elements!C215>0,SQRT(elements!C215)*SINH(SQRT(elements!C215)*elements!B215),0)) -> 0.893927683 | W215: =IF(elements!C215<0,COS(SQRT(-elements!C215)*elements!B215),IF(elements!C215>0,COSH(SQRT(elements!C215)*elements!B215),1)) -> 1.06632104 | X215: 0 | Y215: 0 | Z215: 0 | AA215: 0 | AB215: 0 | AC215: 0 | AD215: 1 | AE215: 0 | AF215: 0 | AG215: 0 | AH215: 0 | AI215: 0 | AJ215: 0 | AK215: 1
A216: =elements!A216 -> D4 | B216: 1 | C216: =elements!B216 -> 1.4428482 | D216: 0 | E216: 0 | F216: 0 | G216: 0 | H216: 0 | I216: 1 | J216: 0 | K216: 0 | L216: 0 | M216: 0 | N216: 0 | O216: 0 | P216: 1 | Q216: =elements!B216 -> 1.4428482 | R216: 0 | S216: 0 | T216: 0 | U216: 0 | V216: 0 | W216: 1 | X216: 0 | Y216: 0 | Z216: 0 | AA216: 0 | AB216: 0 | AC216: 0 | AD216: 1 | AE216: 0 | AF216: 0 | AG216: 0 | AH216: 0 | AI216: 0 | AJ216: 0 | AK216: 1
A217: =elements!A217 -> MQ24 | B217: =IF(elements!C217>0,COS(SQRT(elements!C217)*elements!B217),IF(elements!C217<0,COSH(SQRT(-elements!C217)*elements!B217),1)) -> 1.046644937 | C217: =IF(elements!C217>0,SIN(SQRT(elements!C217)*elements!B217)/SQRT(elements!C217),IF(elements!C217<0,SINH(SQRT(-elements!C217)*elements!B217)/SQRT(-elements!C217),elements!B217)) -> 0.1523250738 | D217: 0 | E217: 0 | F217: 0 | G217: 0 | H217: =IF(elements!C217>0,-SQRT(elements!C217)*SIN(SQRT(elements!C217)*elements!B217),IF(elements!C217<0,SQRT(-elements!C217)*SINH(SQRT(-elements!C217)*elements!B217),0)) -> 0.626722983 | I217: =IF(elements!C217>0,COS(SQRT(elements!C217)*elements!B217),IF(elements!C217<0,COSH(SQRT(-elements!C217)*elements!B217),1)) -> 1.046644937 | J217: 0 | K217: 0 | L217: 0 | M217: 0 | N217: 0 | O217: 0 | P217: =IF(elements!C217<0,COS(SQRT(-elements!C217)*elements!B217),IF(elements!C217>0,COSH(SQRT(elements!C217)*elements!B217),1)) -> 0.954069221 | Q217: =IF(elements!C217<0,SIN(SQRT(-elements!C217)*elements!B217)/SQRT(-elements!C217),IF(elements!C217>0,SINH(SQRT(elements!C217)*elements!B217)/SQRT(elements!C217),elements!B217)) -> 0.1476963509 | R217: 0 | S217: 0 | T217: 0 | U217: 0 | V217: =IF(elements!C217<0,-SQRT(-elements!C217)*SIN(SQRT(-elements!C217)*elements!B217),IF(elements!C217>0,SQRT(elements!C217)*SINH(SQRT(elements!C217)*elements!B217),0)) -> -0.607678666 | W217: =IF(elements!C217<0,COS(SQRT(-elements!C217)*elements!B217),IF(elements!C217>0,COSH(SQRT(elements!C217)*elements!B217),1)) -> 0.954069221 | X217: 0 | Y217: 0 | Z217: 0 | AA217: 0 | AB217: 0 | AC217: 0 | AD217: 1 | AE217: 0 | AF217: 0 | AG217: 0 | AH217: 0 | AI217: 0 | AJ217: 0 | AK217: 1
A218: =elements!A218 -> D5 | B218: 1 | C218: =elements!B218 -> 1.4428482 | D218: 0 | E218: 0 | F218: 0 | G218: 0 | H218: 0 | I218: 1 | J218: 0 | K218: 0 | L218: 0 | M218: 0 | N218: 0 | O218: 0 | P218: 1 | Q218: =elements!B218 -> 1.4428482 | R218: 0 | S218: 0 | T218: 0 | U218: 0 | V218: 0 | W218: 1 | X218: 0 | Y218: 0 | Z218: 0 | AA218: 0 | AB218: 0 | AC218: 0 | AD218: 1 | AE218: 0 | AF218: 0 | AG218: 0 | AH218: 0 | AI218: 0 | AJ218: 0 | AK218: 1
A219: =elements!A219 -> MQ25 | B219: =IF(elements!C219>0,COS(SQRT(elements!C219)*elements!B219),IF(elements!C219<0,COSH(SQRT(-elements!C219)*elements!B219),1)) -> 0.9353577905 | C219: =IF(elements!C219>0,SIN(SQRT(elements!C219)*elements!B219)/SQRT(elements!C219),IF(elements!C219<0,SINH(SQRT(-elements!C219)*elements!B219)/SQRT(-elements!C219),elements!B219)) -> 0.1467537421 | D219: 0 | E219: 0 | F219: 0 | G219: 0 | H219: =IF(elements!C219>0,-SQRT(elements!C219)*SIN(SQRT(elements!C219)*elements!B219),IF(elements!C219<0,SQRT(-elements!C219)*SINH(SQRT(-elements!C219)*elements!B219),0)) -> -0.8524879982 | I219: =IF(elements!C219>0,COS(SQRT(elements!C219)*elements!B219),IF(elements!C219<0,COSH(SQRT(-elements!C219)*elements!B219),1)) -> 0.9353577905 | J219: 0 | K219: 0 | L219: 0 | M219: 0 | N219: 0 | O219: 0 | P219: =IF(elements!C219<0,COS(SQRT(-elements!C219)*elements!B219),IF(elements!C219>0,COSH(SQRT(elements!C219)*elements!B219),1)) -> 1.066065804 | Q219: =IF(elements!C219<0,SIN(SQRT(-elements!C219)*elements!B219)/SQRT(-elements!C219),IF(elements!C219>0,SINH(SQRT(elements!C219)*elements!B219)/SQRT(elements!C219),elements!B219)) -> 0.1532889656 | R219: 0 | S219: 0 | T219: 0 | U219: 0 | V219: =IF(elements!C219<0,-SQRT(-elements!C219)*SIN(SQRT(-elements!C219)*elements!B219),IF(elements!C219>0,SQRT(elements!C219)*SINH(SQRT(elements!C219)*elements!B219),0)) -> 0.8904509116 | W219: =IF(elements!C219<0,COS(SQRT(-elements!C219)*elements!B219),IF(elements!C219>0,COSH(SQRT(elements!C219)*elements!B219),1)) -> 1.066065804 | X219: 0 | Y219: 0 | Z219: 0 | AA219: 0 | AB219: 0 | AC219: 0 | AD219: 1 | AE219: 0 | AF219: 0 | AG219: 0 | AH219: 0 | AI219: 0 | AJ219: 0 | AK219: 1
A220: =elements!A220 -> D6 | B220: 1 | C220: =elements!B220 -> 1.4428482 | D220: 0 | E220: 0 | F220: 0 | G220: 0 | H220: 0 | I220: 1 | J220: 0 | K220: 0 | L220: 0 | M220: 0 | N220: 0 | O220: 0 | P220: 1 | Q220: =elements!B220 -> 1.4428482 | R220: 0 | S220: 0 | T220: 0 | U220: 0 | V220: 0 | W220: 1 | X220: 0 | Y220: 0 | Z220: 0 | AA220: 0 | AB220: 0 | AC220: 0 | AD220: 1 | AE220: 0 | AF220: 0 | AG220: 0 | AH220: 0 | AI220: 0 | AJ220: 0 | AK220: 1
A221: =elements!A221 -> MQ26 | B221: =IF(elements!C221>0,COS(SQRT(elements!C221)*elements!B221),IF(elements!C221<0,COSH(SQRT(-elements!C221)*elements!B221),1)) -> 1.050874851 | C221: =IF(elements!C221>0,SIN(SQRT(elements!C221)*elements!B221)/SQRT(elements!C221),IF(elements!C221<0,SINH(SQRT(-elements!C221)*elements!B221)/SQRT(-elements!C221),elements!B221)) -> 0.152535218 | D221: 0 | E221: 0 | F221: 0 | G221: 0 | H221: =IF(elements!C221>0,-SQRT(elements!C221)*SIN(SQRT(elements!C221)*elements!B221),IF(elements!C221<0,SQRT(-elements!C221)*SINH(SQRT(-elements!C221)*elements!B221),0)) -> 0.6840253291 | I221: =IF(elements!C221>0,COS(SQRT(elements!C221)*elements!B221),IF(elements!C221<0,COSH(SQRT(-elements!C221)*elements!B221),1)) -> 1.050874851 | J221: 0 | K221: 0 | L221: 0 | M221: 0 | N221: 0 | O221: 0 | P221: =IF(elements!C221<0,COS(SQRT(-elements!C221)*elements!B221),IF(elements!C221>0,COSH(SQRT(elements!C221)*elements!B221),1)) -> 0.9499735291 | Q221: =IF(elements!C221<0,SIN(SQRT(-elements!C221)*elements!B221)/SQRT(-elements!C221),IF(elements!C221>0,SINH(SQRT(elements!C221)*elements!B221)/SQRT(elements!C221),elements!B221)) -> 0.1474902334 | R221: 0 | S221: 0 | T221: 0 | U221: 0 | V221: =IF(elements!C221<0,-SQRT(-elements!C221)*SIN(SQRT(-elements!C221)*elements!B221),IF(elements!C221>0,SQRT(elements!C221)*SINH(SQRT(elements!C221)*elements!B221),0)) -> -0.6614017194 | W221: =IF(elements!C221<0,COS(SQRT(-elements!C221)*elements!B221),IF(elements!C221>0,COSH(SQRT(elements!C221)*elements!B221),1)) -> 0.9499735291 | X221: 0 | Y221: 0 | Z221: 0 | AA221: 0 | AB221: 0 | AC221: 0 | AD221: 1 | AE221: 0 | AF221: 0 | AG221: 0 | AH221: 0 | AI221: 0 | AJ221: 0 | AK221: 1
A222: =elements!A222 -> D7 | B222: 1 | C222: =elements!B222 -> 1.4428482 | D222: 0 | E222: 0 | F222: 0 | G222: 0 | H222: 0 | I222: 1 | J222: 0 | K222: 0 | L222: 0 | M222: 0 | N222: 0 | O222: 0 | P222: 1 | Q222: =elements!B222 -> 1.4428482 | R222: 0 | S222: 0 | T222: 0 | U222: 0 | V222: 0 | W222: 1 | X222: 0 | Y222: 0 | Z222: 0 | AA222: 0 | AB222: 0 | AC222: 0 | AD222: 1 | AE222: 0 | AF222: 0 | AG222: 0 | AH222: 0 | AI222: 0 | AJ222: 0 | AK222: 1
... 181 more rows

Sheet products
B32: m11 | C32: m12 | D32: m13 | E32: m14 | F32: m15 | G32: m16 | H32: m21 | I32: m22 | J32: m23 | K32: m24 | L32: m25 | M32: m26 | N32: m31 | O32: m32 | P32: m33 | Q32: m34 | R32: m35 | S32: m36 | T32: m41 | U32: m42 | V32: m43 | W32: m44 | X32: m45 | Y32: m46 | Z32: m51 | AA32: m52 | AB32: m53 | AC32: m54 | AD32: m55 | AE32: m56 | AF32: m61 | AG32: m62 | AH32: m63 | AI32: m64 | AJ32: m65 | AK32: m66
B33: 1 | C33: 0 | D33: 0 | E33: 0 | F33: 0 | G33: 0 | H33: 0 | I33: 1 | J33: 0 | K33: 0 | L33: 0 | M33: 0 | N33: 0 | O33: 0 | P33: 1 | Q33: 0 | R33: 0 | S33: 0 | T33: 0 | U33: 0 | V33: 0 | W33: 1 | X33: 0 | Y33: 0 | Z33: 0 | AA33: 0 | AB33: 0 | AC33: 0 | AD33: 1 | AE33: 0 | AF33: 0 | AG33: 0 | AH33: 0 | AI33: 0 | AJ33: 0 | AK33: 1
A34: =matrices!A34 -> endcan | B34: =matrices!B34*B33+matrices!C34*H33+matrices!D34*N33+matrices!E34*T33+matrices!F34*Z33+matrices!G34*AF33 -> 1 | C34: =matrices!B34*C33+matrices!C34*I33+matrices!D34*O33+matrices!E34*U33+matrices!F34*AA33+matrices!G34*AG33 -> 0.5341 | D34: =matrices!B34*D33+matrices!C34*J33+matrices!D34*P33+matrices!E34*V33+matrices!F34*AB33+matrices!G34*AH33 -> 0 | E34: =matrices!B34*E33+matrices!C34*K33+matrices!D34*Q33+matrices!E34*W33+matrices!F34*AC33+matrices!G34*AI33 -> 0 | F34: =matrices!B34*F33+matrices!C34*L33+matrices!D34*R33+matrices!E34*X33+matrices!F34*AD33+matrices!G34*AJ33 -> 0 | G34: =matrices!B34*G33+matrices!C34*M33+matrices!D34*S33+matrices!E34*Y33+matrices!F34*AE33+matrices!G34*AK33 -> 0 | H34: =matrices!H34*B33+matrices!I34*H33+matrices!J34*N33+matrices!K34*T33+matrices!L34*Z33+matrices!M34*AF33 -> 0 | I34: =matrices!H34*C33+matrices!I34*I33+matrices!J34*O33+matrices!K34*U33+matrices!L34*AA33+matrices!M34*AG33 -> 1 | J34: =matrices!H34*D33+matrices!I34*J33+matrices!J34*P33+matrices!K34*V33+matrices!L34*AB33+matrices!M34*AH33 -> 0 | K34: =matrices!H34*E33+matrices!I34*K33+matrices!J34*Q33+matrices!K34*W33+matrices!L34*AC33+matrices!M34*AI33 -> 0 | L34: =matrices!H34*F33+matrices!I34*L33+matrices!J34*R33+matrices!K34*X33+matrices!L34*AD33+matrices!M34*AJ33 -> 0 | M34: =matrices!H34*G33+matrices!I34*M33+matrices!J34*S33+matrices!K34*Y33+matrices!L34*AE33+matrices!M34*AK33 -> 0 | N34: =matrices!N34*B33+matrices!O34*H33+matrices!P34*N33+matrices!Q34*T33+matrices!R34*Z33+matrices!S34*AF33 -> 0 | O34: =matrices!N34*C33+matrices!O34*I33+matrices!P34*O33+matrices!Q34*U33+matrices!R34*AA33+matrices!S34*AG33 -> 0 | P34: =matrices!N34*D33+matrices!O34*J33+matrices!P34*P33+matrices!Q34*V33+matrices!R34*AB33+matrices!S34*AH33 -> 1 | Q34: =matrices!N34*E33+matrices!O34*K33+matrices!P34*Q33+matrices!Q34*W33+matrices!R34*AC33+matrices!S34*AI33 -> 0.5341 | R34: =matrices!N34*F33+matrices!O34*L33+matrices!P34*R33+matrices!Q34*X33+matrices!R34*AD33+matrices!S34*AJ33 -> 0 | S34: =matrices!N34*G33+matrices!O34*M33+matrices!P34*S33+matrices!Q34*Y33+matrices!R34*AE33+matrices!S34*AK33 -> 0 | T34: =matrices!T34*B33+matrices!U34*H33+matrices!V34*N33+matrices!W34*T33+matrices!X34*Z33+matrices!Y34*AF33 -> 0 | U34: =matrices!T34*C33+matrices!U34*I33+matrices!V34*O33+matrices!W34*U33+matrices!X34*AA33+matrices!Y34*AG33 -> 0 | V34: =matrices!T34*D33+matrices!U34*J33+matrices!V34*P33+matrices!W34*V33+matrices!X34*AB33+matrices!Y34*AH33 -> 0 | W34: =matrices!T34*E33+matrices!U34*K33+matrices!V34*Q33+matrices!W34*W33+matrices!X34*AC33+matrices!Y34*AI33 -> 1 | X34: =matrices!T34*F33+matrices!U34*L33+matrices!V34*R33+matrices!W34*X33+matrices!X34*AD33+matrices!Y34*AJ33 -> 0 | Y34: =matrices!T34*G33+matrices!U34*M33+matrices!V34*S33+matrices!W34*Y33+matrices!X34*AE33+matrices!Y34*AK33 -> 0 | Z34: =matrices!Z34*B33+matrices!AA34*H33+matrices!AB34*N33+matrices!AC34*T33+matrices!AD34*Z33+matrices!AE34*AF33 -> 0 | AA34: =matrices!Z34*C33+matrices!AA34*I33+matrices!AB34*O33+matrices!AC34*U33+matrices!AD34*AA33+matrices!AE34*AG33 -> 0 | AB34: =matrices!Z34*D33+matrices!AA34*J33+matrices!AB34*P33+matrices!AC34*V33+matrices!AD34*AB33+matrices!AE34*AH33 -> 0 | AC34: =matrices!Z34*E33+matrices!AA34*K33+matrices!AB34*Q33+matrices!AC34*W33+matrices!AD34*AC33+matrices!AE34*AI33 -> 0 | AD34: =matrices!Z34*F33+matrices!AA34*L33+matrices!AB34*R33+matrices!AC34*X33+matrices!AD34*AD33+matrices!AE34*AJ33 -> 1 | AE34: =matrices!Z34*G33+matrices!AA34*M33+matrices!AB34*S33+matrices!AC34*Y33+matrices!AD34*AE33+matrices!AE34*AK33 -> 0 | AF34: =matrices!AF34*B33+matrices!AG34*H33+matrices!AH34*N33+matrices!AI34*T33+matrices!AJ34*Z33+matrices!AK34*AF33 -> 0 | AG34: =matrices!AF34*C33+matrices!AG34*I33+matrices!AH34*O33+matrices!AI34*U33+matrices!AJ34*AA33+matrices!AK34*AG33 -> 0 | AH34: =matrices!AF34*D33+matrices!AG34*J33+matrices!AH34*P33+matrices!AI34*V33+matrices!AJ34*AB33+matrices!AK34*AH33 -> 0 | AI34: =matrices!AF34*E33+matrices!AG34*K33+matrices!AH34*Q33+matrices!AI34*W33+matrices!AJ34*AC33+matrices!AK34*AI33 -> 0 | AJ34: =matrices!AF34*F33+matrices!AG34*L33+matrices!AH34*R33+matrices!AI34*X33+matrices!AJ34*AD33+matrices!AK34*AJ33 -> 0 | AK34: =matrices!AF34*G33+matrices!AG879*M33+matrices!AH34*S33+matrices!AI34*Y33+matrices!AJ34*AE33+matrices!AK34*AK33 -> 1
A35: =matrices!A35 -> ac011 | B35: =matrices!B35*B34+matrices!C35*H34+matrices!D35*N34+matrices!E35*T34+matrices!F35*Z34+matrices!G35*AF34 -> 0.6812070218 | C35: =matrices!B35*C34+matrices!C35*I34+matrices!D35*O34+matrices!E35*U34+matrices!F35*AA34+matrices!G35*AG34 -> 0.5750575335 | D35: =matrices!B35*D34+matrices!C35*J34+matrices!D35*P34+matrices!E35*V34+matrices!F35*AB34+matrices!G35*AH34 -> 0 | E35: =matrices!B35*E34+matrices!C35*K34+matrices!D35*Q34+matrices!E35*W34+matrices!F35*AC34+matrices!G35*AI34 -> 0 | F35: =matrices!B35*F34+matrices!C35*L34+matrices!D35*R34+matrices!E35*X34+matrices!F35*AD34+matrices!G35*AJ34 -> 0 | G35: =matrices!B35*G34+matrices!C35*M34+matrices!D35*S34+matrices!E35*Y34+matrices!F35*AE34+matrices!G35*AK34 -> 0 | H35: =matrices!H35*B34+matrices!I35*H34+matrices!J35*N34+matrices!K35*T34+matrices!L35*Z34+matrices!M35*AF34 -> -0.05650675969 | I35: =matrices!H35*C34+matrices!I35*I34+matrices!J35*O34+matrices!K35*U34+matrices!L35*AA34+matrices!M35*AG34 -> 0.1388287709 | J35: =matrices!H35*D34+matrices!I35*J34+matrices!J35*P34+matrices!K35*V34+matrices!L35*AB34+matrices!M35*AH34 -> 0 | K35: =matrices!H35*E34+matrices!I35*K34+matrices!J35*Q34+matrices!K35*W34+matrices!L35*AC34+matrices!M35*AI34 -> 0 | L35: =matrices!H35*F34+matrices!I35*L34+matrices!J35*R34+matrices!K35*X34+matrices!L35*AD34+matrices!M35*AJ34 -> 0 | M35: =matrices!H35*G34+matrices!I35*M34+matrices!J35*S34+matrices!K35*Y34+matrices!L35*AE34+matrices!M35*AK34 -> 0 | N35: =matrices!N35*B34+matrices!O35*H34+matrices!P35*N34+matrices!Q35*T34+matrices!R35*Z34+matrices!S35*AF34 -> 0 | O35: =matrices!N35*C34+matrices!O35*I34+matrices!P35*O34+matrices!Q35*U34+matrices!R35*AA34+matrices!S35*AG34 -> 0 | P35: =matrices!N35*D34+matrices!O35*J34+matrices!P35*P34+matrices!Q35*V34+matrices!R35*AB34+matrices!S35*AH34 -> 0.6812070218 | Q35: =matrices!N35*E34+matrices!O35*K34+matrices!P35*Q34+matrices!Q35*W34+matrices!R35*AC34+matrices!S35*AI34 -> 0.5750575335 | R35: =matrices!N35*F34+matrices!O35*L34+matrices!P35*R34+matrices!Q35*X34+matrices!R35*AD34+matrices!S35*AJ34 -> 0 | S35: =matrices!N35*G34+matrices!O35*M34+matrices!P35*S34+matrices!Q35*Y34+matrices!R35*AE34+matrices!S35*AK34 -> 0 | T35: =matrices!T35*B34+matrices!U35*H34+matrices!V35*N34+matrices!W35*T34+matrices!X35*Z34+matrices!Y35*AF34 -> 0 | U35: =matrices!T35*C34+matrices!U35*I34+matrices!V35*O34+matrices!W35*U34+matrices!X35*AA34+matrices!Y35*AG34 -> 0 | V35: =matrices!T35*D34+matrices!U35*J34+matrices!V35*P34+matrices!W35*V34+matrices!X35*AB34+matrices!Y35*AH34 -> -0.05650675969 | W35: =matrices!T35*E34+matrices!U35*K34+matrices!V35*Q34+matrices!W35*W34+matrices!X35*AC34+matrices!Y35*AI34 -> 0.1388287709 | X35: =matrices!T35*F34+matrices!U35*L34+matrices!V35*R34+matrices!W35*X34+matrices!X35*AD34+matrices!Y35*AJ34 -> 0 | Y35: =matrices!T35*G34+matrices!U35*M34+matrices!V35*S34+matrices!W35*Y34+matrices!X35*AE34+matrices!Y35*AK34 -> 0 | Z35: =matrices!Z35*B34+matrices!AA35*H34+matrices!AB35*N34+matrices!AC35*T34+matrices!AD35*Z34+matrices!AE35*AF34 -> 0 | AA35: =matrices!Z35*C34+matrices!AA35*I34+matrices!AB35*O34+matrices!AC35*U34+matrices!AD35*AA34+matrices!AE35*AG34 -> 0 | AB35: =matrices!Z35*D34+matrices!AA35*J34+matrices!AB35*P34+matrices!AC35*V34+matrices!AD35*AB34+matrices!AE35*AH34 -> 0 | AC35: =matrices!Z35*E34+matrices!AA35*K34+matrices!AB35*Q34+matrices!AC35*W34+matrices!AD35*AC34+matrices!AE35*AI34 -> 0 | AD35: =matrices!Z35*F34+matrices!AA35*L34+matrices!AB35*R34+matrices!AC35*X34+matrices!AD35*AD34+matrices!AE35*AJ34 -> 0.3298675395 | AE35: =matrices!Z35*G34+matrices!AA35*M34+matrices!AB35*S34+matrices!AC35*Y34+matrices!AD35*AE34+matrices!AE35*AK34 -> -0.05755905294 | AF35: =matrices!AF35*B34+matrices!AG35*H34+matrices!AH35*N34+matrices!AI35*T34+matrices!AJ35*Z34+matrices!AK35*AF34 -> 0 | AG35: =matrices!AF35*C34+matrices!AG35*I34+matrices!AH35*O34+matrices!AI35*U34+matrices!AJ35*AA34+matrices!AK35*AG34 -> 0 | AH35: =matrices!AF35*D34+matrices!AG35*J34+matrices!AH35*P34+matrices!AI35*V34+matrices!AJ35*AB34+matrices!AK35*AH34 -> 0 | AI35: =matrices!AF35*E34+matrices!AG35*K34+matrices!AH35*Q34+matrices!AI35*W34+matrices!AJ35*AC34+matrices!AK35*AI34 -> 0 | AJ35: =matrices!AF35*F34+matrices!AG35*L34+matrices!AH35*R34+matrices!AI35*X34+matrices!AJ35*AD34+matrices!AK35*AJ34 -> 0.05446755446 | AK35: =matrices!AF35*G34+matrices!AG880*M34+matrices!AH35*S34+matrices!AI35*Y34+matrices!AJ35*AE34+matrices!AK35*AK34 -> 0.3756982902
A36: =matrices!A36 -> cpd | B36: =matrices!B36*B35+matrices!C36*H35+matrices!D36*N35+matrices!E36*T35+matrices!F36*Z35+matrices!G36*AF35 -> 0.6783816838 | C36: =matrices!B36*C35+matrices!C36*I35+matrices!D36*O35+matrices!E36*U35+matrices!F36*AA35+matrices!G36*AG35 -> 0.5819989721 | D36: =matrices!B36*D35+matrices!C36*J35+matrices!D36*P35+matrices!E36*V35+matrices!F36*AB35+matrices!G36*AH35 -> 0 | E36: =matrices!B36*E35+matrices!C36*K35+matrices!D36*Q35+matrices!E36*W35+matrices!F36*AC35+matrices!G36*AI35 -> 0 | F36: =matrices!B36*F35+matrices!C36*L35+matrices!D36*R35+matrices!E36*X35+matrices!F36*AD35+matrices!G36*AJ35 -> 0 | G36: =matrices!B36*G35+matrices!C36*M35+matrices!D36*S35+matrices!E36*Y35+matrices!F36*AE35+matrices!G36*AK35 -> 0 | H36: =matrices!H36*B35+matrices!I36*H35+matrices!J36*N35+matrices!K36*T35+matrices!L36*Z35+matrices!M36*AF35 -> -0.05650675969 | I36: =matrices!H36*C35+matrices!I36*I35+matrices!J36*O35+matrices!K36*U35+matrices!L36*AA35+matrices!M36*AG35 -> 0.1388287709 | J36: =matrices!H36*D35+matrices!I36*J35+matrices!J36*P35+matrices!K36*V35+matrices!L36*AB35+matrices!M36*AH35 -> 0 | K36: =matrices!H36*E35+matrices!I36*K35+matrices!J36*Q35+matrices!K36*W35+matrices!L36*AC35+matrices!M36*AI35 -> 0 | L36: =matrices!H36*F35+matrices!I36*L35+matrices!J36*R35+matrices!K36*X35+matrices!L36*AD35+matrices!M36*AJ35 -> 0 | M36: =matrices!H36*G35+matrices!I36*M35+matrices!J36*S35+matrices!K36*Y35+matrices!L36*AE35+matrices!M36*AK35 -> 0 | N36: =matrices!N36*B35+matrices!O36*H35+matrices!P36*N35+matrices!Q36*T35+matrices!R36*Z35+matrices!S36*AF35 -> 0 | O36: =matrices!N36*C35+matrices!O36*I35+matrices!P36*O35+matrices!Q36*U35+matrices!R36*AA35+matrices!S36*AG35 -> 0 | P36: =matrices!N36*D35+matrices!O36*J35+matrices!P36*P35+matrices!Q36*V35+matrices!R36*AB35+matrices!S36*AH35 -> 0.6783816838 | Q36: =matrices!N36*E35+matrices!O36*K35+matrices!P36*Q35+matrices!Q36*W35+matrices!R36*AC35+matrices!S36*AI35 -> 0.5819989721 | R36: =matrices!N36*F35+matrices!O36*L35+matrices!P36*R35+matrices!Q36*X35+matrices!R36*AD35+matrices!S36*AJ35 -> 0 | S36: =matrices!N36*G35+matrices!O36*M35+matrices!P36*S35+matrices!Q36*Y35+matrices!R36*AE35+matrices!S36*AK35 -> 0 | T36: =matrices!T36*B35+matrices!U36*H35+matrices!V36*N35+matrices!W36*T35+matrices!X36*Z35+matrices!Y36*AF35 -> 0 | U36: =matrices!T36*C35+matrices!U36*I35+matrices!V36*O35+matrices!W36*U35+matrices!X36*AA35+matrices!Y36*AG35 -> 0 | V36: =matrices!T36*D35+matrices!U36*J35+matrices!V36*P35+matrices!W36*V35+matrices!X36*AB35+matrices!Y36*AH35 -> -0.05650675969 | W36: =matrices!T36*E35+matrices!U36*K35+matrices!V36*Q35+matrices!W36*W35+matrices!X36*AC35+matrices!Y36*AI35 -> 0.1388287709 | X36: =matrices!T36*F35+matrices!U36*L35+matrices!V36*R35+matrices!W36*X35+matrices!X36*AD35+matrices!Y36*AJ35 -> 0 | Y36: =matrices!T36*G35+matrices!U36*M35+matrices!V36*S35+matrices!W36*Y35+matrices!X36*AE35+matrices!Y36*AK35 -> 0 | Z36: =matrices!Z36*B35+matrices!AA36*H35+matrices!AB36*N35+matrices!AC36*T35+matrices!AD36*Z35+matrices!AE36*AF35 -> 0 | AA36: =matrices!Z36*C35+matrices!AA36*I35+matrices!AB36*O35+matrices!AC36*U35+matrices!AD36*AA35+matrices!AE36*AG35 -> 0 | AB36: =matrices!Z36*D35+matrices!AA36*J35+matrices!AB36*P35+matrices!AC36*V35+matrices!AD36*AB35+matrices!AE36*AH35 -> 0 | AC36: =matrices!Z36*E35+matrices!AA36*K35+matrices!AB36*Q35+matrices!AC36*W35+matrices!AD36*AC35+matrices!AE36*AI35 -> 0 | AD36: =matrices!Z36*F35+matrices!AA36*L35+matrices!AB36*R35+matrices!AC36*X35+matrices!AD36*AD35+matrices!AE36*AJ35 -> 0.3298675395 | AE36: =matrices!Z36*G35+matrices!AA36*M35+matrices!AB36*S35+matrices!AC36*Y35+matrices!AD36*AE35+matrices!AE36*AK35 -> -0.05755905294 | AF36: =matrices!AF36*B35+matrices!AG36*H35+matrices!AH36*N35+matrices!AI36*T35+matrices!AJ36*Z35+matrices!AK36*AF35 -> 0 | AG36: =matrices!AF36*C35+matrices!AG36*I35+matrices!AH36*O35+matrices!AI36*U35+matrices!AJ36*AA35+matrices!AK36*AG35 -> 0 | AH36: =matrices!AF36*D35+matrices!AG36*J35+matrices!AH36*P35+matrices!AI36*V35+matrices!AJ36*AB35+matrices!AK36*AH35 -> 0 | AI36: =matrices!AF36*E35+matrices!AG36*K35+matrices!AH36*Q35+matrices!AI36*W35+matrices!AJ36*AC35+matrices!AK36*AI35 -> 0 | AJ36: =matrices!AF36*F35+matrices!AG36*L35+matrices!AH36*R35+matrices!AI36*X35+matrices!AJ36*AD35+matrices!AK36*AJ35 -> 0.05446755446 | AK36: =matrices!AF36*G35+matrices!AG881*M35+matrices!AH36*S35+matrices!AI36*Y35+matrices!AJ36*AE35+matrices!AK36*AK35 -> 0.3756982902
A37: =matrices!A37 -> ac012 | B37: =matrices!B37*B36+matrices!C37*H36+matrices!D37*N36+matrices!E37*T36+matrices!F37*Z36+matrices!G37*AF36 -> 0.4411120942 | C37: =matrices!B37*C36+matrices!C37*I36+matrices!D37*O36+matrices!E37*U36+matrices!F37*AA36+matrices!G37*AG36 -> 0.474888207 | D37: =matrices!B37*D36+matrices!C37*J36+matrices!D37*P36+matrices!E37*V36+matrices!F37*AB36+matrices!G37*AH36 -> 0 | E37: =matrices!B37*E36+matrices!C37*K36+matrices!D37*Q36+matrices!E37*W36+matrices!F37*AC36+matrices!G37*AI36 -> 0 | F37: =matrices!B37*F36+matrices!C37*L36+matrices!D37*R36+matrices!E37*X36+matrices!F37*AD36+matrices!G37*AJ36 -> 0 | G37: =matrices!B37*G36+matrices!C37*M36+matrices!D37*S36+matrices!E37*Y36+matrices!F37*AE36+matrices!G37*AK36 -> 0 | H37: =matrices!H37*B36+matrices!I37*H36+matrices!J37*N36+matrices!K37*T36+matrices!L37*Z36+matrices!M37*AF36 -> -0.1576101762 | I37: =matrices!H37*C36+matrices!I37*I36+matrices!J37*O36+matrices!K37*U36+matrices!L37*AA36+matrices!M37*AG36 -> -0.00283503194 | J37: =matrices!H37*D36+matrices!I37*J36+matrices!J37*P36+matrices!K37*V36+matrices!L37*AB36+matrices!M37*AH36 -> 0 | K37: =matrices!H37*E36+matrices!I37*K36+matrices!J37*Q36+matrices!K37*W36+matrices!L37*AC36+matrices!M37*AI36 -> 0 | L37: =matrices!H37*F36+matrices!I37*L36+matrices!J37*R36+matrices!K37*X36+matrices!L37*AD36+matrices!M37*AJ36 -> 0 | M37: =matrices!H37*G36+matrices!I37*M36+matrices!J37*S36+matrices!K37*Y36+matrices!L37*AE36+matrices!M37*AK36 -> 0 | N37: =matrices!N37*B36+matrices!O37*H36+matrices!P37*N36+matrices!Q37*T36+matrices!R37*Z36+matrices!S37*AF36 -> 0 | O37: =matrices!N37*C36+matrices!O37*I36+matrices!P37*O36+matrices!Q37*U36+matrices!R37*AA36+matrices!S37*AG36 -> 0 | P37: =matrices!N37*D36+matrices!O37*J36+matrices!P37*P36+matrices!Q37*V36+matrices!R37*AB36+matrices!S37*AH36 -> 0.4411120942 | Q37: =matrices!N37*E36+matrices!O37*K36+matrices!P37*Q36+matrices!Q37*W36+matrices!R37*AC36+matrices!S37*AI36 -> 0.474888207 | R37: =matrices!N37*F36+matrices!O37*L36+matrices!P37*R36+matrices!Q37*X36+matrices!R37*AD36+matrices!S37*AJ36 -> 0 | S37: =matrices!N37*G36+matrices!O37*M36+matrices!P37*S36+matrices!Q37*Y36+matrices!R37*AE36+matrices!S37*AK36 -> 0 | T37: =matrices!T37*B36+matrices!U37*H36+matrices!V37*N36+matrices!W37*T36+matrices!X37*Z36+matrices!Y37*AF36 -> 0 | U37: =matrices!T37*C36+matrices!U37*I36+matrices!V37*O36+matrices!W37*U36+matrices!X37*AA36+matrices!Y37*AG36 -> 0 | V37: =matrices!T37*D36+matrices!U37*J36+matrices!V37*P36+matrices!W37*V36+matrices!X37*AB36+matrices!Y37*AH36 -> -0.1576101762 | W37: =matrices!T37*E36+matrices!U37*K36+matrices!V37*Q36+matrices!W37*W36+matrices!X37*AC36+matrices!Y37*AI36 -> -0.00283503194 | X37: =matrices!T37*F36+matrices!U37*L36+matrices!V37*R36+matrices!W37*X36+matrices!X37*AD36+matrices!Y37*AJ36 -> 0 | Y37: =matrices!T37*G36+matrices!U37*M36+matrices!V37*S36+matrices!W37*Y36+matrices!X37*AE36+matrices!Y37*AK36 -> 0 | Z37: =matrices!Z37*B36+matrices!AA37*H36+matrices!AB37*N36+matrices!AC37*T36+matrices!AD37*Z36+matrices!AE37*AF36 -> 0 | AA37: =matrices!Z37*C36+matrices!AA37*I36+matrices!AB37*O36+matrices!AC37*U36+matrices!AD37*AA36+matrices!AE37*AG36 -> 0 | AB37: =matrices!Z37*D36+matrices!AA37*J36+matrices!AB37*P36+matrices!AC37*V36+matrices!AD37*AB36+matrices!AE37*AH36 -> 0 | AC37: =matrices!Z37*E36+matrices!AA37*K36+matrices!AB37*Q36+matrices!AC37*W36+matrices!AD37*AC36+matrices!AE37*AI36 -> 0 | AD37: =matrices!Z37*F36+matrices!AA37*L36+matrices!AB37*R36+matrices!AC37*X36+matrices!AD37*AD36+matrices!AE37*AJ36 -> 0.3301411432 | AE37: =matrices!Z37*G36+matrices!AA37*M36+matrices!AB37*S36+matrices!AC37*Y36+matrices!AD37*AE36+matrices!AE37*AK36 -> -0.05888835128 | AF37: =matrices!AF37*B36+matrices!AG37*H36+matrices!AH37*N36+matrices!AI37*T36+matrices!AJ37*Z36+matrices!AK37*AF36 -> 0 | AG37: =matrices!AF37*C36+matrices!AG37*I36+matrices!AH37*O36+matrices!AI37*U36+matrices!AJ37*AA36+matrices!AK37*AG36 -> 0 | AH37: =matrices!AF37*D36+matrices!AG37*J36+matrices!AH37*P36+matrices!AI37*V36+matrices!AJ37*AB36+matrices!AK37*AH36 -> 0 | AI37: =matrices!AF37*E36+matrices!AG37*K36+matrices!AH37*Q36+matrices!AI37*W36+matrices!AJ37*AC36+matrices!AK37*AI36 -> 0 | AJ37: =matrices!AF37*F36+matrices!AG37*L36+matrices!AH37*R36+matrices!AI37*X36+matrices!AJ37*AD36+matrices!AK37*AJ36 -> -0.4649039117 | AK37: =matrices!AF37*G36+matrices!AG882*M36+matrices!AH37*S36+matrices!AI37*Y36+matrices!AJ37*AE36+matrices!AK37*AK36 -> 0.3058512217
A38: =matrices!A38 -> endcan | B38: =matrices!B38*B37+matrices!C38*H37+matrices!D38*N37+matrices!E38*T37+matrices!F38*Z37+matrices!G38*AF37 -> 0.356932499 | C38: =matrices!B38*C37+matrices!C38*I37+matrices!D38*O37+matrices!E38*U37+matrices!F38*AA37+matrices!G38*AG37 -> 0.4733740165 | D38: =matrices!B38*D37+matrices!C38*J37+matrices!D38*P37+matrices!E38*V37+matrices!F38*AB37+matrices!G38*AH37 -> 0 | E38: =matrices!B38*E37+matrices!C38*K37+matrices!D38*Q37+matrices!E38*W37+matrices!F38*AC37+matrices!G38*AI37 -> 0 | F38: =matrices!B38*F37+matrices!C38*L37+matrices!D38*R37+matrices!E38*X37+matrices!F38*AD37+matrices!G38*AJ37 -> 0 | G38: =matrices!B38*G37+matrices!C38*M37+matrices!D38*S37+matrices!E38*Y37+matrices!F38*AE37+matrices!G38*AK37 -> 0 | H38: =matrices!H38*B37+matrices!I38*H37+matrices!J38*N37+matrices!K38*T37+matrices!L38*Z37+matrices!M38*AF37 -> -0.1576101762 | I38: =matrices!H38*C37+matrices!I38*I37+matrices!J38*O37+matrices!K38*U37+matrices!L38*AA37+matrices!M38*AG37 -> -0.00283503194 | J38: =matrices!H38*D37+matrices!I38*J37+matrices!J38*P37+matrices!K38*V37+matrices!L38*AB37+matrices!M38*AH37 -> 0 | K38: =matrices!H38*E37+matrices!I38*K37+matrices!J38*Q37+matrices!K38*W37+matrices!L38*AC37+matrices!M38*AI37 -> 0 | L38: =matrices!H38*F37+matrices!I38*L37+matrices!J38*R37+matrices!K38*X37+matrices!L38*AD37+matrices!M38*AJ37 -> 0 | M38: =matrices!H38*G37+matrices!I38*M37+matrices!J38*S37+matrices!K38*Y37+matrices!L38*AE37+matrices!M38*AK37 -> 0 | N38: =matrices!N38*B37+matrices!O38*H37+matrices!P38*N37+matrices!Q38*T37+matrices!R38*Z37+matrices!S38*AF37 -> 0 | O38: =matrices!N38*C37+matrices!O38*I37+matrices!P38*O37+matrices!Q38*U37+matrices!R38*AA37+matrices!S38*AG37 -> 0 | P38: =matrices!N38*D37+matrices!O38*J37+matrices!P38*P37+matrices!Q38*V37+matrices!R38*AB37+matrices!S38*AH37 -> 0.356932499 | Q38: =matrices!N38*E37+matrices!O38*K37+matrices!P38*Q37+matrices!Q38*W37+matrices!R38*AC37+matrices!S38*AI37 -> 0.4733740165 | R38: =matrices!N38*F37+matrices!O38*L37+matrices!P38*R37+matrices!Q38*X37+matrices!R38*AD37+matrices!S38*AJ37 -> 0 | S38: =matrices!N38*G37+matrices!O38*M37+matrices!P38*S37+matrices!Q38*Y37+matrices!R38*AE37+matrices!S38*AK37 -> 0 | T38: =matrices!T38*B37+matrices!U38*H37+matrices!V38*N37+matrices!W38*T37+matrices!X38*Z37+matrices!Y38*AF37 -> 0 | U38: =matrices!T38*C37+matrices!U38*I37+matrices!V38*O37+matrices!W38*U37+matrices!X38*AA37+matrices!Y38*AG37 -> 0 | V38: =matrices!T38*D37+matrices!U38*J37+matrices!V38*P37+matrices!W38*V37+matrices!X38*AB37+matrices!Y38*AH37 -> -0.1576101762 | W38: =matrices!T38*E37+matrices!U38*K37+matrices!V38*Q37+matrices!W38*W37+matrices!X38*AC37+matrices!Y38*AI37 -> -0.00283503194 | X38: =matrices!T38*F37+matrices!U38*L37+matrices!V38*R37+matrices!W38*X37+matrices!X38*AD37+matrices!Y38*AJ37 -> 0 | Y38: =matrices!T38*G37+matrices!U38*M37+matrices!V38*S37+matrices!W38*Y37+matrices!X38*AE37+matrices!Y38*AK37 -> 0 | Z38: =matrices!Z38*B37+matrices!AA38*H37+matrices!AB38*N37+matrices!AC38*T37+matrices!AD38*Z37+matrices!AE38*AF37 -> 0 | AA38: =matrices!Z38*C37+matrices!AA38*I37+matrices!AB38*O37+matrices!AC38*U37+matrices!AD38*AA37+matrices!AE38*AG37 -> 0 | AB38: =matrices!Z38*D37+matrices!AA38*J37+matrices!AB38*P37+matrices!AC38*V37+matrices!AD38*AB37+matrices!AE38*AH37 -> 0 | AC38: =matrices!Z38*E37+matrices!AA38*K37+matrices!AB38*Q37+matrices!AC38*W37+matrices!AD38*AC37+matrices!AE38*AI37 -> 0 | AD38: =matrices!Z38*F37+matrices!AA38*L37+matrices!AB38*R37+matrices!AC38*X37+matrices!AD38*AD37+matrices!AE38*AJ37 -> 0.3301411432 | AE38: =matrices!Z38*G37+matrices!AA38*M37+matrices!AB38*S37+matrices!AC38*Y37+matrices!AD38*AE37+matrices!AE38*AK37 -> -0.05888835128 | AF38: =matrices!AF38*B37+matrices!AG38*H37+matrices!AH38*N37+matrices!AI38*T37+matrices!AJ38*Z37+matrices!AK38*AF37 -> 0 | AG38: =matrices!AF38*C37+matrices!AG38*I37+matrices!AH38*O37+matrices!AI38*U37+matrices!AJ38*AA37+matrices!AK38*AG37 -> 0 | AH38: =matrices!AF38*D37+matrices!AG38*J37+matrices!AH38*P37+matrices!AI38*V37+matrices!AJ38*AB37+matrices!AK38*AH37 -> 0 | AI38: =matrices!AF38*E37+matrices!AG38*K37+matrices!AH38*Q37+matrices!AI38*W37+matrices!AJ38*AC37+matrices!AK38*AI37 -> 0 | AJ38: =matrices!AF38*F37+matrices!AG38*L37+matrices!AH38*R37+matrices!AI38*X37+matrices!AJ38*AD37+matrices!AK38*AJ37 -> -0.4649039117 | AK38: =matrices!AF38*G37+matrices!AG883*M37+matrices!AH38*S37+matrices!AI38*Y37+matrices!AJ38*AE37+matrices!AK38*AK37 -> 0.3058512217
A39: =matrices!A39 -> ds | B39: =matrices!B39*B38+matrices!C39*H38+matrices!D39*N38+matrices!E39*T38+matrices!F39*Z38+matrices!G39*AF38 -> 0.3254104638 | C39: =matrices!B39*C38+matrices!C39*I38+matrices!D39*O38+matrices!E39*U38+matrices!F39*AA38+matrices!G39*AG38 -> 0.4728070101 | D39: =matrices!B39*D38+matrices!C39*J38+matrices!D39*P38+matrices!E39*V38+matrices!F39*AB38+matrices!G39*AH38 -> 0 | E39: =matrices!B39*E38+matrices!C39*K38+matrices!D39*Q38+matrices!E39*W38+matrices!F39*AC38+matrices!G39*AI38 -> 0 | F39: =matrices!B39*F38+matrices!C39*L38+matrices!D39*R38+matrices!E39*X38+matrices!F39*AD38+matrices!G39*AJ38 -> 0 | G39: =matrices!B39*G38+matrices!C39*M38+matrices!D39*S38+matrices!E39*Y38+matrices!F39*AE38+matrices!G39*AK38 -> 0 | H39: =matrices!H39*B38+matrices!I39*H38+matrices!J39*N38+matrices!K39*T38+matrices!L39*Z38+matrices!M39*AF38 -> -0.1576101762 | I39: =matrices!H39*C38+matrices!I39*I38+matrices!J39*O38+matrices!K39*U38+matrices!L39*AA38+matrices!M39*AG38 -> -0.00283503194 | J39: =matrices!H39*D38+matrices!I39*J38+matrices!J39*P38+matrices!K39*V38+matrices!L39*AB38+matrices!M39*AH38 -> 0 | K39: =matrices!H39*E38+matrices!I39*K38+matrices!J39*Q38+matrices!K39*W38+matrices!L39*AC38+matrices!M39*AI38 -> 0 | L39: =matrices!H39*F38+matrices!I39*L38+matrices!J39*R38+matrices!K39*X38+matrices!L39*AD38+matrices!M39*AJ38 -> 0 | M39: =matrices!H39*G38+matrices!I39*M38+matrices!J39*S38+matrices!K39*Y38+matrices!L39*AE38+matrices!M39*AK38 -> 0 | N39: =matrices!N39*B38+matrices!O39*H38+matrices!P39*N38+matrices!Q39*T38+matrices!R39*Z38+matrices!S39*AF38 -> 0 | O39: =matrices!N39*C38+matrices!O39*I38+matrices!P39*O38+matrices!Q39*U38+matrices!R39*AA38+matrices!S39*AG38 -> 0 | P39: =matrices!N39*D38+matrices!O39*J38+matrices!P39*P38+matrices!Q39*V38+matrices!R39*AB38+matrices!S39*AH38 -> 0.3254104638 | Q39: =matrices!N39*E38+matrices!O39*K38+matrices!P39*Q38+matrices!Q39*W38+matrices!R39*AC38+matrices!S39*AI38 -> 0.4728070101 | R39: =matrices!N39*F38+matrices!O39*L38+matrices!P39*R38+matrices!Q39*X38+matrices!R39*AD38+matrices!S39*AJ38 -> 0 | S39: =matrices!N39*G38+matrices!O39*M38+matrices!P39*S38+matrices!Q39*Y38+matrices!R39*AE38+matrices!S39*AK38 -> 0 | T39: =matrices!T39*B38+matrices!U39*H38+matrices!V39*N38+matrices!W39*T38+matrices!X39*Z38+matrices!Y39*AF38 -> 0 | U39: =matrices!T39*C38+matrices!U39*I38+matrices!V39*O38+matrices!W39*U38+matrices!X39*AA38+matrices!Y39*AG38 -> 0 | V39: =matrices!T39*D38+matrices!U39*J38+matrices!V39*P38+matrices!W39*V38+matrices!X39*AB38+matrices!Y39*AH38 -> -0.1576101762 | W39: =matrices!T39*E38+matrices!U39*K38+matrices!V39*Q38+matrices!W39*W38+matrices!X39*AC38+matrices!Y39*AI38 -> -0.00283503194 | X39: =matrices!T39*F38+matrices!U39*L38+matrices!V39*R38+matrices!W39*X38+matrices!X39*AD38+matrices!Y39*AJ38 -> 0 | Y39: =matrices!T39*G38+matrices!U39*M38+matrices!V39*S38+matrices!W39*Y38+matrices!X39*AE38+matrices!Y39*AK38 -> 0 | Z39: =matrices!Z39*B38+matrices!AA39*H38+matrices!AB39*N38+matrices!AC39*T38+matrices!AD39*Z38+matrices!AE39*AF38 -> 0 | AA39: =matrices!Z39*C38+matrices!AA39*I38+matrices!AB39*O38+matrices!AC39*U38+matrices!AD39*AA38+matrices!AE39*AG38 -> 0 | AB39: =matrices!Z39*D38+matrices!AA39*J38+matrices!AB39*P38+matrices!AC39*V38+matrices!AD39*AB38+matrices!AE39*AH38 -> 0 | AC39: =matrices!Z39*E38+matrices!AA39*K38+matrices!AB39*Q38+matrices!AC39*W38+matrices!AD39*AC38+matrices!AE39*AI38 -> 0 | AD39: =matrices!Z39*F38+matrices!AA39*L38+matrices!AB39*R38+matrices!AC39*X38+matrices!AD39*AD38+matrices!AE39*AJ38 -> 0.3301411432 | AE39: =matrices!Z39*G38+matrices!AA39*M38+matrices!AB39*S38+matrices!AC39*Y38+matrices!AD39*AE38+matrices!AE39*AK38 -> -0.05888835128 | AF39: =matrices!AF39*B38+matrices!AG39*H38+matrices!AH39*N38+matrices!AI39*T38+matrices!AJ39*Z38+matrices!AK39*AF38 -> 0 | AG39: =matrices!AF39*C38+matrices!AG39*I38+matrices!AH39*O38+matrices!AI39*U38+matrices!AJ39*AA38+matrices!AK39*AG38 -> 0 | AH39: =matrices!AF39*D38+matrices!AG39*J38+matrices!AH39*P38+matrices!AI39*V38+matrices!AJ39*AB38+matrices!AK39*AH38 -> 0 | AI39: =matrices!AF39*E38+matrices!AG39*K38+matrices!AH39*Q38+matrices!AI39*W38+matrices!AJ39*AC38+matrices!AK39*AI38 -> 0 | AJ39: =matrices!AF39*F38+matrices!AG39*L38+matrices!AH39*R38+matrices!AI39*X38+matrices!AJ39*AD38+matrices!AK39*AJ38 -> -0.4649039117 | AK39: =matrices!AF39*G38+matrices!AG884*M38+matrices!AH39*S38+matrices!AI39*Y38+matrices!AJ39*AE38+matrices!AK39*AK38 -> 0.3058512217
A40: =matrices!A40 -> qj0f03 | B40: =matrices!B40*B39+matrices!C40*H39+matrices!D40*N39+matrices!E40*T39+matrices!F40*Z39+matrices!G40*AF39 -> 0.288364823 | C40: =matrices!B40*C39+matrices!C40*I39+matrices!D40*O39+matrices!E40*U39+matrices!F40*AA39+matrices!G40*AG39 -> 0.4524274148 | D40: =matrices!B40*D39+matrices!C40*J39+matrices!D40*P39+matrices!E40*V39+matrices!F40*AB39+matrices!G40*AH39 -> 0 | E40: =matrices!B40*E39+matrices!C40*K39+matrices!D40*Q39+matrices!E40*W39+matrices!F40*AC39+matrices!G40*AI39 -> 0 | F40: =matrices!B40*F39+matrices!C40*L39+matrices!D40*R39+matrices!E40*X39+matrices!F40*AD39+matrices!G40*AJ39 -> 0 | G40: =matrices!B40*G39+matrices!C40*M39+matrices!D40*S39+matrices!E40*Y39+matrices!F40*AE39+matrices!G40*AK39 -> 0 | H40: =matrices!H40*B39+matrices!I40*H39+matrices!J40*N39+matrices!K40*T39+matrices!L40*Z39+matrices!M40*AF39 -> -0.3328265665 | I40: =matrices!H40*C39+matrices!I40*I39+matrices!J40*O39+matrices!K40*U39+matrices!L40*AA39+matrices!M40*AG39 -> -0.2669646565 | J40: =matrices!H40*D39+matrices!I40*J39+matrices!J40*P39+matrices!K40*V39+matrices!L40*AB39+matrices!M40*AH39 -> 0 | K40: =matrices!H40*E39+matrices!I40*K39+matrices!J40*Q39+matrices!K40*W39+matrices!L40*AC39+matrices!M40*AI39 -> 0 | L40: =matrices!H40*F39+matrices!I40*L39+matrices!J40*R39+matrices!K40*X39+matrices!L40*AD39+matrices!M40*AJ39 -> 0 | M40: =matrices!H40*G39+matrices!I40*M39+matrices!J40*S39+matrices!K40*Y39+matrices!L40*AE39+matrices!M40*AK39 -> 0 | N40: =matrices!N40*B39+matrices!O40*H39+matrices!P40*N39+matrices!Q40*T39+matrices!R40*Z39+matrices!S40*AF39 -> 0 | O40: =matrices!N40*C39+matrices!O40*I39+matrices!P40*O39+matrices!Q40*U39+matrices!R40*AA39+matrices!S40*AG39 -> 0 | P40: =matrices!N40*D39+matrices!O40*J39+matrices!P40*P39+matrices!Q40*V39+matrices!R40*AB39+matrices!S40*AH39 -> 0.3153662854 | Q40: =matrices!N40*E39+matrices!O40*K39+matrices!P40*Q39+matrices!Q40*W39+matrices!R40*AC39+matrices!S40*AI39 -> 0.4926209443 | R40: =matrices!N40*F39+matrices!O40*L39+matrices!P40*R39+matrices!Q40*X39+matrices!R40*AD39+matrices!S40*AJ39 -> 0 | S40: =matrices!N40*G39+matrices!O40*M39+matrices!P40*S39+matrices!Q40*Y39+matrices!R40*AE39+matrices!S40*AK39 -> 0 | T40: =matrices!T40*B39+matrices!U40*H39+matrices!V40*N39+matrices!W40*T39+matrices!X40*Z39+matrices!Y40*AF39 -> 0 | U40: =matrices!T40*C39+matrices!U40*I39+matrices!V40*O39+matrices!W40*U39+matrices!X40*AA39+matrices!Y40*AG39 -> 0 | V40: =matrices!T40*D39+matrices!U40*J39+matrices!V40*P39+matrices!W40*V39+matrices!X40*AB39+matrices!Y40*AH39 -> 0.0227401413 | W40: =matrices!T40*E39+matrices!U40*K39+matrices!V40*Q39+matrices!W40*W39+matrices!X40*AC39+matrices!Y40*AI39 -> 0.2688902426 | X40: =matrices!T40*F39+matrices!U40*L39+matrices!V40*R39+matrices!W40*X39+matrices!X40*AD39+matrices!Y40*AJ39 -> 0 | Y40: =matrices!T40*G39+matrices!U40*M39+matrices!V40*S39+matrices!W40*Y39+matrices!X40*AE39+matrices!Y40*AK39 -> 0 | Z40: =matrices!Z40*B39+matrices!AA40*H39+matrices!AB40*N39+matrices!AC40*T39+matrices!AD40*Z39+matrices!AE40*AF39 -> 0 | AA40: =matrices!Z40*C39+matrices!AA40*I39+matrices!AB40*O39+matrices!AC40*U39+matrices!AD40*AA39+matrices!AE40*AG39 -> 0 | AB40: =matrices!Z40*D39+matrices!AA40*J39+matrices!AB40*P39+matrices!AC40*V39+matrices!AD40*AB39+matrices!AE40*AH39 -> 0 | AC40: =matrices!Z40*E39+matrices!AA40*K39+matrices!AB40*Q39+matrices!AC40*W39+matrices!AD40*AC39+matrices!AE40*AI39 -> 0 | AD40: =matrices!Z40*F39+matrices!AA40*L39+matrices!AB40*R39+matrices!AC40*X39+matrices!AD40*AD39+matrices!AE40*AJ39 -> 0.3301411432 | AE40: =matrices!Z40*G39+matrices!AA40*M39+matrices!AB40*S39+matrices!AC40*Y39+matrices!AD40*AE39+matrices!AE40*AK39 -> -0.05888835128 | AF40: =matrices!AF40*B39+matrices!AG40*H39+matrices!AH40*N39+matrices!AI40*T39+matrices!AJ40*Z39+matrices!AK40*AF39 -> 0 | AG40: =matrices!AF40*C39+matrices!AG40*I39+matrices!AH40*O39+matrices!AI40*U39+matrices!AJ40*AA39+matrices!AK40*AG39 -> 0 | AH40: =matrices!AF40*D39+matrices!AG40*J39+matrices!AH40*P39+matrices!AI40*V39+matrices!AJ40*AB39+matrices!AK40*AH39 -> 0 | AI40: =matrices!AF40*E39+matrices!AG40*K39+matrices!AH40*Q39+matrices!AI40*W39+matrices!AJ40*AC39+matrices!AK40*AI39 -> 0 | AJ40: =matrices!AF40*F39+matrices!AG40*L39+matrices!AH40*R39+matrices!AI40*X39+matrices!AJ40*AD39+matrices!AK40*AJ39 -> -0.4649039117 | AK40: =matrices!AF40*G39+matrices!AG885*M39+matrices!AH40*S39+matrices!AI40*Y39+matrices!AJ40*AE39+matrices!AK40*AK39 -> 0.3058512217
A41: =matrices!A41 -> d11 | B41: =matrices!B41*B40+matrices!C41*H40+matrices!D41*N40+matrices!E41*T40+matrices!F41*Z40+matrices!G41*AF40 -> 0.1385928681 | C41: =matrices!B41*C40+matrices!C41*I40+matrices!D41*O40+matrices!E41*U40+matrices!F41*AA40+matrices!G41*AG40 -> 0.3322933194 | D41: =matrices!B41*D40+matrices!C41*J40+matrices!D41*P40+matrices!E41*V40+matrices!F41*AB40+matrices!G41*AH40 -> 0 | E41: =matrices!B41*E40+matrices!C41*K40+matrices!D41*Q40+matrices!E41*W40+matrices!F41*AC40+matrices!G41*AI40 -> 0 | F41: =matrices!B41*F40+matrices!C41*L40+matrices!D41*R40+matrices!E41*X40+matrices!F41*AD40+matrices!G41*AJ40 -> 0 | G41: =matrices!B41*G40+matrices!C41*M40+matrices!D41*S40+matrices!E41*Y40+matrices!F41*AE40+matrices!G41*AK40 -> 0 | H41: =matrices!H41*B40+matrices!I41*H40+matrices!J41*N40+matrices!K41*T40+matrices!L41*Z40+matrices!M41*AF40 -> -0.3328265665 | I41: =matrices!H41*C40+matrices!I41*I40+matrices!J41*O40+matrices!K41*U40+matrices!L41*AA40+matrices!M41*AG40 -> -0.2669646565 | J41: =matrices!H41*D40+matrices!I41*J40+matrices!J41*P40+matrices!K41*V40+matrices!L41*AB40+matrices!M41*AH40 -> 0 | K41: =matrices!H41*E40+matrices!I41*K40+matrices!J41*Q40+matrices!K41*W40+matrices!L41*AC40+matrices!M41*AI40 -> 0 | L41: =matrices!H41*F40+matrices!I41*L40+matrices!J41*R40+matrices!K41*X40+matrices!L41*AD40+matrices!M41*AJ40 -> 0 | M41: =matrices!H41*G40+matrices!I41*M40+matrices!J41*S40+matrices!K41*Y40+matrices!L41*AE40+matrices!M41*AK40 -> 0 | N41: =matrices!N41*B40+matrices!O41*H40+matrices!P41*N40+matrices!Q41*T40+matrices!R41*Z40+matrices!S41*AF40 -> 0 | O41: =matrices!N41*C40+matrices!O41*I40+matrices!P41*O40+matrices!Q41*U40+matrices!R41*AA40+matrices!S41*AG40 -> 0 | P41: =matrices!N41*D40+matrices!O41*J40+matrices!P41*P40+matrices!Q41*V40+matrices!R41*AB40+matrices!S41*AH40 -> 0.325599349 | Q41: =matrices!N41*E40+matrices!O41*K40+matrices!P41*Q40+matrices!Q41*W40+matrices!R41*AC40+matrices!S41*AI40 -> 0.6136215534 | R41: =matrices!N41*F40+matrices!O41*L40+matrices!P41*R40+matrices!Q41*X40+matrices!R41*AD40+matrices!S41*AJ40 -> 0 | S41: =matrices!N41*G40+matrices!O41*M40+matrices!P41*S40+matrices!Q41*Y40+matrices!R41*AE40+matrices!S41*AK40 -> 0 | T41: =matrices!T41*B40+matrices!U41*H40+matrices!V41*N40+matrices!W41*T40+matrices!X41*Z40+matrices!Y41*AF40 -> 0 | U41: =matrices!T41*C40+matrices!U41*I40+matrices!V41*O40+matrices!W41*U40+matrices!X41*AA40+matrices!Y41*AG40 -> 0 | V41: =matrices!T41*D40+matrices!U41*J40+matrices!V41*P40+matrices!W41*V40+matrices!X41*AB40+matrices!Y41*AH40 -> 0.0227401413 | W41: =matrices!T41*E40+matrices!U41*K40+matrices!V41*Q40+matrices!W41*W40+matrices!X41*AC40+matrices!Y41*AI40 -> 0.2688902426 | X41: =matrices!T41*F40+matrices!U41*L40+matrices!V41*R40+matrices!W41*X40+matrices!X41*AD40+matrices!Y41*AJ40 -> 0 | Y41: =matrices!T41*G40+matrices!U41*M40+matrices!V41*S40+matrices!W41*Y40+matrices!X41*AE40+matrices!Y41*AK40 -> 0 | Z41: =matrices!Z41*B40+matrices!AA41*H40+matrices!AB41*N40+matrices!AC41*T40+matrices!AD41*Z40+matrices!AE41*AF40 -> 0 | AA41: =matrices!Z41*C40+matrices!AA41*I40+matrices!AB41*O40+matrices!AC41*U40+matrices!AD41*AA40+matrices!AE41*AG40 -> 0 | AB41: =matrices!Z41*D40+matrices!AA41*J40+matrices!AB41*P40+matrices!AC41*V40+matrices!AD41*AB40+matrices!AE41*AH40 -> 0 | AC41: =matrices!Z41*E40+matrices!AA41*K40+matrices!AB41*Q40+matrices!AC41*W40+matrices!AD41*AC40+matrices!AE41*AI40 -> 0 | AD41: =matrices!Z41*F40+matrices!AA41*L40+matrices!AB41*R40+matrices!AC41*X40+matrices!AD41*AD40+matrices!AE41*AJ40 -> 0.3301411432 | AE41: =matrices!Z41*G40+matrices!AA41*M40+matrices!AB41*S40+matrices!AC41*Y40+matrices!AD41*AE40+matrices!AE41*AK40 -> -0.05888835128 | AF41: =matrices!AF41*B40+matrices!AG41*H40+matrices!AH41*N40+matrices!AI41*T40+matrices!AJ41*Z40+matrices!AK41*AF40 -> 0 | AG41: =matrices!AF41*C40+matrices!AG41*I40+matrices!AH41*O40+matrices!AI41*U40+matrices!AJ41*AA40+matrices!AK41*AG40 -> 0 | AH41: =matrices!AF41*D40+matrices!AG41*J40+matrices!AH41*P40+matrices!AI41*V40+matrices!AJ41*AB40+matrices!AK41*AH40 -> 0 | AI41: =matrices!AF41*E40+matrices!AG41*K40+matrices!AH41*Q40+matrices!AI41*W40+matrices!AJ41*AC40+matrices!AK41*AI40 -> 0 | AJ41: =matrices!AF41*F40+matrices!AG41*L40+matrices!AH41*R40+matrices!AI41*X40+matrices!AJ41*AD40+matrices!AK41*AJ40 -> -0.4649039117 | AK41: =matrices!AF41*G40+matrices!AG886*M40+matrices!AH41*S40+matrices!AI41*Y40+matrices!AJ41*AE40+matrices!AK41*AK40 -> 0.3058512217
A42: =matrices!A42 -> qj0f04 | B42: =matrices!B42*B41+matrices!C42*H41+matrices!D42*N41+matrices!E42*T41+matrices!F42*Z41+matrices!G42*AF41 -> 0.09825346092 | C42: =matrices!B42*C41+matrices!C42*I41+matrices!D42*O41+matrices!E42*U41+matrices!F42*AA41+matrices!G42*AG41 -> 0.3173033961 | D42: =matrices!B42*D41+matrices!C42*J41+matrices!D42*P41+matrices!E42*V41+matrices!F42*AB41+matrices!G42*AH41 -> 0 | E42: =matrices!B42*E41+matrices!C42*K41+matrices!D42*Q41+matrices!E42*W41+matrices!F42*AC41+matrices!G42*AI41 -> 0 | F42: =matrices!B42*F41+matrices!C42*L41+matrices!D42*R41+matrices!E42*X41+matrices!F42*AD41+matrices!G42*AJ41 -> 0 | G42: =matrices!B42*G41+matrices!C42*M41+matrices!D42*S41+matrices!E42*Y41+matrices!F42*AE41+matrices!G42*AK41 -> 0 | H42: =matrices!H42*B41+matrices!I42*H41+matrices!J42*N41+matrices!K42*T41+matrices!L42*Z41+matrices!M42*AF41 -> -0.2119644397 | I42: =matrices!H42*C41+matrices!I42*I41+matrices!J42*O41+matrices!K42*U41+matrices!L42*AA41+matrices!M42*AG41 -> 0.06452302529 | J42: =matrices!H42*D41+matrices!I42*J41+matrices!J42*P41+matrices!K42*V41+matrices!L42*AB41+matrices!M42*AH41 -> 0 | K42: =matrices!H42*E41+matrices!I42*K41+matrices!J42*Q41+matrices!K42*W41+matrices!L42*AC41+matrices!M42*AI41 -> 0 | L42: =matrices!H42*F41+matrices!I42*L41+matrices!J42*R41+matrices!K42*X41+matrices!L42*AD41+matrices!M42*AJ41 -> 0 | M42: =matrices!H42*G41+matrices!I42*M41+matrices!J42*S41+matrices!K42*Y41+matrices!L42*AE41+matrices!M42*AK41 -> 0 | N42: =matrices!N42*B41+matrices!O42*H41+matrices!P42*N41+matrices!Q42*T41+matrices!R42*Z41+matrices!S42*AF41 -> 0 | O42: =matrices!N42*C41+matrices!O42*I41+matrices!P42*O41+matrices!Q42*U41+matrices!R42*AA41+matrices!S42*AG41 -> 0 | P42: =matrices!N42*D41+matrices!O42*J41+matrices!P42*P41+matrices!Q42*V41+matrices!R42*AB41+matrices!S42*AH41 -> 0.3040033085 | Q42: =matrices!N42*E41+matrices!O42*K41+matrices!P42*Q41+matrices!Q42*W41+matrices!R42*AC41+matrices!S42*AI41 -> 0.6059575429 | R42: =matrices!N42*F41+matrices!O42*L41+matrices!P42*R41+matrices!Q42*X41+matrices!R42*AD41+matrices!S42*AJ41 -> 0 | S42: =matrices!N42*G41+matrices!O42*M41+matrices!P42*S41+matrices!Q42*Y41+matrices!R42*AE41+matrices!S42*AK41 -> 0 | T42: =matrices!T42*B41+matrices!U42*H41+matrices!V42*N41+matrices!W42*T41+matrices!X42*Z41+matrices!Y42*AF41 -> 0 | U42: =matrices!T42*C41+matrices!U42*I41+matrices!V42*O41+matrices!W42*U41+matrices!X42*AA41+matrices!Y42*AG41 -> 0 | V42: =matrices!T42*D41+matrices!U42*J41+matrices!V42*P41+matrices!W42*V41+matrices!X42*AB41+matrices!Y42*AH41 -> -0.3069568808 | W42: =matrices!T42*E41+matrices!U42*K41+matrices!V42*Q41+matrices!W42*W41+matrices!X42*AC41+matrices!Y42*AI41 -> -0.3697531803 | X42: =matrices!T42*F41+matrices!U42*L41+matrices!V42*R41+matrices!W42*X41+matrices!X42*AD41+matrices!Y42*AJ41 -> 0 | Y42: =matrices!T42*G41+matrices!U42*M41+matrices!V42*S41+matrices!W42*Y41+matrices!X42*AE41+matrices!Y42*AK41 -> 0 | Z42: =matrices!Z42*B41+matrices!AA42*H41+matrices!AB42*N41+matrices!AC42*T41+matrices!AD42*Z41+matrices!AE42*AF41 -> 0 | AA42: =matrices!Z42*C41+matrices!AA42*I41+matrices!AB42*O41+matrices!AC42*U41+matrices!AD42*AA41+matrices!AE42*AG41 -> 0 | AB42: =matrices!Z42*D41+matrices!AA42*J41+matrices!AB42*P41+matrices!AC42*V41+matrices!AD42*AB41+matrices!AE42*AH41 -> 0 | AC42: =matrices!Z42*E41+matrices!AA42*K41+matrices!AB42*Q41+matrices!AC42*W41+matrices!AD42*AC41+matrices!AE42*AI41 -> 0 | AD42: =matrices!Z42*F41+matrices!AA42*L41+matrices!AB42*R41+matrices!AC42*X41+matrices!AD42*AD41+matrices!AE42*AJ41 -> 0.3301411432 | AE42: =matrices!Z42*G41+matrices!AA42*M41+matrices!AB42*S41+matrices!AC42*Y41+matrices!AD42*AE41+matrices!AE42*AK41 -> -0.05888835128 | AF42: =matrices!AF42*B41+matrices!AG42*H41+matrices!AH42*N41+matrices!AI42*T41+matrices!AJ42*Z41+matrices!AK42*AF41 -> 0 | AG42: =matrices!AF42*C41+matrices!AG42*I41+matrices!AH42*O41+matrices!AI42*U41+matrices!AJ42*AA41+matrices!AK42*AG41 -> 0 | AH42: =matrices!AF42*D41+matrices!AG42*J41+matrices!AH42*P41+matrices!AI42*V41+matrices!AJ42*AB41+matrices!AK42*AH41 -> 0 | AI42: =matrices!AF42*E41+matrices!AG42*K41+matrices!AH42*Q41+matrices!AI42*W41+matrices!AJ42*AC41+matrices!AK42*AI41 -> 0 | AJ42: =matrices!AF42*F41+matrices!AG42*L41+matrices!AH42*R41+matrices!AI42*X41+matrices!AJ42*AD41+matrices!AK42*AJ41 -> -0.4649039117 | AK42: =matrices!AF42*G41+matrices!AG887*M41+matrices!AH42*S41+matrices!AI42*Y41+matrices!AJ42*AE41+matrices!AK42*AK41 -> 0.3058512217
A43: =matrices!A43 -> ds2ds3 | B43: =matrices!B43*B42+matrices!C43*H42+matrices!D43*N42+matrices!E43*T42+matrices!F43*Z42+matrices!G43*AF42 -> 0.002869463042 | C43: =matrices!B43*C42+matrices!C43*I42+matrices!D43*O42+matrices!E43*U42+matrices!F43*AA42+matrices!G43*AG42 -> 0.3463387574 | D43: =matrices!B43*D42+matrices!C43*J42+matrices!D43*P42+matrices!E43*V42+matrices!F43*AB42+matrices!G43*AH42 -> 0 | E43: =matrices!B43*E42+matrices!C43*K42+matrices!D43*Q42+matrices!E43*W42+matrices!F43*AC42+matrices!G43*AI42 -> 0 | F43: =matrices!B43*F42+matrices!C43*L42+matrices!D43*R42+matrices!E43*X42+matrices!F43*AD42+matrices!G43*AJ42 -> 0 | G43: =matrices!B43*G42+matrices!C43*M42+matrices!D43*S42+matrices!E43*Y42+matrices!F43*AE42+matrices!G43*AK42 -> 0 | H43: =matrices!H43*B42+matrices!I43*H42+matrices!J43*N42+matrices!K43*T42+matrices!L43*Z42+matrices!M43*AF42 -> -0.2119644397 | I43: =matrices!H43*C42+matrices!I43*I42+matrices!J43*O42+matrices!K43*U42+matrices!L43*AA42+matrices!M43*AG42 -> 0.06452302529 | J43: =matrices!H43*D42+matrices!I43*J42+matrices!J43*P42+matrices!K43*V42+matrices!L43*AB42+matrices!M43*AH42 -> 0 | K43: =matrices!H43*E42+matrices!I43*K42+matrices!J43*Q42+matrices!K43*W42+matrices!L43*AC42+matrices!M43*AI42 -> 0 | L43: =matrices!H43*F42+matrices!I43*L42+matrices!J43*R42+matrices!K43*X42+matrices!L43*AD42+matrices!M43*AJ42 -> 0 | M43: =matrices!H43*G42+matrices!I43*M42+matrices!J43*S42+matrices!K43*Y42+matrices!L43*AE42+matrices!M43*AK42 -> 0 | N43: =matrices!N43*B42+matrices!O43*H42+matrices!P43*N42+matrices!Q43*T42+matrices!R43*Z42+matrices!S43*AF42 -> 0 | O43: =matrices!N43*C42+matrices!O43*I42+matrices!P43*O42+matrices!Q43*U42+matrices!R43*AA42+matrices!S43*AG42 -> 0 | P43: =matrices!N43*D42+matrices!O43*J42+matrices!P43*P42+matrices!Q43*V42+matrices!R43*AB42+matrices!S43*AH42 -> 0.1658727122 | Q43: =matrices!N43*E42+matrices!O43*K42+matrices!P43*Q42+matrices!Q43*W42+matrices!R43*AC42+matrices!S43*AI42 -> 0.4395686118 | R43: =matrices!N43*F42+matrices!O43*L42+matrices!P43*R42+matrices!Q43*X42+matrices!R43*AD42+matrices!S43*AJ42 -> 0 | S43: =matrices!N43*G42+matrices!O43*M42+matrices!P43*S42+matrices!Q43*Y42+matrices!R43*AE42+matrices!S43*AK42 -> 0 | T43: =matrices!T43*B42+matrices!U43*H42+matrices!V43*N42+matrices!W43*T42+matrices!X43*Z42+matrices!Y43*AF42 -> 0 | U43: =matrices!T43*C42+matrices!U43*I42+matrices!V43*O42+matrices!W43*U42+matrices!X43*AA42+matrices!Y43*AG42 -> 0 | V43: =matrices!T43*D42+matrices!U43*J42+matrices!V43*P42+matrices!W43*V42+matrices!X43*AB42+matrices!Y43*AH42 -> -0.3069568808 | W43: =matrices!T43*E42+matrices!U43*K42+matrices!V43*Q42+matrices!W43*W42+matrices!X43*AC42+matrices!Y43*AI42 -> -0.3697531803 | X43: =matrices!T43*F42+matrices!U43*L42+matrices!V43*R42+matrices!W43*X42+matrices!X43*AD42+matrices!Y43*AJ42 -> 0 | Y43: =matrices!T43*G42+matrices!U43*M42+matrices!V43*S42+matrices!W43*Y42+matrices!X43*AE42+matrices!Y43*AK42 -> 0 | Z43: =matrices!Z43*B42+matrices!AA43*H42+matrices!AB43*N42+matrices!AC43*T42+matrices!AD43*Z42+matrices!AE43*AF42 -> 0 | AA43: =matrices!Z43*C42+matrices!AA43*I42+matrices!AB43*O42+matrices!AC43*U42+matrices!AD43*AA42+matrices!AE43*AG42 -> 0 | AB43: =matrices!Z43*D42+matrices!AA43*J42+matrices!AB43*P42+matrices!AC43*V42+matrices!AD43*AB42+matrices!AE43*AH42 -> 0 | AC43: =matrices!Z43*E42+matrices!AA43*K42+matrices!AB43*Q42+matrices!AC43*W42+matrices!AD43*AC42+matrices!AE43*AI42 -> 0 | AD43: =matrices!Z43*F42+matrices!AA43*L42+matrices!AB43*R42+matrices!AC43*X42+matrices!AD43*AD42+matrices!AE43*AJ42 -> 0.3301411432 | AE43: =matrices!Z43*G42+matrices!AA43*M42+matrices!AB43*S42+matrices!AC43*Y42+matrices!AD43*AE42+matrices!AE43*AK42 -> -0.05888835128 | AF43: =matrices!AF43*B42+matrices!AG43*H42+matrices!AH43*N42+matrices!AI43*T42+matrices!AJ43*Z42+matrices!AK43*AF42 -> 0 | AG43: =matrices!AF43*C42+matrices!AG43*I42+matrices!AH43*O42+matrices!AI43*U42+matrices!AJ43*AA42+matrices!AK43*AG42 -> 0 | AH43: =matrices!AF43*D42+matrices!AG43*J42+matrices!AH43*P42+matrices!AI43*V42+matrices!AJ43*AB42+matrices!AK43*AH42 -> 0 | AI43: =matrices!AF43*E42+matrices!AG43*K42+matrices!AH43*Q42+matrices!AI43*W42+matrices!AJ43*AC42+matrices!AK43*AI42 -> 0 | AJ43: =matrices!AF43*F42+matrices!AG43*L42+matrices!AH43*R42+matrices!AI43*X42+matrices!AJ43*AD42+matrices!AK43*AJ42 -> -0.4649039117 | AK43: =matrices!AF43*G42+matrices!AG888*M42+matrices!AH43*S42+matrices!AI43*Y42+matrices!AJ43*AE42+matrices!AK43*AK42 -> 0.3058512217
A44: =matrices!A44 -> qj0f05 | B44: =matrices!B44*B43+matrices!C44*H43+matrices!D44*N43+matrices!E44*T43+matrices!F44*Z43+matrices!G44*AF43 -> -0.02829127472 | C44: =matrices!B44*C43+matrices!C44*I43+matrices!D44*O43+matrices!E44*U43+matrices!F44*AA43+matrices!G44*AG43 -> 0.327559722 | D44: =matrices!B44*D43+matrices!C44*J43+matrices!D44*P43+matrices!E44*V43+matrices!F44*AB43+matrices!G44*AH43 -> 0 | E44: =matrices!B44*E43+matrices!C44*K43+matrices!D44*Q43+matrices!E44*W43+matrices!F44*AC43+matrices!G44*AI43 -> 0 | F44: =matrices!B44*F43+matrices!C44*L43+matrices!D44*R43+matrices!E44*X43+matrices!F44*AD43+matrices!G44*AJ43 -> 0 | G44: =matrices!B44*G43+matrices!C44*M43+matrices!D44*S43+matrices!E44*Y43+matrices!F44*AE43+matrices!G44*AK43 -> 0 | H44: =matrices!H44*B43+matrices!I44*H43+matrices!J44*N43+matrices!K44*T43+matrices!L44*Z43+matrices!M44*AF43 -> -0.1977811769 | I44: =matrices!H44*C43+matrices!I44*I43+matrices!J44*O43+matrices!K44*U43+matrices!L44*AA43+matrices!M44*AG43 -> -0.311456443 | J44: =matrices!H44*D43+matrices!I44*J43+matrices!J44*P43+matrices!K44*V43+matrices!L44*AB43+matrices!M44*AH43 -> 0 | K44: =matrices!H44*E43+matrices!I44*K43+matrices!J44*Q43+matrices!K44*W43+matrices!L44*AC43+matrices!M44*AI43 -> 0 | L44: =matrices!H44*F43+matrices!I44*L43+matrices!J44*R43+matrices!K44*X43+matrices!L44*AD43+matrices!M44*AJ43 -> 0 | M44: =matrices!H44*G43+matrices!I44*M43+matrices!J44*S43+matrices!K44*Y43+matrices!L44*AE43+matrices!M44*AK43 -> 0 | N44: =matrices!N44*B43+matrices!O44*H43+matrices!P44*N43+matrices!Q44*T43+matrices!R44*Z43+matrices!S44*AF43 -> 0 | O44: =matrices!N44*C43+matrices!O44*I43+matrices!P44*O43+matrices!Q44*U43+matrices!R44*AA43+matrices!S44*AG43 -> 0 | P44: =matrices!N44*D43+matrices!O44*J43+matrices!P44*P43+matrices!Q44*V43+matrices!R44*AB43+matrices!S44*AH43 -> 0.1324313382 | Q44: =matrices!N44*E43+matrices!O44*K43+matrices!P44*Q43+matrices!Q44*W43+matrices!R44*AC43+matrices!S44*AI43 -> 0.4193479476 | R44: =matrices!N44*F43+matrices!O44*L43+matrices!P44*R43+matrices!Q44*X43+matrices!R44*AD43+matrices!S44*AJ43 -> 0 | S44: =matrices!N44*G43+matrices!O44*M43+matrices!P44*S43+matrices!Q44*Y43+matrices!R44*AE43+matrices!S44*AK43 -> 0 | T44: =matrices!T44*B43+matrices!U44*H43+matrices!V44*N43+matrices!W44*T43+matrices!X44*Z43+matrices!Y44*AF43 -> 0 | U44: =matrices!T44*C43+matrices!U44*I43+matrices!V44*O43+matrices!W44*U43+matrices!X44*AA43+matrices!Y44*AG43 -> 0 | V44: =matrices!T44*D43+matrices!U44*J43+matrices!V44*P43+matrices!W44*V43+matrices!X44*AB43+matrices!Y44*AH43 -> -0.1450446854 | W44: =matrices!T44*E43+matrices!U44*K43+matrices!V44*Q43+matrices!W44*W43+matrices!X44*AC43+matrices!Y44*AI43 -> 0.09644587279 | X44: =matrices!T44*F43+matrices!U44*L43+matrices!V44*R43+matrices!W44*X43+matrices!X44*AD43+matrices!Y44*AJ43 -> 0 | Y44: =matrices!T44*G43+matrices!U44*M43+matrices!V44*S43+matrices!W44*Y43+matrices!X44*AE43+matrices!Y44*AK43 -> 0 | Z44: =matrices!Z44*B43+matrices!AA44*H43+matrices!AB44*N43+matrices!AC44*T43+matrices!AD44*Z43+matrices!AE44*AF43 -> 0 | AA44: =matrices!Z44*C43+matrices!AA44*I43+matrices!AB44*O43+matrices!AC44*U43+matrices!AD44*AA43+matrices!AE44*AG43 -> 0 | AB44: =matrices!Z44*D43+matrices!AA44*J43+matrices!AB44*P43+matrices!AC44*V43+matrices!AD44*AB43+matrices!AE44*AH43 -> 0 | AC44: =matrices!Z44*E43+matrices!AA44*K43+matrices!AB44*Q43+matrices!AC44*W43+matrices!AD44*AC43+matrices!AE44*AI43 -> 0 | AD44: =matrices!Z44*F43+matrices!AA44*L43+matrices!AB44*R43+matrices!AC44*X43+matrices!AD44*AD43+matrices!AE44*AJ43 -> 0.3301411432 | AE44: =matrices!Z44*G43+matrices!AA44*M43+matrices!AB44*S43+matrices!AC44*Y43+matrices!AD44*AE43+matrices!AE44*AK43 -> -0.05888835128 | AF44: =matrices!AF44*B43+matrices!AG44*H43+matrices!AH44*N43+matrices!AI44*T43+matrices!AJ44*Z43+matrices!AK44*AF43 -> 0 | AG44: =matrices!AF44*C43+matrices!AG44*I43+matrices!AH44*O43+matrices!AI44*U43+matrices!AJ44*AA43+matrices!AK44*AG43 -> 0 | AH44: =matrices!AF44*D43+matrices!AG44*J43+matrices!AH44*P43+matrices!AI44*V43+matrices!AJ44*AB43+matrices!AK44*AH43 -> 0 | AI44: =matrices!AF44*E43+matrices!AG44*K43+matrices!AH44*Q43+matrices!AI44*W43+matrices!AJ44*AC43+matrices!AK44*AI43 -> 0 | AJ44: =matrices!AF44*F43+matrices!AG44*L43+matrices!AH44*R43+matrices!AI44*X43+matrices!AJ44*AD43+matrices!AK44*AJ43 -> -0.4649039117 | AK44: =matrices!AF44*G43+matrices!AG889*M43+matrices!AH44*S43+matrices!AI44*Y43+matrices!AJ44*AE43+matrices!AK44*AK43 -> 0.3058512217
A45: =matrices!A45 -> d12 | B45: =matrices!B45*B44+matrices!C45*H44+matrices!D45*N44+matrices!E45*T44+matrices!F45*Z44+matrices!G45*AF44 -> -0.1172928043 | C45: =matrices!B45*C44+matrices!C45*I44+matrices!D45*O44+matrices!E45*U44+matrices!F45*AA44+matrices!G45*AG44 -> 0.1874043226 | D45: =matrices!B45*D44+matrices!C45*J44+matrices!D45*P44+matrices!E45*V44+matrices!F45*AB44+matrices!G45*AH44 -> 0 | E45: =matrices!B45*E44+matrices!C45*K44+matrices!D45*Q44+matrices!E45*W44+matrices!F45*AC44+matrices!G45*AI44 -> 0 | F45: =matrices!B45*F44+matrices!C45*L44+matrices!D45*R44+matrices!E45*X44+matrices!F45*AD44+matrices!G45*AJ44 -> 0 | G45: =matrices!B45*G44+matrices!C45*M44+matrices!D45*S44+matrices!E45*Y44+matrices!F45*AE44+matrices!G45*AK44 -> 0 | H45: =matrices!H45*B44+matrices!I45*H44+matrices!J45*N44+matrices!K45*T44+matrices!L45*Z44+matrices!M45*AF44 -> -0.1977811769 | I45: =matrices!H45*C44+matrices!I45*I44+matrices!J45*O44+matrices!K45*U44+matrices!L45*AA44+matrices!M45*AG44 -> -0.311456443 | J45: =matrices!H45*D44+matrices!I45*J44+matrices!J45*P44+matrices!K45*V44+matrices!L45*AB44+matrices!M45*AH44 -> 0 | K45: =matrices!H45*E44+matrices!I45*K44+matrices!J45*Q44+matrices!K45*W44+matrices!L45*AC44+matrices!M45*AI44 -> 0 | L45: =matrices!H45*F44+matrices!I45*L44+matrices!J45*R44+matrices!K45*X44+matrices!L45*AD44+matrices!M45*AJ44 -> 0 | M45: =matrices!H45*G44+matrices!I45*M44+matrices!J45*S44+matrices!K45*Y44+matrices!L45*AE44+matrices!M45*AK44 -> 0 | N45: =matrices!N45*B44+matrices!O45*H44+matrices!P45*N44+matrices!Q45*T44+matrices!R45*Z44+matrices!S45*AF44 -> 0 | O45: =matrices!N45*C44+matrices!O45*I44+matrices!P45*O44+matrices!Q45*U44+matrices!R45*AA44+matrices!S45*AG44 -> 0 | P45: =matrices!N45*D44+matrices!O45*J44+matrices!P45*P44+matrices!Q45*V44+matrices!R45*AB44+matrices!S45*AH44 -> 0.06716122973 | Q45: =matrices!N45*E44+matrices!O45*K44+matrices!P45*Q44+matrices!Q45*W44+matrices!R45*AC44+matrices!S45*AI44 -> 0.4627485903 | R45: =matrices!N45*F44+matrices!O45*L44+matrices!P45*R44+matrices!Q45*X44+matrices!R45*AD44+matrices!S45*AJ44 -> 0 | S45: =matrices!N45*G44+matrices!O45*M44+matrices!P45*S44+matrices!Q45*Y44+matrices!R45*AE44+matrices!S45*AK44 -> 0 | T45: =matrices!T45*B44+matrices!U45*H44+matrices!V45*N44+matrices!W45*T44+matrices!X45*Z44+matrices!Y45*AF44 -> 0 | U45: =matrices!T45*C44+matrices!U45*I44+matrices!V45*O44+matrices!W45*U44+matrices!X45*AA44+matrices!Y45*AG44 -> 0 | V45: =matrices!T45*D44+matrices!U45*J44+matrices!V45*P44+matrices!W45*V44+matrices!X45*AB44+matrices!Y45*AH44 -> -0.1450446854 | W45: =matrices!T45*E44+matrices!U45*K44+matrices!V45*Q44+matrices!W45*W44+matrices!X45*AC44+matrices!Y45*AI44 -> 0.09644587279 | X45: =matrices!T45*F44+matrices!U45*L44+matrices!V45*R44+matrices!W45*X44+matrices!X45*AD44+matrices!Y45*AJ44 -> 0 | Y45: =matrices!T45*G44+matrices!U45*M44+matrices!V45*S44+matrices!W45*Y44+matrices!X45*AE44+matrices!Y45*AK44 -> 0 | Z45: =matrices!Z45*B44+matrices!AA45*H44+matrices!AB45*N44+matrices!AC45*T44+matrices!AD45*Z44+matrices!AE45*AF44 -> 0 | AA45: =matrices!Z45*C44+matrices!AA45*I44+matrices!AB45*O44+matrices!AC45*U44+matrices!AD45*AA44+matrices!AE45*AG44 -> 0 | AB45: =matrices!Z45*D44+matrices!AA45*J44+matrices!AB45*P44+matrices!AC45*V44+matrices!AD45*AB44+matrices!AE45*AH44 -> 0 | AC45: =matrices!Z45*E44+matrices!AA45*K44+matrices!AB45*Q44+matrices!AC45*W44+matrices!AD45*AC44+matrices!AE45*AI44 -> 0 | AD45: =matrices!Z45*F44+matrices!AA45*L44+matrices!AB45*R44+matrices!AC45*X44+matrices!AD45*AD44+matrices!AE45*AJ44 -> 0.3301411432 | AE45: =matrices!Z45*G44+matrices!AA45*M44+matrices!AB45*S44+matrices!AC45*Y44+matrices!AD45*AE44+matrices!AE45*AK44 -> -0.05888835128 | AF45: =matrices!AF45*B44+matrices!AG45*H44+matrices!AH45*N44+matrices!AI45*T44+matrices!AJ45*Z44+matrices!AK45*AF44 -> 0 | AG45: =matrices!AF45*C44+matrices!AG45*I44+matrices!AH45*O44+matrices!AI45*U44+matrices!AJ45*AA44+matrices!AK45*AG44 -> 0 | AH45: =matrices!AF45*D44+matrices!AG45*J44+matrices!AH45*P44+matrices!AI45*V44+matrices!AJ45*AB44+matrices!AK45*AH44 -> 0 | AI45: =matrices!AF45*E44+matrices!AG45*K44+matrices!AH45*Q44+matrices!AI45*W44+matrices!AJ45*AC44+matrices!AK45*AI44 -> 0 | AJ45: =matrices!AF45*F44+matrices!AG45*L44+matrices!AH45*R44+matrices!AI45*X44+matrices!AJ45*AD44+matrices!AK45*AJ44 -> -0.4649039117 | AK45: =matrices!AF45*G44+matrices!AG890*M44+matrices!AH45*S44+matrices!AI45*Y44+matrices!AJ45*AE44+matrices!AK45*AK44 -> 0.3058512217
A46: =matrices!A46 -> qj0f06 | B46: =matrices!B46*B45+matrices!C46*H45+matrices!D46*N45+matrices!E46*T45+matrices!F46*Z45+matrices!G46*AF45 -> -0.15314698 | C46: =matrices!B46*C45+matrices!C46*I45+matrices!D46*O45+matrices!E46*U45+matrices!F46*AA45+matrices!G46*AG45 -> 0.1490494352 | D46: =matrices!B46*D45+matrices!C46*J45+matrices!D46*P45+matrices!E46*V45+matrices!F46*AB45+matrices!G46*AH45 -> 0 | E46: =matrices!B46*E45+matrices!C46*K45+matrices!D46*Q45+matrices!E46*W45+matrices!F46*AC45+matrices!G46*AI45 -> 0 | F46: =matrices!B46*F45+matrices!C46*L45+matrices!D46*R45+matrices!E46*X45+matrices!F46*AD45+matrices!G46*AJ45 -> 0 | G46: =matrices!B46*G45+matrices!C46*M45+matrices!D46*S45+matrices!E46*Y45+matrices!F46*AE45+matrices!G46*AK45 -> 0 | H46: =matrices!H46*B45+matrices!I46*H45+matrices!J46*N45+matrices!K46*T45+matrices!L46*Z45+matrices!M46*AF45 -> -0.2841142374 | I46: =matrices!H46*C45+matrices!I46*I45+matrices!J46*O45+matrices!K46*U45+matrices!L46*AA45+matrices!M46*AG45 -> -0.2040496032 | J46: =matrices!H46*D45+matrices!I46*J45+matrices!J46*P45+matrices!K46*V45+matrices!L46*AB45+matrices!M46*AH45 -> 0 | K46: =matrices!H46*E45+matrices!I46*K45+matrices!J46*Q45+matrices!K46*W45+matrices!L46*AC45+matrices!M46*AI45 -> 0 | L46: =matrices!H46*F45+matrices!I46*L45+matrices!J46*R45+matrices!K46*X45+matrices!L46*AD45+matrices!M46*AJ45 -> 0 | M46: =matrices!H46*G45+matrices!I46*M45+matrices!J46*S45+matrices!K46*Y45+matrices!L46*AE45+matrices!M46*AK45 -> 0 | N46: =matrices!N46*B45+matrices!O46*H45+matrices!P46*N45+matrices!Q46*T45+matrices!R46*Z45+matrices!S46*AF45 -> 0 | O46: =matrices!N46*C45+matrices!O46*I45+matrices!P46*O45+matrices!Q46*U45+matrices!R46*AA45+matrices!S46*AG45 -> 0 | P46: =matrices!N46*D45+matrices!O46*J45+matrices!P46*P45+matrices!Q46*V45+matrices!R46*AB45+matrices!S46*AH45 -> 0.04253706475 | Q46: =matrices!N46*E45+matrices!O46*K45+matrices!P46*Q45+matrices!Q46*W45+matrices!R46*AC45+matrices!S46*AI45 -> 0.4548263329 | R46: =matrices!N46*F45+matrices!O46*L45+matrices!P46*R45+matrices!Q46*X45+matrices!R46*AD45+matrices!S46*AJ45 -> 0 | S46: =matrices!N46*G45+matrices!O46*M45+matrices!P46*S45+matrices!Q46*Y45+matrices!R46*AE45+matrices!S46*AK45 -> 0 | T46: =matrices!T46*B45+matrices!U46*H45+matrices!V46*N45+matrices!W46*T45+matrices!X46*Z45+matrices!Y46*AF45 -> 0 | U46: =matrices!T46*C45+matrices!U46*I45+matrices!V46*O45+matrices!W46*U45+matrices!X46*AA45+matrices!Y46*AG45 -> 0 | V46: =matrices!T46*D45+matrices!U46*J45+matrices!V46*P45+matrices!W46*V45+matrices!X46*AB45+matrices!Y46*AH45 -> -0.1806319341 | W46: =matrices!T46*E45+matrices!U46*K45+matrices!V46*Q45+matrices!W46*W45+matrices!X46*AC45+matrices!Y46*AI45 -> -0.201224817 | X46: =matrices!T46*F45+matrices!U46*L45+matrices!V46*R45+matrices!W46*X45+matrices!X46*AD45+matrices!Y46*AJ45 -> 0 | Y46: =matrices!T46*G45+matrices!U46*M45+matrices!V46*S45+matrices!W46*Y45+matrices!X46*AE45+matrices!Y46*AK45 -> 0 | Z46: =matrices!Z46*B45+matrices!AA46*H45+matrices!AB46*N45+matrices!AC46*T45+matrices!AD46*Z45+matrices!AE46*AF45 -> 0 | AA46: =matrices!Z46*C45+matrices!AA46*I45+matrices!AB46*O45+matrices!AC46*U45+matrices!AD46*AA45+matrices!AE46*AG45 -> 0 | AB46: =matrices!Z46*D45+matrices!AA46*J45+matrices!AB46*P45+matrices!AC46*V45+matrices!AD46*AB45+matrices!AE46*AH45 -> 0 | AC46: =matrices!Z46*E45+matrices!AA46*K45+matrices!AB46*Q45+matrices!AC46*W45+matrices!AD46*AC45+matrices!AE46*AI45 -> 0 | AD46: =matrices!Z46*F45+matrices!AA46*L45+matrices!AB46*R45+matrices!AC46*X45+matrices!AD46*AD45+matrices!AE46*AJ45 -> 0.3301411432 | AE46: =matrices!Z46*G45+matrices!AA46*M45+matrices!AB46*S45+matrices!AC46*Y45+matrices!AD46*AE45+matrices!AE46*AK45 -> -0.05888835128 | AF46: =matrices!AF46*B45+matrices!AG46*H45+matrices!AH46*N45+matrices!AI46*T45+matrices!AJ46*Z45+matrices!AK46*AF45 -> 0 | AG46: =matrices!AF46*C45+matrices!AG46*I45+matrices!AH46*O45+matrices!AI46*U45+matrices!AJ46*AA45+matrices!AK46*AG45 -> 0 | AH46: =matrices!AF46*D45+matrices!AG46*J45+matrices!AH46*P45+matrices!AI46*V45+matrices!AJ46*AB45+matrices!AK46*AH45 -> 0 | AI46: =matrices!AF46*E45+matrices!AG46*K45+matrices!AH46*Q45+matrices!AI46*W45+matrices!AJ46*AC45+matrices!AK46*AI45 -> 0 | AJ46: =matrices!AF46*F45+matrices!AG46*L45+matrices!AH46*R45+matrices!AI46*X45+matrices!AJ46*AD45+matrices!AK46*AJ45 -> -0.4649039117 | AK46: =matrices!AF46*G45+matrices!AG891*M45+matrices!AH46*S45+matrices!AI46*Y45+matrices!AJ46*AE45+matrices!AK46*AK45 -> 0.3058512217
A47: =matrices!A47 -> ds | B47: =matrices!B47*B46+matrices!C47*H46+matrices!D47*N46+matrices!E47*T46+matrices!F47*Z46+matrices!G47*AF46 -> -0.2099698275 | C47: =matrices!B47*C46+matrices!C47*I46+matrices!D47*O46+matrices!E47*U46+matrices!F47*AA46+matrices!G47*AG46 -> 0.1082395145 | D47: =matrices!B47*D46+matrices!C47*J46+matrices!D47*P46+matrices!E47*V46+matrices!F47*AB46+matrices!G47*AH46 -> 0 | E47: =matrices!B47*E46+matrices!C47*K46+matrices!D47*Q46+matrices!E47*W46+matrices!F47*AC46+matrices!G47*AI46 -> 0 | F47: =matrices!B47*F46+matrices!C47*L46+matrices!D47*R46+matrices!E47*X46+matrices!F47*AD46+matrices!G47*AJ46 -> 0 | G47: =matrices!B47*G46+matrices!C47*M46+matrices!D47*S46+matrices!E47*Y46+matrices!F47*AE46+matrices!G47*AK46 -> 0 | H47: =matrices!H47*B46+matrices!I47*H46+matrices!J47*N46+matrices!K47*T46+matrices!L47*Z46+matrices!M47*AF46 -> -0.2841142374 | I47: =matrices!H47*C46+matrices!I47*I46+matrices!J47*O46+matrices!K47*U46+matrices!L47*AA46+matrices!M47*AG46 -> -0.2040496032 | J47: =matrices!H47*D46+matrices!I47*J46+matrices!J47*P46+matrices!K47*V46+matrices!L47*AB46+matrices!M47*AH46 -> 0 | K47: =matrices!H47*E46+matrices!I47*K46+matrices!J47*Q46+matrices!K47*W46+matrices!L47*AC46+matrices!M47*AI46 -> 0 | L47: =matrices!H47*F46+matrices!I47*L46+matrices!J47*R46+matrices!K47*X46+matrices!L47*AD46+matrices!M47*AJ46 -> 0 | M47: =matrices!H47*G46+matrices!I47*M46+matrices!J47*S46+matrices!K47*Y46+matrices!L47*AE46+matrices!M47*AK46 -> 0 | N47: =matrices!N47*B46+matrices!O47*H46+matrices!P47*N46+matrices!Q47*T46+matrices!R47*Z46+matrices!S47*AF46 -> 0 | O47: =matrices!N47*C46+matrices!O47*I46+matrices!P47*O46+matrices!Q47*U46+matrices!R47*AA46+matrices!S47*AG46 -> 0 | P47: =matrices!N47*D46+matrices!O47*J46+matrices!P47*P46+matrices!Q47*V46+matrices!R47*AB46+matrices!S47*AH46 -> 0.006410677933 | Q47: =matrices!N47*E46+matrices!O47*K46+matrices!P47*Q46+matrices!Q47*W46+matrices!R47*AC46+matrices!S47*AI46 -> 0.4145813695 | R47: =matrices!N47*F46+matrices!O47*L46+matrices!P47*R46+matrices!Q47*X46+matrices!R47*AD46+matrices!S47*AJ46 -> 0 | S47: =matrices!N47*G46+matrices!O47*M46+matrices!P47*S46+matrices!Q47*Y46+matrices!R47*AE46+matrices!S47*AK46 -> 0 | T47: =matrices!T47*B46+matrices!U47*H46+matrices!V47*N46+matrices!W47*T46+matrices!X47*Z46+matrices!Y47*AF46 -> 0 | U47: =matrices!T47*C46+matrices!U47*I46+matrices!V47*O46+matrices!W47*U46+matrices!X47*AA46+matrices!Y47*AG46 -> 0 | V47: =matrices!T47*D46+matrices!U47*J46+matrices!V47*P46+matrices!W47*V46+matrices!X47*AB46+matrices!Y47*AH46 -> -0.1806319341 | W47: =matrices!T47*E46+matrices!U47*K46+matrices!V47*Q46+matrices!W47*W46+matrices!X47*AC46+matrices!Y47*AI46 -> -0.201224817 | X47: =matrices!T47*F46+matrices!U47*L46+matrices!V47*R46+matrices!W47*X46+matrices!X47*AD46+matrices!Y47*AJ46 -> 0 | Y47: =matrices!T47*G46+matrices!U47*M46+matrices!V47*S46+matrices!W47*Y46+matrices!X47*AE46+matrices!Y47*AK46 -> 0 | Z47: =matrices!Z47*B46+matrices!AA47*H46+matrices!AB47*N46+matrices!AC47*T46+matrices!AD47*Z46+matrices!AE47*AF46 -> 0 | AA47: =matrices!Z47*C46+matrices!AA47*I46+matrices!AB47*O46+matrices!AC47*U46+matrices!AD47*AA46+matrices!AE47*AG46 -> 0 | AB47: =matrices!Z47*D46+matrices!AA47*J46+matrices!AB47*P46+matrices!AC47*V46+matrices!AD47*AB46+matrices!AE47*AH46 -> 0 | AC47: =matrices!Z47*E46+matrices!AA47*K46+matrices!AB47*Q46+matrices!AC47*W46+matrices!AD47*AC46+matrices!AE47*AI46 -> 0 | AD47: =matrices!Z47*F46+matrices!AA47*L46+matrices!AB47*R46+matrices!AC47*X46+matrices!AD47*AD46+matrices!AE47*AJ46 -> 0.3301411432 | AE47: =matrices!Z47*G46+matrices!AA47*M46+matrices!AB47*S46+matrices!AC47*Y46+matrices!AD47*AE46+matrices!AE47*AK46 -> -0.05888835128 | AF47: =matrices!AF47*B46+matrices!AG47*H46+matrices!AH47*N46+matrices!AI47*T46+matrices!AJ47*Z46+matrices!AK47*AF46 -> 0 | AG47: =matrices!AF47*C46+matrices!AG47*I46+matrices!AH47*O46+matrices!AI47*U46+matrices!AJ47*AA46+matrices!AK47*AG46 -> 0 | AH47: =matrices!AF47*D46+matrices!AG47*J46+matrices!AH47*P46+matrices!AI47*V46+matrices!AJ47*AB46+matrices!AK47*AH46 -> 0 | AI47: =matrices!AF47*E46+matrices!AG47*K46+matrices!AH47*Q46+matrices!AI47*W46+matrices!AJ47*AC46+matrices!AK47*AI46 -> 0 | AJ47: =matrices!AF47*F46+matrices!AG47*L46+matrices!AH47*R46+matrices!AI47*X46+matrices!AJ47*AD46+matrices!AK47*AJ46 -> -0.4649039117 | AK47: =matrices!AF47*G46+matrices!AG892*M46+matrices!AH47*S46+matrices!AI47*Y46+matrices!AJ47*AE46+matrices!AK47*AK46 -> 0.3058512217
A48: =matrices!A48 -> roll | B48: =matrices!B48*B47+matrices!C48*H47+matrices!D48*N47+matrices!E48*T47+matrices!F48*Z47+matrices!G48*AF47 -> 0.2099698275 | C48: =matrices!B48*C47+matrices!C48*I47+matrices!D48*O47+matrices!E48*U47+matrices!F48*AA47+matrices!G48*AG47 -> -0.1082395145 | D48: =matrices!B48*D47+matrices!C48*J47+matrices!D48*P47+matrices!E48*V47+matrices!F48*AB47+matrices!G48*AH47 -> 0 | E48: =matrices!B48*E47+matrices!C48*K47+matrices!D48*Q47+matrices!E48*W47+matrices!F48*AC47+matrices!G48*AI47 -> 0 | F48: =matrices!B48*F47+matrices!C48*L47+matrices!D48*R47+matrices!E48*X47+matrices!F48*AD47+matrices!G48*AJ47 -> 0 | G48: =matrices!B48*G47+matrices!C48*M47+matrices!D48*S47+matrices!E48*Y47+matrices!F48*AE47+matrices!G48*AK47 -> 0 | H48: =matrices!H48*B47+matrices!I48*H47+matrices!J48*N47+matrices!K48*T47+matrices!L48*Z47+matrices!M48*AF47 -> 0.2841142374 | I48: =matrices!H48*C47+matrices!I48*I47+matrices!J48*O47+matrices!K48*U47+matrices!L48*AA47+matrices!M48*AG47 -> 0.2040496032 | J48: =matrices!H48*D47+matrices!I48*J47+matrices!J48*P47+matrices!K48*V47+matrices!L48*AB47+matrices!M48*AH47 -> 0 | K48: =matrices!H48*E47+matrices!I48*K47+matrices!J48*Q47+matrices!K48*W47+matrices!L48*AC47+matrices!M48*AI47 -> 0 | L48: =matrices!H48*F47+matrices!I48*L47+matrices!J48*R47+matrices!K48*X47+matrices!L48*AD47+matrices!M48*AJ47 -> 0 | M48: =matrices!H48*G47+matrices!I48*M47+matrices!J48*S47+matrices!K48*Y47+matrices!L48*AE47+matrices!M48*AK47 -> 0 | N48: =matrices!N48*B47+matrices!O48*H47+matrices!P48*N47+matrices!Q48*T47+matrices!R48*Z47+matrices!S48*AF47 -> 0 | O48: =matrices!N48*C47+matrices!O48*I47+matrices!P48*O47+matrices!Q48*U47+matrices!R48*AA47+matrices!S48*AG47 -> 0 | P48: =matrices!N48*D47+matrices!O48*J47+matrices!P48*P47+matrices!Q48*V47+matrices!R48*AB47+matrices!S48*AH47 -> -0.006410677933 | Q48: =matrices!N48*E47+matrices!O48*K47+matrices!P48*Q47+matrices!Q48*W47+matrices!R48*AC47+matrices!S48*AI47 -> -0.4145813695 | R48: =matrices!N48*F47+matrices!O48*L47+matrices!P48*R47+matrices!Q48*X47+matrices!R48*AD47+matrices!S48*AJ47 -> 0 | S48: =matrices!N48*G47+matrices!O48*M47+matrices!P48*S47+matrices!Q48*Y47+matrices!R48*AE47+matrices!S48*AK47 -> 0 | T48: =matrices!T48*B47+matrices!U48*H47+matrices!V48*N47+matrices!W48*T47+matrices!X48*Z47+matrices!Y48*AF47 -> 0 | U48: =matrices!T48*C47+matrices!U48*I47+matrices!V48*O47+matrices!W48*U47+matrices!X48*AA47+matrices!Y48*AG47 -> 0 | V48: =matrices!T48*D47+matrices!U48*J47+matrices!V48*P47+matrices!W48*V47+matrices!X48*AB47+matrices!Y48*AH47 -> 0.1806319341 | W48: =matrices!T48*E47+matrices!U48*K47+matrices!V48*Q47+matrices!W48*W47+matrices!X48*AC47+matrices!Y48*AI47 -> 0.201224817 | X48: =matrices!T48*F47+matrices!U48*L47+matrices!V48*R47+matrices!W48*X47+matrices!X48*AD47+matrices!Y48*AJ47 -> 0 | Y48: =matrices!T48*G47+matrices!U48*M47+matrices!V48*S47+matrices!W48*Y47+matrices!X48*AE47+matrices!Y48*AK47 -> 0 | Z48: =matrices!Z48*B47+matrices!AA48*H47+matrices!AB48*N47+matrices!AC48*T47+matrices!AD48*Z47+matrices!AE48*AF47 -> 0 | AA48: =matrices!Z48*C47+matrices!AA48*I47+matrices!AB48*O47+matrices!AC48*U47+matrices!AD48*AA47+matrices!AE48*AG47 -> 0 | AB48: =matrices!Z48*D47+matrices!AA48*J47+matrices!AB48*P47+matrices!AC48*V47+matrices!AD48*AB47+matrices!AE48*AH47 -> 0 | AC48: =matrices!Z48*E47+matrices!AA48*K47+matrices!AB48*Q47+matrices!AC48*W47+matrices!AD48*AC47+matrices!AE48*AI47 -> 0 | AD48: =matrices!Z48*F47+matrices!AA48*L47+matrices!AB48*R47+matrices!AC48*X47+matrices!AD48*AD47+matrices!AE48*AJ47 -> 0.3301411432 | AE48: =matrices!Z48*G47+matrices!AA48*M47+matrices!AB48*S47+matrices!AC48*Y47+matrices!AD48*AE47+matrices!AE48*AK47 -> -0.05888835128 | AF48: =matrices!AF48*B47+matrices!AG48*H47+matrices!AH48*N47+matrices!AI48*T47+matrices!AJ48*Z47+matrices!AK48*AF47 -> 0 | AG48: =matrices!AF48*C47+matrices!AG48*I47+matrices!AH48*O47+matrices!AI48*U47+matrices!AJ48*AA47+matrices!AK48*AG47 -> 0 | AH48: =matrices!AF48*D47+matrices!AG48*J47+matrices!AH48*P47+matrices!AI48*V47+matrices!AJ48*AB47+matrices!AK48*AH47 -> 0 | AI48: =matrices!AF48*E47+matrices!AG48*K47+matrices!AH48*Q47+matrices!AI48*W47+matrices!AJ48*AC47+matrices!AK48*AI47 -> 0 | AJ48: =matrices!AF48*F47+matrices!AG48*L47+matrices!AH48*R47+matrices!AI48*X47+matrices!AJ48*AD47+matrices!AK48*AJ47 -> -0.4649039117 | AK48: =matrices!AF48*G47+matrices!AG893*M47+matrices!AH48*S47+matrices!AI48*Y47+matrices!AJ48*AE47+matrices!AK48*AK47 -> 0.3058512217
A49: =matrices!A49 -> sb1 | B49: =matrices!B49*B48+matrices!C49*H48+matrices!D49*N48+matrices!E49*T48+matrices!F49*Z48+matrices!G49*AF48 -> 0.2099698275 | C49: =matrices!B49*C48+matrices!C49*I48+matrices!D49*O48+matrices!E49*U48+matrices!F49*AA48+matrices!G49*AG48 -> -0.1082395145 | D49: =matrices!B49*D48+matrices!C49*J48+matrices!D49*P48+matrices!E49*V48+matrices!F49*AB48+matrices!G49*AH48 -> 0 | E49: =matrices!B49*E48+matrices!C49*K48+matrices!D49*Q48+matrices!E49*W48+matrices!F49*AC48+matrices!G49*AI48 -> 0 | F49: =matrices!B49*F48+matrices!C49*L48+matrices!D49*R48+matrices!E49*X48+matrices!F49*AD48+matrices!G49*AJ48 -> 0 | G49: =matrices!B49*G48+matrices!C49*M48+matrices!D49*S48+matrices!E49*Y48+matrices!F49*AE48+matrices!G49*AK48 -> 0 | H49: =matrices!H49*B48+matrices!I49*H48+matrices!J49*N48+matrices!K49*T48+matrices!L49*Z48+matrices!M49*AF48 -> 0.2841142374 | I49: =matrices!H49*C48+matrices!I49*I48+matrices!J49*O48+matrices!K49*U48+matrices!L49*AA48+matrices!M49*AG48 -> 0.2040496032 | J49: =matrices!H49*D48+matrices!I49*J48+matrices!J49*P48+matrices!K49*V48+matrices!L49*AB48+matrices!M49*AH48 -> 0 | K49: =matrices!H49*E48+matrices!I49*K48+matrices!J49*Q48+matrices!K49*W48+matrices!L49*AC48+matrices!M49*AI48 -> 0 | L49: =matrices!H49*F48+matrices!I49*L48+matrices!J49*R48+matrices!K49*X48+matrices!L49*AD48+matrices!M49*AJ48 -> 0 | M49: =matrices!H49*G48+matrices!I49*M48+matrices!J49*S48+matrices!K49*Y48+matrices!L49*AE48+matrices!M49*AK48 -> 0 | N49: =matrices!N49*B48+matrices!O49*H48+matrices!P49*N48+matrices!Q49*T48+matrices!R49*Z48+matrices!S49*AF48 -> 0 | O49: =matrices!N49*C48+matrices!O49*I48+matrices!P49*O48+matrices!Q49*U48+matrices!R49*AA48+matrices!S49*AG48 -> 0 | P49: =matrices!N49*D48+matrices!O49*J48+matrices!P49*P48+matrices!Q49*V48+matrices!R49*AB48+matrices!S49*AH48 -> -0.006410677933 | Q49: =matrices!N49*E48+matrices!O49*K48+matrices!P49*Q48+matrices!Q49*W48+matrices!R49*AC48+matrices!S49*AI48 -> -0.4145813695 | R49: =matrices!N49*F48+matrices!O49*L48+matrices!P49*R48+matrices!Q49*X48+matrices!R49*AD48+matrices!S49*AJ48 -> 0 | S49: =matrices!N49*G48+matrices!O49*M48+matrices!P49*S48+matrices!Q49*Y48+matrices!R49*AE48+matrices!S49*AK48 -> 0 | T49: =matrices!T49*B48+matrices!U49*H48+matrices!V49*N48+matrices!W49*T48+matrices!X49*Z48+matrices!Y49*AF48 -> 0 | U49: =matrices!T49*C48+matrices!U49*I48+matrices!V49*O48+matrices!W49*U48+matrices!X49*AA48+matrices!Y49*AG48 -> 0 | V49: =matrices!T49*D48+matrices!U49*J48+matrices!V49*P48+matrices!W49*V48+matrices!X49*AB48+matrices!Y49*AH48 -> 0.1802310788 | W49: =matrices!T49*E48+matrices!U49*K48+matrices!V49*Q48+matrices!W49*W48+matrices!X49*AC48+matrices!Y49*AI48 -> 0.1753013287 | X49: =matrices!T49*F48+matrices!U49*L48+matrices!V49*R48+matrices!W49*X48+matrices!X49*AD48+matrices!Y49*AJ48 -> 0 | Y49: =matrices!T49*G48+matrices!U49*M48+matrices!V49*S48+matrices!W49*Y48+matrices!X49*AE48+matrices!Y49*AK48 -> 0 | Z49: =matrices!Z49*B48+matrices!AA49*H48+matrices!AB49*N48+matrices!AC49*T48+matrices!AD49*Z48+matrices!AE49*AF48 -> 0 | AA49: =matrices!Z49*C48+matrices!AA49*I48+matrices!AB49*O48+matrices!AC49*U48+matrices!AD49*AA48+matrices!AE49*AG48 -> 0 | AB49: =matrices!Z49*D48+matrices!AA49*J48+matrices!AB49*P48+matrices!AC49*V48+matrices!AD49*AB48+matrices!AE49*AH48 -> 0 | AC49: =matrices!Z49*E48+matrices!AA49*K48+matrices!AB49*Q48+matrices!AC49*W48+matrices!AD49*AC48+matrices!AE49*AI48 -> 0 | AD49: =matrices!Z49*F48+matrices!AA49*L48+matrices!AB49*R48+matrices!AC49*X48+matrices!AD49*AD48+matrices!AE49*AJ48 -> 0.3301411432 | AE49: =matrices!Z49*G48+matrices!AA49*M48+matrices!AB49*S48+matrices!AC49*Y48+matrices!AD49*AE48+matrices!AE49*AK48 -> -0.05888835128 | AF49: =matrices!AF49*B48+matrices!AG49*H48+matrices!AH49*N48+matrices!AI49*T48+matrices!AJ49*Z48+matrices!AK49*AF48 -> 0 | AG49: =matrices!AF49*C48+matrices!AG49*I48+matrices!AH49*O48+matrices!AI49*U48+matrices!AJ49*AA48+matrices!AK49*AG48 -> 0 | AH49: =matrices!AF49*D48+matrices!AG49*J48+matrices!AH49*P48+matrices!AI49*V48+matrices!AJ49*AB48+matrices!AK49*AH48 -> 0 | AI49: =matrices!AF49*E48+matrices!AG49*K48+matrices!AH49*Q48+matrices!AI49*W48+matrices!AJ49*AC48+matrices!AK49*AI48 -> 0 | AJ49: =matrices!AF49*F48+matrices!AG49*L48+matrices!AH49*R48+matrices!AI49*X48+matrices!AJ49*AD48+matrices!AK49*AJ48 -> -0.4649039117 | AK49: =matrices!AF49*G48+matrices!AG894*M48+matrices!AH49*S48+matrices!AI49*Y48+matrices!AJ49*AE48+matrices!AK49*AK48 -> 0.3058512217
A50: =matrices!A50 -> b1 | B50: =matrices!B50*B49+matrices!C50*H49+matrices!D50*N49+matrices!E50*T49+matrices!F50*Z49+matrices!G50*AF49 -> 0.2556107728 | C50: =matrices!B50*C49+matrices!C50*I49+matrices!D50*O49+matrices!E50*U49+matrices!F50*AA49+matrices!G50*AG49 -> -0.05983842839 | D50: =matrices!B50*D49+matrices!C50*J49+matrices!D50*P49+matrices!E50*V49+matrices!F50*AB49+matrices!G50*AH49 -> 0 | E50: =matrices!B50*E49+matrices!C50*K49+matrices!D50*Q49+matrices!E50*W49+matrices!F50*AC49+matrices!G50*AI49 -> 0 | F50: =matrices!B50*F49+matrices!C50*L49+matrices!D50*R49+matrices!E50*X49+matrices!F50*AD49+matrices!G50*AJ49 -> -0.0168222819 | G50: =matrices!B50*G49+matrices!C50*M49+matrices!D50*S49+matrices!E50*Y49+matrices!F50*AE49+matrices!G50*AK49 -> 0.01106705137 | H50: =matrices!H50*B49+matrices!I50*H49+matrices!J50*N49+matrices!K50*T49+matrices!L50*Z49+matrices!M50*AF49 -> 0.1472902015 | I50: =matrices!H50*C49+matrices!I50*I49+matrices!J50*O49+matrices!K50*U49+matrices!L50*AA49+matrices!M50*AG49 -> 0.2534440635 | J50: =matrices!H50*D49+matrices!I50*J49+matrices!J50*P49+matrices!K50*V49+matrices!L50*AB49+matrices!M50*AH49 -> 0 | K50: =matrices!H50*E49+matrices!I50*K49+matrices!J50*Q49+matrices!K50*W49+matrices!L50*AC49+matrices!M50*AI49 -> 0 | L50: =matrices!H50*F49+matrices!I50*L49+matrices!J50*R49+matrices!K50*X49+matrices!L50*AD49+matrices!M50*AJ49 -> -0.1590065025 | M50: =matrices!H50*G49+matrices!I50*M49+matrices!J50*S49+matrices!K50*Y49+matrices!L50*AE49+matrices!M50*AK49 -> 0.1046072787 | N50: =matrices!N50*B49+matrices!O50*H49+matrices!P50*N49+matrices!Q50*T49+matrices!R50*Z49+matrices!S50*AF49 -> 0 | O50: =matrices!N50*C49+matrices!O50*I49+matrices!P50*O49+matrices!Q50*U49+matrices!R50*AA49+matrices!S50*AG49 -> 0 | P50: =matrices!N50*D49+matrices!O50*J49+matrices!P50*P49+matrices!Q50*V49+matrices!R50*AB49+matrices!S50*AH49 -> 0.03133683094 | Q50: =matrices!N50*E49+matrices!O50*K49+matrices!P50*Q49+matrices!Q50*W49+matrices!R50*AC49+matrices!S50*AI49 -> -0.3778663451 | R50: =matrices!N50*F49+matrices!O50*L49+matrices!P50*R49+matrices!Q50*X49+matrices!R50*AD49+matrices!S50*AJ49 -> 0 | S50: =matrices!N50*G49+matrices!O50*M49+matrices!P50*S49+matrices!Q50*Y49+matrices!R50*AE49+matrices!S50*AK49 -> 0 | T50: =matrices!T50*B49+matrices!U50*H49+matrices!V50*N49+matrices!W50*T49+matrices!X50*Z49+matrices!Y50*AF49 -> 0 | U50: =matrices!T50*C49+matrices!U50*I49+matrices!V50*O49+matrices!W50*U49+matrices!X50*AA49+matrices!Y50*AG49 -> 0 | V50: =matrices!T50*D49+matrices!U50*J49+matrices!V50*P49+matrices!W50*V49+matrices!X50*AB49+matrices!Y50*AH49 -> 0.1802310788 | W50: =matrices!T50*E49+matrices!U50*K49+matrices!V50*Q49+matrices!W50*W49+matrices!X50*AC49+matrices!Y50*AI49 -> 0.1753013287 | X50: =matrices!T50*F49+matrices!U50*L49+matrices!V50*R49+matrices!W50*X49+matrices!X50*AD49+matrices!Y50*AJ49 -> 0 | Y50: =matrices!T50*G49+matrices!U50*M49+matrices!V50*S49+matrices!W50*Y49+matrices!X50*AE49+matrices!Y50*AK49 -> 0 | Z50: =matrices!Z50*B49+matrices!AA50*H49+matrices!AB50*N49+matrices!AC50*T49+matrices!AD50*Z49+matrices!AE50*AF49 -> 0.08209442153 | AA50: =matrices!Z50*C49+matrices!AA50*I49+matrices!AB50*O49+matrices!AC50*U49+matrices!AD50*AA49+matrices!AE50*AG49 -> -0.0296366762 | AB50: =matrices!Z50*D49+matrices!AA50*J49+matrices!AB50*P49+matrices!AC50*V49+matrices!AD50*AB49+matrices!AE50*AH49 -> 0 | AC50: =matrices!Z50*E49+matrices!AA50*K49+matrices!AB50*Q49+matrices!AC50*W49+matrices!AD50*AC49+matrices!AE50*AI49 -> 0 | AD50: =matrices!Z50*F49+matrices!AA50*L49+matrices!AB50*R49+matrices!AC50*X49+matrices!AD50*AD49+matrices!AE50*AJ49 -> 0.3281757971 | AE50: =matrices!Z50*G49+matrices!AA50*M49+matrices!AB50*S49+matrices!AC50*Y49+matrices!AD50*AE49+matrices!AE50*AK49 -> -0.05759538842 | AF50: =matrices!AF50*B49+matrices!AG50*H49+matrices!AH50*N49+matrices!AI50*T49+matrices!AJ50*Z49+matrices!AK50*AF49 -> 0 | AG50: =matrices!AF50*C49+matrices!AG50*I49+matrices!AH50*O49+matrices!AI50*U49+matrices!AJ50*AA49+matrices!AK50*AG49 -> 0 | AH50: =matrices!AF50*D49+matrices!AG50*J49+matrices!AH50*P49+matrices!AI50*V49+matrices!AJ50*AB49+matrices!AK50*AH49 -> 0 | AI50: =matrices!AF50*E49+matrices!AG50*K49+matrices!AH50*Q49+matrices!AI50*W49+matrices!AJ50*AC49+matrices!AK50*AI49 -> 0 | AJ50: =matrices!AF50*F49+matrices!AG50*L49+matrices!AH50*R49+matrices!AI50*X49+matrices!AJ50*AD49+matrices!AK50*AJ49 -> -0.4649039117 | AK50: =matrices!AF50*G49+matrices!AG895*M49+matrices!AH50*S49+matrices!AI50*Y49+matrices!AJ50*AE49+matrices!AK50*AK49 -> 0.3058512217
A51: =matrices!A51 -> eb1 | B51: =matrices!B51*B50+matrices!C51*H50+matrices!D51*N50+matrices!E51*T50+matrices!F51*Z50+matrices!G51*AF50 -> 0.2556107728 | C51: =matrices!B51*C50+matrices!C51*I50+matrices!D51*O50+matrices!E51*U50+matrices!F51*AA50+matrices!G51*AG50 -> -0.05983842839 | D51: =matrices!B51*D50+matrices!C51*J50+matrices!D51*P50+matrices!E51*V50+matrices!F51*AB50+matrices!G51*AH50 -> 0 | E51: =matrices!B51*E50+matrices!C51*K50+matrices!D51*Q50+matrices!E51*W50+matrices!F51*AC50+matrices!G51*AI50 -> 0 | F51: =matrices!B51*F50+matrices!C51*L50+matrices!D51*R50+matrices!E51*X50+matrices!F51*AD50+matrices!G51*AJ50 -> -0.0168222819 | G51: =matrices!B51*G50+matrices!C51*M50+matrices!D51*S50+matrices!E51*Y50+matrices!F51*AE50+matrices!G51*AK50 -> 0.01106705137 | H51: =matrices!H51*B50+matrices!I51*H50+matrices!J51*N50+matrices!K51*T50+matrices!L51*Z50+matrices!M51*AF50 -> 0.1472902015 | I51: =matrices!H51*C50+matrices!I51*I50+matrices!J51*O50+matrices!K51*U50+matrices!L51*AA50+matrices!M51*AG50 -> 0.2534440635 | J51: =matrices!H51*D50+matrices!I51*J50+matrices!J51*P50+matrices!K51*V50+matrices!L51*AB50+matrices!M51*AH50 -> 0 | K51: =matrices!H51*E50+matrices!I51*K50+matrices!J51*Q50+matrices!K51*W50+matrices!L51*AC50+matrices!M51*AI50 -> 0 | L51: =matrices!H51*F50+matrices!I51*L50+matrices!J51*R50+matrices!K51*X50+matrices!L51*AD50+matrices!M51*AJ50 -> -0.1590065025 | M51: =matrices!H51*G50+matrices!I51*M50+matrices!J51*S50+matrices!K51*Y50+matrices!L51*AE50+matrices!M51*AK50 -> 0.1046072787 | N51: =matrices!N51*B50+matrices!O51*H50+matrices!P51*N50+matrices!Q51*T50+matrices!R51*Z50+matrices!S51*AF50 -> 0 | O51: =matrices!N51*C50+matrices!O51*I50+matrices!P51*O50+matrices!Q51*U50+matrices!R51*AA50+matrices!S51*AG50 -> 0 | P51: =matrices!N51*D50+matrices!O51*J50+matrices!P51*P50+matrices!Q51*V50+matrices!R51*AB50+matrices!S51*AH50 -> 0.03133683094 | Q51: =matrices!N51*E50+matrices!O51*K50+matrices!P51*Q50+matrices!Q51*W50+matrices!R51*AC50+matrices!S51*AI50 -> -0.3778663451 | R51: =matrices!N51*F50+matrices!O51*L50+matrices!P51*R50+matrices!Q51*X50+matrices!R51*AD50+matrices!S51*AJ50 -> 0 | S51: =matrices!N51*G50+matrices!O51*M50+matrices!P51*S50+matrices!Q51*Y50+matrices!R51*AE50+matrices!S51*AK50 -> 0 | T51: =matrices!T51*B50+matrices!U51*H50+matrices!V51*N50+matrices!W51*T50+matrices!X51*Z50+matrices!Y51*AF50 -> 0 | U51: =matrices!T51*C50+matrices!U51*I50+matrices!V51*O50+matrices!W51*U50+matrices!X51*AA50+matrices!Y51*AG50 -> 0 | V51: =matrices!T51*D50+matrices!U51*J50+matrices!V51*P50+matrices!W51*V50+matrices!X51*AB50+matrices!Y51*AH50 -> 0.1821905493 | W51: =matrices!T51*E50+matrices!U51*K50+matrices!V51*Q50+matrices!W51*W50+matrices!X51*AC50+matrices!Y51*AI50 -> 0.1516736056 | X51: =matrices!T51*F50+matrices!U51*L50+matrices!V51*R50+matrices!W51*X50+matrices!X51*AD50+matrices!Y51*AJ50 -> 0 | Y51: =matrices!T51*G50+matrices!U51*M50+matrices!V51*S50+matrices!W51*Y50+matrices!X51*AE50+matrices!Y51*AK50 -> 0 | Z51: =matrices!Z51*B50+matrices!AA51*H50+matrices!AB51*N50+matrices!AC51*T50+matrices!AD51*Z50+matrices!AE51*AF50 -> 0.08209442153 | AA51: =matrices!Z51*C50+matrices!AA51*I50+matrices!AB51*O50+matrices!AC51*U50+matrices!AD51*AA50+matrices!AE51*AG50 -> -0.0296366762 | AB51: =matrices!Z51*D50+matrices!AA51*J50+matrices!AB51*P50+matrices!AC51*V50+matrices!AD51*AB50+matrices!AE51*AH50 -> 0 | AC51: =matrices!Z51*E50+matrices!AA51*K50+matrices!AB51*Q50+matrices!AC51*W50+matrices!AD51*AC50+matrices!AE51*AI50 -> 0 | AD51: =matrices!Z51*F50+matrices!AA51*L50+matrices!AB51*R50+matrices!AC51*X50+matrices!AD51*AD50+matrices!AE51*AJ50 -> 0.3281757971 | AE51: =matrices!Z51*G50+matrices!AA51*M50+matrices!AB51*S50+matrices!AC51*Y50+matrices!AD51*AE50+matrices!AE51*AK50 -> -0.05759538842 | AF51: =matrices!AF51*B50+matrices!AG51*H50+matrices!AH51*N50+matrices!AI51*T50+matrices!AJ51*Z50+matrices!AK51*AF50 -> 0 | AG51: =matrices!AF51*C50+matrices!AG51*I50+matrices!AH51*O50+matrices!AI51*U50+matrices!AJ51*AA50+matrices!AK51*AG50 -> 0 | AH51: =matrices!AF51*D50+matrices!AG51*J50+matrices!AH51*P50+matrices!AI51*V50+matrices!AJ51*AB50+matrices!AK51*AH50 -> 0 | AI51: =matrices!AF51*E50+matrices!AG51*K50+matrices!AH51*Q50+matrices!AI51*W50+matrices!AJ51*AC50+matrices!AK51*AI50 -> 0 | AJ51: =matrices!AF51*F50+matrices!AG51*L50+matrices!AH51*R50+matrices!AI51*X50+matrices!AJ51*AD50+matrices!AK51*AJ50 -> -0.4649039117 | AK51: =matrices!AF51*G50+matrices!AG896*M50+matrices!AH51*S50+matrices!AI51*Y50+matrices!AJ51*AE50+matrices!AK51*AK50 -> 0.3058512217
A52: =matrices!A52 -> roll | B52: =matrices!B52*B51+matrices!C52*H51+matrices!D52*N51+matrices!E52*T51+matrices!F52*Z51+matrices!G52*AF51 -> -0.2556107728 | C52: =matrices!B52*C51+matrices!C52*I51+matrices!D52*O51+matrices!E52*U51+matrices!F52*AA51+matrices!G52*AG51 -> 0.05983842839 | D52: =matrices!B52*D51+matrices!C52*J51+matrices!D52*P51+matrices!E52*V51+matrices!F52*AB51+matrices!G52*AH51 -> 0 | E52: =matrices!B52*E51+matrices!C52*K51+matrices!D52*Q51+matrices!E52*W51+matrices!F52*AC51+matrices!G52*AI51 -> 0 | F52: =matrices!B52*F51+matrices!C52*L51+matrices!D52*R51+matrices!E52*X51+matrices!F52*AD51+matrices!G52*AJ51 -> 0.0168222819 | G52: =matrices!B52*G51+matrices!C52*M51+matrices!D52*S51+matrices!E52*Y51+matrices!F52*AE51+matrices!G52*AK51 -> -0.01106705137 | H52: =matrices!H52*B51+matrices!I52*H51+matrices!J52*N51+matrices!K52*T51+matrices!L52*Z51+matrices!M52*AF51 -> -0.1472902015 | I52: =matrices!H52*C51+matrices!I52*I51+matrices!J52*O51+matrices!K52*U51+matrices!L52*AA51+matrices!M52*AG51 -> -0.2534440635 | J52: =matrices!H52*D51+matrices!I52*J51+matrices!J52*P51+matrices!K52*V51+matrices!L52*AB51+matrices!M52*AH51 -> 0 | K52: =matrices!H52*E51+matrices!I52*K51+matrices!J52*Q51+matrices!K52*W51+matrices!L52*AC51+matrices!M52*AI51 -> 0 | L52: =matrices!H52*F51+matrices!I52*L51+matrices!J52*R51+matrices!K52*X51+matrices!L52*AD51+matrices!M52*AJ51 -> 0.1590065025 | M52: =matrices!H52*G51+matrices!I52*M51+matrices!J52*S51+matrices!K52*Y51+matrices!L52*AE51+matrices!M52*AK51 -> -0.1046072787 | N52: =matrices!N52*B51+matrices!O52*H51+matrices!P52*N51+matrices!Q52*T51+matrices!R52*Z51+matrices!S52*AF51 -> 0 | O52: =matrices!N52*C51+matrices!O52*I51+matrices!P52*O51+matrices!Q52*U51+matrices!R52*AA51+matrices!S52*AG51 -> 0 | P52: =matrices!N52*D51+matrices!O52*J51+matrices!P52*P51+matrices!Q52*V51+matrices!R52*AB51+matrices!S52*AH51 -> -0.03133683094 | Q52: =matrices!N52*E51+matrices!O52*K51+matrices!P52*Q51+matrices!Q52*W51+matrices!R52*AC51+matrices!S52*AI51 -> 0.3778663451 | R52: =matrices!N52*F51+matrices!O52*L51+matrices!P52*R51+matrices!Q52*X51+matrices!R52*AD51+matrices!S52*AJ51 -> 0 | S52: =matrices!N52*G51+matrices!O52*M51+matrices!P52*S51+matrices!Q52*Y51+matrices!R52*AE51+matrices!S52*AK51 -> 0 | T52: =matrices!T52*B51+matrices!U52*H51+matrices!V52*N51+matrices!W52*T51+matrices!X52*Z51+matrices!Y52*AF51 -> 0 | U52: =matrices!T52*C51+matrices!U52*I51+matrices!V52*O51+matrices!W52*U51+matrices!X52*AA51+matrices!Y52*AG51 -> 0 | V52: =matrices!T52*D51+matrices!U52*J51+matrices!V52*P51+matrices!W52*V51+matrices!X52*AB51+matrices!Y52*AH51 -> -0.1821905493 | W52: =matrices!T52*E51+matrices!U52*K51+matrices!V52*Q51+matrices!W52*W51+matrices!X52*AC51+matrices!Y52*AI51 -> -0.1516736056 | X52: =matrices!T52*F51+matrices!U52*L51+matrices!V52*R51+matrices!W52*X51+matrices!X52*AD51+matrices!Y52*AJ51 -> 0 | Y52: =matrices!T52*G51+matrices!U52*M51+matrices!V52*S51+matrices!W52*Y51+matrices!X52*AE51+matrices!Y52*AK51 -> 0 | Z52: =matrices!Z52*B51+matrices!AA52*H51+matrices!AB52*N51+matrices!AC52*T51+matrices!AD52*Z51+matrices!AE52*AF51 -> 0.08209442153 | AA52: =matrices!Z52*C51+matrices!AA52*I51+matrices!AB52*O51+matrices!AC52*U51+matrices!AD52*AA51+matrices!AE52*AG51 -> -0.0296366762 | AB52: =matrices!Z52*D51+matrices!AA52*J51+matrices!AB52*P51+matrices!AC52*V51+matrices!AD52*AB51+matrices!AE52*AH51 -> 0 | AC52: =matrices!Z52*E51+matrices!AA52*K51+matrices!AB52*Q51+matrices!AC52*W51+matrices!AD52*AC51+matrices!AE52*AI51 -> 0 | AD52: =matrices!Z52*F51+matrices!AA52*L51+matrices!AB52*R51+matrices!AC52*X51+matrices!AD52*AD51+matrices!AE52*AJ51 -> 0.3281757971 | AE52: =matrices!Z52*G51+matrices!AA52*M51+matrices!AB52*S51+matrices!AC52*Y51+matrices!AD52*AE51+matrices!AE52*AK51 -> -0.05759538842 | AF52: =matrices!AF52*B51+matrices!AG52*H51+matrices!AH52*N51+matrices!AI52*T51+matrices!AJ52*Z51+matrices!AK52*AF51 -> 0 | AG52: =matrices!AF52*C51+matrices!AG52*I51+matrices!AH52*O51+matrices!AI52*U51+matrices!AJ52*AA51+matrices!AK52*AG51 -> 0 | AH52: =matrices!AF52*D51+matrices!AG52*J51+matrices!AH52*P51+matrices!AI52*V51+matrices!AJ52*AB51+matrices!AK52*AH51 -> 0 | AI52: =matrices!AF52*E51+matrices!AG52*K51+matrices!AH52*Q51+matrices!AI52*W51+matrices!AJ52*AC51+matrices!AK52*AI51 -> 0 | AJ52: =matrices!AF52*F51+matrices!AG52*L51+matrices!AH52*R51+matrices!AI52*X51+matrices!AJ52*AD51+matrices!AK52*AJ51 -> -0.4649039117 | AK52: =matrices!AF52*G51+matrices!AG897*M51+matrices!AH52*S51+matrices!AI52*Y51+matrices!AJ52*AE51+matrices!AK52*AK51 -> 0.3058512217
